Workbook

Sheet Cover
F3: Amendments made on 6 August 2014.
F4: Click here for details.
A8: Distribution Network Service Provider
A9: Annual reporting template
A11: This template is to be used by a DNSP to fulfil its annual reporting obligations to the AER.
A13: Colour coding of input sheets:
A14: Dark blue = AER instructions/headings
A15: Yellow = Input cells
A16: Grey = Not applicable/No inputs required
A18: Leave coloured cells blank if no information exists - PLEASE DO NOT ENTER TEXT unless specifically requested to do so.
A19: All dollar amounts are to be unrounded, and in nominal terms.
A22: DNSP - trading name: | E22: Powercor Australia Ltd
A24: DNSP - Australian business number: | E24: ACN 064 651 109
A26: Reporting year: | E26: 2015
A30: Business address | D30: Address | F30: 40 Market Street
D31: Suburb | F31: Melbourne
E32: State | F32: VIC | G32: Postcode | H32: 3000
A34: Postal address | D34: Address | F34: Locked Bag 14090
D35: Suburb | F35: Melbourne
E36: State | F36: VIC | G36: Postcode | H36: 8001
A39: Contact name/s | D39: Hannah Williams | E39: Renate Tirpcou | F39: Renate Tirpcou | G39: Renate Tirpcou | H39: Renate Tirpcou
A40: Contact phone/s | D40: 9683 4088 | E40: 9683 4082 | F40: 9683 4082 | G40: 9683 4082 | H40: 9683 4082
A41: Contact email address/s | D41: hwilliams@powercor.com.au | E41: rtirpcou@powercor.com.au | F41: rtirpcou@powercor.com.au | G41: rtirpcou@powercor.com.au | H41: rtirpcou@powercor.com.au
A44: Consumer Price Index | D44: 2010 | E44: 2011 | F44: 2012 | G44: 2013 | H44: 2014 | I44: 2015
A45: ABS CPI (Pub No: 6401.0, All groups, 8 Capital Cities, Sept) | D45: 168.6 | E45: 173.3 | F45: 179.4 | G45: 182.9951904 | H45: 186.9498998 | I45: 191.2659972
A46: ABS CPI (Pub No: 6401.0, All groups, 8 Capital Cities, Sept) | D46: =E46/(1+E54) -> 93.79197324 | E46: =F46/(1+F54) -> 96.40657748 | F46: =G46/(1+G54) -> 99.8 | G46: =H46/(1+H54) -> 101.8 | H46: =I46/(1+I54) -> 104 | I46: 106.4010397
A47: CPI (per cent) | E47: =+E45/D45-1 -> 0.02787663108 | F47: =+F46/E46-1 -> 0.03519907675 | G47: =+G46/F46-1 -> 0.02004008016 | H47: =+H46/G46-1 -> 0.02161100196 | I47: =+I46/H46-1 -> 0.02308692
A48: Reconstructed index (2014 = 100) | D48: =+E48/(1+E47) -> 90.18458966 | E48: =+F48/(1+F47) -> 92.69863219 | F48: =+G48/(1+G47) -> 95.96153846 | G48: =+H48/(1+H47) -> 97.88461538 | H48: 100
A49: Reconstructed index (2015 = 100) | D49: =+E49/(1+E47) -> 88.14948945 | E49: =+F49/(1+F47) -> 90.60680024 | F49: 93.79607596 | G49: =+H49/(1+H47) -> 95.67575684 | H49: =+I49/(1+I47) -> 97.74340581 | I49: 100
D50: * Above CPI is used to adjust forecasts from 2011-15 determination.
E54: =E45/D45-1 -> 0.02787663108 | F54: =F45/E45-1 -> 0.03519907675 | G54: =G45/F45-1 -> 0.02004008016 | H54: =H45/G45-1 -> 0.02161100196 | I54: =I45/H45-1 -> 0.02308692

Sheet Contents
C3: Electricity Distribution Network Service Provider Annual Reporting Template
D4: Table of contents
C7: Cover sheet | D7: Operating activities | E7: 18. Self Insurance
D8: 8a. Operating Activities (T)
C9: Reconciliation (deleted) | D9: 8b. Operating Activities (M) | E9: 19. CHAP
C11: 1a. Income Statement | D11: 9a. Operating Oheads (T) (deleted) | E11: 20. Related Party
C12: 1b. Provisions (deleted) | D12: 9b. Operating Oheads (M) (deleted)
E13: 21. AMI
C14: 2. Demand and Revenue | D14: Overheads
D15: 10. Overheads Allocation (deleted) | E15: 22. Safety and Bushfire
C16: Capex
C17: 3a. Capex - total | D17: 11. Total Overheads (deleted) | E17: 23. Shared assets
C18: 3b. Capex - margins
D19: Other information | E19: Pricing proposal
C20: 4a. Capex overheads - total (deleted) | D20: 12. Cost categories (deleted) | E20: 24. Unmetered supply
C21: 4b. Capex overheads - Margins (deleted)
D22: 13. Avoided Cost Payments | E22: 25. Actual t-2 Distr Tariff
C23: 5. Capex for tax depreciation
D24: 14. Alt Control&Others | E24: 26. Actual t-2 Trans Tariff
C25: Maintenance
C26: 6a. Maintenance - total | D26: 15. EBSS | E26: 27. TUoS cost audit (t-2)
C27: 6b. Maintenance - margin
D28: 16. Juris Scheme | E28: 28. Actual t-2 Juris Revenue
C29: 7a. Maintenance overhead -total (deleted)
C30: 7b. Maintenance ohead - margin (deleted) | D30: 17. DMIS-DMIA | E30: 29. Juris cost audit template

Sheet 1a. Income
B1: =Cover!E22 -> Powercor Australia Ltd
B2: Income Statement
B3: =Cover!E26 -> 2015
E4: Colour coding:
B5: Dollar unit used in this sheet | E5: Yellow = Input cells
B6: nominal $'000 | E6: Grey = No inputs required
B8: This information is used to monitor revenues for each service classification. Elements of the information are used to calculate financial ratios, used for intra and inter-business comparison and reconcile statutory amounts with regulatory amounts.
B12: Statutory Account code or reference to account code | C12: Description | D12: Audited Statutory Accounts | E12: Adjustments | F12: Distribution business | G12: Standard Control Services | H12: AMI | I12: Alternative Control Services - Public Lighting | K12: Alternative Control Services | M12: Negotiated Services | N12: Unregulated Services
I13: Energy efficient | J13: Non energy efficient | K13: Fee based services | L13: Quoted services
C14: Distribution Revenue | D14: 769806.0336 | E14: 0 | F14: 769806.0336 | G14: 657063.7622 | H14: 84383.79094 | I14: 3503.161197 | J14: 4613.804833 | K14: 14527.68382 | L14: 5022.40282 | M14: 681.86606 | N14: 9.5617
C15: TUOS revenue | D15: 182260.5379 | E15: -182260.5379 | F15: 0 | G15: 0 | H15: 0 | I15: 0 | J15: 0 | K15: 0 | L15: 0 | M15: 0 | N15: 0
C16: Cross boundary revenue | D16: 6386.8562 | E16: -6386.8562 | F16: 0 | G16: 0 | H16: 0 | I16: 0 | J16: 0 | K16: 0 | L16: 0 | M16: 0 | N16: 0
C17: Jurisdictional Scheme Amounts | D17: 54143.13052 | E17: -54143.13052 | F17: 0 | G17: 0 | H17: 0 | I17: 0 | J17: 0 | K17: 0 | L17: 0 | M17: 0 | N17: 0
C18: Profit from sale of Fixed Assets | D18: -541.27917 | E18: 0 | F18: -541.27917 | G18: -541.27917 | H18: 0 | I18: 0 | J18: 0 | K18: 0 | L18: 0 | M18: 0 | N18: 0
C19: Customer Contributions | D19: 88518.28753 | E19: -88518.28753 | F19: 0 | G19: 0 | H19: 0 | I19: 0 | J19: 0 | K19: 0 | L19: 0 | M19: 0 | N19: 0
C20: Interest income | D20: 105577.8258 | E20: -105245.8046 | F20: 332.02117 | G20: 295.5627047 | H20: 34.40988493 | I20: 0.8289135401 | J20: 1.219666863 | K20: 0 | L20: 0 | M20: 0 | N20: 0
C21: Revenue from use of RAB assets for non-SCS purposes | D21: 0 | E21: 0 | F21: 0 | G21: 0 | H21: 0 | I21: 0 | J21: 0 | K21: 0 | L21: 0 | M21: 0 | N21: 0
C22: Other Revenue | D22: 270554.5748 | E22: -271836.0628 | F22: -1281.48798 | G22: 2672.31451 | H22: -6290.34791 | I22: -771.01724 | J22: 0 | K22: 0 | L22: 0 | M22: 0 | N22: 3107.56266
C23: Total revenue | D23: =SUM(D14:D22) -> 1476705.967 | E23: -708390.6796 | F23: 768315.2877 | G23: 659490.3603 | H23: 78127.85292 | I23: 2732.972871 | J23: 4615.0245 | K23: 14527.68382 | L23: 5022.40282 | M23: 681.86606 | N23: 3117.12436
C24: TUOS costs | D24: 182260.5379 | E24: -182260.5379 | F24: 0 | G24: 0 | H24: 0 | I24: 0 | J24: 0 | K24: 0 | L24: 0 | M24: 0 | N24: 0
C25: Cross boundary costs | D25: 6386.8562 | E25: -6386.8562 | F25: 0 | G25: 0 | H25: 0 | I25: 0 | J25: 0 | K25: 0 | L25: 0 | M25: 0 | N25: 0
C26: Jurisdictional Scheme Amounts | D26: 54143.13052 | E26: -54143.13052 | F26: 0 | G26: 0 | H26: 0 | I26: 0 | J26: 0 | K26: 0 | L26: 0 | M26: 0 | N26: 0
C27: Maintenance | D27: 137388.6281 | E27: 0 | F27: 137388.6281 | G27: 124659.6693 | H27: 2168.60745 | I27: 2092.009379 | J27: 3078.191383 | K27: 3772.640265 | L27: 1617.510326 | M27: 0 | N27: 0
C28: Operating Expenses | D28: 352036.9888 | E28: -258627.8596 | F28: 93409.12921 | G28: 66554.01334 | H28: 11877.29842 | I28: 66.64994262 | J28: 98.06900539 | K28: 9364.315881 | L28: 5448.782637 | M28: 0 | N28: 0
C29: Depreciation | D29: 214910.4834 | E29: -15188.88074 | F29: 199721.6027 | G29: 154554.449 | H29: 44048.5932 | I29: 452.6011894 | J29: 665.9592903 | K29: 0 | L29: 0 | M29: 0 | N29: 0
C30: Finance Charges | D30: 21809.12355 | E30: -21651.37715 | F30: 157.7464 | G30: 140.4187984 | H30: 16.34778211 | I30: 0.39380829 | J30: 0.5794511712 | K30: 0 | L30: 0 | M30: 0 | N30: 0
C31: Loss from sale of Fixed Assets | D31: 0 | E31: 0 | F31: 0 | G31: 0 | H31: 0 | I31: 0 | J31: 0 | K31: 0 | L31: 0 | M31: 0 | N31: 0
C32: Impairment Losses (Nature) | D32: 0 | E32: 0 | F32: 0 | G32: 0 | H32: 0 | I32: 0 | J32: 0 | K32: 0 | L32: 0 | M32: 0 | N32: 0
C33: Costs from use of RAB assets for non-SCS purposes | D33: 0 | E33: 0 | F33: 0 | G33: 0 | H33: 0 | I33: 0 | J33: 0 | K33: 0 | L33: 0 | M33: 0 | N33: 0
C34: Other | D34: 0 | E34: 0 | F34: 0 | G34: 0 | H34: 0 | I34: 0 | J34: 0 | K34: 0 | L34: 0 | M34: 0 | N34: 0
C35: Profit before Tax (PBT) | D35: =D23-SUM(D24:D34) -> 507770.2188 | E35: -170132.0375 | F35: 337638.1813 | G35: 313581.8099 | H35: 20017.00607 | I35: 121.3185511 | J35: 772.2253694 | K35: 1390.727672 | L35: -2043.890143 | M35: 681.86606 | N35: 3117.12436
C36: Income Tax Expenses /(Benefit) | D36: 148995.2188 | E36: -49921.91194 | F36: 99073.30684 | G36: 92014.43614 | H36: 5873.598112 | I36: 35.59855108 | J36: 226.5943996 | K36: 408.0817782 | L36: -599.7395036 | M36: 200.0802312 | N36: 914.6590501
C37: Profit after tax | D37: =D35-D36 -> 358775 | E37: -120210.1256 | F37: 238564.8744 | G37: 221567.3737 | H37: 14143.40795 | I37: 85.72000007 | J37: 545.6309698 | K37: 982.6458941 | L37: -1444.150639 | M37: 481.7858288 | N37: 2202.46531
B39: Note:
B40: Balancing is required at distribution business level: Distribution business = SCS+AMI+ACS+Negotiated services; and Audited Statutory accounts + Adjustments = Distribution business
B42: In addition it is mandatory to produce for each cost or revenue item that has been allocated to the distribution services/AMI a supporting
B43: workpaper that includes the following:
B44: a) the amounts that have been directly attributed to each distribution service
B45: b) the amounts that have been allocated to each distribution service
B46: c) a description of the allocation basis
B47: d) the numeric quantity of each allocator.
B50: Definitions
B51: The accounting terms used in this template have the same meaning as is used for the prepartion of the statutory accounts.
B52: The service classifications have the same meaning as that used in Powercor's approved CAM.
B53: Audited statutory accounts: | C53: the audited set of accounts prepared in accordance with the requirements of the Australian Securities and Investments Commission (ASIC) and the Corporations Act 2001 (Cth).

Sheet 2. Demand and Revenue
B1: =Cover!E22 -> Powercor Australia Ltd
B2: Total Revenue and Demand
B3: =Cover!E26 -> 2015
D4: Colour coding:
B5: Dollar unit used in this sheet | D5: Yellow = Input cells
B6: nominal $'000 | D6: Grey = No inputs required
B8: Table 1 Standard Control Services Revenue - Current Year
B9: Note: insert additional rows as necessary
B11: Statutory Account code or reference to account code | C11: Tariff categories | D11: Amount of Electricity Distributed (GWh) | E11: Distribution Revenue
C12: D1 - Small Single Rate | D12: 2132.775484 | E12: 203666.1595
C13: D1CS - Climate Saver | D13: 27.12010894 | E13: 1452.711449
C14: D3CS - ClimateSaver Interval | D14: 8.415514211 | E14: 435.634888
C15: D2 - Small Two Rate | D15: 240.5184039 | E15: 24816.28649
C16: D2DK - Small Two Rate DK | D16: 3.738916983 | E16: 447.682145
C17: D3 - Residential Interval | D17: 561.3465884 | E17: 55472.94799
C18: D2OP - Residential Two Rate 5d - controlled load | D18: 87.7683135 | E18: 2430.913846
C19: D2DKOP - Docklands Two Rate 5d - controlled load | D19: 0.1269039561 | E19: 3.019318194
C20: DD1 - Dedicated Circuit | D20: 335.9301077 | E20: 574.5558789
C21: D3HW - Hot Water Interval | D21: 11.05112387 | E21: 18.70326528
C22: P13R - Residential - Flexible Pricing | D22: 12.67752093 | E22: 1295.991564
C23: P13RDK - Residential Docklands - Flexible Pricing | D23: 0.005430482328 | E23: 0.2496696627
C24: P13RCS - Climate Saver - Flexible Pricing | D24: 0 | E24: 0
C25: P1DK - Docklands single rate | D25: 0 | E25: 0
C26: ND1 - Medium single rate | D26: 297.5334618 | E26: 38476.33179
C27: ND1R - Medium single rate | D27: 0 | E27: 0
C28: P14G - Non-Residential | D28: 19.17623273 | E28: 525.7725497
C29: ND2 - Medium Two Rate - 5d | D29: 1131.625793 | E29: 88637.15166
C30: ND2BS - Medium Two Rate - 5d | D30: 0 | E30: 0
C31: ND3 - Medium Two Rate - 7d | D31: 174.3690726 | E31: 12015.51694
C32: ND5 - Non Residential Interval | D32: 403.1751995 | E32: 33495.35919
C33: PL2 - Unmetered Supplies | D33: 90.77606482 | E33: 4586.106545
C34: DL - Large Tariff (kW) | D34: 1222.5597 | E34: 65982.864
C35: DLA - Large Tariff A (kW) | D35: 0 | E35: 0
C36: DLC - Large Tariff C (kW) | D36: 569.2222713 | E36: 21708.57269
C37: DLCXX - Large Tariff CXX (kW) | D37: 469.8787879 | E37: 39901.75345
C38: DLS - Large Tariff S (kW) | D38: 24.6541726 | E38: 1210.292834
C39: DLDK - Large Tariff DK (kW) | D39: 5.618256268 | E39: 178.3170456
C40: DL.R - Large Tariff R (kW) | D40: 0.9437750954 | E40: 90.66075487
C41: DL.NR - Large Tariff NR (kW) | D41: 60.64782788 | E41: 3227.444654
C42: DL.CXXR - Large Tariff CXXR (kW) | D42: 2.07230923 | E42: 107.3641892
C43: DL.CXXNR - Large Tariff CXXNR (kW) | D43: 5.151248845 | E43: 548.6500444
C44: DH - High Voltage (kW) | D44: 1065.131318 | E44: 36548.8657
C45: DHA - High Voltage A (kW) | D45: 12.01359533 | E45: 200.2700745
C46: DHC - High Voltage C (kW) | D46: 438.1917633 | E46: 10793.57991
C47: DHD1 - High Voltage D1 (kW) | D47: 157.9661366 | E47: 1257.098863
C48: DHD2 - High Voltage D2 (kW) | D48: 85.95011039 | E48: 808.9949148
C49: DHD3 - High Voltage D3 (kW) | D49: 26.61717648 | E49: 703.8811073
C50: DHD4 - High Voltage D4 (kW) | D50: 0 | E50: 0
C51: DHDK - High Voltage DK (kW) | D51: 2.643133996 | E51: 52.03863775
C52: DHD5 - High Voltage D5 (kW) | D52: 0 | E52: 0
C53: DHR - High Voltage R (kW) | D53: 0 | E53: 0
C54: DHNR - High Voltage NR (kW) | D54: 0 | E54: 0
C55: DSA - Subtransmission A | D55: 121.1729828 | E55: 849.1658956
C56: DSG - Subtransmission G | D56: 574.5158285 | E56: 2854.252222
C57: DSS - Subtransmission S | D57: 329.5743839 | E57: 1688.600618
C58: Total | D58: =SUM(D12:D57) -> 10712.65502 | E58: =SUM(E12:E57) -> 657063.7622
B60: Table 2 Standard Control Revenue - Prior Year
B61: Note: insert additional rows as necessary
B63: Statutory Account code or reference to account code | C63: Tariff categories | D63: Amount of Electricity Distributed (GWh) | E63: Distribution Revenue
C64: D1 - Small Single Rate | D64: 2051.186759 | E64: 183592.6415
C65: D1CS - Climate Saver | D65: 24.96254538 | E65: 1256.99143
C66: D3CS - ClimateSaver Interval | D66: 7.412946633 | E66: 367.5211301
C67: D2 - Small Two Rate | D67: 287.0808904 | E67: 20310.32217
C68: D2DK - Small Two Rate DK | D68: 3.623553588 | E68: 320.4195496
C69: D3 - Residential Interval | D69: 534.7991198 | E69: 42578.39396
C70: D2OP - Residential Two Rate 5d - controlled load | D70: 43.16211052 | E70: 583.5744412
C71: D2DKOP - Docklands Two Rate 5d - controlled load | D71: 0.05804645044 | E71: 0.8068432606
C72: DD1 - Dedicated Circuit | D72: 328.2416385 | E72: 1026.92194
C73: D3HW - Hot Water Interval | D73: 10.37540608 | E73: 33.53815211
C74: P13R - Residential - Flexible Pricing | D74: 7.214169677 | E74: 444.5022795
C75: P13RDK - Residential Docklands - Flexible Pricing | D75: 0.007560106405 | E75: 0.4153720416
C76: P13RCS - Climate Saver - Flexible Pricing | D76: 0.004117 | E76: 0.281228135
C77: P1DK - Docklands single rate | D77: 0 | E77: 0
C78: ND1 - Medium single rate | D78: 268.3028956 | E78: 28394.41953
C79: ND1R - Medium single rate | D79: 0 | E79: 0
C80: P14G - Non-Residential | D80: 6.046747607 | E80: 278.4027021
C81: ND2 - Medium Two Rate - 5d | D81: 1140.515527 | E81: 89859.40227
C82: ND2BS - Medium Two Rate - 5d | D82: 0 | E82: 0
C83: ND3 - Medium Two Rate - 7d | D83: 174.9907119 | E83: 13821.16724
C84: ND5 - Non Residential Interval | D84: 395.1607635 | E84: 33809.62077
C85: PL2 - Unmetered Supplies | D85: 104.6329165 | E85: 5717.986982
C86: DL - Large Tariff (kW) | D86: 1173.263382 | E86: 58331.7562
C87: DLA - Large Tariff A (kW) | D87: 0 | E87: 0
C88: DLC - Large Tariff C (kW) | D88: 585.3711018 | E88: 27293.08017
C89: DLCXX - Large Tariff CXX (kW) | D89: 438.4597391 | E89: 26634.14796
C90: DLS - Large Tariff S (kW) | D90: 25.22469804 | E90: 1552.059609
C91: DLDK - Large Tariff DK (kW) | D91: 5.970320436 | E91: 169.2448321
C92: DL.R - Large Tariff R (kW) | D92: 0.2057486696 | E92: 29.25445629
C93: DL.NR - Large Tariff NR (kW) | D93: 52.9538448 | E93: 2835.489785
C94: DL.CXXR - Large Tariff CXXR (kW) | D94: 1.734265985 | E94: 107.0240544
C95: DL.CXXNR - Large Tariff CXXNR (kW) | D95: 4.402660482 | E95: 268.4050018
C96: DH - High Voltage (kW) | D96: 975.391846 | E96: 28351.21301
C97: DHA - High Voltage A (kW) | D97: 11.80437282 | E97: 211.1157053
C98: DHC - High Voltage C (kW) | D98: 421.5078707 | E98: 11908.80503
C99: DHD1 - High Voltage D1 (kW) | D99: 166.0983963 | E99: 1380.146378
C100: DHD2 - High Voltage D2 (kW) | D100: 78.2703502 | E100: 808.0643454
C101: DHD3 - High Voltage D3 (kW) | D101: 26.37916208 | E101: 713.2367068
C102: DHD4 - High Voltage D4 (kW) | D102: -0.01265753351 | E102: -0.02522838468
C103: DHDK - High Voltage DK (kW) | D103: 2.386640138 | E103: 56.42644173
C104: DHD5 - High Voltage D5 (kW) | D104: 0 | E104: 0
C105: DHR - High Voltage R (kW) | D105: 0 | E105: 0
C106: DHNR - High Voltage NR (kW) | D106: 0 | E106: 0
C107: DSA - Subtransmission A | D107: 110.2887955 | E107: 912.2066758
C108: DSG - Subtransmission G | D108: 566.4426495 | E108: 3208.606083
C109: DSS - Subtransmission S | D109: 299.0403028 | E109: 1802.207714
C111: Total | D111: =SUM(D64:D109) -> 10332.96191 | E111: =SUM(E64:E109) -> 588969.7944
B113: Table 3 AMI - Current Year
B114: Note: 'Number of Meters\NMIs refers to end of year figures
B116: Statutory Account code or reference to account code | C116: Tariff categories | D116: Number of Meters\NMIs\Lights | E116: Metering Revenue
C117: MP - Single phase non-off peak meter | D117: 360437.8333 | E117: 37326.02948
C118: MP - Single phase off peak meter | D118: 268770.8333 | E118: 27833.22704
C119: MP - Two or threee phase direct connet | D119: 125686.25 | E119: 17167.94061
C120: MP - Two or threee phase current transformer connet | D120: 4861.583333 | E120: 881.5034028
C124: Total | D124: =SUM(D117:D123) -> 759756.5 | E124: =SUM(E117:E123) -> 83208.70052
B127: Table 4 AMI - Prior Year
B128: Note: 'Number of Meters\NMIs refers to end of year figures
B130: Statutory Account code or reference to account code | C130: Tariff categories | D130: Number of Meters | E130: Metering Revenue
C131: MP - Single phase non-off peak meter | D131: 362409 | E131: 41777.72262
C132: MP - Single phase off peak meter | D132: 258184.6667 | E132: 29762.96777
C133: MP - Two or threee phase direct connet | D133: 123847.0833 | E133: 18830.98939
C134: MP - Two or threee phase current transformer connet | D134: 4687.833333 | E134: 944.5219256
C138: Total | D138: =SUM(D131:D137) -> 749128.5833 | E138: =SUM(E131:E137) -> 91316.20171
B141: Table 5 Public lighting- Current Year
B143: Statutory Account code or reference to account code | C143: Tariff categories | D143: Number of Lights | E143: Public Lighting Revenue
C144: MDs - Unmetered Supplies | D144: 185122 | E144: 241.07384
C151: Total | D151: =SUM(D144:D150) -> 185122 | E151: =SUM(E144:E150) -> 241.07384
B154: Table 6 Public lighting - Prior Year
B156: Statutory Account code or reference to account code | C156: Tariff categories | D156: Number of Lights | E156: Public Lighting Revenue
C157: MDs - Unmetered Supplies | D157: 180969.8506 | E157: 231.81538
C164: Total | D164: =SUM(D157:D163) -> 180969.8506 | E164: =SUM(E157:E163) -> 231.81538
B166: Table 7 Total annual retailer charges
B168: TARC is defined as the total annual amount of network charges billed by the Powercor to all retailers as most recently reported by Powercor to the AER, or total annual amount of network charges billed by Powercor to all retailers.
B170: TARC | C170: 1011905.13

Sheet 3a. Capex - total
B1: Powercor
B2: Capex total
B3: =Cover!E26 -> 2015
D4: Colour coding:
B5: Dollar unit used in this sheet | D5: Yellow = Input cells
B6: nominal $'000 | D6: Grey = No inputs required
B8: The information on sheets 5 and 6 is necessary for monitoring capex and will be used to inform the AER's assessment of capex and its underlying drivers at the next reset. It will also be used to assist in any comparative analysis undertaken by the AER within the current and future regulatory control periods.
B10: Instructions:
B11: Reported expenditure must EXCLUDE capital contributions, except for Table 5.
B12: Reported expenditure must INCLUDE any profit margins or management fees paid directly or indirectly to related party contractors (which is not an actual incurred cost of the related party contractor) for the regulatory reporting period.
B13: Forecast expenditure is to be taken from the 2011-15 distribution determination. This forecast is adjusted using the CPI calculations on the cover sheet.
B14: If allocating based on assumptions then provide method.
B15: All adjustments must be explained with supporting documentation attached.
B18: Table 1 Standard Control Services - capex by purpose by voltage level
C20: Forecast | D20: Adjusted Forecast | E20: Actual | F20: Difference (%) | G20: Sub-transmission | H20: HV | I20: LV | J20: Other
B21: Demand Related
B22: Reinforcement | C22: 61660.1537 | D22: =IF(Cover!$E$26=2014,((C22/Cover!$D$48)*Cover!$H$48),((C22/Cover!$D$49)*Cover!$I$49)) -> 69949.53016 | E22: =SUM(G22:J22) -> 24708.81764 | F22: =IF(D22=0,1,((E22-D22)/D22)*1) -> -0.6467622072 | G22: 3880.744716 | H22: 18005.54515 | I22: 2598.792081 | J22: 223.7356896
B23: New customer connection | C23: 92696.76881 | D23: =IF(Cover!$E$26=2014,((C23/Cover!$D$48)*Cover!$H$48),((C23/Cover!$D$49)*Cover!$I$49)) -> 105158.5998 | E23: 84784.00195 | F23: =IF(D23=0,1,((E23-D23)/D23)*1) -> -0.1937511327 | G23: 13316.09923 | H23: 61782.89053 | I23: 8917.302157 | J23: 767.7100304
B24: Non Demand Related
B25: Reliability & quality maintained | C25: 38173.2928 | D25: =IF(Cover!$E$26=2014,((C25/Cover!$D$48)*Cover!$H$48),((C25/Cover!$D$49)*Cover!$I$49)) -> 43305.17743 | E25: 49091.62477 | F25: =IF(D25=0,1,((E25-D25)/D25)*1) -> 0.1336202202 | G25: 7710.286515 | H25: 35773.52342 | I25: 5163.29545 | J25: 444.519389
B26: Environmental, safety & legal | C26: 63554.33567 | D26: =IF(Cover!$E$26=2014,((C26/Cover!$D$48)*Cover!$H$48),((C26/Cover!$D$49)*Cover!$I$49)) -> 72098.35936 | E26: 74881.77625 | F26: 0.03860582845 | G26: 11760.86455 | H26: 54567.04659 | I26: 7875.818663 | J26: 678.0464404
B27: Sub-total | C27: =C22+C23+C25+C26 -> 256084.551 | D27: =D22+D23+D25+D26 -> 290511.6667 | E27: =E22+E23+E25+E26 -> 233466.2206 | F27: -0.19636198 | G27: =G22+G23+G25+G26 -> 36667.99502 | H27: =H22+H23+H25+H26 -> 170129.0057 | I27: =I22+I23+I25+I26 -> 24555.20835 | J27: =J22+J23+J25+J26 -> 2114.011549
B28: SCADA/Network control | C28: 4074.472792 | D28: =IF(Cover!$E$26=2014,((C28/Cover!$D$48)*Cover!$H$48),((C28/Cover!$D$49)*Cover!$I$49)) -> 4622.230733 | E28: 3289.27947 | F28: -0.288378348 | G28: 0 | H28: 0 | I28: 0 | J28: 3289.27947
B29: Non network general - IT | C29: 22873.96659 | D29: =IF(Cover!$E$26=2014,((C29/Cover!$D$48)*Cover!$H$48),((C29/Cover!$D$49)*Cover!$I$49)) -> 25949.06305 | E29: 44760.32926 | F29: 0.72493046 | G29: 0 | H29: 0 | I29: 0 | J29: 44760.32926
B30: Non network general - other | C30: 15282.16714 | D30: =IF(Cover!$E$26=2014,((C30/Cover!$D$48)*Cover!$H$48),((C30/Cover!$D$49)*Cover!$I$49)) -> 17336.6485 | E30: 28963.03751 | F30: 0.6706249483 | G30: 0 | H30: 0 | I30: 0 | J30: 28963.03751
B31: Metering - Non AMI | C31: 0 | D31: =IF(Cover!$E$26=2014,((C31/Cover!$D$48)*Cover!$H$48),((C31/Cover!$D$49)*Cover!$I$49)) -> 0 | E31: 0 | F31: 1 | G31: 0 | H31: 0 | I31: 0 | J31: 0
B32: Standard Control - Total Capex | C32: =SUM(C27:C31) -> 298315.1575 | D32: =SUM(D27:D31) -> 338419.609 | E32: =SUM(E27:E31) -> 310478.8668 | F32: -0.08256242074 | G32: 36667.99502 | H32: =SUM(H27:H31) -> 170129.0057 | I32: 24555.20835 | J32: 79126.65779
B34: Table 2: Material difference explanation
B35: Where the difference between forecast and actual expenditure shown in table 1, column E is greater than ±10per cent, please explain the main factors driving the difference.
C37: Reason for material difference
B38: Demand Related
B39: Reinforcement | C39: Underspend due to: *Lower than forecast demand increase in growth areas of the networks, *Efficient deferral of new TQY zone sub and GLE upgrade, due to later than forecast start of large residential developments in the Geelong area *BETS-CTN 66kV line upgrade delayed due to property legal dispute by 3rd parties *NKA-CMN line upgrade project has been prudently deferred while Powercor assesses options associated with a major supply upgrade proposal from a large customer in the area | D39: 0 | E39: 0 | F39: 0
B40: New customer connection | C40: Underspend due to: *AER 2011-15 allowance based on 2006-10 actual costs *Earlier period included stronger growth in residential connections compared to current period *Costs, included gifted assets, associated with residential subdivisions are reduced relative to earlier period *Incremental distribution substation capacity reduced in the current period contributing to lower connection costs | D40: 0 | E40: 0 | F40: 0
B41: Non Demand Related
B42: Reliability & quality maintained | C42: Overspend due to: *Replacement volumes identified by Asset Inspection regime has been greater than forecast at the 2011 EDPR *The replacement of HV overhead conductor program is being reviewed in light of the Victorian Government’s Power line Relocation Program outcomes *Some of the expenditure originally assigned to conductor project has been redirected to install 189 SWER ACRs in accordance with ESV directives’ | D42: 0 | E42: 0 | F42: 0
B43: Environmental, safety & legal
B44: Other
B45: SCADA/Network control | C45: Underspend due to: *Planned expansion of Distribution Remote Monitoring and Control was reviewed and reduced following the requirement for deployment of remote control in all new SWER ACRs as an outworking of the Bushfire taskforce | D45: 0 | E45: 0 | F45: 0
B46: Non network general - IT | C46: Over the regulatory period standard control systems have been maintained and enhanced due to the focus on the implementation of smart meter related systems. Powercor has re-commenced its investment in these standard control systems. | D46: 0 | E46: 0 | F46: 0
B47: Non network general - other | C47: The AER allowance for property was based on the average of expenditure from 2006 to 2009 in accordance with Powercor’s proposal, with some small projects over and above that average. However, Powercor undertook some larger projects in 2015 including the refurbishment of the Colac, Ballarat and Geelong depots, rebuild of Mildura depot and the completion of Market Street head office. Purchase of new fleet including a crane borer and elevated work platforms to support operational requirements; and upgrade of the fleet to address changes in safety and compliance as required by Australian Standards (AS) or Australian Design Rules (ADR). | D47: 0 | E47: 0 | F47: 0
B48: Metering - Non AMI
B50: Table 3 Capex by asset class
B52: Asset class | C52: Audited Statutory Accounts | D52: Adjustments | E52: Forecast | F52: Adjusted Forecast | G52: Actual | H52: Movements in provisions allocated to as-incurred capex | I52: Difference (%)
B53: Subtransmission | C53: 36667.99502 | D53: 0 | E53: 40088.57606 | F53: =IF(Cover!$E$26=2014,((E53/Cover!$D$48)*Cover!$H$48),((E53/Cover!$D$49)*Cover!$I$49)) -> 45477.9447 | G53: 36667.99502 | H53: -112.1806232 | I53: =IF(F53=0,1,((G53-F53)/F53)*1) -> -0.1937191696
B54: Distribution system assets | C54: 176902.1518 | D54: -3082.45469 | E54: 248041.402 | F54: =IF(Cover!$E$26=2014,((E54/Cover!$D$48)*Cover!$H$48),((E54/Cover!$D$49)*Cover!$I$49)) -> 281387.2248 | G54: 173819.6971 | H54: -531.7771515 | I54: -0.3822758043
B55: Metering | C55: 0 | D55: 0 | E55: 0 | F55: =IF(Cover!$E$26=2014,((E55/Cover!$D$48)*Cover!$H$48),((E55/Cover!$D$49)*Cover!$I$49)) -> 0 | G55: 0 | H55: 0 | I55: 1
B56: Public Lighting | C56: 0 | D56: 0 | E56: 0 | F56: =IF(Cover!$E$26=2014,((E56/Cover!$D$48)*Cover!$H$48),((E56/Cover!$D$49)*Cover!$I$49)) -> 0 | G56: 0 | H56: 0 | I56: 1
B57: SCADA/Network control | C57: 3289.27947 | D57: 0 | E57: 4074.472792 | F57: =IF(Cover!$E$26=2014,((E57/Cover!$D$48)*Cover!$H$48),((E57/Cover!$D$49)*Cover!$I$49)) -> 4622.230733 | G57: 3289.27947 | H57: -10.06309237 | I57: -0.288378348
B58: Non network - IT | C58: 44760.32926 | D58: 0 | E58: 22873.96659 | F58: =IF(Cover!$E$26=2014,((E58/Cover!$D$48)*Cover!$H$48),((E58/Cover!$D$49)*Cover!$I$49)) -> 25949.06305 | G58: 44760.32926 | H58: -136.9379926 | I58: 0.72493046
B59: Non network - other | C59: 28963.03751 | D59: 0 | E59: 15282.16714 | F59: =IF(Cover!$E$26=2014,((E59/Cover!$D$48)*Cover!$H$48),((E59/Cover!$D$49)*Cover!$I$49)) -> 17336.6485 | G59: 28963.03751 | H59: -88.60837893 | I59: 0.6706249483
B60: Equity Raising Costs | C60: 0 | D60: 0 | E60: 0 | F60: =IF(Cover!$E$26=2014,((E60/Cover!$D$48)*Cover!$H$48),((E60/Cover!$D$49)*Cover!$I$49)) -> 0 | G60: 0 | H60: 0 | I60: 1
B61: AMI | C61: 13728.34131 | D61: 0 | E61: 12623.66107 | F61: =IF(Cover!$E$26=2014,((E61/Cover!$D$48)*Cover!$H$48),((E61/Cover!$D$49)*Cover!$I$49)) -> 14320.74213 | G61: 13728.34131 | H61: 0 | I61: -0.04136662811
B62: Victorian Bushfires Royal Commission | C62: 22978.52849 | D62: 0 | E62: 14766.9593 | F62: =IF(Cover!$E$26=2014,((E62/Cover!$D$48)*Cover!$H$48),((E62/Cover!$D$49)*Cover!$I$49)) -> 16752.17792 | G62: 22978.52849 | H62: 0 | I62: 0.3716740955
B63: Alternative control fee and quoted services | C63: 1413.531496 | D63: 0 | E63: 0 | F63: =IF(Cover!$E$26=2014,((E63/Cover!$D$48)*Cover!$H$48),((E63/Cover!$D$49)*Cover!$I$49)) -> 0 | G63: 1413.531496 | H63: 0 | I63: 1
B64: Negotiated | C64: 1417.230307 | D64: 0 | E64: 0 | F64: =IF(Cover!$E$26=2014,((E64/Cover!$D$48)*Cover!$H$48),((E64/Cover!$D$49)*Cover!$I$49)) -> 0 | G64: 1417.230307 | H64: 0 | I64: 1
B65: Unregulated | C65: 0 | D65: 0 | E65: 0 | F65: =IF(Cover!$E$26=2014,((E65/Cover!$D$48)*Cover!$H$48),((E65/Cover!$D$49)*Cover!$I$49)) -> 0 | G65: 0 | H65: 0 | I65: 1
B66: Total (system and non system) | C66: =SUM(C53:C65) -> 330120.4247 | D66: -3082.45469 | E66: =SUM(E53:E65) -> 357751.205 | F66: =SUM(F53:F65) -> 405846.0318 | G66: =SUM(G53:G65) -> 327037.97 | H66: =SUM(H53:H65) -> -879.5672386 | I66: -0.1941821668
B68: Table 4 Other Capex
C70: Forecast | D70: Adjusted Forecast | E70: Actual | F70: Difference (%) | G70: Sub-transmission | H70: HV | I70: LV | J70: Other
B71: AMI
B72: Accumulation Meters | C72: 0 | D72: =IF(Cover!$E$26=2014,((C72/Cover!$D$48)*Cover!$H$48),((C72/Cover!$D$49)*Cover!$I$49)) -> 0 | E72: =SUM(G72:J72) -> 18.44805 | F72: =IF(D72=0,1,((E72-D72)/D72)*1) -> 1 | G72: 0 | H72: 0 | I72: 0 | J72: 18.44805
B73: Manually read interval meters | C73: 0 | D73: =IF(Cover!$E$26=2014,((C73/Cover!$D$48)*Cover!$H$48),((C73/Cover!$D$49)*Cover!$I$49)) -> 0 | E73: =SUM(G73:J73) -> 14.37272 | F73: 1 | G73: 0 | H73: 0 | I73: 0 | J73: 14.37272
B74: Remotely read interval meters & transformers | C74: 6616.652294 | D74: =IF(Cover!$E$26=2014,((C74/Cover!$D$48)*Cover!$H$48),((C74/Cover!$D$49)*Cover!$I$49)) -> 7506.171999 | E74: 6883.66766 | F74: -0.08293233075 | G74: 0 | H74: 0 | I74: 0 | J74: 6883.66766
B75: AMI communication | C75: 1000.211249 | D75: =IF(Cover!$E$26=2014,((C75/Cover!$D$48)*Cover!$H$48),((C75/Cover!$D$49)*Cover!$I$49)) -> 1134.676168 | E75: 2237.553515 | F75: 0.9719754218 | G75: 0 | H75: 0 | I75: 0 | J75: 2237.553515
B76: Metering data services (IT) | C76: 4884.403463 | D76: =IF(Cover!$E$26=2014,((C76/Cover!$D$48)*Cover!$H$48),((C76/Cover!$D$49)*Cover!$I$49)) -> 5541.045664 | E76: 4574.29937 | F76: -0.1744700103 | G76: 0 | H76: 0 | I76: 0 | J76: 4574.29937
B77: Metering data services (other) | C77: 122.3940658 | D77: =IF(Cover!$E$26=2014,((C77/Cover!$D$48)*Cover!$H$48),((C77/Cover!$D$49)*Cover!$I$49)) -> 138.848298 | E77: 0 | F77: -1 | G77: 0 | H77: 0 | I77: 0 | J77: 0
B78: AMI - Total | C78: =SUM(C72:C77) -> 12623.66107 | D78: =SUM(D72:D77) -> 14320.74213 | E78: 13728.34131 | F78: -0.04136662811 | G78: =SUM(G72:G77) -> 0 | H78: =SUM(H72:H77) -> 0 | I78: =SUM(I72:I77) -> 0 | J78: =SUM(J72:J77) -> 13728.34131
B79: Alternative Control services
B80: Public lighting - energy efficient | C80: 0 | D80: =IF(Cover!$E$26=2014,((C80/Cover!$D$48)*Cover!$H$48),((C80/Cover!$D$49)*Cover!$I$49)) -> 0 | E80: =SUM(G80:J80) -> 667.4163649 | F80: =IF(D80=0,1,((E80-D80)/D80)*1) -> 1 | G80: 0 | H80: 0 | I80: 0 | J80: 667.4163649
B81: Public lighting - non energy efficient | C81: 0 | D81: =IF(Cover!$E$26=2014,((C81/Cover!$D$48)*Cover!$H$48),((C81/Cover!$D$49)*Cover!$I$49)) -> 0 | E81: 746.1151314 | F81: 1 | G81: 0 | H81: 0 | I81: 0 | J81: 746.1151314
B82: Public Lighting - Total | C82: =SUM(C80:C81) -> 0 | D82: =SUM(D80:D81) -> 0 | E82: 1413.531496 | F82: 1 | G82: =SUM(G80:G81) -> 0 | H82: =SUM(H80:H81) -> 0 | I82: =SUM(I80:I81) -> 0 | J82: =SUM(J80:J81) -> 1413.531496
B83: Other - fee based services | C83: 0 | D83: =IF(Cover!$E$26=2014,((C83/Cover!$D$48)*Cover!$H$48),((C83/Cover!$D$49)*Cover!$I$49)) -> 0 | E83: 0 | F83: 1 | G83: 0 | H83: 0 | I83: 0 | J83: 0
B84: Other - quoted services | C84: 0 | D84: =IF(Cover!$E$26=2014,((C84/Cover!$D$48)*Cover!$H$48),((C84/Cover!$D$49)*Cover!$I$49)) -> 0 | E84: 0 | F84: 1 | G84: 0 | H84: 0 | I84: 0 | J84: 0
B85: Other Alternative Control - Total | C85: =SUM(C83:C84) -> 0 | D85: =SUM(D83:D84) -> 0 | E85: 0 | F85: 1 | G85: =SUM(G83:G84) -> 0 | H85: =SUM(H83:H84) -> 0 | I85: =SUM(I83:I84) -> 0 | J85: =SUM(J83:J84) -> 0
B86: Negotiated services | C86: 0 | D86: =IF(Cover!$E$26=2014,((C86/Cover!$D$48)*Cover!$H$48),((C86/Cover!$D$49)*Cover!$I$49)) -> 0 | E86: 1417.230307 | F86: 1 | G86: 0 | H86: 0 | I86: 0 | J86: 1417.230307
B87: Unregulated services | C87: 0 | D87: =IF(Cover!$E$26=2014,((C87/Cover!$D$48)*Cover!$H$48),((C87/Cover!$D$49)*Cover!$I$49)) -> 0 | E87: 0 | F87: 1 | G87: 0 | H87: 0 | I87: 0 | J87: 0
B88: Total Other capex | C88: =C78+C82+C85+C86+C87 -> 12623.66107 | D88: =D78+D82+D85+D86+D87 -> 14320.74213 | E88: =E78+E82+E85+E86+E87 -> 16559.10312 | F88: 0.1563020247 | G88: =G78+G82+G85+G86+G87 -> 0 | H88: =H78+H82+H85+H86+H87 -> 0 | I88: =I78+I82+I85+I86+I87 -> 0 | J88: =J78+J82+J85+J86+J87 -> 16559.10312
B91: Table 5 Customer Contributions by asset class
C93: Audited Statutory Accounts | D93: Adjustments | E93: Forecast | F93: Adjusted Forecast | G93: Actual | H93: Difference (%)
B94: Subtransmission | C94: 0 | D94: 0 | E94: 5838.732459 | F94: =IF(Cover!$E$26=2014,((E94/Cover!$D$48)*Cover!$H$48),((E94/Cover!$D$49)*Cover!$I$49)) -> 6623.671329 | G94: 5981.832115 | H94: =IF(F94=0,1,((G94-F94)/F94)*1) -> -0.09690082453
B95: Distribution system assets | C95: 0 | D95: 0 | E95: 40973.65392 | F95: =IF(Cover!$E$26=2014,((E95/Cover!$D$48)*Cover!$H$48),((E95/Cover!$D$49)*Cover!$I$49)) -> 46482.00934 | G95: 57580.8447 | H95: 0.2387770132
B96: Metering | C96: 0 | D96: 0 | E96: 0 | F96: =IF(Cover!$E$26=2014,((E96/Cover!$D$48)*Cover!$H$48),((E96/Cover!$D$49)*Cover!$I$49)) -> 0 | G96: 0 | H96: 1
B97: Public Lighting | C97: 0 | D97: 0 | E97: 0 | F97: =IF(Cover!$E$26=2014,((E97/Cover!$D$48)*Cover!$H$48),((E97/Cover!$D$49)*Cover!$I$49)) -> 0 | G97: 0 | H97: 1
B98: SCADA/Network control | C98: 0 | D98: 0 | E98: 0 | F98: =IF(Cover!$E$26=2014,((E98/Cover!$D$48)*Cover!$H$48),((E98/Cover!$D$49)*Cover!$I$49)) -> 0 | G98: 0 | H98: 1
B99: Non network - IT | C99: 0 | D99: 0 | E99: 0 | F99: =IF(Cover!$E$26=2014,((E99/Cover!$D$48)*Cover!$H$48),((E99/Cover!$D$49)*Cover!$I$49)) -> 0 | G99: 0 | H99: 1
B100: Non network - other | C100: 0 | D100: 0 | E100: 0 | F100: =IF(Cover!$E$26=2014,((E100/Cover!$D$48)*Cover!$H$48),((E100/Cover!$D$49)*Cover!$I$49)) -> 0 | G100: 0 | H100: 1
B101: Equity Raising Costs | C101: 0 | D101: 0 | E101: 0 | F101: =IF(Cover!$E$26=2014,((E101/Cover!$D$48)*Cover!$H$48),((E101/Cover!$D$49)*Cover!$I$49)) -> 0 | G101: 0 | H101: =IF(F101=0,1,((G101-F101)/F101)*1) -> 1
B102: AMI | C102: 0 | D102: 0 | E102: 0 | F102: =IF(Cover!$E$26=2014,((E102/Cover!$D$48)*Cover!$H$48),((E102/Cover!$D$49)*Cover!$I$49)) -> 0 | G102: 0 | H102: 1
B103: Victorian Bushfires Royal Commission | C103: 0 | D103: 0 | E103: 0 | F103: =IF(Cover!$E$26=2014,((E103/Cover!$D$48)*Cover!$H$48),((E103/Cover!$D$49)*Cover!$I$49)) -> 0 | G103: 0 | H103: 1
B104: Alternative control fee and quoted services | C104: 0 | D104: 0 | E104: 0 | F104: =IF(Cover!$E$26=2014,((E104/Cover!$D$48)*Cover!$H$48),((E104/Cover!$D$49)*Cover!$I$49)) -> 0 | G104: 757.90808 | H104: 1
B105: Negotiated | C105: 0 | D105: 0 | E105: 0 | F105: =IF(Cover!$E$26=2014,((E105/Cover!$D$48)*Cover!$H$48),((E105/Cover!$D$49)*Cover!$I$49)) -> 0 | G105: 24955.6105 | H105: 1
B106: Unregulated | C106: 0 | D106: 0 | E106: 0 | F106: =IF(Cover!$E$26=2014,((E106/Cover!$D$48)*Cover!$H$48),((E106/Cover!$D$49)*Cover!$I$49)) -> 0 | G106: 0 | H106: 1
B107: Total Customer Contributions | C107: =SUM(C94:C106) -> 0 | D107: =SUM(D94:D106) -> 0 | E107: =SUM(E94:E106) -> 46812.38638 | F107: =SUM(F94:F106) -> 53105.68067 | G107: =SUM(G94:G106) -> 89276.1954 | H107: 0.6811044368
B109: Table 6 Disposals by asset class
C111: Audited Statutory Accounts | D111: Adjustments | E111: Forecast | F111: Adjusted Forecast | G111: Actual | H111: Difference (%)
B112: Subtransmission | C112: 0 | D112: 0 | E112: 0 | F112: =IF(Cover!$E$26=2014,((E112/Cover!$D$48)*Cover!$H$48),((E112/Cover!$D$49)*Cover!$I$49)) -> 0 | G112: 0 | H112: =IF(F112=0,1,((G112-F112)/F112)*1) -> 1
B113: Distribution system assets | C113: 0 | D113: 0 | E113: 0 | F113: =IF(Cover!$E$26=2014,((E113/Cover!$D$48)*Cover!$H$48),((E113/Cover!$D$49)*Cover!$I$49)) -> 0 | G113: 0 | H113: 1
B114: Metering | C114: 0 | D114: 0 | E114: 0 | F114: =IF(Cover!$E$26=2014,((E114/Cover!$D$48)*Cover!$H$48),((E114/Cover!$D$49)*Cover!$I$49)) -> 0 | G114: 0 | H114: 1
B115: Public Lighting | C115: 0 | D115: 0 | E115: 0 | F115: =IF(Cover!$E$26=2014,((E115/Cover!$D$48)*Cover!$H$48),((E115/Cover!$D$49)*Cover!$I$49)) -> 0 | G115: 0 | H115: 1
B116: SCADA/Network control | C116: 0 | D116: 0 | E116: 0 | F116: =IF(Cover!$E$26=2014,((E116/Cover!$D$48)*Cover!$H$48),((E116/Cover!$D$49)*Cover!$I$49)) -> 0 | G116: 0 | H116: 1
B117: Non network - IT | C117: 0 | D117: 0 | E117: 0 | F117: =IF(Cover!$E$26=2014,((E117/Cover!$D$48)*Cover!$H$48),((E117/Cover!$D$49)*Cover!$I$49)) -> 0 | G117: 0 | H117: 1
B118: Non network - other | C118: 0 | D118: 0 | E118: 0 | F118: =IF(Cover!$E$26=2014,((E118/Cover!$D$48)*Cover!$H$48),((E118/Cover!$D$49)*Cover!$I$49)) -> 0 | G118: 1625.32476 | H118: 1
B119: Equity Raising Costs | C119: 0 | D119: 0 | E119: 0 | F119: =IF(Cover!$E$26=2014,((E119/Cover!$D$48)*Cover!$H$48),((E119/Cover!$D$49)*Cover!$I$49)) -> 0 | G119: 0 | H119: 1
B120: AMI | C120: 0 | D120: 0 | E120: 0 | F120: =IF(Cover!$E$26=2014,((E120/Cover!$D$48)*Cover!$H$48),((E120/Cover!$D$49)*Cover!$I$49)) -> 0 | G120: 0 | H120: 1
B121: Victorian Bushfires Royal Commission | C121: 0 | D121: 0 | E121: 0 | F121: =IF(Cover!$E$26=2014,((E121/Cover!$D$48)*Cover!$H$48),((E121/Cover!$D$49)*Cover!$I$49)) -> 0 | G121: 0 | H121: 1
B122: Alternative control fee and quoted services | C122: 0 | D122: 0 | E122: 0 | F122: =IF(Cover!$E$26=2014,((E122/Cover!$D$48)*Cover!$H$48),((E122/Cover!$D$49)*Cover!$I$49)) -> 0 | G122: 0 | H122: 1
B123: Negotiated | C123: 0 | D123: 0 | E123: 0 | F123: =IF(Cover!$E$26=2014,((E123/Cover!$D$48)*Cover!$H$48),((E123/Cover!$D$49)*Cover!$I$49)) -> 0 | G123: 0 | H123: 1
B124: Unregulated | C124: 0 | D124: 0 | E124: 0 | F124: =IF(Cover!$E$26=2014,((E124/Cover!$D$48)*Cover!$H$48),((E124/Cover!$D$49)*Cover!$I$49)) -> 0 | G124: 0 | H124: =IF(F124=0,1,((G124-F124)/F124)*1) -> 1
B125: Total Disposals | C125: =SUM(C112:C124) -> 0 | D125: =SUM(D112:D124) -> 0 | E125: =SUM(E112:E124) -> 0 | F125: =IF(Cover!$E$26=2014,((E125/Cover!$D$48)*Cover!$H$48),((E125/Cover!$D$49)*Cover!$I$49)) -> 0 | G125: =SUM(G112:G124) -> 1625.32476 | H125: 1
B128: Definitions
B129: SCS Capex by purpose | C129: Capex by purpose is defined in appendix G of the RIN.
B130: SCS Capex by asset class | C130: The assets classes must align with asset classes used in the PTRM for the 2011-15 distribution determination.
B131: Capex by service | C131: Capex for non-SCS distribution services is defined in appendix G of the RIN, or in the 2011-15 distribution determination.
B132: Voltage level - HV | C132: Assets with a nominal voltage above 1 kV and not exceeding 35 kV used to distribute electricity from a (zone) substation.
B133: Voltage level - subtransmission | C133: Assets that distribute electricity at voltage levels between the transmission system and the HV section of the network.
B134: Voltage level - LV | C134: Assets that distribute electricity at low voltage. The connection boundaries are the LV terminals of the HV to LV distribution transformers to the supply point.
B135: Voltage level - other | C135: Assets that distribute electricity at a voltage level that is not subtransmission, HV or LV.
B136: Customer contributions | C136: Cash or in kind contributions to Capex projects and gifted assets.
B137: Disposals | C137: The written down value (WDV) of assets disposed or proceeds from the sale of assets.
B138: Forecast | C138: The forecast expenditure derived for the 2011-2015 Distribution determination.
B139: Adjusted Forecast | C139: The forecast adjusted to be in equivalent dollar terms to the actual expenditure for the relevant regulatory year
B140: Actual | C140: The expenditure reported for the relevant regulatory year.
B141: ABS CPI | C141: ABS CPI (Pub No: 6401.0, All groups, 8 Capital Cities, September)
B142: Movements in provisions | C142: The difference between opening and closing capitalised provisions.

Sheet 3b. Capex - margins
B1: Powercor
B2: Capex - margins
B3: =Cover!E26 -> 2015
D4: Colour coding:
B5: Dollar unit used in this sheet | D5: Yellow = Input cells
B6: nominal $'000 | D6: Grey = No inputs required
B8: Instructions:
B9: Reported expenditure must EXCLUDE capital contributions, except for Table 5.
B10: Reported expenditure must ONLY INCLUDE profit margins or management fees paid directly or indirectly to related party contractors (which is not an actual incurred cost of the related party contractor) for the regulatory reporting period.
B11: Forecast expenditure is to be taken from the 2011-15 distribution determination. This forecast is adjusted using the CPI calculations on the cover sheet.
B12: If allocating based on assumptions then provide method.
B13: All adjustments must be explained with supporting documentation attached.
B16: Table 1 Standard Control Services - capex by purpose by voltage level
C18: Forecast | D18: Adjusted Forecast | E18: Actual | F18: Difference (%) | G18: Sub-transmission | H18: HV | I18: LV | J18: Other
B19: Demand Related
B20: Reinforcement | C20: 0 | D20: =IF(Cover!$E$26=2014,((C20/Cover!$D$48)*Cover!$H$48),((C20/Cover!$D$49)*Cover!$I$49)) -> 0 | E20: =SUM(G20:J20) -> -137.537524 | F20: =IF(D20=0,1,((E20-D20)/D20)*1) -> 1 | G20: -21.60152005 | H20: -100.2248725 | I20: -14.46574391 | J20: -1.245387506
B21: New customer connection | C21: 0 | D21: =IF(Cover!$E$26=2014,((C21/Cover!$D$48)*Cover!$H$48),((C21/Cover!$D$49)*Cover!$I$49)) -> 0 | E21: -190.3955717 | F21: 1 | G21: -29.90335757 | H21: -138.7430234 | I21: -20.02517932 | J21: -1.72401145
B22: Non Demand Related
B23: Reliability & quality maintained | C23: 0 | D23: =IF(Cover!$E$26=2014,((C23/Cover!$D$48)*Cover!$H$48),((C23/Cover!$D$49)*Cover!$I$49)) -> 0 | E23: 73.44769866 | F23: =IF(D23=0,1,((E23-D23)/D23)*1) -> 1 | G23: 11.53562961 | H23: 53.52202092 | I23: 7.724987104 | J23: 0.6650610219
B24: Environmental, safety & legal | C24: 0 | D24: =IF(Cover!$E$26=2014,((C24/Cover!$D$48)*Cover!$H$48),((C24/Cover!$D$49)*Cover!$I$49)) -> 0 | E24: 234.5926131 | F24: 1 | G24: 36.84490521 | H24: 170.9498184 | I24: 24.67367861 | J24: 2.124210913
B25: Sub-total | C25: =C20+C21+C23+C24 -> 0 | D25: =D20+D21+D23+D24 -> 0 | E25: =E20+E21+E23+E24 -> -19.89278396 | F25: 1 | G25: =G20+G21+G23+G24 -> -3.124342789 | H25: =H20+H21+H23+H24 -> -14.49605663 | I25: =I20+I21+I23+I24 -> -2.092257516 | J25: =J20+J21+J23+J24 -> -0.1801270219
B26: SCADA/Network control | C26: 0 | D26: =IF(Cover!$E$26=2014,((C26/Cover!$D$48)*Cover!$H$48),((C26/Cover!$D$49)*Cover!$I$49)) -> 0 | E26: -15.8390441 | F26: 1 | G26: 0 | H26: 0 | I26: 0 | J26: -15.8390441
B27: Non network general - IT | C27: 0 | D27: =IF(Cover!$E$26=2014,((C27/Cover!$D$48)*Cover!$H$48),((C27/Cover!$D$49)*Cover!$I$49)) -> 0 | E27: 4054.511333 | F27: 1 | G27: 0 | H27: 0 | I27: 0 | J27: 4054.511333
B28: Non network general - other | C28: 0 | D28: =IF(Cover!$E$26=2014,((C28/Cover!$D$48)*Cover!$H$48),((C28/Cover!$D$49)*Cover!$I$49)) -> 0 | E28: 0 | F28: 1 | G28: 0 | H28: 0 | I28: 0 | J28: 0
B29: Metering - Non AMI | C29: 0 | D29: =IF(Cover!$E$26=2014,((C29/Cover!$D$48)*Cover!$H$48),((C29/Cover!$D$49)*Cover!$I$49)) -> 0 | E29: 0 | F29: 1 | G29: 0 | H29: 0 | I29: 0 | J29: 0
B30: Standard Control - Total Capex | C30: =SUM(C25:C29) -> 0 | D30: =SUM(D25:D29) -> 0 | E30: =SUM(E25:E29) -> 4018.779505 | F30: 1 | G30: =SUM(G25:G29) -> -3.124342789 | H30: -14.49605663 | I30: -2.092257516 | J30: 4038.492162
B32: Table 2: Material difference explanation
B33: Where the difference between forecast and actual expenditure shown in table 1, column E is greater than ±10 per cent, please explain the main factors driving the difference.
C35: Reason for material difference
B36: Demand Related
B37: Reinforcement | C37: 0 | D37: 0 | E37: 0 | F37: 0
B38: New customer connection | C38: 0 | D38: 0 | E38: 0 | F38: 0
B39: Non Demand Related
B40: Reliability & quality maintained | C40: 0 | D40: 0 | E40: 0 | F40: 0
B41: Environmental, safety & legal | C41: 0 | D41: 0 | E41: 0 | F41: 0
B42: Other
B43: SCADA/Network control | C43: 0 | D43: 0 | E43: 0 | F43: 0
B44: Non network general - IT | C44: 0 | D44: 0 | E44: 0 | F44: 0
B45: Non network general - other | C45: 0 | D45: 0 | E45: 0 | F45: 0
B46: Metering - Non AMI | C46: 0 | D46: 0 | E46: 0 | F46: 0
B48: Table 3 Capex by asset class
B50: Asset class | C50: Forecast | D50: Adjusted Forecast | E50: Actual | F50: Difference (%)
B51: Subtransmission | C51: 0 | D51: =IF(Cover!$E$26=2014,((C51/Cover!$D$48)*Cover!$H$48),((C51/Cover!$D$49)*Cover!$I$49)) -> 0 | E51: -3.124342789 | F51: =IF(D51=0,1,((E51-D51)/D51)*1) -> 1
B52: Distribution system assets | C52: 0 | D52: =IF(Cover!$E$26=2014,((C52/Cover!$D$48)*Cover!$H$48),((C52/Cover!$D$49)*Cover!$I$49)) -> 0 | E52: -912.2729012 | F52: 1
B53: Metering | C53: 0 | D53: =IF(Cover!$E$26=2014,((C53/Cover!$D$48)*Cover!$H$48),((C53/Cover!$D$49)*Cover!$I$49)) -> 0 | E53: 0 | F53: 1
B54: Public Lighting | C54: 0 | D54: =IF(Cover!$E$26=2014,((C54/Cover!$D$48)*Cover!$H$48),((C54/Cover!$D$49)*Cover!$I$49)) -> 0 | E54: 0 | F54: 1
B55: SCADA/Network control | C55: 0 | D55: =IF(Cover!$E$26=2014,((C55/Cover!$D$48)*Cover!$H$48),((C55/Cover!$D$49)*Cover!$I$49)) -> 0 | E55: -15.8390441 | F55: 1
B56: Non network - IT | C56: 0 | D56: =IF(Cover!$E$26=2014,((C56/Cover!$D$48)*Cover!$H$48),((C56/Cover!$D$49)*Cover!$I$49)) -> 0 | E56: 4054.511333 | F56: 1
B57: Non network - other | C57: 0 | D57: =IF(Cover!$E$26=2014,((C57/Cover!$D$48)*Cover!$H$48),((C57/Cover!$D$49)*Cover!$I$49)) -> 0 | E57: 0 | F57: 1
B58: Equity Raising Costs | C58: 0 | D58: =IF(Cover!$E$26=2014,((C58/Cover!$D$48)*Cover!$H$48),((C58/Cover!$D$49)*Cover!$I$49)) -> 0 | E58: 0 | F58: 1
B59: AMI | C59: 0 | D59: =IF(Cover!$E$26=2014,((C59/Cover!$D$48)*Cover!$H$48),((C59/Cover!$D$49)*Cover!$I$49)) -> 0 | E59: 396.5047148 | F59: 1
B60: Victorian Bushfires Royal Commission | C60: 0 | D60: =IF(Cover!$E$26=2014,((C60/Cover!$D$48)*Cover!$H$48),((C60/Cover!$D$49)*Cover!$I$49)) -> 0 | E60: 895.50446 | F60: 1
B61: Alternative control fee and quoted services | C61: 0 | D61: =IF(Cover!$E$26=2014,((C61/Cover!$D$48)*Cover!$H$48),((C61/Cover!$D$49)*Cover!$I$49)) -> 0 | E61: -8.906567028 | F61: 1
B62: Negotiated | C62: 0 | D62: =IF(Cover!$E$26=2014,((C62/Cover!$D$48)*Cover!$H$48),((C62/Cover!$D$49)*Cover!$I$49)) -> 0 | E62: 0.9005870996 | F62: 1
B63: Unregulated | C63: 0 | D63: =IF(Cover!$E$26=2014,((C63/Cover!$D$48)*Cover!$H$48),((C63/Cover!$D$49)*Cover!$I$49)) -> 0 | E63: 0 | F63: 1
B64: Total (system and non system) | C64: =SUM(C51:C63) -> 0 | D64: =SUM(D51:D63) -> 0 | E64: =SUM(E51:E63) -> 4407.27824 | F64: 1
B66: Table 4 Other Capex
C68: Forecast | D68: Adjusted Forecast | E68: Actual | F68: Difference (%) | G68: Sub-transmission | H68: HV | I68: LV | J68: Other
B69: AMI
B70: Accumulation Meters | C70: 0 | D70: =IF(Cover!$E$26=2014,((C70/Cover!$D$48)*Cover!$H$48),((C70/Cover!$D$49)*Cover!$I$49)) -> 0 | E70: =SUM(G70:J70) -> 0.04565046784 | F70: =IF(D70=0,1,((E70-D70)/D70)*1) -> 1 | G70: 0 | H70: 0 | I70: 0 | J70: 0.04565046784
B71: Manually read interval meters | C71: 0 | D71: =IF(Cover!$E$26=2014,((C71/Cover!$D$48)*Cover!$H$48),((C71/Cover!$D$49)*Cover!$I$49)) -> 0 | E71: =SUM(G71:J71) -> 0.04025380359 | F71: 1 | G71: 0 | H71: 0 | I71: 0 | J71: 0.04025380359
B72: Remotely read interval meters & transformers | C72: 0 | D72: =IF(Cover!$E$26=2014,((C72/Cover!$D$48)*Cover!$H$48),((C72/Cover!$D$49)*Cover!$I$49)) -> 0 | E72: 33.30617848 | F72: 1 | G72: 0 | H72: 0 | I72: 0 | J72: 33.30617848
B73: AMI communication | C73: 0 | D73: =IF(Cover!$E$26=2014,((C73/Cover!$D$48)*Cover!$H$48),((C73/Cover!$D$49)*Cover!$I$49)) -> 0 | E73: 50.9921221 | F73: 1 | G73: 0 | H73: 0 | I73: 0 | J73: 50.9921221
B74: Metering data services (IT) | C74: 0 | D74: =IF(Cover!$E$26=2014,((C74/Cover!$D$48)*Cover!$H$48),((C74/Cover!$D$49)*Cover!$I$49)) -> 0 | E74: 312.12051 | F74: 1 | G74: 0 | H74: 0 | I74: 0 | J74: 312.12051
B75: Metering data services (other) | C75: 0 | D75: =IF(Cover!$E$26=2014,((C75/Cover!$D$48)*Cover!$H$48),((C75/Cover!$D$49)*Cover!$I$49)) -> 0 | E75: 0 | F75: 1 | G75: 0 | H75: 0 | I75: 0 | J75: 0
B76: AMI - Total | C76: =SUM(C70:C75) -> 0 | D76: =SUM(D70:D75) -> 0 | E76: 396.5047148 | F76: 1 | G76: =SUM(G70:G75) -> 0 | H76: =SUM(H70:H75) -> 0 | I76: =SUM(I70:I75) -> 0 | J76: =SUM(J70:J75) -> 396.5047148
B77: Alternative Control services
B78: Public lighting - energy efficient | C78: 0 | D78: =IF(Cover!$E$26=2014,((C78/Cover!$D$48)*Cover!$H$48),((C78/Cover!$D$49)*Cover!$I$49)) -> 0 | E78: =SUM(G78:J78) -> -2.737533503 | F78: =IF(D78=0,1,((E78-D78)/D78)*1) -> 1 | G78: 0 | H78: 0 | I78: 0 | J78: -2.737533503
B79: Public lighting - non energy efficient | C79: 0 | D79: =IF(Cover!$E$26=2014,((C79/Cover!$D$48)*Cover!$H$48),((C79/Cover!$D$49)*Cover!$I$49)) -> 0 | E79: -6.169033525 | F79: 1 | G79: 0 | H79: 0 | I79: 0 | J79: -6.169033525
B80: Public Lighting - Total | C80: =SUM(C78:C79) -> 0 | D80: =SUM(D78:D79) -> 0 | E80: -8.906567028 | F80: 1 | G80: =SUM(G78:G79) -> 0 | H80: =SUM(H78:H79) -> 0 | I80: =SUM(I78:I79) -> 0 | J80: =SUM(J78:J79) -> -8.906567028
B81: Other - fee based services | C81: 0 | D81: =IF(Cover!$E$26=2014,((C81/Cover!$D$48)*Cover!$H$48),((C81/Cover!$D$49)*Cover!$I$49)) -> 0 | E81: 0 | F81: 1 | G81: 0 | H81: 0 | I81: 0 | J81: 0
B82: Other - quoted services | C82: 0 | D82: =IF(Cover!$E$26=2014,((C82/Cover!$D$48)*Cover!$H$48),((C82/Cover!$D$49)*Cover!$I$49)) -> 0 | E82: 0 | F82: 1 | G82: 0 | H82: 0 | I82: 0 | J82: 0
B83: Other Alternative Control - Total | C83: =SUM(C81:C82) -> 0 | D83: =SUM(D81:D82) -> 0 | E83: 0 | F83: 1 | G83: =SUM(G81:G82) -> 0 | H83: =SUM(H81:H82) -> 0 | I83: =SUM(I81:I82) -> 0 | J83: =SUM(J81:J82) -> 0
B84: Negotiated services | C84: 0 | D84: =IF(Cover!$E$26=2014,((C84/Cover!$D$48)*Cover!$H$48),((C84/Cover!$D$49)*Cover!$I$49)) -> 0 | E84: 0.9005870996 | F84: 1 | G84: 0 | H84: 0 | I84: 0 | J84: 0.9005870996
B85: Unregulated services | C85: 0 | D85: =IF(Cover!$E$26=2014,((C85/Cover!$D$48)*Cover!$H$48),((C85/Cover!$D$49)*Cover!$I$49)) -> 0 | E85: 0 | F85: 1 | G85: 0 | H85: 0 | I85: 0 | J85: 0
B86: Total Other capex | C86: =C76+C80+C83+C84+C85 -> 0 | D86: =D76+D80+D83+D84+D85 -> 0 | E86: 388.4987349 | F86: 1 | G86: 0 | H86: =H76+H80+H83+H84+H85 -> 0 | I86: =I76+I80+I83+I84+I85 -> 0 | J86: =J76+J80+J83+J84+J85 -> 388.4987349
B89: Table 5 Customer Contributions by asset class
C91: Forecast | D91: Adjusted Forecast | E91: Actual | F91: Difference (%)
B92: Subtransmission | C92: 0 | D92: =IF(Cover!$E$26=2014,((C92/Cover!$D$48)*Cover!$H$48),((C92/Cover!$D$49)*Cover!$I$49)) -> 0 | E92: 0 | F92: =IF(D92=0,1,((E92-D92)/D92)*1) -> 1
B93: Distribution system assets | C93: 0 | D93: =IF(Cover!$E$26=2014,((C93/Cover!$D$48)*Cover!$H$48),((C93/Cover!$D$49)*Cover!$I$49)) -> 0 | E93: 0 | F93: 1
B94: Metering | C94: 0 | D94: =IF(Cover!$E$26=2014,((C94/Cover!$D$48)*Cover!$H$48),((C94/Cover!$D$49)*Cover!$I$49)) -> 0 | E94: 0 | F94: 1
B95: Public Lighting | C95: 0 | D95: =IF(Cover!$E$26=2014,((C95/Cover!$D$48)*Cover!$H$48),((C95/Cover!$D$49)*Cover!$I$49)) -> 0 | E95: 0 | F95: 1
B96: SCADA/Network control | C96: 0 | D96: =IF(Cover!$E$26=2014,((C96/Cover!$D$48)*Cover!$H$48),((C96/Cover!$D$49)*Cover!$I$49)) -> 0 | E96: 0 | F96: 1
B97: Non network - IT | C97: 0 | D97: =IF(Cover!$E$26=2014,((C97/Cover!$D$48)*Cover!$H$48),((C97/Cover!$D$49)*Cover!$I$49)) -> 0 | E97: 0 | F97: 1
B98: Non network - other | C98: 0 | D98: =IF(Cover!$E$26=2014,((C98/Cover!$D$48)*Cover!$H$48),((C98/Cover!$D$49)*Cover!$I$49)) -> 0 | E98: 0 | F98: 1
B99: Equity Raising Costs | C99: 0 | D99: =IF(Cover!$E$26=2014,((C99/Cover!$D$48)*Cover!$H$48),((C99/Cover!$D$49)*Cover!$I$49)) -> 0 | E99: 0 | F99: 1
B100: AMI | C100: 0 | D100: =IF(Cover!$E$26=2014,((C100/Cover!$D$48)*Cover!$H$48),((C100/Cover!$D$49)*Cover!$I$49)) -> 0 | E100: 0 | F100: 1
B101: Victorian Bushfires Royal Commission | C101: 0 | D101: =IF(Cover!$E$26=2014,((C101/Cover!$D$48)*Cover!$H$48),((C101/Cover!$D$49)*Cover!$I$49)) -> 0 | E101: 0 | F101: 1
B102: Alternative control fee and quoted services | C102: 0 | D102: =IF(Cover!$E$26=2014,((C102/Cover!$D$48)*Cover!$H$48),((C102/Cover!$D$49)*Cover!$I$49)) -> 0 | E102: 0 | F102: 1
B103: Negotiated | C103: 0 | D103: =IF(Cover!$E$26=2014,((C103/Cover!$D$48)*Cover!$H$48),((C103/Cover!$D$49)*Cover!$I$49)) -> 0 | E103: 0 | F103: 1
B104: Unregulated | C104: 0 | D104: =IF(Cover!$E$26=2014,((C104/Cover!$D$48)*Cover!$H$48),((C104/Cover!$D$49)*Cover!$I$49)) -> 0 | E104: 0 | F104: 1
B105: Total Customer Contributions | C105: =SUM(C92:C104) -> 0 | D105: =SUM(D92:D104) -> 0 | E105: =SUM(E92:E104) -> 0 | F105: 1
B107: Table 6 Disposals by asset class
C109: Forecast | D109: Adjusted Forecast | E109: Actual | F109: Difference (%)
B110: Subtransmission | C110: 0 | D110: =IF(Cover!$E$26=2014,((C110/Cover!$D$48)*Cover!$H$48),((C110/Cover!$D$49)*Cover!$I$49)) -> 0 | E110: 0 | F110: =IF(D110=0,1,((E110-D110)/D110)*1) -> 1
B111: Distribution system assets | C111: 0 | D111: =IF(Cover!$E$26=2014,((C111/Cover!$D$48)*Cover!$H$48),((C111/Cover!$D$49)*Cover!$I$49)) -> 0 | E111: 0 | F111: 1
B112: Metering | C112: 0 | D112: =IF(Cover!$E$26=2014,((C112/Cover!$D$48)*Cover!$H$48),((C112/Cover!$D$49)*Cover!$I$49)) -> 0 | E112: 0 | F112: 1
B113: Public Lighting | C113: 0 | D113: =IF(Cover!$E$26=2014,((C113/Cover!$D$48)*Cover!$H$48),((C113/Cover!$D$49)*Cover!$I$49)) -> 0 | E113: 0 | F113: 1
B114: SCADA/Network control | C114: 0 | D114: =IF(Cover!$E$26=2014,((C114/Cover!$D$48)*Cover!$H$48),((C114/Cover!$D$49)*Cover!$I$49)) -> 0 | E114: 0 | F114: 1
B115: Non network - IT | C115: 0 | D115: =IF(Cover!$E$26=2014,((C115/Cover!$D$48)*Cover!$H$48),((C115/Cover!$D$49)*Cover!$I$49)) -> 0 | E115: 0 | F115: 1
B116: Non network - other | C116: 0 | D116: =IF(Cover!$E$26=2014,((C116/Cover!$D$48)*Cover!$H$48),((C116/Cover!$D$49)*Cover!$I$49)) -> 0 | E116: 0 | F116: 1
B117: Equity Raising Costs | C117: 0 | D117: =IF(Cover!$E$26=2014,((C117/Cover!$D$48)*Cover!$H$48),((C117/Cover!$D$49)*Cover!$I$49)) -> 0 | E117: 0 | F117: 1
B118: AMI | C118: 0 | D118: =IF(Cover!$E$26=2014,((C118/Cover!$D$48)*Cover!$H$48),((C118/Cover!$D$49)*Cover!$I$49)) -> 0 | E118: 0 | F118: 1
B119: Victorian Bushfires Royal Commission | C119: 0 | D119: =IF(Cover!$E$26=2014,((C119/Cover!$D$48)*Cover!$H$48),((C119/Cover!$D$49)*Cover!$I$49)) -> 0 | E119: 0 | F119: 1
B120: Alternative control fee and quoted services | C120: 0 | D120: =IF(Cover!$E$26=2014,((C120/Cover!$D$48)*Cover!$H$48),((C120/Cover!$D$49)*Cover!$I$49)) -> 0 | E120: 0 | F120: 1
B121: Negotiated | C121: 0 | D121: =IF(Cover!$E$26=2014,((C121/Cover!$D$48)*Cover!$H$48),((C121/Cover!$D$49)*Cover!$I$49)) -> 0 | E121: 0 | F121: 1
B122: Unregulated | C122: 0 | D122: =IF(Cover!$E$26=2014,((C122/Cover!$D$48)*Cover!$H$48),((C122/Cover!$D$49)*Cover!$I$49)) -> 0 | E122: 0 | F122: 1
B123: Total Disposals | C123: =SUM(C110:C122) -> 0 | D123: =SUM(D110:D122) -> 0 | E123: =SUM(E110:E122) -> 0 | F123: 1

Sheet 5. Capex Tax
B1: =Cover!E22 -> Powercor Australia Ltd
B2: Capex Tax
B3: =Cover!E26 -> 2015
D4: Colour coding:
B5: Dollar unit used in this sheet | D5: Yellow = Input cells
B6: nominal $'000 | D6: Grey = No inputs required
B8: This information will be used to allow the roll forward of the regulated asset base.
B10: Table 1: Tax standard lives and Capex Additions - Standard control services
B12: Asset class | C12: Tax standard lives | D12: Capex additions
B13: System Assets
B14: Subtransmission | C14: 44 | D14: 36667.99502
B15: Distribution system assets | C15: 46 | D15: 173819.6971
B16: Metering | C16: n/a | D16: 0
B17: Public Lighting | C17: n/a | D17: 0
B18: SCADA/Network control | C18: 10 | D18: 3289.27947
B19: Sub-total | C19: =SUM(C14:C18) -> 100 | D19: =SUM(D14:D18) -> 213776.9716
B20: Non-System Assets
B21: Non network - IT | C21: 4 | D21: 44760.32926
B22: Non network - other | C22: 12 | D22: 28963.03751
B23: Victorian Bushfires Royal Commission | C23: 45 | D23: 22978.52849
B24: Equity Raising Costs | C24: n/a | D24: 0
B25: Sub-total | C25: =SUM(C21:C24) -> 61 | D25: =SUM(D21:D24) -> 96701.89526
B26: Total (system and non system) | C26: =C25+C19 -> 161 | D26: =D25+D19 -> 310478.8668
B28: Table 2 Standard Control Services - excl metering
B30: Asset Class | C30: Tax Depreciation - Rate (Post Ralph 10 May 2006 onwards) | D30: Total Additions per Taxation Category Including Related Party Margin | E30: Additions per Taxation Category - Related Party Margin
B31: Demand related capital expenditure | C31: 0.04 | D31: 173055.4964 | E31: -327.9330957
B32: Replacement expenditure (Group 1) | C32: 1 | D32: 37567.01362 | E32: 118.0947335
B33: Replacement expenditure (Group 2) | C33: 0.1 | D33: 930.52039 | E33: -1.28770136
B34: Replacement expenditure (Group 3) | C34: 0.04 | D34: 10594.09076 | E34: -43.35933351
B35: Environment, safety & legal | C35: 0.1 | D35: 74881.77625 | E35: 234.5926131
B36: SCADA/Network control | C36: 0.1 | D36: 3289.27947 | E36: -15.8390441
B37: Non-network general assets - IT | C37: 0.4 | D37: 44760.32926 | E37: 4054.511333
B38: Non-network general assets - Other | C38: 0.1764705882 | D38: 28963.03751 | E38: 0
B39: RBPC - Excl Metering - TOTAL ADDITIONS | D39: =SUM(D31:D38) -> 374041.5437 | E39: =SUM(E31:E38) -> 4018.779505
B40: Capitalised Finance Charges | D40: Nil | E40: Nil
B42: Table 3 Metering
B44: Asset Class | C44: Tax Depreciation - Rate (Post Ralph 10 May 2006) | D44: Total Additions per Taxation Category Including Related Party Margin | E44: Additions per Taxation Category - Related Party Margin
B45: Meters and transformers (Group 1) (Unit cost < $1,000) | C45: 0.375 | D45: 6534.175865 | E45: -21.12370442
B46: Meters and transformers (Group 2) (Unit cost ≥ $1,000) | C46: 0.06 | D46: 382.3125649 | E46: 54.51578717
B47: IT | C47: 0.4 | D47: 4574.29937 | E47: 312.12051
B48: Communications | C48: 0.2142857143 | D48: 2237.553515 | E48: 50.9921221
B49: Other | C49: 0.1764705882 | D49: 0 | E49: 0
B50: Metering - TOTAL ADDITIONS | D50: =SUM(D45:D49) -> 13728.34131 | E50: =SUM(E45:E49) -> 396.5047148
B51: Capitalised Finance Charges | D51: Nil | E51: Nil

Sheet 6a. Maintenance - total
B1: Powercor
B2: Maintenance Costs total
B3: =Cover!E26 -> 2015
E4: Colour coding:
B5: Dollar unit used in this sheet | E5: Yellow = Input cells
B6: nominal $'000 | E6: Grey = No inputs required
B8: This information is necessary for monitoring maintenance expenditure and will be used to inform the AER's assessment of maintenance expenditure and its underlying drivers at the next reset. It will also be used to assist in any comparative analysis undertaken by the AER within the current and future regulatory control periods.
B10: Instructions:
B11: Reported expenditure must INCLUDE any profit margins or management fees paid directly or indirectly to related party contractors (which is not an actual incurred cost of the related party contractor) for the regulatory reporting period.
B12: Forecast expenditure is to be taken from the 2011-15 distribution determination. This forecast is adjusted using the CPI calculations on the cover sheet.
B13: If allocating based on assumptions then provide method.
B14: All adjustments must be explained with supporting documentation attached.
B16: Table 1: Maintenance expenditure
B18: Statutory Account code or reference to account code | C18: Description | D18: Audited Statutory Accounts | E18: Adjustments | F18: Distribution business | G18: Standard Control Services | K18: AMI | L18: Public Lighting - Alternative Control | N18: Other Alternative Control Services | P18: Negotiated Services | Q18: Unregulated Services
G19: Forecast | H19: Adjusted Forecast | I19: Actual | J19: Difference | L19: Energy efficient | M19: Non energy efficient | N19: Fee based service | O19: Quoted service
C20: Routine | D20: 56458.31885 | E20: 0 | F20: 56458.31885 | G20: 46973.6789 | H20: =IF(Cover!$E$26=2014,((G20/Cover!$D$48)*Cover!$H$48),((G20/Cover!$D$49)*Cover!$I$49)) -> 53288.65679 | I20: 56458.31885 | J20: =IF(H20=0,1,((I20-H20)/H20)*1) -> 0.05948098999 | K20: 0 | L20: 0 | M20: 0 | N20: 0 | O20: 0 | P20: 0 | Q20: 0
C21: Condition based | D21: 39382.51861 | E21: 0 | F21: 39382.51861 | G21: 30642.36766 | H21: =IF(Cover!$E$26=2014,((G21/Cover!$D$48)*Cover!$H$48),((G21/Cover!$D$49)*Cover!$I$49)) -> 34761.82091 | I21: 39382.51861 | J21: 0.132924501 | K21: 0 | L21: 0 | M21: 0 | N21: 0 | O21: 0 | P21: 0 | Q21: 0
C22: Emergency | D22: 24633.15767 | E22: 0 | F22: 24633.15767 | G22: 22383.0475 | H22: =IF(Cover!$E$26=2014,((G22/Cover!$D$48)*Cover!$H$48),((G22/Cover!$D$49)*Cover!$I$49)) -> 25392.1465 | I22: 24633.15767 | J22: -0.02989069208 | K22: 0 | L22: 0 | M22: 0 | N22: 0 | O22: 0 | P22: 0 | Q22: 0
C23: SCADA/Network Control | D23: 624.52532 | E23: 0 | F23: 624.52532 | G23: 979.9531563 | H23: =IF(Cover!$E$26=2014,((G23/Cover!$D$48)*Cover!$H$48),((G23/Cover!$D$49)*Cover!$I$49)) -> 1111.694648 | I23: 624.52532 | J23: -0.4382222482 | K23: 0 | L23: 0 | M23: 0 | N23: 0 | O23: 0 | P23: 0 | Q23: 0
C24: Other - Standard Control Services | D24: 3561.148804 | E24: 0 | F24: 3561.148804 | G24: 4218.371267 | H24: =IF(Cover!$E$26=2014,((G24/Cover!$D$48)*Cover!$H$48),((G24/Cover!$D$49)*Cover!$I$49)) -> 4785.474418 | I24: 3561.148804 | J24: -0.2558420561 | K24: 0 | L24: 0 | M24: 0 | N24: 0 | O24: 0 | P24: 0 | Q24: 0
C25: AMI | D25: 2168.60745 | E25: 0 | F25: 2168.60745 | G25: 0 | H25: =IF(Cover!$E$26=2014,((G25/Cover!$D$48)*Cover!$H$48),((G25/Cover!$D$49)*Cover!$I$49)) -> 0 | I25: 0 | J25: 1 | K25: 2168.60745 | L25: 0 | M25: 0 | N25: 0 | O25: 0 | P25: 0 | Q25: 0
C26: Public Lighting | D26: 5170.200763 | E26: 0 | F26: 5170.200763 | G26: 0 | H26: =IF(Cover!$E$26=2014,((G26/Cover!$D$48)*Cover!$H$48),((G26/Cover!$D$49)*Cover!$I$49)) -> 0 | I26: 0 | J26: 1 | K26: 0 | L26: 2092.009379 | M26: 3078.191383 | N26: 0 | O26: 0 | P26: 0 | Q26: 0
C27: Alternative control -other | D27: 5390.150591 | E27: 0 | F27: 5390.150591 | G27: 0 | H27: =IF(Cover!$E$26=2014,((G27/Cover!$D$48)*Cover!$H$48),((G27/Cover!$D$49)*Cover!$I$49)) -> 0 | I27: 0 | J27: 1 | K27: 0 | L27: 0 | M27: 0 | N27: 3772.640265 | O27: 1617.510326 | P27: 0 | Q27: 0
C28: Negotiated services | D28: 0 | E28: 0 | F28: 0 | G28: 0 | H28: =IF(Cover!$E$26=2014,((G28/Cover!$D$48)*Cover!$H$48),((G28/Cover!$D$49)*Cover!$I$49)) -> 0 | I28: 0 | J28: 1 | K28: 0 | L28: 0 | M28: 0 | N28: 0 | O28: 0 | P28: 0 | Q28: 0
C29: Sub Total | D29: =SUM(D20:D28) -> 137388.6281 | E29: 0 | F29: 137388.6281 | G29: =SUM(G20:G28) -> 105197.4185 | H29: =SUM(H20:H28) -> 119339.7933 | I29: =SUM(I20:I28) -> 124659.6693 | J29: 0.04457755322 | K29: =SUM(K20:K28) -> 2168.60745 | L29: 2092.009379 | M29: 3078.191383 | N29: 3772.640265 | O29: 1617.510326 | P29: 0 | Q29: 0
C30: Unregulated services | D30: 0 | E30: 0 | F30: 0 | G30: 0 | H30: =IF(Cover!$E$26=2014,((G30/Cover!$D$48)*Cover!$H$48),((G30/Cover!$D$49)*Cover!$I$49)) -> 0 | I30: 0 | J30: 1 | K30: 0 | L30: 0 | M30: 0 | N30: 0 | O30: 0 | P30: 0 | Q30: 0
C31: Total | D31: =D29+D30 -> 137388.6281 | E31: 0 | F31: 137388.6281 | G31: =G29+G30 -> 105197.4185 | H31: =H29+H30 -> 119339.7933 | I31: =I29+I30 -> 124659.6693 | J31: 0.04457755322 | K31: =SUM(K29:K30) -> 2168.60745 | L31: 2092.009379 | M31: 3078.191383 | N31: 3772.640265 | O31: 1617.510326 | P31: 0 | Q31: 0
B34: Table 2: Explanation of material difference
B36: Where the difference between forecast and actual expenditure shown in table 1, column J is greater than ±10 per cent, please explain the main factors driving the difference.
B38: Category | C38: Explanation
B39: Condition based | C39: Overspend due to: *Condition based maintenance increased above allowance due to higher volume of work identified by increased Asset Inspection
B40: SCADA/Network Control | C40: The absolute expenditure variance is not material.
B41: Other - Standard Control Services | C41: The absolute expenditure variance is not material.
B44: Table 3: Other network maintenance costs
B46: Note: List any items included in "other - standard control services' which are more than 5 per cent of the total standard control services maintenance costs
B48: Statutory account code or reference to account code | C48: Description | D48: Audited statutory accounts | E48: Adjustments | F48: Distribution business
C49: 0 | D49: 0 | E49: 0 | F49: 0
C50: 0 | D50: 0 | E50: 0 | F50: 0
C51: 0 | D51: 0 | E51: 0 | F51: 0
C52: 0 | D52: 0 | E52: 0 | F52: 0
C53: 0 | D53: 0 | E53: 0 | F53: 0
C54: 0 | D54: 0 | E54: 0 | F54: 0
B57: Definitions
B58: Maintenance categories are as defined in the 2011-15 Distribution determination
B59: Forecast | C59: The forecast expenditure derived for the 2011-2015 Distribution determination.
B60: Adjusted Forecast | C60: The forecast adjusted to be in equivalent dollar terms to the actual expenditure for the relevant regulatory year
B61: Actual | C61: The expenditure reported for the relevant regulatory year.
B62: ABS CPI | C62: ABS CPI (Pub No: 6401.0, All groups, 8 Capital Cities, September)

Sheet 6b. Maintenance - margin
B1: Powercor
B2: Maintenance Costs - Margin
B3: =Cover!E26 -> 2015
E4: Colour coding:
B5: Dollar unit used in this sheet | E5: Yellow = Input cells
B6: nominal $'000 | E6: Grey = No inputs required
B8: This information is necessary for monitoring maintenance expenditure and will be used to inform the AER's assessment of maintenance expenditure and its underlying drivers at the next reset. It will also be used to assist in any comparative analysis undertaken by the AER within the current and future regulatory control periods.
B10: Instructions:
B11: Reported expenditure must ONLY INCLUDE profit margins or management fees paid directly or indirectly to related party contractors (which is not an actual incurred cost of the related party contractor) for the regulatory reporting period.
B12: Forecast expenditure is to be taken from the 2011-15 distribution determination. This forecast is adjusted using the CPI calculations on the cover sheet.
B13: If allocating based on assumptions then provide method.
B14: All adjustments must be explained with supporting documentation attached.
B16: Table 1: Maintenance expenditure
B18: Statutory Account code or reference to account code | C18: Description | D18: Audited Statutory Accounts | E18: Adjustments | F18: Distribution business | G18: Standard Control Services | K18: AMI | L18: Public Lighting - Alternative Control | N18: Other Alternative Control Services | P18: Negotiated Services | Q18: Unregulated Services
G19: Forecast | H19: Adjusted Forecast | I19: Actual | J19: Difference | L19: Energy efficient | M19: Non energy efficient | N19: Fee based service | O19: Quoted service
C20: Routine | D20: -959.2116689 | E20: 0 | F20: -959.2116689 | G20: 0 | H20: =IF(Cover!$E$26=2014,((G20/Cover!$D$48)*Cover!$H$48),((G20/Cover!$D$49)*Cover!$I$49)) -> 0 | I20: -959.2116689 | J20: =IF(H20=0,1,((I20-H20)/H20)*1) -> 1 | K20: 0 | L20: 0 | M20: 0 | N20: 0 | O20: 0 | P20: 0 | Q20: 0
C21: Condition based | D21: -31.40940336 | E21: 0 | F21: -31.40940336 | G21: 0 | H21: =IF(Cover!$E$26=2014,((G21/Cover!$D$48)*Cover!$H$48),((G21/Cover!$D$49)*Cover!$I$49)) -> 0 | I21: -31.40940336 | J21: 1 | K21: 0 | L21: 0 | M21: 0 | N21: 0 | O21: 0 | P21: 0 | Q21: 0
C22: Emergency | D22: 93.43410574 | E22: 0 | F22: 93.43410574 | G22: 0 | H22: =IF(Cover!$E$26=2014,((G22/Cover!$D$48)*Cover!$H$48),((G22/Cover!$D$49)*Cover!$I$49)) -> 0 | I22: 93.43410574 | J22: 1 | K22: 0 | L22: 0 | M22: 0 | N22: 0 | O22: 0 | P22: 0 | Q22: 0
C23: SCADA/Network Control | D23: 2.778877074 | E23: 0 | F23: 2.778877074 | G23: 0 | H23: =IF(Cover!$E$26=2014,((G23/Cover!$D$48)*Cover!$H$48),((G23/Cover!$D$49)*Cover!$I$49)) -> 0 | I23: 2.778877074 | J23: 1 | K23: 0 | L23: 0 | M23: 0 | N23: 0 | O23: 0 | P23: 0 | Q23: 0
C24: Other - Standard Control Services | D24: -13.7774183 | E24: 0 | F24: -13.7774183 | G24: 0 | H24: =IF(Cover!$E$26=2014,((G24/Cover!$D$48)*Cover!$H$48),((G24/Cover!$D$49)*Cover!$I$49)) -> 0 | I24: -13.7774183 | J24: 1 | K24: 0 | L24: 0 | M24: 0 | N24: 0 | O24: 0 | P24: 0 | Q24: 0
C25: AMI | D25: 8.587706347 | E25: 0 | F25: 8.587706347 | G25: 0 | H25: =IF(Cover!$E$26=2014,((G25/Cover!$D$48)*Cover!$H$48),((G25/Cover!$D$49)*Cover!$I$49)) -> 0 | I25: 0 | J25: 1 | K25: 8.587706347 | L25: 0 | M25: 0 | N25: 0 | O25: 0 | P25: 0 | Q25: 0
C26: Public Lighting | D26: -13.97376899 | E26: 0 | F26: -13.97376899 | G26: 0 | H26: =IF(Cover!$E$26=2014,((G26/Cover!$D$48)*Cover!$H$48),((G26/Cover!$D$49)*Cover!$I$49)) -> 0 | I26: 0 | J26: 1 | K26: 0 | L26: -5.654181941 | M26: -8.319587045 | N26: 0 | O26: 0 | P26: 0 | Q26: 0
C27: Alternative control -other | D27: 16.6153266 | E27: 0 | F27: 16.6153266 | G27: 0 | H27: =IF(Cover!$E$26=2014,((G27/Cover!$D$48)*Cover!$H$48),((G27/Cover!$D$49)*Cover!$I$49)) -> 0 | I27: 0 | J27: 1 | K27: 0 | L27: 0 | M27: 0 | N27: 12.79150136 | O27: 3.823825237 | P27: 0 | Q27: 0
C28: Negotiated services | D28: 0 | E28: 0 | F28: 0 | G28: 0 | H28: =IF(Cover!$E$26=2014,((G28/Cover!$D$48)*Cover!$H$48),((G28/Cover!$D$49)*Cover!$I$49)) -> 0 | I28: 0 | J28: 1 | K28: 0 | L28: 0 | M28: 0 | N28: 0 | O28: 0 | P28: 0 | Q28: 0
C29: Sub Total | D29: =SUM(D20:D28) -> -896.9562438 | E29: 0 | F29: -896.9562438 | G29: =SUM(G20:G28) -> 0 | H29: =SUM(H20:H28) -> 0 | I29: =SUM(I20:I28) -> -908.1855077 | J29: 1 | K29: =SUM(K20:K28) -> 8.587706347 | L29: -5.654181941 | M29: -8.319587045 | N29: 12.79150136 | O29: 3.823825237 | P29: 0 | Q29: 0
C30: Unregulated services | D30: 0 | E30: 0 | F30: 0 | G30: 0 | H30: =IF(Cover!$E$26=2014,((G30/Cover!$D$48)*Cover!$H$48),((G30/Cover!$D$49)*Cover!$I$49)) -> 0 | I30: 0 | J30: 1 | K30: 0 | L30: 0 | M30: 0 | N30: 0 | O30: 0 | P30: 0 | Q30: 0
C31: Total | D31: =D29+D30 -> -896.9562438 | E31: 0 | F31: -896.9562438 | G31: =G29+G30 -> 0 | H31: =H29+H30 -> 0 | I31: =I29+I30 -> -908.1855077 | J31: 1 | K31: =SUM(K29:K30) -> 8.587706347 | L31: -5.654181941 | M31: -8.319587045 | N31: 12.79150136 | O31: 3.823825237 | P31: 0 | Q31: 0
B34: Table 2: Explanation of material difference
B36: Where the difference between forecast and actual expenditure shown in table 1, column J is greater than ±10 per cent, please explain the main factors driving the difference.
B38: Category | C38: Explanation
B39: 0 | C39: 0
B40: 0 | C40: 0
B41: 0 | C41: 0
B42: 0 | C42: 0
B44: Table 3: Other network maintenance costs
B46: Note: List any items included in "other - standard control services' which are more than 5 per cent of the total standard control services maintenance costs
B48: Statutory account code or reference to account code | C48: Description | D48: Audited statutory accounts | E48: Adjustments | F48: Distribution business
C49: 0 | D49: 0 | E49: 0 | F49: 0
C50: 0 | D50: 0 | E50: 0 | F50: 0
C51: 0 | D51: 0 | E51: 0 | F51: 0
C52: 0 | D52: 0 | E52: 0 | F52: 0
C53: 0 | D53: 0 | E53: 0 | F53: 0
C54: 0 | D54: 0 | E54: 0 | F54: 0
B56: Definitions
B57: Maintenance categories are as defined in the 2011-15 Distribution determination

Sheet 8a. Operating Activities (T)
B1: =Cover!E22 -> Powercor Australia Ltd
B2: Operating Activities - total
B3: =Cover!E26 -> 2015
E4: Colour coding:
B5: Dollar unit used in this sheet | E5: Yellow = Input cells
B6: nominal $'000 | E6: Grey = No inputs required
B8: This information is necessary for monitoring operating activities, and will be used to inform the AER’s assessment of operating costs and its underlying drivers at the next reset. It will also be used to assist in any comparative analysis undertaken by the AER within the current and future regulatory control periods.
B10: Instructions:
B11: Reported operating charges and costs must INCLUDE any profit margins or management fees paid directly or indirectly to related party contractors (which is not an actual incurred cost of the related party contractor) for the regulatory reporting period.
B12: Forecast expenditure is to be taken from the 2011-15 distribution determination. This forecast is adjusted using the CPI calculations on the cover sheet.
B13: If allocating based on assumptions then provide method.
B14: All adjustments must be explained with supporting documentation attached.
B16: Table 1 Operating charges and costs
B18: Account code or reference to account code | C18: Description | D18: Audited Statutory Accounts | E18: Adjustments | F18: Distribution Business | G18: Standard Control Services | K18: AMI | L18: Public Lighting - Alternative Control | N18: Other Alternative Control Services | P18: Negotiated Services | Q18: Unregulated Services
C19: Designated Pricing Proposal Charges: | G19: Forecast | H19: Adjusted Forecast | I19: Actual | J19: Difference | L19: Energy efficient | M19: Non-energy efficient | N19: Fee based service | O19: Quoted service
C20: Transmission Connection Fee | D20: 24575.53704 | E20: -24575.53704 | F20: 0 | G20: 0 | H20: =IF(Cover!$E$26=2014,((G20/Cover!$D$48)*Cover!$H$48),((G20/Cover!$D$49)*Cover!$I$49)) -> 0 | I20: 0 | J20: =IF(H20=0,1,((I20-H20)/H20)*1) -> 1 | K20: 0 | L20: 0 | M20: 0 | N20: 0 | O20: 0 | P20: 0 | Q20: 0
C21: Avoided TUoS charges/transmission costs | D21: 903.29945 | E21: -903.29945 | F21: 0 | G21: 0 | H21: =IF(Cover!$E$26=2014,((G21/Cover!$D$48)*Cover!$H$48),((G21/Cover!$D$49)*Cover!$I$49)) -> 0 | I21: 0 | J21: =IF(H21=0,1,((I21-H21)/H21)*1) -> 1 | K21: 0 | L21: 0 | M21: 0 | N21: 0 | O21: 0 | P21: 0 | Q21: 0
C22: AEMO shared TUOS Charges | D22: 156781.7014 | E22: -156781.7014 | F22: 0 | G22: 0 | H22: =IF(Cover!$E$26=2014,((G22/Cover!$D$48)*Cover!$H$48),((G22/Cover!$D$49)*Cover!$I$49)) -> 0 | I22: 0 | J22: 1 | K22: 0 | L22: 0 | M22: 0 | N22: 0 | O22: 0 | P22: 0 | Q22: 0
C23: Net Cross Boundary Network Charges | D23: 6386.8562 | E23: -6386.8562 | F23: 0 | G23: 0 | H23: =IF(Cover!$E$26=2014,((G23/Cover!$D$48)*Cover!$H$48),((G23/Cover!$D$49)*Cover!$I$49)) -> 0 | I23: 0 | J23: 1 | K23: 0 | L23: 0 | M23: 0 | N23: 0 | O23: 0 | P23: 0 | Q23: 0
C24: Jurisdictional Scheme Amounts:
C25: Premium Feed In Tariff | D25: 54143.13052 | E25: -54143.13052 | F25: 0 | G25: 0 | H25: =IF(Cover!$E$26=2014,((G25/Cover!$D$48)*Cover!$H$48),((G25/Cover!$D$49)*Cover!$I$49)) -> 0 | I25: 0 | J25: =IF(H25=0,1,((I25-H25)/H25)*1) -> 1 | K25: 0 | L25: 0 | M25: 0 | N25: 0 | O25: 0 | P25: 0 | Q25: 0
C26: Transitional Feed In Tariff | D26: 0 | E26: 0 | F26: 0 | G26: 0 | H26: =IF(Cover!$E$26=2014,((G26/Cover!$D$48)*Cover!$H$48),((G26/Cover!$D$49)*Cover!$I$49)) -> 0 | I26: 0 | J26: 1 | K26: 0 | L26: 0 | M26: 0 | N26: 0 | O26: 0 | P26: 0 | Q26: 0
C27: <insert future jurisdictional scheme payment> | H27: =IF(Cover!$E$26=2014,((G27/Cover!$D$48)*Cover!$H$48),((G27/Cover!$D$49)*Cover!$I$49)) -> 0 | J27: =IF(H27=0,1,((I27-H27)/H27)*1) -> 1
C28: Sub Total | D28: =SUM(D20:D27) -> 242790.5246 | E28: -242790.5246 | F28: 0 | G28: =SUM(G20:G27) -> 0 | H28: =SUM(H20:H27) -> 0 | I28: 0 | J28: 1 | K28: 0 | L28: 0 | M28: 0 | N28: 0 | O28: 0 | P28: 0 | Q28: 0
C29: Operating Costs
C30: Network Operating Costs | D30: 31663.69586 | E30: -8550.93577 | F30: 23112.76009 | G30: 41401.44956 | H30: =IF(Cover!$E$26=2014,((G30/Cover!$D$48)*Cover!$H$48),((G30/Cover!$D$49)*Cover!$I$49)) -> 46967.31634 | I30: 23112.76009 | J30: =IF(H30=0,1,((I30-H30)/H30)*1) -> -0.5078969401 | K30: 0 | L30: 0 | M30: 0 | N30: 0 | O30: 0 | P30: 0 | Q30: 0
C31: Billing & Revenue Collection | D31: 10763.06828 | E31: -3481.319 | F31: 7281.749279 | G31: 4455.457008 | H31: =IF(Cover!$E$26=2014,((G31/Cover!$D$48)*Cover!$H$48),((G31/Cover!$D$49)*Cover!$I$49)) -> 5054.433141 | I31: 7281.749279 | J31: 0.4406658622 | K31: 0 | L31: 0 | M31: 0 | N31: 0 | O31: 0 | P31: 0 | Q31: 0
C32: Advertising/Marketing | D32: 12.59296028 | E32: 0 | F32: 12.59296028 | G32: 149.1610731 | H32: =IF(Cover!$E$26=2014,((G32/Cover!$D$48)*Cover!$H$48),((G32/Cover!$D$49)*Cover!$I$49)) -> 169.2137687 | I32: 12.59296028 | J32: -0.9255795767 | K32: 0 | L32: 0 | M32: 0 | N32: 0 | O32: 0 | P32: 0 | Q32: 0
C33: Customer Service | D33: 7878.687903 | E33: 0 | F33: 7878.687903 | G33: 5858.118548 | H33: =IF(Cover!$E$26=2014,((G33/Cover!$D$48)*Cover!$H$48),((G33/Cover!$D$49)*Cover!$I$49)) -> 6645.663616 | I33: 7878.687903 | J33: 0.1855381733 | K33: 0 | L33: 0 | M33: 0 | N33: 0 | O33: 0 | P33: 0 | Q33: 0
C34: Regulatory | D34: 0 | E34: 0 | F34: 0 | G34: 0 | H34: =IF(Cover!$E$26=2014,((G34/Cover!$D$48)*Cover!$H$48),((G34/Cover!$D$49)*Cover!$I$49)) -> 0 | I34: 0 | J34: 1 | K34: 0 | L34: 0 | M34: 0 | N34: 0 | O34: 0 | P34: 0 | Q34: 0
C35: Regulatory Reset | D35: -0.01909 | E35: 1449.357384 | F35: 1449.338294 | G35: 1930.141778 | H35: =IF(Cover!$E$26=2014,((G35/Cover!$D$48)*Cover!$H$48),((G35/Cover!$D$49)*Cover!$I$49)) -> 2189.623321 | I35: 1449.338294 | J35: -0.3380878436 | K35: 0 | L35: 0 | M35: 0 | N35: 0 | O35: 0 | P35: 0 | Q35: 0
C36: IT | D36: 0 | E36: 0 | F36: 0 | G36: 0 | H36: =IF(Cover!$E$26=2014,((G36/Cover!$D$48)*Cover!$H$48),((G36/Cover!$D$49)*Cover!$I$49)) -> 0 | I36: 0 | J36: 1 | K36: 0 | L36: 0 | M36: 0 | N36: 0 | O36: 0 | P36: 0 | Q36: 0
C37: Licence fee | D37: 85.205 | E37: 0 | F37: 85.205 | G37: 0 | H37: =IF(Cover!$E$26=2014,((G37/Cover!$D$48)*Cover!$H$48),((G37/Cover!$D$49)*Cover!$I$49)) -> 0 | I37: 85.205 | J37: 1 | K37: 0 | L37: 0 | M37: 0 | N37: 0 | O37: 0 | P37: 0 | Q37: 0
C38: GSL payments | D38: 2308.715 | E38: 0 | F38: 2308.715 | G38: 1035.761918 | H38: =IF(Cover!$E$26=2014,((G38/Cover!$D$48)*Cover!$H$48),((G38/Cover!$D$49)*Cover!$I$49)) -> 1175.006145 | I38: 2308.715 | J38: 0.9648535536 | K38: 0 | L38: 0 | M38: 0 | N38: 0 | O38: 0 | P38: 0 | Q38: 0
C39: Non-network alternatives costs | D39: 0 | E39: 0 | F39: 0 | G39: 0 | H39: =IF(Cover!$E$26=2014,((G39/Cover!$D$48)*Cover!$H$48),((G39/Cover!$D$49)*Cover!$I$49)) -> 0 | I39: 0 | J39: 1 | K39: 0 | L39: 0 | M39: 0 | N39: 0 | O39: 0 | P39: 0 | Q39: 0
C40: Debt raising costs | D40: 0 | E40: 138.1695583 | F40: 138.1695583 | G40: 1490.064229 | H40: =IF(Cover!$E$26=2014,((G40/Cover!$D$48)*Cover!$H$48),((G40/Cover!$D$49)*Cover!$I$49)) -> 1690.383278 | I40: 138.1695583 | J40: -0.9182614025 | K40: 0 | L40: 0 | M40: 0 | N40: 0 | O40: 0 | P40: 0 | Q40: 0
C41: Other - Standard Control Services | D41: 278588.369 | E41: -254301.5738 | F41: 24286.79526 | G41: 7653.513966 | H41: =IF(Cover!$E$26=2014,((G41/Cover!$D$48)*Cover!$H$48),((G41/Cover!$D$49)*Cover!$I$49)) -> 8682.425745 | I41: 24286.79526 | J41: 1.797236161 | K41: 0 | L41: 0 | M41: 0 | N41: 0 | O41: 0 | P41: 0 | Q41: 0
C42: AMI | D42: 11861.2125 | E42: 16.08592196 | F42: 11877.29842 | G42: 0 | H42: =IF(Cover!$E$26=2014,((G42/Cover!$D$48)*Cover!$H$48),((G42/Cover!$D$49)*Cover!$I$49)) -> 0 | I42: 0 | J42: 1 | K42: 11877.29842 | L42: 0 | M42: 0 | N42: 0 | O42: 0 | P42: 0 | Q42: 0
C43: Public Lighting | D43: 163.7612783 | E43: 0.9576697094 | F43: 164.718948 | G43: 0 | H43: =IF(Cover!$E$26=2014,((G43/Cover!$D$48)*Cover!$H$48),((G43/Cover!$D$49)*Cover!$I$49)) -> 0 | I43: 0 | J43: 1 | K43: 0 | L43: 66.64994262 | M43: 98.06900539 | N43: 0 | O43: 0 | P43: 0 | Q43: 0
C44: Alternative control -other | D44: 8711.700062 | E44: 6101.398455 | F44: 14813.09852 | G44: 0 | H44: =IF(Cover!$E$26=2014,((G44/Cover!$D$48)*Cover!$H$48),((G44/Cover!$D$49)*Cover!$I$49)) -> 0 | I44: 0 | J44: 1 | K44: 0 | L44: 0 | M44: 0 | N44: 9364.315881 | O44: 5448.782637 | P44: 0 | Q44: 0
C45: Negotiated services | D45: 0 | E45: 0 | F45: 0 | G45: 0 | H45: =IF(Cover!$E$26=2014,((G45/Cover!$D$48)*Cover!$H$48),((G45/Cover!$D$49)*Cover!$I$49)) -> 0 | I45: 0 | J45: 1 | K45: 0 | L45: 0 | M45: 0 | N45: 0 | O45: 0 | P45: 0 | Q45: 0
C46: Sub Total | D46: =SUM(D30:D45) -> 352036.9888 | E46: -258627.8596 | F46: 93409.12922 | G46: =SUM(G30:G45) -> 63973.66808 | H46: =SUM(H30:H45) -> 72574.06535 | I46: =SUM(I30:I45) -> 66554.01334 | J46: =IF(H46=0,1,((I46-H46)/H46)*1) -> -0.08295045872 | K46: 11877.29842 | L46: 66.64994262 | M46: 98.06900539 | N46: 9364.315881 | O46: 5448.782637 | P46: 0 | Q46: 0
C47: Unregulated services | D47: 0 | E47: 0 | F47: 0 | G47: 0 | H47: =IF(Cover!$E$26=2014,((G47/Cover!$D$48)*Cover!$H$48),((G47/Cover!$D$49)*Cover!$I$49)) -> 0 | I47: 0 | J47: 1 | K47: 0 | L47: 0 | M47: 0 | N47: 0 | O47: 0 | P47: 0 | Q47: 0
C48: Total | D48: =SUM(D28, D46:D47) -> 594827.5134 | E48: -501418.3842 | F48: 93409.12922 | G48: 63973.66808 | H48: 72574.06535 | I48: 66554.01334 | J48: -0.08295045872 | K48: =SUM(K28, K46:K47) -> 11877.29842 | L48: 66.64994262 | M48: 98.06900539 | N48: 9364.315881 | O48: 5448.782637 | P48: 0 | Q48: 0
B50: Table 2: Explanation of material difference
B52: Where the difference between forecast and actual expenditure shown in table 1, column J is greater than ±10 per cent, please explain the main factors driving the difference.
B54: Category | C54: Explanation
B55: Network Operating Costs | C55: See Schedule 1 | D55: 0 | E55: 0 | F55: 0
B56: Billing & Revenue Collection | C56: See Schedule 1 | D56: 0 | E56: 0 | F56: 0
B57: Advertising/Marketing | C57: See Schedule 1 | D57: 0 | E57: 0 | F57: 0
B58: Customer Service | C58: See Schedule 1 | D58: 0 | E58: 0 | F58: 0
B59: Regulatory Reset | C59: See Schedule 1 | D59: 0 | E59: 0 | F59: 0
B60: GSL payments | C60: See Schedule 1 | D60: 0 | E60: 0 | F60: 0
B61: Debt raising costs | C61: See Schedule 1 | D61: 0 | E61: 0 | F61: 0
B62: Other - Standard Control Services | C62: See Schedule 1 | D62: 0 | E62: 0 | F62: 0
B64: Table 3: Other network operating costs
B66: Note: List any items included in "other - standard control services' which are more than 5 per cent of the total standard control services operating costs.
B68: Statutory Account code or reference to account code | C68: Description | D68: Audited statutory accounts | E68: Adjustments | F68: Distribution business | G68: Standard Control Services
B76: Table 4 Operating Expenditure - Non-Recurrent Network Operating Costs
B78: Note: List any items that are more than 5 per cent of the total standard control services operating costs.
B80: Statutory Account code or reference to account code | C80: Description | D80: Audited Statutory Financial Statements | E80: Adjustments | F80: Distribution business | G80: Standard Control Services
B81: 0 | C81: 0 | D81: 0 | E81: 0 | F81: 0 | G81: 0
B82: 0 | C82: 0 | D82: 0 | E82: 0 | F82: 0 | G82: 0
B83: 0 | C83: 0 | D83: 0 | E83: 0 | F83: 0 | G83: 0
B84: 0 | C84: 0 | D84: 0 | E84: 0 | F84: 0 | G84: 0
B85: 0 | C85: 0 | D85: 0 | E85: 0 | F85: 0 | G85: 0
B88: Definitions
B89: Operating expenditure categories are as defined in the 2011-15 Distribution determination
B90: Forecast | C90: The forecast expenditure derived for the 2011-2015 Distribution determination.
B91: Adjusted Forecast | C91: The forecast adjusted to be in equivalent dollar terms to the actual expenditure for the relevant regulatory year
B92: Actual | C92: The expenditure reported for the relevant regulatory year.
B93: ABS CPI | C93: ABS CPI (Pub No: 6401.0, All groups, 8 Capital Cities, September)

Sheet 8b. Operating Activities (M)
B1: =Cover!E22 -> Powercor Australia Ltd
B2: Operating Activities - margin
B3: =Cover!E26 -> 2015
E4: Colour coding:
B5: Dollar unit used in this sheet | E5: Yellow = Input cells
B6: nominal $'000 | E6: Grey = No inputs required
B8: This information is necessary for monitoring operating activities, and will be used to inform the AER’s assessment of operating costs and its underlying drivers at the next reset. It will also be used to assist in any comparative analysis undertaken by the AER within the current and future regulatory control periods.
B10: Instructions:
B11: Reported expenditure must ONLY INCLUDE profit margins or management fees paid directly or indirectly to related party contractors (which is not an actual incurred cost of the related party contractor) for the regulatory reporting period.
B12: Forecast expenditure is to be taken from the 2011-15 distribution determination. This forecast is adjusted using the CPI calculations on the cover sheet.
B13: If allocating based on assumptions then provide method.
B14: All adjustments must be explained with supporting documentation attached.
B16: Table 1 Operating charges and costs
B18: Account code or reference to account code | C18: Description | D18: Audited Statutory Accounts | E18: Adjustments | F18: Distribution Business | G18: Standard Control Services | K18: AMI | L18: Public Lighting - Alternative Control | N18: Other Alternative Control Services | P18: Negotiated Services | Q18: Unregulated Services
C19: Designated Pricing Proposal Charges: | G19: Forecast | H19: Adjusted Forecast | I19: Actual | J19: Difference | L19: Energy efficient | M19: Non efficient | N19: Fee based service | O19: Quoted service
C20: Transmission Connection Fee | D20: 0 | E20: 0 | F20: 0 | G20: 0 | H20: =IF(Cover!$E$26=2014,((G20/Cover!$D$48)*Cover!$H$48),((G20/Cover!$D$49)*Cover!$I$49)) -> 0 | I20: 0 | J20: =IF(H20=0,1,((I20-H20)/H20)*1) -> 1 | K20: 0 | L20: 0 | M20: 0 | N20: 0 | O20: 0 | P20: 0 | Q20: 0
C21: Avoided TUoS charges/transmission costs | D21: 0 | E21: 0 | F21: 0 | G21: 0 | H21: =IF(Cover!$E$26=2014,((G21/Cover!$D$48)*Cover!$H$48),((G21/Cover!$D$49)*Cover!$I$49)) -> 0 | I21: 0 | J21: =IF(H21=0,1,((I21-H21)/H21)*1) -> 1 | K21: 0 | L21: 0 | M21: 0 | N21: 0 | O21: 0 | P21: 0 | Q21: 0
C22: AEMO shared TUOS Charges | D22: 0 | E22: 0 | F22: 0 | G22: 0 | H22: =IF(Cover!$E$26=2014,((G22/Cover!$D$48)*Cover!$H$48),((G22/Cover!$D$49)*Cover!$I$49)) -> 0 | I22: 0 | J22: 1 | K22: 0 | L22: 0 | M22: 0 | N22: 0 | O22: 0 | P22: 0 | Q22: 0
C23: Net Cross Boundary Network Charges | D23: 0 | E23: 0 | F23: 0 | G23: 0 | H23: =IF(Cover!$E$26=2014,((G23/Cover!$D$48)*Cover!$H$48),((G23/Cover!$D$49)*Cover!$I$49)) -> 0 | I23: 0 | J23: 1 | K23: 0 | L23: 0 | M23: 0 | N23: 0 | O23: 0 | P23: 0 | Q23: 0
C24: Jurisdictional Scheme Amounts:
C25: Premium Feed In Tariff | D25: 0 | E25: 0 | F25: 0 | G25: 0 | H25: =IF(Cover!$E$26=2014,((G25/Cover!$D$48)*Cover!$H$48),((G25/Cover!$D$49)*Cover!$I$49)) -> 0 | I25: 0 | J25: =IF(H25=0,1,((I25-H25)/H25)*1) -> 1 | K25: 0 | L25: 0 | M25: 0 | N25: 0 | O25: 0 | P25: 0 | Q25: 0
C26: Transitional Feed In Tariff | D26: 0 | E26: 0 | F26: 0 | G26: 0 | H26: =IF(Cover!$E$26=2014,((G26/Cover!$D$48)*Cover!$H$48),((G26/Cover!$D$49)*Cover!$I$49)) -> 0 | I26: 0 | J26: 1 | K26: 0 | L26: 0 | M26: 0 | N26: 0 | O26: 0 | P26: 0 | Q26: 0
C27: <insert future jurisdictional scheme payment> | H27: =IF(Cover!$E$26=2014,((G27/Cover!$D$48)*Cover!$H$48),((G27/Cover!$D$49)*Cover!$I$49)) -> 0 | J27: =IF(H27=0,1,((I27-H27)/H27)*1) -> 1
C28: Sub Total | D28: =SUM(D20:D27) -> 0 | E28: 0 | F28: 0 | G28: 0 | H28: =SUM(H20:H27) -> 0 | I28: 0 | J28: 1 | K28: 0 | L28: 0 | M28: 0 | N28: 0 | O28: 0 | P28: 0 | Q28: 0
C29: Operating Costs
C30: Network Operating Costs | D30: 0 | E30: 46.26570481 | F30: 46.26570481 | G30: 0 | H30: =IF(Cover!$E$26=2014,((G30/Cover!$D$48)*Cover!$H$48),((G30/Cover!$D$49)*Cover!$I$49)) -> 0 | I30: 46.26570481 | J30: =IF(H30=0,1,((I30-H30)/H30)*1) -> 1 | K30: 0 | L30: 0 | M30: 0 | N30: 0 | O30: 0 | P30: 0 | Q30: 0
C31: Billing & Revenue Collection | D31: 0 | E31: 2195.147565 | F31: 2195.147565 | G31: 0 | H31: =IF(Cover!$E$26=2014,((G31/Cover!$D$48)*Cover!$H$48),((G31/Cover!$D$49)*Cover!$I$49)) -> 0 | I31: 2195.147565 | J31: 1 | K31: 0 | L31: 0 | M31: 0 | N31: 0 | O31: 0 | P31: 0 | Q31: 0
C32: Advertising/Marketing | D32: 0 | E32: -5.605370357 | F32: -5.605370357 | G32: 0 | H32: =IF(Cover!$E$26=2014,((G32/Cover!$D$48)*Cover!$H$48),((G32/Cover!$D$49)*Cover!$I$49)) -> 0 | I32: -5.605370357 | J32: 1 | K32: 0 | L32: 0 | M32: 0 | N32: 0 | O32: 0 | P32: 0 | Q32: 0
C33: Customer Service | D33: 0 | E33: 3085.109517 | F33: 3085.109517 | G33: 0 | H33: =IF(Cover!$E$26=2014,((G33/Cover!$D$48)*Cover!$H$48),((G33/Cover!$D$49)*Cover!$I$49)) -> 0 | I33: 3085.109517 | J33: 1 | K33: 0 | L33: 0 | M33: 0 | N33: 0 | O33: 0 | P33: 0 | Q33: 0
C34: Regulatory | D34: 0 | E34: 0 | F34: 0 | G34: 0 | H34: =IF(Cover!$E$26=2014,((G34/Cover!$D$48)*Cover!$H$48),((G34/Cover!$D$49)*Cover!$I$49)) -> 0 | I34: 0 | J34: 1 | K34: 0 | L34: 0 | M34: 0 | N34: 0 | O34: 0 | P34: 0 | Q34: 0
C35: Regulatory Reset | D35: 0 | E35: 0 | F35: 0 | G35: 0 | H35: =IF(Cover!$E$26=2014,((G35/Cover!$D$48)*Cover!$H$48),((G35/Cover!$D$49)*Cover!$I$49)) -> 0 | I35: 0 | J35: 1 | K35: 0 | L35: 0 | M35: 0 | N35: 0 | O35: 0 | P35: 0 | Q35: 0
C36: IT | D36: 0 | E36: 0 | F36: 0 | G36: 0 | H36: =IF(Cover!$E$26=2014,((G36/Cover!$D$48)*Cover!$H$48),((G36/Cover!$D$49)*Cover!$I$49)) -> 0 | I36: 0 | J36: 1 | K36: 0 | L36: 0 | M36: 0 | N36: 0 | O36: 0 | P36: 0 | Q36: 0
C37: Licence fee | D37: 0 | E37: 0 | F37: 0 | G37: 0 | H37: =IF(Cover!$E$26=2014,((G37/Cover!$D$48)*Cover!$H$48),((G37/Cover!$D$49)*Cover!$I$49)) -> 0 | I37: 0 | J37: 1 | K37: 0 | L37: 0 | M37: 0 | N37: 0 | O37: 0 | P37: 0 | Q37: 0
C38: GSL payments | D38: 0 | E38: 0 | F38: 0 | G38: 0 | H38: =IF(Cover!$E$26=2014,((G38/Cover!$D$48)*Cover!$H$48),((G38/Cover!$D$49)*Cover!$I$49)) -> 0 | I38: 0 | J38: 1 | K38: 0 | L38: 0 | M38: 0 | N38: 0 | O38: 0 | P38: 0 | Q38: 0
C39: Non-network alternatives costs | D39: 0 | E39: 0 | F39: 0 | G39: 0 | H39: =IF(Cover!$E$26=2014,((G39/Cover!$D$48)*Cover!$H$48),((G39/Cover!$D$49)*Cover!$I$49)) -> 0 | I39: 0 | J39: 1 | K39: 0 | L39: 0 | M39: 0 | N39: 0 | O39: 0 | P39: 0 | Q39: 0
C40: Debt raising costs | D40: 0 | E40: 0 | F40: 0 | G40: 0 | H40: =IF(Cover!$E$26=2014,((G40/Cover!$D$48)*Cover!$H$48),((G40/Cover!$D$49)*Cover!$I$49)) -> 0 | I40: 0 | J40: 1 | K40: 0 | L40: 0 | M40: 0 | N40: 0 | O40: 0 | P40: 0 | Q40: 0
C41: Other - Standard Control Services (a,b) | D41: 0 | E41: 657.1063905 | F41: 657.1063905 | G41: 0 | H41: =IF(Cover!$E$26=2014,((G41/Cover!$D$48)*Cover!$H$48),((G41/Cover!$D$49)*Cover!$I$49)) -> 0 | I41: 657.1063905 | J41: 1 | K41: 0 | L41: 0 | M41: 0 | N41: 0 | O41: 0 | P41: 0 | Q41: 0
C42: AMI | D42: 0 | E42: 1670.331455 | F42: 1670.331455 | G42: 0 | H42: =IF(Cover!$E$26=2014,((G42/Cover!$D$48)*Cover!$H$48),((G42/Cover!$D$49)*Cover!$I$49)) -> 0 | I42: 0 | J42: 1 | K42: 1670.331455 | L42: 0 | M42: 0 | N42: 0 | O42: 0 | P42: 0 | Q42: 0
C43: Public Lighting | D43: 0 | E43: 61.65988997 | F43: 61.65988997 | G43: 0 | H43: =IF(Cover!$E$26=2014,((G43/Cover!$D$48)*Cover!$H$48),((G43/Cover!$D$49)*Cover!$I$49)) -> 0 | I43: 0 | J43: 1 | K43: 0 | L43: 24.94933448 | M43: 36.7105555 | N43: 0 | O43: 0 | P43: 0 | Q43: 0
C44: Alternative control -other | D44: 0 | E44: 848.1447071 | F44: 848.1447071 | G44: 0 | H44: =IF(Cover!$E$26=2014,((G44/Cover!$D$48)*Cover!$H$48),((G44/Cover!$D$49)*Cover!$I$49)) -> 0 | I44: 0 | J44: 1 | K44: 0 | L44: 0 | M44: 0 | N44: 606.0696283 | O44: 242.0750788 | P44: 0 | Q44: 0
C45: Negotiated services | D45: 0 | E45: 0 | F45: 0 | G45: 0 | H45: =IF(Cover!$E$26=2014,((G45/Cover!$D$48)*Cover!$H$48),((G45/Cover!$D$49)*Cover!$I$49)) -> 0 | I45: 0 | J45: 1 | K45: 0 | L45: 0 | M45: 0 | N45: 0 | O45: 0 | P45: 0 | Q45: 0
C46: Sub Total | D46: =SUM(D30:D45) -> 0 | E46: 8558.15986 | F46: 8558.15986 | G46: 0 | H46: =SUM(H30:H45) -> 0 | I46: =SUM(I30:I45) -> 5978.023807 | J46: =IF(H46=0,1,((I46-H46)/H46)*1) -> 1 | K46: =SUM(K30:K45) -> 1670.331455 | L46: 24.94933448 | M46: 36.7105555 | N46: 606.0696283 | O46: 242.0750788 | P46: 0 | Q46: 0
C47: Unregulated services | D47: 0 | E47: 0 | F47: 0 | G47: 0 | H47: =IF(Cover!$E$26=2014,((G47/Cover!$D$48)*Cover!$H$48),((G47/Cover!$D$49)*Cover!$I$49)) -> 0 | I47: 0 | J47: 1 | K47: 0 | L47: 0 | M47: 0 | N47: 0 | O47: 0 | P47: 0 | Q47: 0
C48: Total | D48: =SUM(D28, D46:D47) -> 0 | E48: 8558.15986 | F48: 8558.15986 | G48: 0 | H48: 0 | I48: 5978.023807 | J48: 1 | K48: =SUM(K28, K46:K47) -> 1670.331455 | L48: 24.94933448 | M48: 36.7105555 | N48: 606.0696283 | O48: 242.0750788 | P48: 0 | Q48: 0
B50: Table 2: Explanation of material difference
B52: Where the difference between forecast and actual expenditure shown in table 1, column J is greater than ±10 per cent, please explain the main factors driving the difference.
B54: Category | C54: Explanation
B59: Table 3 Operating costs - Other standard control services
B61: Note: List any items included in "other - standard control services' which are more than 5 per cent of the total standard control services operating costs
B63: Statutory Account code or reference to account code | C63: Description | D63: Audited Statutory Accounts | E63: Adjustments | F63: Distribution Business | G63: Standard Control Services
B72: Table 3 Operating Expenditure - Non-Recurrent Network Operating Costs
B74: Note: List any non-recurrent cost items included in "network operating costs" that are more than 5 per cent of the total standard control services operating costs.
B76: Statutory Account code or reference to account code | C76: Description | D76: Audited Statutory Accounts | E76: Adjustments | F76: Distribution Business | G76: Standard Control Services
B85: Definitions
B86: Operating activities are as defined in Appndix G of the RIN, or the 2011-15 distribution determination

Sheet 13. Avoided Cost Payments
B1: =Cover!E22 -> Powercor Australia Ltd | D1: Colour coding:
B2: Avoided Cost Payments | D2: Yellow = Input cells
B3: =Cover!E26 -> 2015 | D3: Grey = No inputs required
B5: Dollar unit used in this sheet
B6: nominal $'000
B8: This information is necessary for monitoring avoided cost payments, and will be used to inform the AER’s assessment of expenditure and its underlying drivers at the next reset. It will also be used to assist in any comparative analysis undertaken by the AER within the current and future regulatory control periods.
B10: Statutory Account code or reference to account code | C10: Description | D10: Avoided Cost Payment | E10: Number of Projects
C11: Deferral of Augmentation to Transmission Networks
C12: Embedded generators | D12: 903.29945 | E12: 10
C13: Related party embedded generators | D13: 0 | E13: 0
C14: Customers | D14: 0 | E14: 0
C15: Avoided TUOS | D15: 0 | E15: 0
C16: Sub Total | D16: =SUM(D12:D15) -> 903.29945 | E16: =SUM(E12:E15) -> 10
C17: Deferral of Augmentation to Distribution Networks
C18: Embedded generators | D18: 0 | E18: 0
C19: Related party embedded generators | D19: 0 | E19: 0
C20: Customers | D20: 0 | E20: 0
C21: Sub Total | D21: =SUM(D18:D20) -> 0 | E21: =SUM(E18:E20) -> 0
C22: TOTAL | D22: =D21+D16 -> 903.29945 | E22: =E21+E16 -> 10
B24: Definition
B25: Avoided cost payments | C25: The payments made by Powercor to represent costs that Powercor would have incurred in the provision of distribution services, but for the actions of another party, which may include a Related Party, embedded generator, third party or customer.
B26: Embedded generators | C26: A person that owns, controls or operates an embedded generating unit.
B27: Related party embedded generators | C27: A related party that owns, controls or operates an embedded generating unit.
B28: Customers | C28: A Distribution Customer (with active and/or inactive accounts) with an active National Metering Identifier (NMI).
B29: Avoided TUOS | C29: Cost of using another distribution network service provider’s distribution network.

Sheet 14. Alt Control&Others
B1: =Cover!E22 -> Powercor Australia Ltd | E1: Colour coding:
B2: Alternative Control Services and Other Services | E2: Yellow = Input cells
B3: =Cover!E26 -> 2015 | E3: Grey = No inputs required
B4: Dollar unit used in this sheet
B5: nominal $'000
B7: This information is necessary for monitoring Alternative control & other services, and will be used to inform the AER’s assessment of expenditure and its underlying drivers at the next reset. It will also be used to assist in any comparative analysis undertaken by the AER within the current and future regulatory control periods.
B10: Statutory Account code or reference to account code | C10: Description | D10: Direct O&M Costs | E10: Indirect O&M costs | F10: Direct Capex | G10: Indirect Capex | H10: Total expenditure | I10: Revenue
C11: Alternative Control Services - Fee Based
C12: Meter investigation | D12: 28.36878873 | E12: 4.953852326 | F12: 0 | G12: 0 | H12: =SUM(D12:G12) -> 33.32264106 | I12: -105.27079
C13: Meter Testing | D13: 104.2380613 | E13: 18.20239726 | F13: 0 | G13: 0 | H13: =SUM(D13:G13) -> 122.4404585 | I13: -73.5423
C14: De-energisation of existing connections | D14: 556.031993 | E14: 19.15137576 | F14: 0 | G14: 0 | H14: 575.1833687 | I14: -700.7175623
C15: Energisation of existing connections | D15: 1116.956847 | E15: 38.47127602 | F15: 0 | G15: 0 | H15: 1155.428123 | I15: -1407.601161
C16: Special meter reading | D16: 27.46952569 | E16: 0.9461311848 | F16: 0 | G16: 0 | H16: 28.41565687 | I16: -34.6173949
C17: Re-test of type 5 and 6 metering installations for first tier customers with annual consumption greater than 160 MWh | D17: 0 | E17: 0 | F17: 0 | G17: 0 | H17: 0 | I17: 0
C18: Operation, repair, replacement and maintenance of DNSP public lighting assets | D18: 4928.381761 | E18: 405.58028 | F18: 1921.164902 | G18: 250.2746746 | H18: 7505.401617 | I18: -8116.96603
C19: Fault response - not DNSP fault | D19: 0 | E19: 0 | F19: 0 | G19: 0 | H19: 0 | I19: 0
C20: Temporary disconnect/reconnect services | D20: 0 | E20: 0 | F20: 0 | G20: 0 | H20: 0 | I20: 0
C21: Wasted attendance - not DNSP fault | D21: 75.08049923 | E21: 13.0164626 | F21: 0 | G21: 0 | H21: 88.09696183 | I21: -104.22971
C22: Service truck visits | D22: 2955.648028 | E22: 490.3517372 | F22: 0 | G22: 0 | H22: 3445.999765 | I22: -2779.28482
C23: Reserve feeder | D23: 69.56507385 | E23: 2.396025563 | F23: 0 | G23: 0 | H23: 71.96109941 | I23: -158.07494
C24: PV installation | D24: 2450.57192 | E24: 84.40489801 | F24: 0 | G24: 0 | H24: 2534.976818 | I24: -2537.79621
C25: Routine connections - customers below 100 amps | D25: 4321.952179 | E25: 759.1790616 | F25: 0 | G25: 0 | H25: 5081.13124 | I25: -6626.842
C26: Temporary supply services | D26: 0 | E26: 0 | F26: 0 | G26: 0 | H26: 0 | I26: 0
C27: Remote meter re-configuration | D27: 0 | E27: 0 | F27: 0 | G27: 0 | H27: 0 | I27: 0
C28: Remote de-energisation | D28: 0 | E28: 0 | F28: 0 | G28: 0 | H28: 0 | I28: 0
C29: Remote re-energisation | D29: 0 | E29: 0 | F29: 0 | G29: 0 | H29: 0 | I29: 0
C30: Total fee based alternative control services | D30: =SUM(D12:D29) -> 16634.26468 | E30: 1836.653497 | F30: 1921.164902 | G30: 250.2746746 | H30: 20642.35775 | I30: -22644.94292
C31: Alternative Control Services - Quoted
C32: Rearrangement of network assets at customer request, excluding alteration and relocation of existing public lighting assets | D32: 0 | E32: 0 | F32: 0 | G32: 0 | H32: =SUM(D32:G32) -> 0 | I32: 0
C33: Supply enhancement at customer request | D33: 0 | E33: 0 | F33: 0 | G33: 0 | H33: 0 | I33: 0
C34: Supply abolishment | D34: 949.172822 | E34: 166.059677 | F34: 0 | G34: 0 | H34: 1115.232499 | I34: -654.52511
C35: Emergency recoverable works (that is, emergency works where customer is at fault and immediate action needs to be taken by the DNSP) | D35: 1602.95378 | E35: 265.1128723 | F35: 0 | G35: 0 | H35: 1868.066652 | I35: -1640.62757
C36: Auditing of design and construction | D36: 1203.079012 | E36: 184.439453 | F36: 0 | G36: 0 | H36: 1387.518465 | I36: -1049.97
C37: Specification and design enquiry fees | D37: 1857.762198 | E37: 284.8064343 | F37: 0 | G37: 0 | H37: 2142.568632 | I37: -1108.1183
C38: Elective underground service where an existing overhead service exists | D38: 0 | E38: 0 | F38: 0 | G38: 0 | H38: 0 | I38: 0
C39: Damage to overhead service cables pulled down by high load vehicles | D39: 0 | E39: 0 | F39: 0 | G39: 0 | H39: 0 | I39: 0
C40: High load escorts—lifting overhead lines | D40: 41.98231225 | E40: 6.89350823 | F40: 0 | G40: 0 | H40: 48.87582047 | I40: -44.49472
C41: Covering of low voltage mains for safety reasons | D41: 432.9417319 | E41: 71.08916189 | F41: 0 | G41: 0 | H41: 504.0308937 | I41: -524.37405
C42: Routine connections, for customers > 100amps | D42: 0 | E42: 0 | F42: 0 | G42: 0 | H42: 0 | I42: 0
C43: After hours truck by appointment | D43: 0 | E43: 0 | F43: 0 | G43: 0 | H43: 0 | I43: 0
C44: Total quoted alternative control services | D44: =SUM(D32:D43) -> 6087.891856 | E44: =SUM(E32:E43) -> 978.4011066 | F44: =SUM(F32:F43) -> 0 | G44: 0 | H44: 7066.292963 | I44: -5022.10975
C45: Other Activities - Non Regulated
C46: Pole, Duct, Fibre & Property Rental | D46: 0 | E46: 0 | F46: 0 | G46: 0 | I46: -3107.56266
D47: 0 | E47: 0 | F47: 0 | G47: 0 | I47: 0
C48: [other activities to be listed and aggregate total reported] | D48: 0 | E48: 0 | F48: 0 | G48: 0 | H48: =SUM(D48:G48) -> 0 | I48: 0
C49: Total non - regulated | D49: =SUM(D48:D48) -> 0 | E49: =SUM(E48:E48) -> 0 | F49: =SUM(F48:F48) -> 0 | G49: =SUM(G48:G48) -> 0 | H49: =SUM(D49:G49) -> 0 | I49: =SUM(I46:I48) -> -3107.56266
C50: TOTAL | D50: =SUM(D30,D44,D49) -> 22722.15653 | E50: =SUM(E30,E44,E49) -> 2815.054604 | F50: 1921.164902 | G50: 250.2746746 | H50: 27708.65071 | I50: -30774.61533
C51: Public Lighting (amounts also included above)
C52: Efficient luminaires | D52: 1994.162575 | E52: 164.1092462 | F52: 590.4916301 | G52: 76.92473481 | H52: =SUM(D52:G52) -> 2825.688187 | I52: -3503.161197
C53: Non-energy efficient luminaires | D53: 2934.219186 | E53: 241.4710338 | F53: 1330.673272 | G53: 173.3499398 | H53: =SUM(D53:G53) -> 4679.713431 | I53: -4613.804833
C54: Total public lighting | D54: =SUM(D52:D53) -> 4928.381761 | E54: =SUM(E52:E53) -> 405.58028 | F54: =SUM(F52:F53) -> 1921.164902 | G54: =SUM(G52:G53) -> 250.2746746 | H54: =SUM(D54:G54) -> 7505.401617 | I54: =SUM(I52:I53) -> -8116.96603
B58: Definitions
B59: Alternative control services are as defined in Powercor's approved CAM.

Sheet 15. EBSS
B1: =Cover!E22 -> Powercor Australia Ltd
B2: Efficiency Benefits Sharing Schemes
B3: =Cover!E26 -> 2015
D4: Colour coding:
B5: Dollar unit used in this sheet | D5: Yellow = Input cells
B6: nominal $'000 | D6: Grey = No inputs required
B8: EBSS information is used by the AER to monitor EBSS scheme throughout the regulatory control period.
B11: Table 1 Opex for EBSS Purposes
B13: Note: a) Only superannuation costs related to defined benefit schemes are to be reported
B14: b) Only self insurance cost categories approved in the AER's determination are to be reported
B16: Total Actual Opex | C16: ='6a. Maintenance - total '!I31+'8a. Operating Activities (T)'!I48 -> 191213.6826
B17: Debt raising costs | C17: 138.1695583
B18: Self insurance | C18: 0
B19: Superannuation defined benefit schemes | C19: 7340
B20: Non network alternatives costs | C20: 0
B21: DMIA costs | C21: 335.16819
B22: Pass through event costs | C22: 2851.876195
B23: GSL payments | C23: 2308.715
B24: Total opex adjustment for EBSS purposes | C24: =SUM(C17:C23) -> 12973.92894
B25: Total opex for EBSS purposes | C25: =C16-C24 -> 178239.7537
B27: Note: Total opex for EBSS purposes has not been adjusted for movement in provisions
B29: Table 2 Explanation of Capitalisation Policy Changes
B31: Note: This should include a description of any items that have previously been considered as opex items, but are now being considered capex items.
B33: Capitalisation Policy Change | C33: Impact on forecast opex | D33: Description
B34: 0 | C34: 0 | D34: 0 | E34: 0 | F34: 0 | G34: 0 | H34: 0 | I34: 0 | J34: 0 | K34: 0
B35: 0 | C35: 0 | D35: 0 | E35: 0 | F35: 0 | G35: 0 | H35: 0 | I35: 0 | J35: 0 | K35: 0
B36: 0 | C36: 0 | D36: 0 | E36: 0 | F36: 0 | G36: 0 | H36: 0 | I36: 0 | J36: 0 | K36: 0
B37: 0 | C37: 0 | D37: 0 | E37: 0 | F37: 0 | G37: 0 | H37: 0 | I37: 0 | J37: 0 | K37: 0
B38: Total | C38: =SUM(C34:C37) -> 0
B41: Definitions
B42: EBSS exclusions have the meaning used in the 2011-15 Distribution determination

Sheet 16. Juris Scheme
B1: =Cover!E22 -> Powercor Australia Ltd
B2: Jurisdictional Scheme Payments
B3: =Cover!E26 -> 2015
D5: Colour coding:
B6: Dollar unit used in this sheet | D6: Yellow = Input cells
B7: nominal $'000 | D7: Grey = No inputs required
B9: Jurisdictional scheme information is used by the AER to monitor approved Jurisdictional schemes throughout the regulatory control period.
B12: Scheme Payment Name | C12: Description | D12: Date DNSP Became Subject to Scheme | E12: Description of Cost Recovery Method | F12: Total Scheme Payments
B13: Premium Solar Feed-in Tariff & Transitional feed-in tariff payments | C13: Credit per kWh paid for excess electricity fed back into the grid | D13: 1 November 2009 | E13: Appendix F3 of the Final Decision Distribution determination 2011-2015 | F13: 39892.04446
D17: Total jurisdictional scheme payments | F17: =SUM(F13:F16) -> 39892.04446
B19: Definitions
B20: Jurisdictional Scheme Payment | C20: In respect of a Jurisdictional Scheme, the amounts a DNSP is required under the Jurisdictional Scheme obligations to: (a) pay to a person (b) pay into a fund established under an Act of a participating jurisdiction (c) credit against charges payable by a person (d) reimburse a person less any amounts recovered by the DNSP from any person in respect of those amounts other than under the NER.
B21: Jurisdictional Scheme | C21: Jurisdictional scheme has the meaning given in clause 6.18.7A(d) of the NER.

Sheet 17.DMIS-DMIA
B1: =Cover!E22 -> Powercor Australia Ltd
B2: Demand management incentive scheme
B3: =Cover!E26 -> 2015
D5: Colour coding:
B6: Dollar unit used in this sheet | D6: Yellow = Input cells
B7: nominal $'000 | D7: Grey = No inputs required
B10: This information will form the basis of the AER’s assessment of the DNSP’s compliance with the DMIS, and its entitlement to recover expenditure under the DMIS. The information will also assist the AER in assessing proposals for demand management expenditure in opex and capex forecasts submitted in a DNSP’s regulatory proposals, and in the development and implementation of DMEGCIS, in future regulatory control periods.
B13: Table 1 DMIA expenditure in the regulatory reporting year
B15: Name of project | C15: =B3 -> 2015
C16: Operating expenditure | D16: Capital expenditure | E16: Total expenditure
B17: Demand Management Storage Project | C17: 204.77283 | D17: 3082.45469 | E17: =SUM(C17:D17) -> 3287.22752
B18: Storage Investment Framework Design and Analysis | C18: 130.39536 | D18: 0 | E18: 130.39536
B19: 0 | C19: 0 | D19: 0 | E19: 0
B20: 0 | C20: 0 | D20: 0 | E20: 0
B21: 0 | C21: 0 | D21: 0 | E21: 0
B22: 0 | C22: 0 | D22: 0 | E22: 0
B23: Total | C23: =SUM(C17:C22) -> 335.16819 | D23: =SUM(D17:D22) -> 3082.45469 | E23: =SUM(E17:E22) -> 3417.62288
B25: Table 2 DMIA expenditure in the previous reporting year
B27: Name of project | C27: =B3-1 -> 2014
C28: Operating expenditure | D28: Capital expenditure | E28: Total expenditure
B29: Network Support CTN 2014 | C29: 35.439 | D29: 0 | E29: =SUM(C29:D29) -> 35.439
B30: Network Support BMH 2014 | C30: 8 | D30: 0 | E30: =SUM(C30:D30) -> 8
B31: Greensync Pilot | C31: 18.5 | D31: 0 | E31: =SUM(C31:D31) -> 18.5
B32: Demand Management Storage Project | C32: 106.3488031 | D32: 0 | E32: =SUM(C32:D32) -> 106.3488031
B33: Storage Investment Framework Design and Analysis | C33: 62.32631056 | D33: 0 | E33: 62.32631056
B34: Total | C34: =SUM(C29:C33) -> 230.6141137 | D34: =SUM(D29:D33) -> 0 | E34: 230.6141137
B36: Table 3 Foregone revenue in the regulatory reporting year
B38: Name of project | C38: =B3 -> 2015
C39: Forecast quantity | D39: Actual quantity | E39: Forgone quantity | F39: Price
B40: 0 | C40: 0 | D40: 0 | E40: =C40-D40 -> 0 | F40: 0
B41: 0 | C41: 0 | D41: 0 | E41: 0 | F41: 0
B42: 0 | C42: 0 | D42: 0 | E42: 0 | F42: 0
B43: 0 | C43: 0 | D43: 0 | E43: 0 | F43: 0
B44: 0 | C44: 0 | D44: 0 | E44: 0 | F44: 0
B45: 0 | C45: 0 | D45: 0 | E45: 0 | F45: 0
B46: Total | C46: =SUM(C40:C45) -> 0 | D46: =SUM(D40:D45) -> 0 | E46: =C46-D46 -> 0
B49: Definitions
B50: Demand management incentive scheme | C50: The AER’s Demand Management Incentive Scheme – CitiPower, Powercor, Jemena, SP AusNet and United Energy 2011–15: Part A – Demand Management Innovation Allowance, dated April 2009.
B51: The terms used in this template have the same meaning as in the Demand management incentive scheme

Sheet 18. Self Insurance
B1: =Cover!E22 -> Powercor Australia Ltd
B2: Self Insurance
B3: =Cover!E26 -> 2015
D4: Colour coding:
B5: Dollar unit used in this sheet | D5: Yellow = Input cells
B6: nominal $'000 | D6: Grey = No inputs required
B8: Information on actual, audited costs incurred by DNSPs on self insurance events (collected annually) will assist the AER with determining an appropriate self insurance allowance for DNSPs at the next regulatory reset. The information is required to be reported annually so that DNSPs can clearly demonstrate (to the AER) that their business processes and reporting systems properly account for self insurance events. This includes correctly accounting for the risks insured and costs to the DNSP.
B11: Table 1 Self Insurance Events with an Incurred Cost of Greater than $100 000 per Event.
B13: Type of Self Insurance Event | C13: Date of Event | D13: Description of Event | H13: Cost of the Event that Relates to Regulated Assets | J13: Other Costs (eg Costs Related to Non-regulated Assets) | L13: Total Cost of Self Insurance Event | N13: Costs Covered by External Funding | P13: Costs to be passed through | R13: Is information held that verifies the event?
B14: [eg. Liability, fire etc]
D22: Total actual cost of self insurance | H22: =SUM(H14:I21) -> 0 | J22: =SUM(J14:K21) -> 0 | L22: =SUM(L14:M21) -> 0 | N22: =SUM(N14:O21) -> 0 | P22: =SUM(P14:Q21) -> 0
B24: Table 2 Self insurance events with an incurred cost of less than $100 000 per event
B26: Number of events | C26: Costs of the events that relate to regulated assets | F26: Costs covered by external funding | I26: Costs that do not relate to regulated assets
B30: Table 3 Total self insurance that relate to regulated assets
B32: Total self insurance | D32: =H22+C27+C28 -> 0
B34: Note: This section is not intended to reconcile with EBSS data
B36: Definition
B37: Self Insurance event | C37: Meaning is the same as used in the 2011-15 Distribution Determination

Sheet 19. CHAP
B1: =Cover!E22 -> Powercor Australia Ltd | D1: Colour coding:
B2: Change of Accounting Policy | D2: Yellow = Input cells
B3: =Cover!E26 -> 2015 | D3: Grey = No inputs required
B5: Dollar unit used in this sheet
B6: nominal $'000
B8: This information is required by the AER to assess forecast expenditure proposed by DNSPs at their next reset. It captures changes in accounting policies made from year to year and the effect on the Financial Statements. This information will increase transparency and accountability to stakeholders.
B10: Note: a) Only list those items where the adjustment amount for the item meets the materiality threshold applied in the statutory financial accounts b) Tables 1 and 2 capture both the changes in the application of accounting standards and changes in the accounting standards themselves.
B12: Table 1 The aggregate effect of the change in accounting policy on the balance sheet and income statements
B14: Statutory Account code or reference to account code | C14: Powercor Category | D14: Previously Stated | E14: Adjustment | F14: Restated
C15: Balance Sheet
C16: <Item> | E16: =F16-D16 -> 0
C17: <Item> | E17: =F17-D17 -> 0
C18: <Item> | E18: =F18-D18 -> 0
C19: Income Statement
C20: <Item> | E20: 0
C21: <Item> | E21: 0
C22: <Item> | E22: 0
B24: Table 2: Description and reason for the change in accounting policy
B26: Statutory account code or reference to account code | C26: Description of change | D26: Reason for the change of accounting policy | G26: Items impacted
G27: <Item>
G28: <Item>
G29: <Item>
G30: <Item>

Sheet 20. Related Party
B1: =Cover!E22 -> Powercor Australia Ltd | D1: Colour coding:
B2: Related Party Transactions | D2: Yellow = Input cells
B3: =Cover!E26 -> 2015 | D3: Grey = No inputs required
B4: Dollar unit used in this sheet
B5: nominal $'000
B7: The AER will use information on related party transactions to understand of the financial impacts of the such transactions on the costs of the DNSP and will be used to inform the AER’s assessment of expenditure and its underlying drivers at the next reset.
B10: Table 1. Payments made by Powercor to Related Party under CONTROL or INFLUENCING Ownership
B11: Note: for transactions with a Related Party that is related to the provision of standard control services, alternative control services, Advanced Metering Infrastructure or negotiated distribution services and greater than $500,000
B13: Name of related party | C13: Services Provided | D13: Contract Charge | F13: Actual Cost | H13: Margin | J13: Description of how this transaction amount was determined | K13: Description of how this amount is reflected in the Regulatory Accounting Statements, including the asset class or cost category | L13: Where the related party costs have been allocated to different asset classes or cost categories, the description of the basis of allocation and the quantum of the allocator
D14: Capex | E14: Opex | F14: Capex | G14: Opex | H14: Capex | I14: Opex
B15: CHED Services | C15: Corporate Services - management, administration, back office and other business functions | J15: The services fee amount is based on an arms length negotiated price. The actual incurred cost of the individual services was determined by the related party. | K15: The contract price / actual cost is included in operating expenses, maintenance and capital expenditure, allocated between Standard Control, AMI and ACS. | L15: Refer to the Services Fee Allocation workpaper for details of the amount and the method of its allocation.
B16: Powercor Network Services | C16: Network Services - construction, maintenance, faults, emergency and related services | J16: The fee amount is based on an arms length negotiated price and the actual cost incurred was determined by the related party. | K16: The contract price /actual cost is directly attributable to Standard Control and AMI capital, maintenance and operating expenditure. | L16: No costs are allocated
B17: CHED Services | C17: Infill Insurance Premium | J17: The fee amount is in accordance with external assessment and advice for these services. The actual cost is based on actual administrative costs and the acturial cost of providing the infill insurance services. | K17: The contract price / actual cost is included in Operating Expenses as a directly attributable cost to Standard Control | L17: No costs are allocated
B18: CHED Services | C18: AMI Project Services | J18: The fee amount is based on an arms length negotiated price. The actual incurred cost was determined by the related party. | K18: The contract price actual cost has been directly attributed to AMI capital and operating expenses | L18: No costs are allocated
B19: CHED Services | C19: Metering and Servicing Activities | J19: The fee amount is based on an arms length negotiated price. The actual incurred cost was determined by the related party. | K19: The contract price / actual cost is included in operating, maintenance and capital expenditure as a directly attributable cost to AMI and ACS. | L19: No costs are allocated
B20: CHED Services | C20: IT AMI Support Services | J20: The fee amount is based on an arms length negotiated price. The actual incurred cost was determined by the related party | K20: The contract price / actual cost is included in operating expenses as an ACS. | L20: No costs are allocated
B21: CHED Services | C21: IT System Enhancements | J21: The fee amount is based on an arms length negotiated price. The actual incurred cost was determined by the related party | K21: The contract price / actual cost is included in capital expenses and is allocated directly to Standard Control | L21: No costs are allocated
B23: Table 2. Composition of margins in relation to table 1.
B25: Name of related party | C25: Services Provided | D25: Margins | H25: Total
D26: Overhead | F26: Residual
B27: CHED Services | C27: Corporate Services - management, administration, back office and other business functions
B28: Powercor Network Services | C28: Network Services - construction, maintenance, faults, emergency and related services
B29: CHED Services | C29: Infill Insurance Premium
B30: CHED Services | C30: AMI Project Services
B31: CHED Services | C31: Metering and Servicing Activities
B32: CHED Services | C32: IT AMI Support Services
B33: CHED Services | C33: IT System Enhancements
B35: Note: Provide, if separately identifiable the proportion of margins related to overhead costs and the proportion if any, that is related to assets used but not in the Distribution Businesses regulatory asset base.
B37: Definition
B38: Related Party Transaction | C38: Any transaction between the related party and the regulated distribution business.
B39: Related Party Transaction - Actual Cost | C39: The actual cost of the related party transaction
B40: Related Party Transaction - Contract Charge | C40: The charge specified in the contract for the related party transaction
B41: Related party | C41: In relation to the provision of distribution services by Powercor, any other Entity that, at any time during each Relevant Regulatory Year: (a) has control or significant influence over Powercor; (b) is subject to control or significant influence by Powercor; (c) is controlled by the same Entity that controls or which has common control over, Powercor; (d) is controlled by the same Entity that significantly influences Powercor; (e) is significantly influenced by the same Entity that controls Powercor; or (f) has been novated or assigned a contract or arrangement by Powercor with any of the Entities identified in subparagraphs (a)–(e), and includes: (i) CKI/HEI Electricity Distribution Holdings (Australia) Pty Ltd (ACN 101 392161); (ii) CHED Services Pty Ltd (ACN 112 304 622); (iii) Powercor Network Services Pty Ltd (ACN 123 230 240); (iv) CKI/HEI Electricity Distribution Pty Ltd (ACN 093 830 632) and each of its subsidiaries; (v) CKI/HEI Electricity Distribution Two Pty Ltd (ACN 101 064 304) and each of its subsidiaries including the trustees of The CitiPower Trust; and but excludes any other where the relationship arises solely from normal dealings with the following Entities: (a) financial institutions; (b) authorised trustee corporations; (c) fund managers; (d) trade unions; (e) statutory authorities; (f) government departments; or (g) local governments

Sheet 21. AMI
B1: =Cover!E22 -> Powercor Australia Ltd | D1: Colour coding:
B2: Advanced Metering Infrastructure | D2: Yellow = Input cells
B3: =Cover!E26 -> 2015 | D3: Grey = No inputs required
B4: Dollar unit used in this sheet
B5: nominal $'000
B7: AMI information is used by the AER to monitor AMI throughout the regulatory control period.
B10: Table 1 Standard control asset base - metering
C12: Opening value | D12: Actual capital expenditure – as incurred | E12: Actual asset disposals – as incurred | F12: Actual capital contributions – as incurred | G12: Actual net capital expenditure – as incurred
B13: Accumulation meters | C13: 0 | D13: 18.44805 | E13: 0 | F13: 0 | G13: =D13-E13-F13 -> 18.44805
B14: Manually read interval meters | C14: 0 | D14: 14.37272 | E14: 0 | F14: 0 | G14: 14.37272
B15: Remotely read interval meters and transformers | C15: 0 | D15: 6883.66766 | E15: 0 | F15: 0 | G15: 6883.66766
B16: IT | C16: 0 | D16: 4574.29937 | E16: 0 | F16: 0 | G16: 4574.29937
B17: Communications | C17: 0 | D17: 2237.553515 | E17: 0 | F17: 0 | G17: 2237.553515
B18: Other | C18: 0 | D18: 0 | E18: 0 | F18: 0 | G18: 0
B19: Total | C19: =SUM(C13:C18) -> 0 | D19: =SUM(D13:D18) -> 13728.34131 | E19: =SUM(E13:E18) -> 0 | F19: =SUM(F13:F18) -> 0 | G19: 13728.34131
B21: Table 2a Number of meters installed
C22: =$B$3 -> 2015 | D22: =$B$3-1 -> 2014
B23: Accumulation meters
B24: Single phase non off peak | C24: 0 | D24: 0
B25: Single phase off peak | C25: 0 | D25: 0
B26: Multi phase direct connect | C26: 0 | D26: 0
B27: Multi phase current transformers | C27: 0 | D27: 0
B28: Total accumulation meters installed | C28: =SUM(C24:C27) -> 0 | D28: =SUM(D24:D27) -> 0
B29: MRIM meters
B30: Single phase non off peak | C30: 0 | D30: 0
B31: Single phase off peak | C31: 0 | D31: 0
B32: Multi phase direct connect | C32: 0 | D32: 0
B33: Multi phase current transformers | C33: 0 | D33: 0
B34: Total MRIM meters installed | C34: =SUM(C30:C33) -> 0 | D34: =SUM(D30:D33) -> 0
B35: AMI meters
B36: Single phase single element | C36: 10387 | D36: 14498
B37: Single phase single element with contactor | C37: 646 | D37: 2325
B38: Single phase two element with contactor | C38: 4688 | D38: 6173
B39: Three phase | C39: 3228 | D39: 7414
B40: Three phase direct connected meter | C40: 429 | D40: 1966
B41: Three phase direct connected meter with contactor | C41: 0 | D41: 0
B42: Three phase Current transformer connected meter | C42: 477 | D42: 548
B43: Total AMI meters installed | C43: =SUM(C36:C42) -> 19855 | D43: =SUM(D36:D42) -> 32924
B45: Total meters installed | C45: =SUM(C28,C34,C43) -> 19855 | D45: =SUM(D28,D34,D43) -> 32924
B47: Table 2b Cumulative number of meters
C48: =$B$3 -> 2015 | D48: =$B$3-1 -> 2014
B49: Accumulation meters
B50: Single phase non off peak | C50: 9250 | D50: 9917
B51: Single phase off peak | C51: 11320 | D51: 12079
B52: Multi phase direct connect | C52: 6461 | D52: 6823
B53: Multi phase current transformers | C53: 214 | D53: 108
B54: Total accumulation meters | C54: =SUM(C50:C53) -> 27245 | D54: =SUM(D50:D53) -> 28927
B55: MRIM meters
B56: Single phase non off peak | C56: 4 | D56: 72
B57: Single phase off peak | C57: 175 | D57: 567
B58: Multi phase direct connect | C58: 155 | D58: 447
B59: Multi phase current transformers | C59: 19 | D59: 24
B60: Total MRIM meters | C60: =SUM(C56:C59) -> 353 | D60: =SUM(D56:D59) -> 1110
B61: AMI meters
B62: Single phase single element | C62: 435129 | D62: 427222
B63: Single phase single element with contactor | C63: 54587 | D63: 54376
B64: Single phase two element with contactor | C64: 198985 | D64: 195809
B65: Three phase | C65: 112468 | D65: 110279
B66: Three phase direct connected meter | C66: 19719 | D66: 19482
B67: Three phase direct connected meter with contactor | C67: 0 | D67: 0
B68: Three phase Current transformer connected meter | C68: 5098 | D68: 4872
B69: Total AMI meters | C69: =SUM(C62:C68) -> 825986 | D69: =SUM(D62:D68) -> 812040
B71: Total meters | C71: =SUM(C54,C60,C69) -> 853584 | D71: =SUM(D54,D60,D69) -> 842077
B73: Table 3 AMI meter reconciliation
C74: =$B$3 -> 2015 | D74: =$B$3-1 -> 2014
B75: Opening number of meters | C75: 812040 | D75: 786213
B76: Installs | C76: =C43 -> 19855 | D76: =D43 -> 32924
B77: Abolishments | C77: 2412 | D77: 2188
B78: AMI meter for AMI meter replacements | C78: 3497 | D78: 4909
B79: Closing number of meters | C79: =(C75+C76)-(C77+C78) -> 825986 | D79: =(D75+D76)-(D77+D78) -> 812040
B82: Table 4 Number of meter read quantity - end of year
C83: =$B$3 -> 2015
B84: Number of meters read monthly - accumulation | C84: 10125
B85: Number of meters read quarterly - accumulation | C85: 17817
B86: Number of meters read monthly - interval | C86: 139
B87: Number of meters read quarterly - interval | C87: 2035
B88: Number of meters read remotely | C88: 823468
B89: Total | C89: =SUM(C84:C88) -> 853584
B92: Definitions
B93: AMI services and assets are as defined in Powercor's approved CAM.

Sheet 22. Safety and Bushfire
B1: Powercor
B2: Safety and Bushfire Related Expenditure | C2: Colour coding:
B3: =Cover!E26 -> 2015 | C3: Yellow = Input cells
C4: Grey = No inputs required
B7: Bushfire and safety related expenditure information is used by the AER to monitor the expenditures throughout the regulatory control period.
B9: Instructions
B10: Please populate table 1 where the asset categories definitions differ from the "Asset Installation"' worksheet.
B11: The definitions in table 1 are not limited or restricted. Please include additional definitions where necessary.
B12: Median unit costs should be used. Where unit costs are not recorded at the asset category level - provide the best estimates of the unit cost using the cost allocation method outlined in table 1. As a transitional measure, the unit cost may be based on a statistically significant annual sample of actual work orders at a 5 per cent or better confidence interval.
B13: Provide basis of allocation where applicable
B14: AER expected expenditure ($2010) means ESL and non ESL, ESMS related expected expenditure as approved under the AER Determination for 2011-15
B15: AER expected expenditure ($2010) means bushfire related expenditure as approved under the pass through application
B16: AER expected volumes means the bushfire related expenditure volumes approved under pass through applications.
B17: AER expected volumes means the ESL and non ESL and ESMS related volumes as approved under the AER Determination for 2011-15
B18: Replacement information to be reported concern the asset that has replaced an existing asset for bushfire and safety purposes.
B19: CPI applied to convert expenditure in real $2010 to nominal based on lagged September CPI index | C19: 1.134436519
B21: Table 1 Asset groups: Definitions, cost-allocation basis and methodology
B23: Asset group | C23: Category i.e., bushfire, ESMS, ESL or non-ESL | D23: Definitions | H23: Basis for allocation of cost to asset group or category
B24: Pole replacements (FC148) - subtransmission | C24: ESL | D24: 0 | E24: 0 | F24: 0 | G24: 0 | H24: Actual costs are captured at a composite project level including these and other physicals. Costs are allocated to function codes for settlement based on allocation rules. Allocation to voltages for poles is based on actual physicals completed.
B25: Pole replacements (FC148) - HV | C25: ESL | D25: 0 | E25: 0 | F25: 0 | G25: 0
B26: Pole replacements (FC148) - LV | C26: ESL | D26: 0 | E26: 0 | F26: 0 | G26: 0
B27: Pole replacements (FC148) - pole and stay | C27: ESL | D27: 0 | E27: 0 | F27: 0 | G27: 0
B28: Pole replacements (FC149) - staked | C28: ESL | D28: 0 | E28: 0 | F28: 0 | G28: 0
B29: Crossarm replacements (FC155) | C29: ESL | D29: 0 | E29: 0 | F29: 0 | G29: 0
B30: HV overhead conductor replacements | C30: ESL | D30: 0 | E30: 0 | F30: 0 | G30: 0 | H30: Actual costs are captured at a function code level. Allocation to voltages is based on value of asset additions to various voltages
B31: LV overhead conductor replacements | C31: ESL | D31: 0 | E31: 0 | F31: 0 | G31: 0
B32: Replacement of SWER with ABC/underground cabling | C32: 0 | D32: 0 | E32: 0 | F32: 0 | G32: 0
B33: Replacement of 22kV distribution feeders with ABC/underground cabling | C33: 0 | D33: 0 | E33: 0 | F33: 0 | G33: 0
B34: <DNSP to input as appropriate>
B37: Table 2 Bushfire-related expenditure - approved under pass-through applications (volumes)
B39: Asset group | C39: Units | D39: As approved under pass through applications | E39: Actual Units | F39: Difference | G39: Reasons for difference
B40: Pole replacements (FC148) - subtransmission | C40: no. of poles | D40: 0 | E40: 0 | F40: =E40-D40 -> 0 | G40: 0
B41: Pole replacements (FC148) - HV | C41: no. of poles | D41: 0 | E41: 0 | F41: 0 | G41: 0
B42: Pole replacements (FC148) - LV | C42: no. of poles | D42: 0 | E42: 0 | F42: 0 | G42: 0
B43: Pole replacements (FC148) - pole and stay | C43: no. of poles | D43: 0 | E43: 0 | F43: 0 | G43: 0
B44: Pole replacements (FC149) - staked | C44: no. of poles | D44: 0 | E44: 0 | F44: 0 | G44: 0
B45: Crossarm replacements (FC155) | C45: no. of crossarms | D45: 0 | E45: 0 | F45: 0 | G45: 0
B46: HV overhead conductor replacements | C46: no. of km | D46: 0 | E46: 0 | F46: 0 | G46: 0
B47: LV overhead conductor replacements | C47: no. of km | D47: 0 | E47: 0 | F47: 0 | G47: 0
B48: Replacement of SWER with ABC/underground cabling | C48: no. of km | D48: 0 | E48: 0 | F48: 0 | G48: 0
B49: Replacement of 22kV distribution feeders with ABC/underground cabling | C49: no. of feeders | D49: 0 | E49: 0 | F49: 0 | G49: 0
B50: VBRC Armour Rods and Dampers and Armour Rods (FC 167) | C50: Non compliant poles | D50: 39947.39088 | E50: 49463 | F50: 9515.609123 | G50: Resource ramp up program has different profile to original plan.
B51: VBRC SWER ACR (FC 167) Not Approved by pass through | C51: SWER ACRs | D51: 0 | E51: 0 | F51: 0 | G51: No works planned for 2015, materials purchased in 2015 for 2016 works
B52: VBRC Spacers - Lidar Conductor Clearance Survey | C52: Kms | D52: 0 | E52: 0 | F52: 0 | G52: No survey completed in 2015, however 213 spacers were installed.
B53: VBRC Asset Inspection | C53: no. of poles | D53: 53556.8 | E53: 59313 | F53: =E53-D53 -> 5756.2 | G53: Higher volumes in 2015 than forecast due to bring forward of inspections from 2016 into 2015
B54: <DNSP to input as appropriate> | C54: <DNSP to input as appropriate> | F54: 0
B57: Table 3 Safety related other - ESL, non ESL and ESMS (volumes) - approved under AER determination for 2011-15
B59: Asset group | C59: Units | D59: AER expected volumes | E59: Actual Units | F59: Difference | G59: Reasons for difference
B60: Pole replacements (FC148) - subtransmission | C60: no. of poles | D60: 70.7 | E60: 51 | F60: =E60-D60 -> -19.7 | G60: Actuals driven by the Asset Inspection Program - EPDR values are estimates only
B61: Pole replacements (FC148) - HV | C61: no. of poles | D61: 696.9 | E61: 998 | F61: =E61-D61 -> 301.1 | G61: Actuals driven by the Asset Inspection Program - EPDR values are estimates only
B62: Pole replacements (FC148) - LV | C62: no. of poles | D62: 222.2 | E62: 324 | F62: 101.8 | G62: Actuals driven by the Asset Inspection Program - EPDR values are estimates only
B63: Pole replacements (FC148) - pole and stay | C63: no. of poles | D63: 20.2 | E63: 15 | F63: -5.2 | G63: Actuals driven by the Asset Inspection Program - EPDR values are estimates only
B64: Pole replacements (FC149) - staked | C64: no. of poles | D64: 1002 | E64: 854 | F64: -148 | G64: Actuals driven by the Asset Inspection Program - EPDR values are estimates only
B65: Crossarm replacements (FC155) | C65: no. of crossarms | D65: 3200 | E65: 5256 | F65: 2056 | G65: Actuals driven by the Asset Inspection Program - EPDR values are estimates only. Significant reduction in 2015 compared to previous years due to changes to maintenance policy in relation to twisted and burnt xarms
B66: HV overhead conductor replacements | C66: no. of km | D66: 480 | E66: 100.9 | F66: -379.1 | G66: Kilometres of line replaced is different to plan due to diversion of funds to other priority VBRC programs of work.
B67: LV overhead conductor replacements | C67: no. of km | D67: 4 | E67: 5.1 | F67: 1.1 | G67: Projects are driven by conductor condition - EPDR volumes are estimates only
B68: Replacement of SWER with ABC/underground cabling | C68: no. of km | D68: 0 | E68: 0 | F68: 0 | G68: Not Applicable
B69: Replacement of 22kV distribution feeders with ABC/underground cabling | C69: no. of feeders | D69: 0 | E69: 0 | F69: 0 | G69: Not Applicable
B70: <DNSP to input as appropriate> | C70: <DNSP to input as appropriate> | F70: 0
B73: Table 4 Bushfire-related expenditure pass-through applications ($ nominal - excluding margins and overheads)
B75: Asset group | C75: As approved under pass through applications | D75: Actual | E75: Difference | F75: Reasons for difference
B76: Pole replacements (FC148) - subtransmission | C76: 0 | D76: 0 | E76: =C76-D76 -> 0 | F76: 0
B77: Pole replacements (FC148) - HV | C77: 0 | D77: 0 | E77: =C77-D77 -> 0 | F77: 0
B78: Pole replacements (FC148) - LV | C78: 0 | D78: 0 | E78: 0 | F78: 0
B79: Pole replacements (FC148) - pole and stay | C79: 0 | D79: 0 | E79: 0 | F79: 0
B80: Pole replacements (FC149) - staked | C80: 0 | D80: 0 | E80: 0 | F80: 0
B81: Crossarm replacements (FC155) | C81: 0 | D81: 0 | E81: 0 | F81: 0
B82: HV overhead conductor replacements | C82: 0 | D82: 0 | E82: 0 | F82: 0
B83: LV overhead conductor replacements | C83: 0 | D83: 0 | E83: 0 | F83: 0
B84: Replacement of SWER with ABC/underground cabling | C84: 0 | D84: 0 | E84: 0 | F84: 0
B85: Replacement of 22kV distribution feeders with ABC/underground cabling | C85: 0 | D85: 0 | E85: 0 | F85: 0
B86: Armour Rods & Dampers Retrofit (pass through) | C86: 16564.88419 | D86: 16334.83544 | E86: 230.0487529 | F86: The programs required different spend profiles to those in the pass through submissions due to the practical implementation requirements of developing the programs tendering and resourcing
B87: VBRC SWER ACR (FC 167) Not Approved by pass through | C87: 0 | D87: 1155.62033 | E87: -1155.62033 | F87: Not pass through
B88: VBRC Spacers - Lidar Conductor Clearance Survey | C88: 3.263995821 | D88: 249.99514 | E88: -246.7311442 | F88: The programs required different spend profiles to those in the pass through submissions due to the practical implementation requirements of developing the programs tendering and resourcing
B89: VBRC Asset Inspection | C89: 2691.186407 | D89: 2851.876195 | E89: -160.6897886 | F89: 0
B90: <DNSP to input as appropriate> | E90: 0
B92: Note - Reported expenditure is to be entered EXCLUDING any overheads, profit margins or management fees paid directly or indirectly to related party contractors for the report period.
B94: Table 5 Safety related other - ESL, non ESL and ESMS ($ nominal - excluding margins and overheads)
B96: Asset group | C96: Category i.e., ESMS, ESL or non-ESL | D96: AER expected expenditure ($'000 2010) | E96: Actual | F96: Difference | G96: Reasons for difference
B97: Pole replacements (FC148) - subtransmission | C97: ESL | D97: 609.0406597 | E97: 493.6286749 | F97: =D97*$C$19-E97 -> 197.2892914 | G97: As per reasons provided in Tables 3 and 9
B98: Pole replacements (FC148) - HV | C98: ESL | D98: 6003.400789 | E98: 9659.635637 | F98: =D98*$C$19-E98 -> -2849.158542 | G98: As per reasons provided in Tables 3 and 9
B99: Pole replacements (FC148) - LV | C99: ESL | D99: 1914.127788 | E99: 3135.993934 | F99: -964.5374691 | G99: As per reasons provided in Tables 3 and 9
B100: Pole replacements (FC148) - pole and stay | C100: ESL | D100: 174.0116171 | E100: 145.1849044 | F100: 52.22022884 | G100: As per reasons provided in Tables 3 and 9
B101: Pole replacements (FC149) - staked | C101: ESL | D101: 1174.985546 | E101: 663.3849074 | F101: 669.5616056 | G101: As per reasons provided in Tables 3 and 9
B102: Crossarm replacements (FC155) | C102: ESL | D102: 6986.144866 | E102: 10424.80459 | F102: -2499.466719 | G102: As per reasons provided in Tables 3 and 9
B103: HV overhead conductor replacements | C103: ESL | D103: 23174.75002 | E103: 5562.526381 | F103: 20727.75637 | G103: As per reasons provided in Tables 3 and 9
B104: LV overhead conductor replacements | C104: ESL | D104: 193.1229169 | E104: 802.8554195 | F104: -583.7697299 | G104: As per reasons provided in Tables 3 and 9
B105: Replacement of SWER with ABC/underground cabling | C105: 0 | D105: 0 | E105: 0 | F105: 0 | G105: Not Applicable
B106: Replacement of 22kV distribution feeders with ABC/underground cabling | C106: 0 | D106: 0 | E106: 0 | F106: 0 | G106: Not Applicable
B107: <DNSP to input as appropriate> | C107: <DNSP to input as appropriate> | F107: 0
B109: Note - Reported expenditure is to be entered EXCLUDING any overheads, profit margins or management fees paid directly or indirectly to related party contractors for the report period.
B111: Table 6 Bushfire-related expenditure pass-through applications ($ nominal - margins and overheads)
B113: Asset group | C113: As approved under pass through applications | D113: Actual | E113: Difference | F113: Reasons for difference
B114: Pole replacements (FC148) - subtransmission | C114: 0 | D114: 0 | E114: =C114-D114 -> 0 | F114: 0
B115: Pole replacements (FC148) - HV | C115: 0 | D115: 0 | E115: =C115-D115 -> 0 | F115: 0
B116: Pole replacements (FC148) - LV | C116: 0 | D116: 0 | E116: 0 | F116: 0
B117: Pole replacements (FC148) - pole and stay | C117: 0 | D117: 0 | E117: 0 | F117: 0
B118: Pole replacements (FC149) - staked | C118: 0 | D118: 0 | E118: 0 | F118: 0
B119: Crossarm replacements (FC155) | C119: 0 | D119: 0 | E119: 0 | F119: 0
B120: HV overhead conductor replacements | C120: 0 | D120: 0 | E120: 0 | F120: 0
B121: LV overhead conductor replacements | C121: 0 | D121: 0 | E121: 0 | F121: 0
B122: Replacement of SWER with ABC/underground cabling | C122: 0 | D122: 0 | E122: 0 | F122: 0
B123: Replacement of 22kV distribution feeders with ABC/underground cabling | C123: 0 | D123: 0 | E123: 0 | F123: 0
B124: Armour Rods & Dampers Retrofit (pass through) | C124: 0 | D124: 6309.28216 | E124: -6309.28216 | F124: The approved pass through amount does not allow for margins and overheads.
B125: VBRC SWER ACR (FC 167) Not Approved by pass through | C125: 0 | D125: 328.14849 | E125: -328.14849 | F125: 0
B126: VBRC Spacers - Lidar Conductor Clearance Survey | C126: 0 | D126: 84.41575 | E126: -84.41575 | F126: The approved pass through amount does not allow for margins and overheads.
B127: VBRC Asset Inspection | C127: 0 | D127: 0 | E127: 0 | F127: 0
B128: <DNSP to input as appropriate> | E128: 0
B130: Note -Reported expenditure to be entered is the sum of overheads, profit margins or management fees paid directly or indirectly to related party contractors for the report period.
B132: Table 7 Safety related other - ESL, non ESL and ESMS ($ nominal - margins and overheads)
B134: Asset group | C134: Category i.e., ESMS, ESL or non-ESL | D134: AER expected expenditure ($ 2010) | E134: Actual | F134: Difference | G134: Reasons for difference
B135: Pole replacements (FC148) - subtransmission | C135: ESL | D135: 96.20513131 | E135: 150.1703594 | F135: =D135*$C$19-E135 -> -41.03174513 | G135: As per reasons provided in Tables 3 and 9
B136: Pole replacements (FC148) - HV | C136: ESL | D136: 948.3077229 | E136: 2938.627818 | F136: =D136*$C$19-E136 -> -1862.832906 | G136: As per reasons provided in Tables 3 and 9
B137: Pole replacements (FC148) - LV | C137: ESL | D137: 302.3589841 | E137: 954.02346 | F137: -611.0163864 | G137: As per reasons provided in Tables 3 and 9
B138: Pole replacements (FC148) - pole and stay | C138: ESL | D138: 27.48718037 | E138: 44.16775278 | F138: -12.98529155 | G138: As per reasons provided in Tables 3 and 9
B139: Pole replacements (FC149) - staked | C139: ESL | D139: 203.7075023 | E139: 202.1895376 | F139: 28.90369231 | G139: As per reasons provided in Tables 3 and 9
B140: Crossarm replacements (FC155) | C140: ESL | D140: 1054.039152 | E140: 3169.129879 | F140: -1973.389373 | G140: As per reasons provided in Tables 3 and 9
B141: HV overhead conductor replacements | C141: ESL | D141: 3958.992113 | E141: 1647.340824 | F141: 2843.884409 | G141: As per reasons provided in Tables 3 and 9
B142: LV overhead conductor replacements | C142: ESL | D142: 32.99160094 | E142: 237.7654357 | F142: -200.3385588 | G142: As per reasons provided in Tables 3 and 9
B143: Replacement of SWER with ABC/underground cabling | C143: 0 | D143: 0 | E143: 0 | F143: 0 | G143: Not Applicable
B144: Replacement of 22kV distribution feeders with ABC/underground cabling | C144: 0 | D144: 0 | E144: 0 | F144: 0 | G144: Not Applicable
B145: <DNSP to input as appropriate> | C145: <DNSP to input as appropriate> | F145: 0
B147: Note -Reported expenditure to be entered is the sum of overheads, profit margins or management fees paid directly or indirectly to related party contractors for the report period.
B149: Table 8 Bushfire-related expenditure including approved pass-through applications ($ unit cost)
B151: Asset group | C151: As approved under pass through applications | D151: Actual | E151: Difference | F151: Reasons for difference
B152: Pole replacements (FC148) - subtransmission | C152: 0 | D152: 0 | E152: =C152-D152 -> 0 | F152: 0
B153: Pole replacements (FC148) - HV | C153: 0 | D153: 0 | E153: =C153-D153 -> 0 | F153: 0
B154: Pole replacements (FC148) - LV | C154: 0 | D154: 0 | E154: 0 | F154: 0
B155: Pole replacements (FC148) - pole and stay | C155: 0 | D155: 0 | E155: 0 | F155: 0
B156: Pole replacements (FC149) - staked | C156: 0 | D156: 0 | E156: 0 | F156: 0
B157: Crossarm replacements (FC155) | C157: 0 | D157: 0 | E157: 0 | F157: 0
B158: HV overhead conductor replacements | C158: 0 | D158: 0 | E158: 0 | F158: 0
B159: LV overhead conductor replacements | C159: 0 | D159: 0 | E159: 0 | F159: 0
B160: Replacement of SWER with ABC/underground cabling | C160: 0 | D160: 0 | E160: 0 | F160: 0
B161: Replacement of 22kV distribution feeders with ABC/underground cabling | C161: 0 | D161: 0 | E161: 0 | F161: 0
B162: Armour Rods & Dampers Retrofit (pass through) | C162: 0.4146674871 | D162: 0.4577991145 | E162: -0.04313162735 | F162: 0
B163: VBRC SWER ACR (FC 167) Not Approved by pass through | C163: 0 | D163: 0 | E163: 0 | F163: 0
B164: VBRC Spacers - Lidar Conductor Clearance Survey | C164: 0 | F164: 0
B165: VBRC Asset Inspection | C165: 0.05024920098 | D165: 0.04808180661 | E165: 0.002167394367 | F165: 0
B166: <DNSP to input as appropriate> | E166: 0
B168: Note - Where applicable, provide allocation assumptions and methods.
B169: Table 9 Safety related other - ESL, non ESL and ESMS ($ unit cost)
B171: Asset group | C171: Category i.e., ESMS, ESL or non-ESL | D171: AER expected expenditure ($'000 2010) | E171: Actual | F171: Difference | G171: Reasons for difference
B172: Pole replacements (FC148) - subtransmission | C172: ESL | D172: 8.614436488 | E172: 9.678993625 | F172: =D172*$C$19-E172 -> 0.09353772236 | G172: Average actual cost is derived from settlment rules applied to actual costs of composite maintenance packages including items in addition to poles. Average cost varies with mix of pole types, locations and acess conditions.
B173: Pole replacements (FC148) - HV | C173: ESL | D173: 8.614436488 | E173: 9.678993625 | F173: 0.09353772236 | G173: 0
B174: Pole replacements (FC148) - LV | C174: ESL | D174: 8.614436488 | E174: 9.678993625 | F174: 0.09353772236 | G174: 0
B175: Pole replacements (FC148) - pole and stay | C175: ESL | D175: 8.614436488 | E175: 9.678993625 | F175: 0.09353772236 | G175: 0
B176: Pole replacements (FC149) - staked | C176: ESL | D176: 1.172640265 | E176: 0.7767973155 | F176: 0.5534886256 | G176: No material variance
B177: Crossarm replacements (FC155) | C177: ESL | D177: 2.183170271 | E177: 1.983410309 | F177: 0.493257774 | G177: Average actual cost is derived from settlment rules applied to actual costs of composite maintenance packages including items in addition to cross arms Average cost varies with mix of cross arm types, locations and acess conditions.
B178: HV overhead conductor replacements | C178: ESL | D178: 48.28072921 | E178: 55.12910189 | F178: -0.3576794825 | G178: Refer comments in table 3
B179: LV overhead conductor replacements | C179: ESL | D179: 48.28072921 | E179: 157.4226313 | F179: -102.6512089 | G179: Refer comments in table 3
B180: Replacement of SWER with ABC/underground cabling | C180: 0 | D180: 0 | E180: 0 | F180: 0 | G180: Not Applicable
B181: Replacement of 22kV distribution feeders with ABC/underground cabling | C181: 0 | D181: 0 | E181: 0 | F181: 0 | G181: Not Applicable
B182: <DNSP to input as appropriate> | C182: <DNSP to input as appropriate> | F182: 0
B184: Definitions
B185: f-factor scheme | C185: The AER's Final determinations and explanatory statement, F-factor scheme determinations 2012-15 for Victorian electricity distribution network service providers, 22 December 2011
B186: All terms have the meaning used in the AER's f-factor scheme

Sheet 23. Shared asset
B1: =Cover!E22 -> Powercor Australia Ltd
B2: Shared assets
B3: =Cover!E26 -> 2015
D4: Colour coding:
B5: Dollar unit used in this sheet | D5: Yellow = Input cells
B6: nominal $'000 | D6: Grey = No inputs required
B8: This information is used to monitor outcomes compared to forecasts used to determine customer benefits under the AER's Shared Asset Guideline.
B10: Table 1: Total unregulated revenue earned with shared assets
B12: Total shared asset unregulated revenue | C12: 3107.56266
B14: Table 2: Shared asset unregulated services and apportioned revenue
B16: Note: All services for which an unregulated revenue is earned must be listed in column B. Apportioned revenue and Apportionment methodology are only required where a "Yes" response is returned in column C.
B18: Name of shared asset unregulated service | C18: Were the revenues for this service derived using apportionment? | D18: Apportioned revenue | E18: Apportionment methodology
B19: Property Rentals | C19: No
B20: Joint use of Poles | C20: No
B21: Optical Fibre Lease | C21: No
B28: Definitions
B29: Shared assets | C29: Assets used to provide both standard control services and unregulated services.
B30: Shared asset unregulated services | C30: Unregulated services provided, in part or in whole, by use of shared assets.
B31: Shared asset unregulated revenue | C31: Revenue earned by charging for unregulated services provided with shared assets. In some circumstances this may reflect revenue apportionment in line with the AER’s Shared Asset Guideline.
B32: Apportionment | C32: The allocation of unregulated revenues reflecting the proportionate use of the shared asset, in line with the AER's Shared Asset Guideline.

Sheet 24. Unmetered supply
B1: =Cover!E22 -> Powercor Australia Ltd
B2: Unmetered Supply Tariff Quantity Data Template (Actual t-2)
B3: =Cover!E26 -> 2015
B5: Templates 24 to 29 collect data required for annual pricing proposals. T-2 requires actual information for the reporting year.
D9: Qt-2
D10: NMIs | E10: Meters | F10: Lights
B11: Proposed tariff | D11: ActVolComp1 | E11: ActVolComp2 | F11: ActVolComp3
B12: metering data services - unmetered supplies | F12: 185122
B15: Definitions
B16: All information must be reported consistent the terms used in the DNSPs pricing proposal

Sheet 25. Actual t-2 Distr Tariff
B1: =Cover!E22 -> Powercor Australia Ltd
B2: Tariff Quantity Data Template (Actual t-2) Distribution Tariff Revenue
B3: =Cover!E26 -> 2015
B4: Templates 24 to 29 collect data required for annual pricing proposals. T-2 requires actual information for the reporting year.
D5: Distribution Tariffs (Pt-2) | Z5: Actual Quantities (Qt-2) | AW5: Actual Revenue (P-2)*(Qt-2)
B6: Tariffs t-2 | D6: (t-2)Tar Fixed | E6: (t-2)Tar PkBlk1 | F6: (t-2)Tar PkBlk2 | G6: (t-2)Tar PkBlk3 | H6: (t-2)Tar PkBlk4 | I6: (t-2)Tar OPkBlk1 | J6: (t-2)Tar OPkBlk2 | K6: (t-2)Tar OPkBlk3 | L6: (t-2)Tar OPkBlk4 | M6: (t-2)Tar DemBlk1 | N6: (t-2)Tar DemBlk2 | O6: (t-2)Tar DemBlk3 | P6: (t-2)Tar DemBlk4 | Q6: (t-2)Tar SumBlk1 | R6: (t-2)Tar SumBlk2 | S6: (t-2)Tar SumBlk3 | T6: (t-2)Tar SumBlk4 | U6: (t-2)Tar WtrBlk1 | V6: (t-2)Tar WtrBlk2 | W6: (t-2)Tar WtrBlk3 | X6: (t-2)Tar WtrBlk4 | Z6: ActVol Fixed | AA6: ActVol PkBlk1 | AB6: ActVol PkBlk2 | AC6: ActVol PkBlk3 | AD6: ActVol PkBlk4 | AE6: ActVol OPkBlk1 | AF6: ActVol OPkBlk2 | AG6: ActVol OPkBlk3 | AH6: ActVol OPkBlk4 | AI6: ActVol DemBlk1 | AJ6: ActVol DemBlk2 | AK6: ActVol DemBlk3 | AL6: ActVol DemBlk4 | AM6: (t-2)Tar SumBlk1 | AN6: (t-2)Tar SumBlk2 | AO6: (t-2)Tar SumBlk3 | AP6: (t-2)Tar SumBlk4 | AQ6: (t-2)Tar WtrBlk1 | AR6: (t-2)Tar WtrBlk2 | AS6: (t-2)Tar WtrBlk3 | AT6: (t-2)Tar WtrBlk4 | AW6: ActRev Fixed | AX6: ActRev PkBlk1 | AY6: ActRev PkBlk2 | AZ6: ActRev PkBlk3 | BA6: ActRev PkBlk4 | BB6: ActRev OPkBlk1 | BC6: ActRev OPkBlk2 | BD6: ActRev OPkBlk3 | BE6: ActRev OPkBlk4 | BF6: ActRev DemBlk1 | BG6: ActRev DemBlk2 | BH6: ActRev DemBlk3 | BI6: ActRev DemBlk4 | BJ6: (t-2)Tar SumBlk1 | BK6: (t-2)Tar SumBlk2 | BL6: (t-2)Tar SumBlk3 | BM6: (t-2)Tar SumBlk4 | BN6: (t-2)Tar WtrBlk1 | BO6: (t-2)Tar WtrBlk2 | BP6: (t-2)Tar WtrBlk3 | BQ6: (t-2)Tar WtrBlk4 | BR6: ActRev Total
AW7: =D7*Z7 -> 0 | AX7: =E7/100*AA7 -> 0 | AY7: =F7/100*AB7 -> 0 | AZ7: =G7/100*AC7 -> 0 | BA7: =H7/100*AD7 -> 0 | BB7: =I7/100*AE7 -> 0 | BC7: =J7/100*AF7 -> 0 | BD7: =K7/100*AG7 -> 0 | BE7: =L7/100*AH7 -> 0 | BF7: =M7*AI7 -> 0 | BG7: =N7*AJ7 -> 0 | BH7: =O7*AK7 -> 0 | BI7: =P7*AL7 -> 0 | BJ7: =Q7/100*AM7 -> 0 | BK7: =R7/100*AN7 -> 0 | BL7: =S7/100*AO7 -> 0 | BM7: =T7/100*AP7 -> 0 | BN7: =U7/100*AQ7 -> 0 | BO7: 0 | BP7: 0 | BQ7: 0 | BR7: =SUM(AW7:BQ7) -> 0
B8: Residential Single Rate | D8: 103.2208 | E8: 6.1817 | F8: 10.3991 | G8: 13.5941 | H8: 13.6941 | I8: 0 | J8: 0 | K8: 0 | L8: 0 | M8: 0 | N8: 0 | O8: 0 | P8: 0 | Q8: 0 | R8: 0 | S8: 0 | T8: 0 | U8: 0 | V8: 0 | W8: 0 | X8: 0 | Z8: 504369.9167 | AA8: 1476110594 | AB8: 630771847.7 | AC8: 24097791.57 | AD8: 1794825.524 | AE8: 424.650006 | AF8: 0 | AG8: 0 | AH8: 0 | AI8: 0 | AJ8: 0 | AK8: 0 | AL8: 0 | AM8: 0 | AN8: 0 | AO8: 0 | AP8: 0 | AQ8: 0 | AR8: 0 | AS8: 0 | AT8: 0 | AW8: 52087740.89 | AX8: 82468194.99 | AY8: 65591767.92 | AZ8: 3276033.61 | BA8: 247620.0345 | BB8: 13.388057 | BC8: 0 | BD8: 0 | BE8: 0 | BF8: 0 | BG8: 0 | BH8: 0 | BI8: 0 | BJ8: 0 | BK8: 0 | BL8: 0 | BM8: 0 | BN8: 0 | BO8: 0 | BP8: 0 | BQ8: 0 | BR8: =SUM(AW8:BQ8) -> 203671370.8
B9: Climate Saver | D9: 0 | E9: 11.5641 | F9: 13.1872 | G9: 15.4699 | H9: 9.3007 | I9: 2.7175 | J9: 0 | K9: 0 | L9: 0 | M9: 0 | N9: 0 | O9: 0 | P9: 0 | Q9: 0 | R9: 0 | S9: 0 | T9: 0 | U9: 0 | V9: 0 | W9: 0 | X9: 0 | Z9: 17209.91667 | AA9: 6135435.703 | AB9: 1674066.618 | AC9: 42279.6989 | AD9: 0 | AE9: 19268326.92 | AF9: 0 | AG9: 0 | AH9: 0 | AI9: 0 | AJ9: 0 | AK9: 0 | AL9: 0 | AM9: 0 | AN9: 0 | AO9: 0 | AP9: 0 | AQ9: 0 | AR9: 0 | AS9: 0 | AT9: 0 | AW9: 0 | AX9: 703570.4717 | AY9: 218204 | AZ9: 6451.787614 | BA9: 0 | BB9: 524458.0694 | BC9: 0 | BD9: 0 | BE9: 0 | BF9: 0 | BG9: 0 | BH9: 0 | BI9: 0 | BJ9: 0 | BK9: 0 | BL9: 0 | BM9: 0 | BN9: 0 | BO9: 0 | BP9: 0 | BQ9: 0 | BR9: 1452684.329
B10: Climate Saver Interval | D10: 0 | E10: 11.5641 | F10: 13.1872 | G10: 15.4699 | H10: 9.3007 | I10: 2.7175 | J10: 0 | K10: 0 | L10: 0 | M10: 0 | N10: 0 | O10: 0 | P10: 0 | Q10: 0 | R10: 0 | S10: 0 | T10: 0 | U10: 0 | V10: 0 | W10: 0 | X10: 0 | Z10: 4665 | AA10: 1769178.679 | AB10: 467691.2106 | AC10: 17312.92767 | AD10: 0 | AE10: 6161331.394 | AF10: 0 | AG10: 0 | AH10: 0 | AI10: 0 | AJ10: 0 | AK10: 0 | AL10: 0 | AM10: 0 | AN10: 0 | AO10: 0 | AP10: 0 | AQ10: 0 | AR10: 0 | AS10: 0 | AT10: 0 | AW10: 0 | AX10: 203593.6099 | AY10: 61021.00701 | AZ10: 2602.446084 | BA10: 0 | BB10: 168409.4095 | BC10: 0 | BD10: 0 | BE10: 0 | BF10: 0 | BG10: 0 | BH10: 0 | BI10: 0 | BJ10: 0 | BK10: 0 | BL10: 0 | BM10: 0 | BN10: 0 | BO10: 0 | BP10: 0 | BQ10: 0 | BR10: 435626.4725
B11: Residential - Flexible Pricing | D11: 101.4953 | E11: 0 | F11: 0 | G11: 0 | H11: 0 | I11: 0 | J11: 0 | K11: 0 | L11: 0 | M11: 0 | N11: 0 | O11: 0 | P11: 0 | Q11: 17.8893 | R11: 7.6895 | S11: 2.1924 | T11: 0 | U11: 17.8893 | V11: 7.6895 | W11: 2.1924 | X11: 0 | Z11: 2598 | AA11: 0 | AB11: 0 | AC11: 0 | AD11: 0 | AE11: 454.6394868 | AF11: 0 | AG11: 0 | AH11: 0 | AI11: 0 | AJ11: 0 | AK11: 0 | AL11: 0 | AM11: 1212624.142 | AN11: 2415738.363 | AO11: 1750987.528 | AP11: 0 | AQ11: 1611357.698 | AR11: 3233079.403 | AS11: 2453279.158 | AT11: 0 | AW11: 260933.4174 | AX11: 0 | AY11: 0 | AZ11: 0 | BA11: 0 | BB11: 11.628849 | BC11: 0 | BD11: 0 | BE11: 0 | BF11: 0 | BG11: 0 | BH11: 0 | BI11: 0 | BJ11: 217085.6149 | BK11: 186017.5817 | BL11: 38439.77659 | BM11: 0 | BN11: 289981.8553 | BO11: 249380.3936 | BP11: 54128.61885 | BQ11: 0 | BR11: 1295978.887
B12: Residential Docklands - Flexible Pricing | D12: 84.3385 | E12: 0 | F12: 0 | G12: 0 | H12: 0 | I12: 0 | J12: 0 | K12: 0 | L12: 0 | M12: 0 | N12: 0 | O12: 0 | P12: 0 | Q12: 5.8402 | R12: 2.2434 | S12: 0.6594 | T12: 0 | U12: 5.8402 | V12: 2.2434 | W12: 0.6594 | X12: 0 | Z12: 1 | AA12: 0 | AB12: 0 | AC12: 0 | AD12: 0 | AE12: 0 | AF12: 0 | AG12: 0 | AH12: 0 | AI12: 0 | AJ12: 0 | AK12: 0 | AL12: 0 | AM12: 601.9986548 | AN12: 1245.533087 | AO12: 873.9156604 | AP12: 0 | AQ12: 694.3836112 | AR12: 1203.542763 | AS12: 811.1085516 | AT12: 0 | AW12: 84.30916 | AX12: 0 | AY12: 0 | AZ12: 0 | BA12: 0 | BB12: 0 | BC12: 0 | BD12: 0 | BE12: 0 | BF12: 0 | BG12: 0 | BH12: 0 | BI12: 0 | BJ12: 34.92851339 | BK12: 27.83841263 | BL12: 5.736497463 | BM12: 0 | BN12: 36.93854053 | BO12: 24.38968647 | BP12: 4.763029036 | BQ12: 0 | BR12: 218.9038395
B13: Climate Saver - Flexible Pricing | D13: 0 | E13: 0 | F13: 0 | G13: 0 | H13: 0 | I13: 0 | J13: 0 | K13: 0 | L13: 0 | M13: 0 | N13: 0 | O13: 0 | P13: 0 | Q13: 4.0219 | R13: 0 | S13: 0 | T13: 0 | U13: 2.7175 | V13: 0 | W13: 0 | X13: 0 | Z13: 0 | AA13: 0 | AB13: 0 | AC13: 0 | AD13: 0 | AE13: 0 | AF13: 0 | AG13: 0 | AH13: 0 | AI13: 0 | AJ13: 0 | AK13: 0 | AL13: 0 | AM13: 0 | AN13: 0 | AO13: 0 | AP13: 0 | AQ13: 0 | AR13: 0 | AS13: 0 | AT13: 0 | AW13: 0 | AX13: 0 | AY13: 0 | AZ13: 0 | BA13: 0 | BB13: 0 | BC13: 0 | BD13: 0 | BE13: 0 | BF13: 0 | BG13: 0 | BH13: 0 | BI13: 0 | BJ13: 0 | BK13: 0 | BL13: 0 | BM13: 0 | BN13: 0 | BO13: 0 | BP13: 0 | BQ13: 0 | BR13: 0
B14: Docklands single rate | D14: 117.0562 | E14: 4.9712 | F14: 0 | G14: 0 | H14: 0 | I14: 0 | J14: 0 | K14: 0 | L14: 0 | M14: 0 | N14: 0 | O14: 0 | P14: 0 | Q14: 0 | R14: 0 | S14: 0 | T14: 0 | U14: 0 | V14: 0 | W14: 0 | X14: 0 | Z14: 0 | AA14: 0 | AB14: 0 | AC14: 0 | AD14: 0 | AE14: 0 | AF14: 0 | AG14: 0 | AH14: 0 | AI14: 0 | AJ14: 0 | AK14: 0 | AL14: 0 | AM14: 0 | AN14: 0 | AO14: 0 | AP14: 0 | AQ14: 0 | AR14: 0 | AS14: 0 | AT14: 0 | AW14: 0 | AX14: 0 | AY14: 0 | AZ14: 0 | BA14: 0 | BB14: 0 | BC14: 0 | BD14: 0 | BE14: 0 | BF14: 0 | BG14: 0 | BH14: 0 | BI14: 0 | BJ14: 0 | BK14: 0 | BL14: 0 | BM14: 0 | BN14: 0 | BO14: 0 | BP14: 0 | BQ14: 0 | BR14: 0
B15: Residential Two Rate 5d | D15: 130.4213 | E15: 6.4867 | F15: 17.5918 | G15: 18.07 | H15: 9.8916 | I15: 2.7516 | J15: 0 | K15: 0 | L15: 0 | M15: 0 | N15: 0 | O15: 0 | P15: 0 | Q15: 0 | R15: 0 | S15: 0 | T15: 0 | U15: 0 | V15: 0 | W15: 0 | X15: 0 | Z15: 45863.08333 | AA15: 103730582.9 | AB15: 23255073.11 | AC15: 702230.566 | AD15: 37242.01098 | AE15: 112793275.3 | AF15: 0 | AG15: 0 | AH15: 0 | AI15: 0 | AJ15: 0 | AK15: 0 | AL15: 0 | AM15: 0 | AN15: 0 | AO15: 0 | AP15: 0 | AQ15: 0 | AR15: 0 | AS15: 0 | AT15: 0 | AW15: 5986471.846 | AX15: 6732305.225 | AY15: 4090847.618 | AZ15: 127135.1294 | BA15: 3683.723942 | BB15: 3108973.977 | BC15: 0 | BD15: 0 | BE15: 0 | BF15: 0 | BG15: 0 | BH15: 0 | BI15: 0 | BJ15: 0 | BK15: 0 | BL15: 0 | BM15: 0 | BN15: 0 | BO15: 0 | BP15: 0 | BQ15: 0 | BR15: 20049417.52
B16: Docklands Two Rate 5d | D16: 128.4596 | E16: 16.4861 | F16: 18.5888 | G16: 18.7399 | H16: 9.8937 | I16: 2.3662 | J16: 0 | K16: 0 | L16: 0 | M16: 0 | N16: 0 | O16: 0 | P16: 0 | Q16: 0 | R16: 0 | S16: 0 | T16: 0 | U16: 0 | V16: 0 | W16: 0 | X16: 0 | Z16: 589.25 | AA16: 1596336.182 | AB16: 293414.2963 | AC16: 63032.03079 | AD16: 0 | AE16: 1786134.474 | AF16: 0 | AG16: 0 | AH16: 0 | AI16: 0 | AJ16: 0 | AK16: 0 | AL16: 0 | AM16: 0 | AN16: 0 | AO16: 0 | AP16: 0 | AQ16: 0 | AR16: 0 | AS16: 0 | AT16: 0 | AW16: 75610.76877 | AX16: 263381.1808 | AY16: 54585.84993 | AZ16: 11809.81245 | BA16: 0 | BB16: 42290.79415 | BC16: 0 | BD16: 0 | BE16: 0 | BF16: 0 | BG16: 0 | BH16: 0 | BI16: 0 | BJ16: 0 | BK16: 0 | BL16: 0 | BM16: 0 | BN16: 0 | BO16: 0 | BP16: 0 | BQ16: 0 | BR16: 447678.4061
B17: Residential Interval | D17: 130.4213 | E17: 6.4867 | F17: 17.5918 | G17: 18.07 | H17: 9.8916 | I17: 2.7516 | J17: 0 | K17: 0 | L17: 0 | M17: 0 | N17: 0 | O17: 0 | P17: 0 | Q17: 0 | R17: 0 | S17: 0 | T17: 0 | U17: 0 | V17: 0 | W17: 0 | X17: 0 | Z17: 108902.6667 | AA17: 228972466.3 | AB17: 43414295.52 | AC17: 1770490.829 | AD17: 61231.3545 | AE17: 287128104.4 | AF17: 0 | AG17: 0 | AH17: 0 | AI17: 0 | AJ17: 0 | AK17: 0 | AL17: 0 | AM17: 0 | AN17: 0 | AO17: 0 | AP17: 0 | AQ17: 0 | AR17: 0 | AS17: 0 | AT17: 0 | AW17: 14215833.67 | AX17: 14867890.91 | AY17: 7638447.874 | AZ17: 320123.0463 | BA17: 6052.922726 | BB17: 7902293.684 | BC17: 0 | BD17: 0 | BE17: 0 | BF17: 0 | BG17: 0 | BH17: 0 | BI17: 0 | BJ17: 0 | BK17: 0 | BL17: 0 | BM17: 0 | BN17: 0 | BO17: 0 | BP17: 0 | BQ17: 0 | BR17: 44950642.1
B18: Residential Two Rate 5d - controlled load | D18: 0 | E18: 0 | F18: 0 | G18: 0 | H18: 0 | I18: 2.7516 | J18: 0 | K18: 0 | L18: 0 | M18: 0 | N18: 0 | O18: 0 | P18: 0 | Q18: 0 | R18: 0 | S18: 0 | T18: 0 | U18: 0 | V18: 0 | W18: 0 | X18: 0 | Z18: 43362.91667 | AA18: 0 | AB18: 0 | AC18: 0 | AD18: 0 | AE18: 87770252.78 | AF18: 0 | AG18: 0 | AH18: 0 | AI18: 0 | AJ18: 0 | AK18: 0 | AL18: 0 | AM18: 0 | AN18: 0 | AO18: 0 | AP18: 0 | AQ18: 0 | AR18: 0 | AS18: -1939.2802 | AT18: 0 | AW18: 0 | AX18: 0 | AY18: 0 | AZ18: 0 | BA18: 0 | BB18: 2430874.438 | BC18: 0 | BD18: 0 | BE18: 0 | BF18: 0 | BG18: 0 | BH18: 0 | BI18: 0 | BJ18: 0 | BK18: 0 | BL18: 0 | BM18: 0 | BN18: 0 | BO18: 0 | BP18: -48.362 | BQ18: 0 | BR18: 2430826.076
B19: Docklands Two Rate 5d - controlled load | D19: 0 | E19: 0 | F19: 0 | G19: 0 | H19: 0 | I19: 2.3662 | J19: 0 | K19: 0 | L19: 0 | M19: 0 | N19: 0 | O19: 0 | P19: 0 | Q19: 0 | R19: 0 | S19: 0 | T19: 0 | U19: 0 | V19: 0 | W19: 0 | X19: 0 | Z19: 70.66666667 | AA19: 0 | AB19: 0 | AC19: 0 | AD19: 0 | AE19: 126903.9561 | AF19: 0 | AG19: 0 | AH19: 0 | AI19: 0 | AJ19: 0 | AK19: 0 | AL19: 0 | AM19: 0 | AN19: 0 | AO19: 0 | AP19: 0 | AQ19: 0 | AR19: 0 | AS19: 0 | AT19: 0 | AW19: 0 | AX19: 0 | AY19: 0 | AZ19: 0 | BA19: 0 | BB19: 3019.19129 | BC19: 0 | BD19: 0 | BE19: 0 | BF19: 0 | BG19: 0 | BH19: 0 | BI19: 0 | BJ19: 0 | BK19: 0 | BL19: 0 | BM19: 0 | BN19: 0 | BO19: 0 | BP19: 0 | BQ19: 0 | BR19: 3019.19129
B20: Dedicated circuit | D20: 0 | E20: 0 | F20: 0 | G20: 0 | H20: 0 | I20: 0.1718 | J20: 0 | K20: 0 | L20: 0 | M20: 0 | N20: 0 | O20: 0 | P20: 0 | Q20: 0 | R20: 0 | S20: 0 | T20: 0 | U20: 0 | V20: 0 | W20: 0 | X20: 0 | Z20: 160536.75 | AA20: 0 | AB20: 0 | AC20: 0 | AD20: 0 | AE20: 335946183.7 | AF20: 0 | AG20: 0 | AH20: 0 | AI20: 0 | AJ20: 0 | AK20: 0 | AL20: 0 | AM20: 0 | AN20: 0 | AO20: -86.92 | AP20: 0 | AQ20: 0 | AR20: 0 | AS20: -15989.1452 | AT20: 0 | AW20: 0 | AX20: 0 | AY20: 0 | AZ20: 0 | BA20: 0 | BB20: 574634.2348 | BC20: 0 | BD20: 0 | BE20: 0 | BF20: 0 | BG20: 0 | BH20: 0 | BI20: 0 | BJ20: 0 | BK20: 0 | BL20: -2.242 | BM20: 0 | BN20: 0 | BO20: 0 | BP20: -412.06 | BQ20: 0 | BR20: 574219.9328
B21: Hot Water Interval | D21: 0 | E21: 0 | F21: 0 | G21: 0 | H21: 0 | I21: 0.1718 | J21: 0 | K21: 0 | L21: 0 | M21: 0 | N21: 0 | O21: 0 | P21: 0 | Q21: 0 | R21: 0 | S21: 0 | T21: 0 | U21: 0 | V21: 0 | W21: 0 | X21: 0 | Z21: 5563.666667 | AA21: 9.4947368 | AB21: 0 | AC21: 0 | AD21: 0 | AE21: 11051226.15 | AF21: 0 | AG21: 0 | AH21: 0 | AI21: 0 | AJ21: 0 | AK21: 0 | AL21: 0 | AM21: 0 | AN21: 0 | AO21: 0 | AP21: 0 | AQ21: 0 | AR21: 0 | AS21: -111.777 | AT21: 0 | AW21: 0 | AX21: 0.9295062 | AY21: 0 | AZ21: 0 | BA21: 0 | BB21: 18694.16655 | BC21: 0 | BD21: 0 | BE21: 0 | BF21: 0 | BG21: 0 | BH21: 0 | BI21: 0 | BJ21: 0 | BK21: 0 | BL21: 0 | BM21: 0 | BN21: 0 | BO21: 0 | BP21: -2.882 | BQ21: 0 | BR21: 18692.21405
B22: Non-Residential Single Rate | D22: 94.2881 | E22: 9.662 | F22: 11.3583 | G22: 13.5223 | H22: 13.6491 | I22: 0 | J22: 0 | K22: 0 | L22: 0 | M22: 0 | N22: 0 | O22: 0 | P22: 0 | Q22: 0 | R22: 0 | S22: 0 | T22: 0 | U22: 0 | V22: 0 | W22: 0 | X22: 0 | Z22: 42320.08333 | AA22: 86248274.11 | AB22: 113884103.5 | AC22: 68616229.44 | AD22: 28784854.75 | AE22: 0 | AF22: 0 | AG22: 0 | AH22: 0 | AI22: 0 | AJ22: 0 | AK22: 0 | AL22: 0 | AM22: 0 | AN22: 0 | AO22: 0 | AP22: 0 | AQ22: 0 | AR22: 0 | AS22: 0 | AT22: 0 | AW22: 3989664.34 | AX22: 8339460.486 | AY22: 12941845.36 | AZ22: 9278456.281 | BA22: 3926607.79 | BB22: 0 | BC22: 0 | BD22: 0 | BE22: 0 | BF22: 0 | BG22: 0 | BH22: 0 | BI22: 0 | BJ22: 0 | BK22: 0 | BL22: 0 | BM22: 0 | BN22: 0 | BO22: 0 | BP22: 0 | BQ22: 0 | BR22: 38476034.26
B23: Non-Residential | D23: 72.451 | E23: 0 | F23: 0 | G23: 0 | H23: 0 | I23: 0 | J23: 0 | K23: 0 | L23: 0 | M23: 0 | N23: 0 | O23: 0 | P23: 0 | Q23: 4.9181 | R23: 1.8192 | S23: 0.4901 | T23: 0 | U23: 4.9181 | V23: 1.8192 | W23: 0.4901 | X23: 0 | Z23: 237.4166667 | AA23: 0 | AB23: 0 | AC23: 0 | AD23: 0 | AE23: 0 | AF23: 0 | AG23: 0 | AH23: 0 | AI23: 0 | AJ23: 0 | AK23: 0 | AL23: 0 | AM23: 4296704.223 | AN23: 1451159.274 | AO23: 4220963.775 | AP23: 0 | AQ23: 4214892.717 | AR23: 1251767.095 | AS23: 3740745.65 | AT23: 0 | AW23: 17185.32375 | AX23: 0 | AY23: 0 | AZ23: 0 | BA23: 0 | BB23: 0 | BC23: 0 | BD23: 0 | BE23: 0 | BF23: 0 | BG23: 0 | BH23: 0 | BI23: 0 | BJ23: 211638.0139 | BK23: 26465.81522 | BL23: 20707.74091 | BM23: 0 | BN23: 208830.048 | BO23: 22403.65037 | BP23: 18522.78126 | BQ23: 0 | BR23: 525753.3734
B24: Non-Residential Two Rate 5d | D24: 121.1064 | E24: 7.5387 | F24: 7.5968 | G24: 15.5682 | H24: 17.9726 | I24: 1.9355 | J24: 0 | K24: 0 | L24: 0 | M24: 0 | N24: 0 | O24: 0 | P24: 0 | Q24: 0 | R24: 0 | S24: 0 | T24: 0 | U24: 0 | V24: 0 | W24: 0 | X24: 0 | Z24: 30886.16667 | AA24: 86939950.3 | AB24: 197987235 | AC24: 203496265.8 | AD24: 119527984.2 | AE24: 523674357.6 | AF24: 0 | AG24: 0 | AH24: 0 | AI24: 0 | AJ24: 0 | AK24: 0 | AL24: 0 | AM24: 0 | AN24: 0 | AO24: 0 | AP24: 0 | AQ24: 0 | AR24: 0 | AS24: 0 | AT24: 0 | AW24: 3744097.68 | AX24: 6558954.789 | AY24: 15042559.99 | AZ24: 31681451.92 | BA24: 21475536.65 | BB24: 10133299.48 | BC24: 0 | BD24: 0 | BE24: 0 | BF24: 0 | BG24: 0 | BH24: 0 | BI24: 0 | BJ24: 0 | BK24: 0 | BL24: 0 | BM24: 0 | BN24: 0 | BO24: 0 | BP24: 0 | BQ24: 0 | BR24: 88635900.51
B25: Non-Residential Interval | D25: 121.1064 | E25: 7.5387 | F25: 7.5968 | G25: 15.5682 | H25: 17.9726 | I25: 1.9355 | J25: 0 | K25: 0 | L25: 0 | M25: 0 | N25: 0 | O25: 0 | P25: 0 | Q25: 0 | R25: 0 | S25: 0 | T25: 0 | U25: 0 | V25: 0 | W25: 0 | X25: 0 | Z25: 14568.5 | AA25: 38633648.57 | AB25: 77898526.77 | AC25: 77001036.21 | AD25: 42456188.39 | AE25: 167185799.6 | AF25: 0 | AG25: 0 | AH25: 0 | AI25: 0 | AJ25: 0 | AK25: 0 | AL25: 0 | AM25: 0 | AN25: 0 | AO25: 0 | AP25: 0 | AQ25: 0 | AR25: 0 | AS25: 0 | AT25: 0 | AW25: 1765438.276 | AX25: 2936589.136 | AY25: 5916310.114 | AZ25: 11990735.85 | BA25: 7649550.289 | BB25: 3236289.892 | BC25: 0 | BD25: 0 | BE25: 0 | BF25: 0 | BG25: 0 | BH25: 0 | BI25: 0 | BJ25: 0 | BK25: 0 | BL25: 0 | BM25: 0 | BN25: 0 | BO25: 0 | BP25: 0 | BQ25: 0 | BR25: 33494913.56
B26: Non-Residential Two Rate 7d | D26: 134.8455 | E26: 4.7184 | F26: 5.1273 | G26: 5.884 | H26: 16.7951 | I26: 0.5977 | J26: 0 | K26: 0 | L26: 0 | M26: 0 | N26: 0 | O26: 0 | P26: 0 | Q26: 0 | R26: 0 | S26: 0 | T26: 0 | U26: 0 | V26: 0 | W26: 0 | X26: 0 | Z26: 8415.75 | AA26: 21245022.34 | AB26: 40934013.53 | AC26: 36802208.84 | AD26: 28040517.03 | AE26: 47347310.83 | AF26: 0 | AG26: 0 | AH26: 0 | AI26: 0 | AJ26: 0 | AK26: 0 | AL26: 0 | AM26: 0 | AN26: 0 | AO26: 0 | AP26: 0 | AQ26: 0 | AR26: 0 | AS26: 0 | AT26: 0 | AW26: 1135813.319 | AX26: 1002154.173 | AY26: 2091366.343 | AZ26: 2158201.295 | BA26: 4713255.717 | BB26: 284129.8868 | BC26: 0 | BD26: 0 | BE26: 0 | BF26: 0 | BG26: 0 | BH26: 0 | BI26: 0 | BJ26: 0 | BK26: 0 | BL26: 0 | BM26: 0 | BN26: 0 | BO26: 0 | BP26: 0 | BQ26: 0 | BR26: 11384920.73
B27: Public Lighting | D27: 0 | E27: 14.2313 | F27: 0 | G27: 0 | H27: 0 | I27: 1.6834 | J27: 0 | K27: 0 | L27: 0 | M27: 0 | N27: 0 | O27: 0 | P27: 0 | Q27: 0 | R27: 0 | S27: 0 | T27: 0 | U27: 0 | V27: 0 | W27: 0 | X27: 0 | Z27: 6368.833333 | AA27: 26137653.47 | AB27: 0 | AC27: 0 | AD27: 0 | AE27: 64638411.36 | AF27: 0 | AG27: 0 | AH27: 0 | AI27: 0 | AJ27: 0 | AK27: 0 | AL27: 0 | AM27: 0 | AN27: 0 | AO27: 0 | AP27: 0 | AQ27: 0 | AR27: 0 | AS27: 0 | AT27: 0 | AW27: 0 | AX27: 3571558.939 | AY27: 0 | AZ27: 0 | BA27: 0 | BB27: 1014456.83 | BC27: 0 | BD27: 0 | BE27: 0 | BF27: 0 | BG27: 0 | BH27: 0 | BI27: 0 | BJ27: 0 | BK27: 0 | BL27: 0 | BM27: 0 | BN27: 0 | BO27: 0 | BP27: 0 | BQ27: 0 | BR27: 4586015.769
B28: Large Low Voltage Demand | D28: 0 | E28: 1.4648 | F28: 0 | G28: 0 | H28: 0 | I28: 0.894 | J28: 0 | K28: 0 | L28: 0 | M28: 119.0406 | N28: 0 | O28: 0 | P28: 0 | Q28: 0 | R28: 0 | S28: 0 | T28: 0 | U28: 0 | V28: 0 | W28: 0 | X28: 0 | Z28: 923.0833333 | AA28: 688852034.8 | AB28: 0 | AC28: 0 | AD28: 0 | AE28: 533707665.6 | AF28: 0 | AG28: 0 | AH28: 0 | AI28: 437248.3932 | AJ28: 0 | AK28: 0 | AL28: 0 | AM28: 0 | AN28: 0 | AO28: 0 | AP28: 0 | AQ28: 0 | AR28: 0 | AS28: 0 | AT28: 0 | AW28: 0 | AX28: 10091658.48 | AY28: 0 | AZ28: 0 | BA28: 0 | BB28: 4770709.644 | BC28: 0 | BD28: 0 | BE28: 0 | BF28: 51119273.32 | BG28: 0 | BH28: 0 | BI28: 0 | BJ28: 0 | BK28: 0 | BL28: 0 | BM28: 0 | BN28: 0 | BO28: 0 | BP28: 0 | BQ28: 0 | BR28: 65981641.44
B29: Large Low Voltage Demand A | D29: 0 | E29: 2.4811 | F29: 0 | G29: 0 | H29: 0 | I29: 1.4767 | J29: 0 | K29: 0 | L29: 0 | M29: 86.2379 | N29: 0 | O29: 0 | P29: 0 | Q29: 0 | R29: 0 | S29: 0 | T29: 0 | U29: 0 | V29: 0 | W29: 0 | X29: 0 | Z29: 0 | AA29: 0 | AB29: 0 | AC29: 0 | AD29: 0 | AE29: 0 | AF29: 0 | AG29: 0 | AH29: 0 | AI29: 0 | AJ29: 0 | AK29: 0 | AL29: 0 | AM29: 0 | AN29: 0 | AO29: 0 | AP29: 0 | AQ29: 0 | AR29: 0 | AS29: 0 | AT29: 0 | AW29: 0 | AX29: 0 | AY29: 0 | AZ29: 0 | BA29: 0 | BB29: 0 | BC29: 0 | BD29: 0 | BE29: 0 | BF29: 0 | BG29: 0 | BH29: 0 | BI29: 0 | BJ29: 0 | BK29: 0 | BL29: 0 | BM29: 0 | BN29: 0 | BO29: 0 | BP29: 0 | BQ29: 0 | BR29: 0
B30: Large Low Voltage Demand C | D30: 0 | E30: 1.4705 | F30: 0 | G30: 0 | H30: 0 | I30: 0.8312 | J30: 0 | K30: 0 | L30: 0 | M30: 78.1175 | N30: 0 | O30: 0 | P30: 0 | Q30: 0 | R30: 0 | S30: 0 | T30: 0 | U30: 0 | V30: 0 | W30: 0 | X30: 0 | Z30: 418.9166667 | AA30: 331857173.8 | AB30: 0 | AC30: 0 | AD30: 0 | AE30: 237365097.5 | AF30: 0 | AG30: 0 | AH30: 0 | AI30: 194418.6802 | AJ30: 0 | AK30: 0 | AL30: 0 | AM30: 0 | AN30: 0 | AO30: 0 | AP30: 0 | AQ30: 0 | AR30: 0 | AS30: 0 | AT30: 0 | AW30: 0 | AX30: 4886950.188 | AY30: 0 | AZ30: 0 | BA30: 0 | BB30: 1974721.542 | BC30: 0 | BD30: 0 | BE30: 0 | BF30: 14846331.74 | BG30: 0 | BH30: 0 | BI30: 0 | BJ30: 0 | BK30: 0 | BL30: 0 | BM30: 0 | BN30: 0 | BO30: 0 | BP30: 0 | BQ30: 0 | BR30: 21708003.47
B31: Large Low Voltage Demand S | D31: 0 | E31: 1.6407 | F31: 0 | G31: 0 | H31: 0 | I31: 0.9809 | J31: 0 | K31: 0 | L31: 0 | M31: 84.9313 | N31: 0 | O31: 0 | P31: 0 | Q31: 0 | R31: 0 | S31: 0 | T31: 0 | U31: 0 | V31: 0 | W31: 0 | X31: 0 | Z31: 43.91666667 | AA31: 14451548.2 | AB31: 0 | AC31: 0 | AD31: 0 | AE31: 10202624.4 | AF31: 0 | AG31: 0 | AH31: 0 | AI31: 10379.99999 | AJ31: 0 | AK31: 0 | AL31: 0 | AM31: 0 | AN31: 0 | AO31: 0 | AP31: 0 | AQ31: 0 | AR31: 0 | AS31: 0 | AT31: 0 | AW31: 0 | AX31: 237317.7141 | AY31: 0 | AZ31: 0 | BA31: 0 | BB31: 100094.439 | BC31: 0 | BD31: 0 | BE31: 0 | BF31: 872856.0268 | BG31: 0 | BH31: 0 | BI31: 0 | BJ31: 0 | BK31: 0 | BL31: 0 | BM31: 0 | BN31: 0 | BO31: 0 | BP31: 0 | BQ31: 0 | BR31: 1210268.18
B32: Large Low Voltage Demand Docklands | D32: 0 | E32: 0.984 | F32: 0 | G32: 0 | H32: 0 | I32: 0.8491 | J32: 0 | K32: 0 | L32: 0 | M32: 69.4503 | N32: 0 | O32: 0 | P32: 0 | Q32: 0 | R32: 0 | S32: 0 | T32: 0 | U32: 0 | V32: 0 | W32: 0 | X32: 0 | Z32: 7 | AA32: 2737143.528 | AB32: 0 | AC32: 0 | AD32: 0 | AE32: 2881112.74 | AF32: 0 | AG32: 0 | AH32: 0 | AI32: 1933.855733 | AJ32: 0 | AK32: 0 | AL32: 0 | AM32: 0 | AN32: 0 | AO32: 0 | AP32: 0 | AQ32: 0 | AR32: 0 | AS32: 0 | AT32: 0 | AW32: 0 | AX32: 26924.58028 | AY32: 0 | AZ32: 0 | BA32: 0 | BB32: 24457.04322 | BC32: 0 | BD32: 0 | BE32: 0 | BF32: 126929.8039 | BG32: 0 | BH32: 0 | BI32: 0 | BJ32: 0 | BK32: 0 | BL32: 0 | BM32: 0 | BN32: 0 | BO32: 0 | BP32: 0 | BQ32: 0 | BR32: 178311.4274
B33: Large Low Voltage Demand CXX | D33: 0 | E33: 1.713 | F33: 0 | G33: 0 | H33: 0 | I33: 3.2716 | J33: 0 | K33: 0 | L33: 0 | M33: 154.1394 | N33: 0 | O33: 0 | P33: 0 | Q33: 0 | R33: 0 | S33: 0 | T33: 0 | U33: 0 | V33: 0 | W33: 0 | X33: 0 | Z33: 1174.75 | AA33: 270719346.2 | AB33: 0 | AC33: 0 | AD33: 0 | AE33: 199159441.8 | AF33: 0 | AG33: 0 | AH33: 0 | AI33: 189906.788 | AJ33: 0 | AK33: 0 | AL33: 0 | AM33: 0 | AN33: 0 | AO33: 0 | AP33: 0 | AQ33: 0 | AR33: 0 | AS33: 0 | AT33: 0 | AW33: 0 | AX33: 4620441.414 | AY33: 0 | AZ33: 0 | BA33: 0 | BB33: 6510155.315 | BC33: 0 | BD33: 0 | BE33: 0 | BF33: 28770686.84 | BG33: 0 | BH33: 0 | BI33: 0 | BJ33: 0 | BK33: 0 | BL33: 0 | BM33: 0 | BN33: 0 | BO33: 0 | BP33: 0 | BQ33: 0 | BR33: 39901283.57
B34: Large Low Voltage Demand EN.R | D34: 0 | E34: 3.0293 | F34: 0 | G34: 0 | H34: 0 | I34: 1.8657 | J34: 0 | K34: 0 | L34: 0 | M34: 94.2946 | N34: 0 | O34: 0 | P34: 0 | Q34: 0 | R34: 0 | S34: 0 | T34: 0 | U34: 0 | V34: 0 | W34: 0 | X34: 0 | Z34: 2.583333333 | AA34: 724994.147 | AB34: 0 | AC34: 0 | AD34: 0 | AE34: 218780.9484 | AF34: 0 | AG34: 0 | AH34: 0 | AI34: 737.9196667 | AJ34: 0 | AK34: 0 | AL34: 0 | AM34: 0 | AN34: 0 | AO34: 0 | AP34: 0 | AQ34: 0 | AR34: 0 | AS34: 0 | AT34: 0 | AW34: 0 | AX34: 21954.54933 | AY34: 0 | AZ34: 0 | BA34: 0 | BB34: 4080.223277 | BC34: 0 | BD34: 0 | BE34: 0 | BF34: 64000.89766 | BG34: 0 | BH34: 0 | BI34: 0 | BJ34: 0 | BK34: 0 | BL34: 0 | BM34: 0 | BN34: 0 | BO34: 0 | BP34: 0 | BQ34: 0 | BR34: 90035.67026
B35: Large Low Voltage Demand EN.NR | D35: 0 | E35: 1.6217 | F35: 0 | G35: 0 | H35: 0 | I35: 3.2124 | J35: 0 | K35: 0 | L35: 0 | M35: 89.5569 | N35: 0 | O35: 0 | P35: 0 | Q35: 0 | R35: 0 | S35: 0 | T35: 0 | U35: 0 | V35: 0 | W35: 0 | X35: 0 | Z35: 30.33333333 | AA35: 37029252.24 | AB35: 0 | AC35: 0 | AD35: 0 | AE35: 23618575.64 | AF35: 0 | AG35: 0 | AH35: 0 | AI35: 21332.6762 | AJ35: 0 | AK35: 0 | AL35: 0 | AM35: 0 | AN35: 0 | AO35: 0 | AP35: 0 | AQ35: 0 | AR35: 0 | AS35: 0 | AT35: 0 | AW35: 0 | AX35: 596122.4822 | AY35: 0 | AZ35: 0 | BA35: 0 | BB35: 757122.2694 | BC35: 0 | BD35: 0 | BE35: 0 | BF35: 1874139.255 | BG35: 0 | BH35: 0 | BI35: 0 | BJ35: 0 | BK35: 0 | BL35: 0 | BM35: 0 | BN35: 0 | BO35: 0 | BP35: 0 | BQ35: 0 | BR35: 3227384.006
B36: Large Low Voltage Demand EN.R CXX | D36: 0 | E36: 1.6217 | F36: 0 | G36: 0 | H36: 0 | I36: 1.3153 | J36: 0 | K36: 0 | L36: 0 | M36: 93.9886 | N36: 0 | O36: 0 | P36: 0 | Q36: 0 | R36: 0 | S36: 0 | T36: 0 | U36: 0 | V36: 0 | W36: 0 | X36: 0 | Z36: 2.666666667 | AA36: 1435038.483 | AB36: 0 | AC36: 0 | AD36: 0 | AE36: 637270.747 | AF36: 0 | AG36: 0 | AH36: 0 | AI36: 805.7496667 | AJ36: 0 | AK36: 0 | AL36: 0 | AM36: 0 | AN36: 0 | AO36: 0 | AP36: 0 | AQ36: 0 | AR36: 0 | AS36: 0 | AT36: 0 | AW36: 0 | AX36: 23254.31061 | AY36: 0 | AZ36: 0 | BA36: 0 | BB36: 8376.55267 | BC36: 0 | BD36: 0 | BE36: 0 | BF36: 75731.25361 | BG36: 0 | BH36: 0 | BI36: 0 | BJ36: 0 | BK36: 0 | BL36: 0 | BM36: 0 | BN36: 0 | BO36: 0 | BP36: 0 | BQ36: 0 | BR36: 107362.1169
B37: Large Low Voltage Demand EN.NRCXX | D37: 0 | E37: 5.3456 | F37: 0 | G37: 0 | H37: 0 | I37: 3.8724 | J37: 0 | K37: 0 | L37: 0 | M37: 156.5302 | N37: 0 | O37: 0 | P37: 0 | Q37: 0 | R37: 0 | S37: 0 | T37: 0 | U37: 0 | V37: 0 | W37: 0 | X37: 0 | Z37: 9.416666667 | AA37: 3130339.955 | AB37: 0 | AC37: 0 | AD37: 0 | AE37: 2020908.89 | AF37: 0 | AG37: 0 | AH37: 0 | AI37: 1983.101511 | AJ37: 0 | AK37: 0 | AL37: 0 | AM37: 0 | AN37: 0 | AO37: 0 | AP37: 0 | AQ37: 0 | AR37: 0 | AS37: 0 | AT37: 0 | AW37: 0 | AX37: 167452.5954 | AY37: 0 | AZ37: 0 | BA37: 0 | BB37: 78292.41374 | BC37: 0 | BD37: 0 | BE37: 0 | BF37: 302899.8841 | BG37: 0 | BH37: 0 | BI37: 0 | BJ37: 0 | BK37: 0 | BL37: 0 | BM37: 0 | BN37: 0 | BO37: 0 | BP37: 0 | BQ37: 0 | BR37: 548644.8932
B38: High Voltage Demand | D38: 0 | E38: 2.2053 | F38: 0 | G38: 0 | H38: 0 | I38: 0.1679 | J38: 0 | K38: 0 | L38: 0 | M38: 84.1454 | N38: 0 | O38: 0 | P38: 0 | Q38: 0 | R38: 0 | S38: 0 | T38: 0 | U38: 0 | V38: 0 | W38: 0 | X38: 0 | Z38: 126.0833333 | AA38: 561229646.6 | AB38: 0 | AC38: 0 | AD38: 0 | AE38: 503901671.1 | AF38: 0 | AG38: 0 | AH38: 0 | AI38: 283788.0781 | AJ38: 0 | AK38: 0 | AL38: 0 | AM38: 0 | AN38: 0 | AO38: 0 | AP38: 0 | AQ38: 0 | AR38: 0 | AS38: 0 | AT38: 0 | AW38: 0 | AX38: 12364046.14 | AY38: 0 | AZ38: 0 | BA38: 0 | BB38: 840644.1566 | BC38: 0 | BD38: 0 | BE38: 0 | BF38: 23343110.28 | BG38: 0 | BH38: 0 | BI38: 0 | BJ38: 0 | BK38: 0 | BL38: 0 | BM38: 0 | BN38: 0 | BO38: 0 | BP38: 0 | BQ38: 0 | BR38: 36547800.57
B39: High Voltage Demand A | D39: 0 | E39: 0.3612 | F39: 0 | G39: 0 | H39: 0 | I39: 0.1082 | J39: 0 | K39: 0 | L39: 0 | M39: 45.3873 | N39: 0 | O39: 0 | P39: 0 | Q39: 0 | R39: 0 | S39: 0 | T39: 0 | U39: 0 | V39: 0 | W39: 0 | X39: 0 | Z39: 3 | AA39: 5914230.171 | AB39: 0 | AC39: 0 | AD39: 0 | AE39: 6099365.161 | AF39: 0 | AG39: 0 | AH39: 0 | AI39: 3796 | AJ39: 0 | AK39: 0 | AL39: 0 | AM39: 0 | AN39: 0 | AO39: 0 | AP39: 0 | AQ39: 0 | AR39: 0 | AS39: 0 | AT39: 0 | AW39: 0 | AX39: 21364.67143 | AY39: 0 | AZ39: 0 | BA39: 0 | BB39: 6603.158384 | BC39: 0 | BD39: 0 | BE39: 0 | BF39: 172290.2311 | BG39: 0 | BH39: 0 | BI39: 0 | BJ39: 0 | BK39: 0 | BL39: 0 | BM39: 0 | BN39: 0 | BO39: 0 | BP39: 0 | BQ39: 0 | BR39: 200258.0609
B40: High Voltage Demand C | D40: 0 | E40: 0.6213 | F40: 0 | G40: 0 | H40: 0 | I40: 0.1656 | J40: 0 | K40: 0 | L40: 0 | M40: 81.6223 | N40: 0 | O40: 0 | P40: 0 | Q40: 0 | R40: 0 | S40: 0 | T40: 0 | U40: 0 | V40: 0 | W40: 0 | X40: 0 | Z40: 41 | AA40: 233001879.7 | AB40: 0 | AC40: 0 | AD40: 0 | AE40: 205189883.6 | AF40: 0 | AG40: 0 | AH40: 0 | AI40: 112445.2747 | AJ40: 0 | AK40: 0 | AL40: 0 | AM40: 0 | AN40: 0 | AO40: 0 | AP40: 0 | AQ40: 0 | AR40: 0 | AS40: 0 | AT40: 0 | AW40: 0 | AX40: 1449585.863 | AY40: 0 | AZ40: 0 | BA40: 0 | BB40: 340088.196 | BC40: 0 | BD40: 0 | BE40: 0 | BF40: 9003467.659 | BG40: 0 | BH40: 0 | BI40: 0 | BJ40: 0 | BK40: 0 | BL40: 0 | BM40: 0 | BN40: 0 | BO40: 0 | BP40: 0 | BQ40: 0 | BR40: 10793141.72
B41: High Voltage Demand D1 | D41: 0 | E41: 0.1292 | F41: 0 | G41: 0 | H41: 0 | I41: 0.0403 | J41: 0 | K41: 0 | L41: 0 | M41: 52.4916 | N41: 0 | O41: 0 | P41: 0 | Q41: 0 | R41: 0 | S41: 0 | T41: 0 | U41: 0 | V41: 0 | W41: 0 | X41: 0 | Z41: 1 | AA41: 75314343.39 | AB41: 0 | AC41: 0 | AD41: 0 | AE41: 82651793.23 | AF41: 0 | AG41: 0 | AH41: 0 | AI41: 21458.6677 | AJ41: 0 | AK41: 0 | AL41: 0 | AM41: 0 | AN41: 0 | AO41: 0 | AP41: 0 | AQ41: 0 | AR41: 0 | AS41: 0 | AT41: 0 | AW41: 0 | AX41: 97280.95254 | AY41: 0 | AZ41: 0 | BA41: 0 | BB41: 33260.98744 | BC41: 0 | BD41: 0 | BE41: 0 | BF41: 1126398.956 | BG41: 0 | BH41: 0 | BI41: 0 | BJ41: 0 | BK41: 0 | BL41: 0 | BM41: 0 | BN41: 0 | BO41: 0 | BP41: 0 | BQ41: 0 | BR41: 1256940.896
B42: High Voltage Demand D2 | D42: 0 | E42: 0.0547 | F42: 0 | G42: 0 | H42: 0 | I42: 0.0544 | J42: 0 | K42: 0 | L42: 0 | M42: 59.9909 | N42: 0 | O42: 0 | P42: 0 | Q42: 0 | R42: 0 | S42: 0 | T42: 0 | U42: 0 | V42: 0 | W42: 0 | X42: 0 | Z42: 1 | AA42: 41239204.15 | AB42: 0 | AC42: 0 | AD42: 0 | AE42: 44710906.24 | AF42: 0 | AG42: 0 | AH42: 0 | AI42: 12699.46634 | AJ42: 0 | AK42: 0 | AL42: 0 | AM42: 0 | AN42: 0 | AO42: 0 | AP42: 0 | AQ42: 0 | AR42: 0 | AS42: 0 | AT42: 0 | AW42: 0 | AX42: 22664.698 | AY42: 0 | AZ42: 0 | BA42: 0 | BB42: 24336.1428 | BC42: 0 | BD42: 0 | BE42: 0 | BF42: 761908.1239 | BG42: 0 | BH42: 0 | BI42: 0 | BJ42: 0 | BK42: 0 | BL42: 0 | BM42: 0 | BN42: 0 | BO42: 0 | BP42: 0 | BQ42: 0 | BR42: 808908.9647
B43: High Voltage Demand Docklands | D43: 0 | E43: 0.4219 | F43: 0 | G43: 0 | H43: 0 | I43: 0.2085 | J43: 0 | K43: 0 | L43: 0 | M43: 42.5526 | N43: 0 | O43: 0 | P43: 0 | Q43: 0 | R43: 0 | S43: 0 | T43: 0 | U43: 0 | V43: 0 | W43: 0 | X43: 0 | Z43: 1 | AA43: 1851329.529 | AB43: 0 | AC43: 0 | AD43: 0 | AE43: 791804.467 | AF43: 0 | AG43: 0 | AH43: 0 | AI43: 1000 | AJ43: 0 | AK43: 0 | AL43: 0 | AM43: 0 | AN43: 0 | AO43: 0 | AP43: 0 | AQ43: 0 | AR43: 0 | AS43: 0 | AT43: 0 | AW43: 0 | AX43: 7832.644475 | AY43: 0 | AZ43: 0 | BA43: 0 | BB43: 1650.830143 | BC43: 0 | BD43: 0 | BE43: 0 | BF43: 42552.52 | BG43: 0 | BH43: 0 | BI43: 0 | BJ43: 0 | BK43: 0 | BL43: 0 | BM43: 0 | BN43: 0 | BO43: 0 | BP43: 0 | BQ43: 0 | BR43: 52035.99462
B44: High Voltage Demand D3 | D44: 0 | E44: 0.2777 | F44: 0 | G44: 0 | H44: 0 | I44: 0.0348 | J44: 0 | K44: 0 | L44: 0 | M44: 58.7293 | N44: 0 | O44: 0 | P44: 0 | Q44: 0 | R44: 0 | S44: 0 | T44: 0 | U44: 0 | V44: 0 | W44: 0 | X44: 0 | Z44: 1 | AA44: 10186178.62 | AB44: 0 | AC44: 0 | AD44: 0 | AE44: 16430997.87 | AF44: 0 | AG44: 0 | AH44: 0 | AI44: 11400 | AJ44: 0 | AK44: 0 | AL44: 0 | AM44: 0 | AN44: 0 | AO44: 0 | AP44: 0 | AQ44: 0 | AR44: 0 | AS44: 0 | AT44: 0 | AW44: 0 | AX44: 28460.14652 | AY44: 0 | AZ44: 0 | BA44: 0 | BB44: 5880.511608 | BC44: 0 | BD44: 0 | BE44: 0 | BF44: 669513.832 | BG44: 0 | BH44: 0 | BI44: 0 | BJ44: 0 | BK44: 0 | BL44: 0 | BM44: 0 | BN44: 0 | BO44: 0 | BP44: 0 | BQ44: 0 | BR44: 703854.4901
B45: High Voltage Demand D4 | D45: 0 | E45: 0.0001 | F45: 0 | G45: 0 | H45: 0 | I45: 0.0001 | J45: 0 | K45: 0 | L45: 0 | M45: 0.471 | N45: 0 | O45: 0 | P45: 0 | Q45: 0 | R45: 0 | S45: 0 | T45: 0 | U45: 0 | V45: 0 | W45: 0 | X45: 0 | Z45: 0 | AA45: 0 | AB45: 0 | AC45: 0 | AD45: 0 | AE45: 0 | AF45: 0 | AG45: 0 | AH45: 0 | AI45: 0 | AJ45: 0 | AK45: 0 | AL45: 0 | AM45: 0 | AN45: 0 | AO45: 0 | AP45: 0 | AQ45: 0 | AR45: 0 | AS45: 0 | AT45: 0 | AW45: 0 | AX45: 0 | AY45: 0 | AZ45: 0 | BA45: 0 | BB45: 0 | BC45: 0 | BD45: 0 | BE45: 0 | BF45: 0 | BG45: 0 | BH45: 0 | BI45: 0 | BJ45: 0 | BK45: 0 | BL45: 0 | BM45: 0 | BN45: 0 | BO45: 0 | BP45: 0 | BQ45: 0 | BR45: 0
B46: Subtransmission Demand A | D46: 0 | E46: 0.1429 | F46: 0 | G46: 0 | H46: 0 | I46: 0.0088 | J46: 0 | K46: 0 | L46: 0 | M46: 14.2599 | N46: 0 | O46: 0 | P46: 0 | Q46: 0 | R46: 0 | S46: 0 | T46: 0 | U46: 0 | V46: 0 | W46: 0 | X46: 0 | Z46: 3 | AA46: 72262106.08 | AB46: 0 | AC46: 0 | AD46: 0 | AE46: 48910876.76 | AF46: 0 | AG46: 0 | AH46: 0 | AI46: 51799.83333 | AJ46: 0 | AK46: 0 | AL46: 0 | AM46: 0 | AN46: 0 | AO46: 0 | AP46: 0 | AQ46: 0 | AR46: 0 | AS46: 0 | AT46: 0 | AW46: 0 | AX46: 105869.8818 | AY46: 0 | AZ46: 0 | BA46: 0 | BB46: 4515.439773 | BC46: 0 | BD46: 0 | BE46: 0 | BF46: 738659.4011 | BG46: 0 | BH46: 0 | BI46: 0 | BJ46: 0 | BK46: 0 | BL46: 0 | BM46: 0 | BN46: 0 | BO46: 0 | BP46: 0 | BQ46: 0 | BR46: 849044.7226
B47: Subtransmission Demand G | D47: 0 | E47: 0.1922 | F47: 0 | G47: 0 | H47: 0 | I47: 0.011 | J47: 0 | K47: 0 | L47: 0 | M47: 12.3153 | N47: 0 | O47: 0 | P47: 0 | Q47: 0 | R47: 0 | S47: 0 | T47: 0 | U47: 0 | V47: 0 | W47: 0 | X47: 0 | Z47: 6.916666667 | AA47: 281208160.3 | AB47: 0 | AC47: 0 | AD47: 0 | AE47: 293307668.2 | AF47: 0 | AG47: 0 | AH47: 0 | AI47: 185571.6754 | AJ47: 0 | AK47: 0 | AL47: 0 | AM47: 0 | AN47: 0 | AO47: 0 | AP47: 0 | AQ47: 0 | AR47: 0 | AS47: 0 | AT47: 0 | AW47: 0 | AX47: 536071.0079 | AY47: 0 | AZ47: 0 | BA47: 0 | BB47: 32243.39836 | BC47: 0 | BD47: 0 | BE47: 0 | BF47: 2285363.3 | BG47: 0 | BH47: 0 | BI47: 0 | BJ47: 0 | BK47: 0 | BL47: 0 | BM47: 0 | BN47: 0 | BO47: 0 | BP47: 0 | BQ47: 0 | BR47: 2853677.706
B48: Subtransmission Demand S | D48: 0 | E48: 0.1912 | F48: 0 | G48: 0 | H48: 0 | I48: 0.0106 | J48: 0 | K48: 0 | L48: 0 | M48: 12.3944 | N48: 0 | O48: 0 | P48: 0 | Q48: 0 | R48: 0 | S48: 0 | T48: 0 | U48: 0 | V48: 0 | W48: 0 | X48: 0 | Z48: 2 | AA48: 210354001.8 | AB48: 0 | AC48: 0 | AD48: 0 | AE48: 119220382.1 | AF48: 0 | AG48: 0 | AH48: 0 | AI48: 101974.4913 | AJ48: 0 | AK48: 0 | AL48: 0 | AM48: 0 | AN48: 0 | AO48: 0 | AP48: 0 | AQ48: 0 | AR48: 0 | AS48: 0 | AT48: 0 | AW48: 0 | AX48: 410900.9335 | AY48: 0 | AZ48: 0 | BA48: 0 | BB48: 13465.64663 | BC48: 0 | BD48: 0 | BE48: 0 | BF48: 1263904.464 | BG48: 0 | BH48: 0 | BI48: 0 | BJ48: 0 | BK48: 0 | BL48: 0 | BM48: 0 | BN48: 0 | BO48: 0 | BP48: 0 | BQ48: 0 | BR48: 1688271.044
AW49: 0 | AX49: 0 | AY49: 0 | AZ49: 0 | BA49: 0 | BB49: 0 | BC49: 0 | BD49: 0 | BE49: 0 | BF49: 0 | BG49: 0 | BH49: 0 | BI49: 0 | BJ49: 0 | BK49: 0 | BL49: 0 | BM49: 0 | BN49: 0 | BO49: 0 | BP49: 0 | BQ49: 0 | BR49: 0
AW50: 0 | AX50: 0 | AY50: 0 | AZ50: 0 | BA50: 0 | BB50: 0 | BC50: 0 | BD50: 0 | BE50: 0 | BF50: 0 | BG50: 0 | BH50: 0 | BI50: 0 | BJ50: 0 | BK50: 0 | BL50: 0 | BM50: 0 | BN50: 0 | BO50: 0 | BP50: 0 | BQ50: 0 | BR50: 0
AW51: 0 | AX51: 0 | AY51: 0 | AZ51: 0 | BA51: 0 | BB51: 0 | BC51: 0 | BD51: 0 | BE51: 0 | BF51: 0 | BG51: 0 | BH51: 0 | BI51: 0 | BJ51: 0 | BK51: 0 | BL51: 0 | BM51: 0 | BN51: 0 | BO51: 0 | BP51: 0 | BQ51: 0 | BR51: 0
AW52: 0 | AX52: 0 | AY52: 0 | AZ52: 0 | BA52: 0 | BB52: 0 | BC52: 0 | BD52: 0 | BE52: 0 | BF52: 0 | BG52: 0 | BH52: 0 | BI52: 0 | BJ52: 0 | BK52: 0 | BL52: 0 | BM52: 0 | BN52: 0 | BO52: 0 | BP52: 0 | BQ52: 0 | BR52: 0
AW53: 0 | AX53: 0 | AY53: 0 | AZ53: 0 | BA53: 0 | BB53: 0 | BC53: 0 | BD53: 0 | BE53: 0 | BF53: 0 | BG53: 0 | BH53: 0 | BI53: 0 | BJ53: 0 | BK53: 0 | BL53: 0 | BM53: 0 | BN53: 0 | BO53: 0 | BP53: 0 | BQ53: 0 | BR53: 0
AW54: 0 | AX54: 0 | AY54: 0 | AZ54: 0 | BA54: 0 | BB54: 0 | BC54: 0 | BD54: 0 | BE54: 0 | BF54: 0 | BG54: 0 | BH54: 0 | BI54: 0 | BJ54: 0 | BK54: 0 | BL54: 0 | BM54: 0 | BN54: 0 | BO54: 0 | BP54: 0 | BQ54: 0 | BR54: 0
AW55: 0 | AX55: 0 | AY55: 0 | AZ55: 0 | BA55: 0 | BB55: 0 | BC55: 0 | BD55: 0 | BE55: 0 | BF55: 0 | BG55: 0 | BH55: 0 | BI55: 0 | BJ55: 0 | BK55: 0 | BL55: 0 | BM55: 0 | BN55: 0 | BO55: 0 | BP55: 0 | BQ55: 0 | BR55: 0
AW56: 0 | AX56: 0 | AY56: 0 | AZ56: 0 | BA56: 0 | BB56: 0 | BC56: 0 | BD56: 0 | BE56: 0 | BF56: 0 | BG56: 0 | BH56: 0 | BI56: 0 | BJ56: 0 | BK56: 0 | BL56: 0 | BM56: 0 | BN56: 0 | BO56: 0 | BP56: 0 | BQ56: 0 | BR56: 0
AW57: 0 | AX57: 0 | AY57: 0 | AZ57: 0 | BA57: 0 | BB57: 0 | BC57: 0 | BD57: 0 | BE57: 0 | BF57: 0 | BG57: 0 | BH57: 0 | BI57: 0 | BJ57: 0 | BK57: 0 | BL57: 0 | BM57: 0 | BN57: 0 | BO57: 0 | BP57: 0 | BQ57: 0 | BR57: 0
AW58: 0 | AX58: 0 | AY58: 0 | AZ58: 0 | BA58: 0 | BB58: 0 | BC58: 0 | BD58: 0 | BE58: 0 | BF58: 0 | BG58: 0 | BH58: 0 | BI58: 0 | BJ58: 0 | BK58: 0 | BL58: 0 | BM58: 0 | BN58: 0 | BO58: 0 | BP58: 0 | BQ58: 0 | BR58: 0
AW59: 0 | AX59: 0 | AY59: 0 | AZ59: 0 | BA59: 0 | BB59: 0 | BC59: 0 | BD59: 0 | BE59: 0 | BF59: 0 | BG59: 0 | BH59: 0 | BI59: 0 | BJ59: 0 | BK59: 0 | BL59: 0 | BM59: 0 | BN59: 0 | BO59: 0 | BP59: 0 | BQ59: 0 | BR59: 0
AW60: 0 | AX60: 0 | AY60: 0 | AZ60: 0 | BA60: 0 | BB60: 0 | BC60: 0 | BD60: 0 | BE60: 0 | BF60: 0 | BG60: 0 | BH60: 0 | BI60: 0 | BJ60: 0 | BK60: 0 | BL60: 0 | BM60: 0 | BN60: 0 | BO60: 0 | BP60: 0 | BQ60: 0 | BR60: 0
AW61: 0 | AX61: 0 | AY61: 0 | AZ61: 0 | BA61: 0 | BB61: 0 | BC61: 0 | BD61: 0 | BE61: 0 | BF61: 0 | BG61: 0 | BH61: 0 | BI61: 0 | BJ61: 0 | BK61: 0 | BL61: 0 | BM61: 0 | BN61: 0 | BO61: 0 | BP61: 0 | BQ61: 0 | BR61: 0
AW62: 0 | AX62: 0 | AY62: 0 | AZ62: 0 | BA62: 0 | BB62: 0 | BC62: 0 | BD62: 0 | BE62: 0 | BF62: 0 | BG62: 0 | BH62: 0 | BI62: 0 | BJ62: 0 | BK62: 0 | BL62: 0 | BM62: 0 | BN62: 0 | BO62: 0 | BP62: 0 | BQ62: 0 | BR62: 0
AW63: 0 | AX63: 0 | AY63: 0 | AZ63: 0 | BA63: 0 | BB63: 0 | BC63: 0 | BD63: 0 | BE63: 0 | BF63: 0 | BG63: 0 | BH63: 0 | BI63: 0 | BJ63: 0 | BK63: 0 | BL63: 0 | BM63: 0 | BN63: 0 | BO63: 0 | BP63: 0 | BQ63: 0 | BR63: 0
AW64: 0 | AX64: 0 | AY64: 0 | AZ64: 0 | BA64: 0 | BB64: 0 | BC64: 0 | BD64: 0 | BE64: 0 | BF64: 0 | BG64: 0 | BH64: 0 | BI64: 0 | BJ64: 0 | BK64: 0 | BL64: 0 | BM64: 0 | BN64: 0 | BO64: 0 | BP64: 0 | BQ64: 0 | BR64: 0
AW65: 0 | AX65: 0 | AY65: 0 | AZ65: 0 | BA65: 0 | BB65: 0 | BC65: 0 | BD65: 0 | BE65: 0 | BF65: 0 | BG65: 0 | BH65: 0 | BI65: 0 | BJ65: 0 | BK65: 0 | BL65: 0 | BM65: 0 | BN65: 0 | BO65: 0 | BP65: 0 | BQ65: 0 | BR65: 0
AW66: 0 | AX66: 0 | AY66: 0 | AZ66: 0 | BA66: 0 | BB66: 0 | BC66: 0 | BD66: 0 | BE66: 0 | BF66: 0 | BG66: 0 | BH66: 0 | BI66: 0 | BJ66: 0 | BK66: 0 | BL66: 0 | BM66: 0 | BN66: 0 | BO66: 0 | BP66: 0 | BQ66: 0 | BR66: 0
Z67: =SUM(Z7:Z66) -> 999328.25 | AA67: 4921017104 | AB67: 1130580267 | AC67: 412608877.9 | AD67: 220702843.3 | AE67: 3995905325 | AF67: 0 | AG67: 0 | AH67: 0 | AI67: 1644680.651 | AJ67: 0 | AK67: 0 | AL67: 0 | AM67: =SUM(AM7:AM66) -> 5509930.364 | AN67: 3868143.171 | AO67: 5972738.299 | AP67: 0 | AQ67: 5826944.799 | AR67: 4486050.041 | AS67: 6176795.714 | AT67: 0 | AW67: =SUM(AW7:AW66) -> 83278873.83 | AX67: 163363808.1 | AY67: 113646956.1 | AZ67: 58853001.18 | BA67: 38022307.13 | BB67: 44972546.98 | BC67: 0 | BD67: 0 | BE67: 0 | BF67: 137460017.8 | BG67: 0 | BH67: 0 | BI67: 0 | BJ67: =SUM(BJ7:BJ66) -> 428758.5573 | BK67: 212511.2353 | BL67: 59151.012 | BM67: 0 | BN67: 498848.8418 | BO67: 271808.4337 | BP67: 72192.85914 | BQ67: 0 | BR67: =SUM(AW67:BQ67) -> 641140782
AW69: 0 | AX69: 0 | AY69: 0 | AZ69: 0 | BA69: 0 | BB69: 0 | BC69: 0 | BD69: 0 | BE69: 0 | BF69: 0 | BG69: 0 | BH69: 0 | BI69: 0 | BJ69: 0 | BK69: 0 | BL69: 0 | BM69: 0 | BN69: 0 | BO69: 0 | BP69: 0 | BQ69: 0 | BR69: 0
B70: Definitions
B71: All information must be reported consistent the terms used in the DNSPs pricing proposal

Sheet 26. Actual t-2 Trans Tariff
B1: =Cover!E22 -> Powercor Australia Ltd
B2: Tariff Quantity Data Template (Actual t-2) Transmission Tariff Revenue
B3: =Cover!E26 -> 2015
B5: Templates 24 to 29 collect data required for annual pricing proposals. T-2 requires actual information for the reporting year.
D6: Transmission Tariffs (Pt-2) | Z6: Actual Quantities (Qt-2) | AW6: Actual Revenue (P-2)*(Qt-2)
B7: Tariffs t-2 | D7: (t-2)Tar Fixed | E7: (t-2)Tar PkBlk1 | F7: (t-2)Tar PkBlk2 | G7: (t-2)Tar PkBlk3 | H7: (t-2)Tar PkBlk4 | I7: (t-2)Tar OPkBlk1 | J7: (t-2)Tar OPkBlk2 | K7: (t-2)Tar OPkBlk3 | L7: (t-2)Tar OPkBlk4 | M7: (t-2)Tar DemBlk1 | N7: (t-2)Tar DemBlk2 | O7: (t-2)Tar DemBlk3 | P7: (t-2)Tar DemBlk4 | Q7: (t-2)Tar SumBlk1 | R7: (t-2)Tar SumBlk2 | S7: (t-2)Tar SumBlk3 | T7: (t-2)Tar SumBlk4 | U7: (t-2)Tar WtrBlk1 | V7: (t-2)Tar WtrBlk2 | W7: (t-2)Tar WtrBlk3 | X7: (t-2)Tar WtrBlk4 | Z7: ActVol Fixed | AA7: ActVol PkBlk1 | AB7: ActVol PkBlk2 | AC7: ActVol PkBlk3 | AD7: ActVol PkBlk4 | AE7: ActVol OPkBlk1 | AF7: ActVol OPkBlk2 | AG7: ActVol OPkBlk3 | AH7: ActVol OPkBlk4 | AI7: ActVol DemBlk1 | AJ7: ActVol DemBlk2 | AK7: ActVol DemBlk3 | AL7: ActVol DemBlk4 | AM7: (t-2)Tar SumBlk1 | AN7: (t-2)Tar SumBlk2 | AO7: (t-2)Tar SumBlk3 | AP7: (t-2)Tar SumBlk4 | AQ7: (t-2)Tar WtrBlk1 | AR7: (t-2)Tar WtrBlk2 | AS7: (t-2)Tar WtrBlk3 | AT7: (t-2)Tar WtrBlk4 | AW7: ActRev Fixed | AX7: ActRev PkBlk1 | AY7: ActRev PkBlk2 | AZ7: ActRev PkBlk3 | BA7: ActRev PkBlk4 | BB7: ActRev OPkBlk1 | BC7: ActRev OPkBlk2 | BD7: ActRev OPkBlk3 | BE7: ActRev OPkBlk4 | BF7: ActRev DemBlk1 | BG7: ActRev DemBlk2 | BH7: ActRev DemBlk3 | BI7: ActRev DemBlk4 | BJ7: (t-2)Tar SumBlk1 | BK7: (t-2)Tar SumBlk2 | BL7: (t-2)Tar SumBlk3 | BM7: (t-2)Tar SumBlk4 | BN7: (t-2)Tar WtrBlk1 | BO7: (t-2)Tar WtrBlk2 | BP7: (t-2)Tar WtrBlk3 | BQ7: (t-2)Tar WtrBlk4 | BR7: ActRev Total
AW8: =D8*Z8 -> 0 | AX8: =E8/100*AA8 -> 0 | AY8: =F8/100*AB8 -> 0 | AZ8: =G8/100*AC8 -> 0 | BA8: =H8/100*AD8 -> 0 | BB8: =I8/100*AE8 -> 0 | BC8: =J8/100*AF8 -> 0 | BD8: =K8/100*AG8 -> 0 | BE8: =L8/100*AH8 -> 0 | BF8: =M8*AI8 -> 0 | BG8: =N8*AJ8 -> 0 | BH8: =O8*AK8 -> 0 | BI8: =P8*AL8 -> 0 | BJ8: =Q8/100*AM8 -> 0 | BK8: =R8/100*AN8 -> 0 | BL8: =S8/100*AO8 -> 0 | BM8: =T8/100*AP8 -> 0 | BN8: 0 | BO8: 0 | BP8: 0 | BQ8: =X8*AT8 -> 0 | BR8: =SUM(AW8:BQ8) -> 0
B9: Residential Single Rate | D9: 0.0001 | E9: 3.507 | F9: 0.0001 | G9: 0.0001 | H9: 0.0001 | I9: 0 | J9: 0 | K9: 0 | L9: 0 | M9: 0 | N9: 0 | O9: 0 | P9: 0 | Q9: 0 | R9: 0 | S9: 0 | T9: 0 | U9: 0 | V9: 0 | W9: 0 | X9: 0 | Z9: 504369.9167 | AA9: 1476110594 | AB9: 630771847.7 | AC9: 24097791.57 | AD9: 1794825.524 | AE9: 424.650006 | AF9: 0 | AG9: 0 | AH9: 0 | AI9: 0 | AJ9: 0 | AK9: 0 | AL9: 0 | AM9: 0 | AN9: 0 | AO9: 0 | AP9: 0 | AQ9: 0 | AR9: 0 | AS9: 0 | AT9: 0 | AW9: 50.43699167 | AX9: 51767198.54 | AY9: 630.7718477 | AZ9: 24.09779157 | BA9: 1.794825524 | BB9: 0 | BC9: 0 | BD9: 0 | BE9: 0 | BF9: 0 | BG9: 0 | BH9: 0 | BI9: 0 | BJ9: 0 | BK9: 0 | BL9: 0 | BM9: 0 | BN9: 0 | BO9: 0 | BP9: 0 | BQ9: 0 | BR9: =SUM(AW9:BQ9) -> 51767905.64
B10: Climate Saver | D10: 0 | E10: 0.0001 | F10: 0.0001 | G10: 0.0002 | H10: 0.0001 | I10: 0.0001 | J10: 0 | K10: 0 | L10: 0 | M10: 0 | N10: 0 | O10: 0 | P10: 0 | Q10: 0 | R10: 0 | S10: 0 | T10: 0 | U10: 0 | V10: 0 | W10: 0 | X10: 0 | Z10: 17209.91667 | AA10: 6135435.703 | AB10: 1674066.618 | AC10: 42279.6989 | AD10: 0 | AE10: 19268326.92 | AF10: 0 | AG10: 0 | AH10: 0 | AI10: 0 | AJ10: 0 | AK10: 0 | AL10: 0 | AM10: 0 | AN10: 0 | AO10: 0 | AP10: 0 | AQ10: 0 | AR10: 0 | AS10: 0 | AT10: 0 | AW10: 0 | AX10: 6.135435703 | AY10: 1.674066618 | AZ10: 0.08455939779 | BA10: 0 | BB10: 19.26832692 | BC10: 0 | BD10: 0 | BE10: 0 | BF10: 0 | BG10: 0 | BH10: 0 | BI10: 0 | BJ10: 0 | BK10: 0 | BL10: 0 | BM10: 0 | BN10: 0 | BO10: 0 | BP10: 0 | BQ10: 0 | BR10: 27.16238863
B11: Climate Saver Interval | D11: 0 | E11: 0.0001 | F11: 0.0001 | G11: 0.0002 | H11: 0.0001 | I11: 0.0001 | J11: 0 | K11: 0 | L11: 0 | M11: 0 | N11: 0 | O11: 0 | P11: 0 | Q11: 0 | R11: 0 | S11: 0 | T11: 0 | U11: 0 | V11: 0 | W11: 0 | X11: 0 | Z11: 4665 | AA11: 1769178.679 | AB11: 467691.2106 | AC11: 17312.92767 | AD11: 0 | AE11: 6161331.394 | AF11: 0 | AG11: 0 | AH11: 0 | AI11: 0 | AJ11: 0 | AK11: 0 | AL11: 0 | AM11: 0 | AN11: 0 | AO11: 0 | AP11: 0 | AQ11: 0 | AR11: 0 | AS11: 0 | AT11: 0 | AW11: 0 | AX11: 1.769178679 | AY11: 0.4676912106 | AZ11: 0.03462585534 | BA11: 0 | BB11: 6.161331394 | BC11: 0 | BD11: 0 | BE11: 0 | BF11: 0 | BG11: 0 | BH11: 0 | BI11: 0 | BJ11: 0 | BK11: 0 | BL11: 0 | BM11: 0 | BN11: 0 | BO11: 0 | BP11: 0 | BQ11: 0 | BR11: 8.432827139
B12: Residential - Flexible Pricing | D12: 15.5791 | E12: 0 | F12: 0 | G12: 0 | H12: 0 | I12: 0 | J12: 0 | K12: 0 | L12: 0 | M12: 0 | N12: 0 | O12: 0 | P12: 0 | Q12: 0.0002 | R12: 0.0001 | S12: 0.6842 | T12: 0 | U12: 0.0002 | V12: 0.0001 | W12: 0.6842 | X12: 0 | Z12: 2598 | AA12: 0 | AB12: 0 | AC12: 0 | AD12: 0 | AE12: 454.6394868 | AF12: 0 | AG12: 0 | AH12: 0 | AI12: 0 | AJ12: 0 | AK12: 0 | AL12: 0 | AM12: 1212624.142 | AN12: 2415738.363 | AO12: 1750987.528 | AP12: 0 | AQ12: 1611357.698 | AR12: 3233079.403 | AS12: 2453279.158 | AT12: 0 | AW12: 40474.5018 | AX12: 0 | AY12: 0 | AZ12: 0 | BA12: 0 | BB12: 0 | BC12: 0 | BD12: 0 | BE12: 0 | BF12: 0 | BG12: 0 | BH12: 0 | BI12: 0 | BJ12: 2.425248284 | BK12: 2.415738363 | BL12: 11980.25667 | BM12: 0 | BN12: 3.222715396 | BO12: 3.233079403 | BP12: 16785.336 | BQ12: 0 | BR12: 69251.39125
B13: Residential Docklands - Flexible Pricing | D13: 0.0001 | E13: 0 | F13: 0 | G13: 0 | H13: 0 | I13: 0 | J13: 0 | K13: 0 | L13: 0 | M13: 0 | N13: 0 | O13: 0 | P13: 0 | Q13: 0.0001 | R13: 0.0001 | S13: 0.0001 | T13: 0 | U13: 0.0001 | V13: 0.0001 | W13: 0.0001 | X13: 0 | Z13: 1 | AA13: 0 | AB13: 0 | AC13: 0 | AD13: 0 | AE13: 0 | AF13: 0 | AG13: 0 | AH13: 0 | AI13: 0 | AJ13: 0 | AK13: 0 | AL13: 0 | AM13: 601.9986548 | AN13: 1245.533087 | AO13: 873.9156604 | AP13: 0 | AQ13: 694.3836112 | AR13: 1203.542763 | AS13: 811.1085516 | AT13: 0 | AW13: 0.0001 | AX13: 0 | AY13: 0 | AZ13: 0 | BA13: 0 | BB13: 0 | BC13: 0 | BD13: 0 | BE13: 0 | BF13: 0 | BG13: 0 | BH13: 0 | BI13: 0 | BJ13: 0.0006019986548 | BK13: 0.001245533087 | BL13: 0.0008739156604 | BM13: 0 | BN13: 0.0006943836112 | BO13: 0.001203542763 | BP13: 0.0008111085516 | BQ13: 0 | BR13: 0.005530482328
B14: Climate Saver - Flexible Pricing | D14: 0 | E14: 0 | F14: 0 | G14: 0 | H14: 0 | I14: 0 | J14: 0 | K14: 0 | L14: 0 | M14: 0 | N14: 0 | O14: 0 | P14: 0 | Q14: 7.5423 | R14: 0 | S14: 0 | T14: 0 | U14: 0.0001 | V14: 0 | W14: 0 | X14: 0 | Z14: 0 | AA14: 0 | AB14: 0 | AC14: 0 | AD14: 0 | AE14: 0 | AF14: 0 | AG14: 0 | AH14: 0 | AI14: 0 | AJ14: 0 | AK14: 0 | AL14: 0 | AM14: 0 | AN14: 0 | AO14: 0 | AP14: 0 | AQ14: 0 | AR14: 0 | AS14: 0 | AT14: 0 | AW14: 0 | AX14: 0 | AY14: 0 | AZ14: 0 | BA14: 0 | BB14: 0 | BC14: 0 | BD14: 0 | BE14: 0 | BF14: 0 | BG14: 0 | BH14: 0 | BI14: 0 | BJ14: 0 | BK14: 0 | BL14: 0 | BM14: 0 | BN14: 0 | BO14: 0 | BP14: 0 | BQ14: 0 | BR14: 0
B15: Docklands single rate | D15: 0.0001 | E15: 0.0001 | F15: 0 | G15: 0 | H15: 0 | I15: 0 | J15: 0 | K15: 0 | L15: 0 | M15: 0 | N15: 0 | O15: 0 | P15: 0 | Q15: 0 | R15: 0 | S15: 0 | T15: 0 | U15: 0 | V15: 0 | W15: 0 | X15: 0 | Z15: 0 | AA15: 0 | AB15: 0 | AC15: 0 | AD15: 0 | AE15: 0 | AF15: 0 | AG15: 0 | AH15: 0 | AI15: 0 | AJ15: 0 | AK15: 0 | AL15: 0 | AM15: 0 | AN15: 0 | AO15: 0 | AP15: 0 | AQ15: 0 | AR15: 0 | AS15: 0 | AT15: 0 | AW15: 0 | AX15: 0 | AY15: 0 | AZ15: 0 | BA15: 0 | BB15: 0 | BC15: 0 | BD15: 0 | BE15: 0 | BF15: 0 | BG15: 0 | BH15: 0 | BI15: 0 | BJ15: 0 | BK15: 0 | BL15: 0 | BM15: 0 | BN15: 0 | BO15: 0 | BP15: 0 | BQ15: 0 | BR15: 0
B16: Residential Two Rate 5d | D16: 0.0002 | E16: 0.0001 | F16: 0.0001 | G16: 0.0001 | H16: 8.1796 | I16: 0.194 | J16: 0 | K16: 0 | L16: 0 | M16: 0 | N16: 0 | O16: 0 | P16: 0 | Q16: 0 | R16: 0 | S16: 0 | T16: 0 | U16: 0 | V16: 0 | W16: 0 | X16: 0 | Z16: 45863.08333 | AA16: 103730582.9 | AB16: 23255073.11 | AC16: 702230.566 | AD16: 37242.01098 | AE16: 112793275.3 | AF16: 0 | AG16: 0 | AH16: 0 | AI16: 0 | AJ16: 0 | AK16: 0 | AL16: 0 | AM16: 0 | AN16: 0 | AO16: 0 | AP16: 0 | AQ16: 0 | AR16: 0 | AS16: 0 | AT16: 0 | AW16: 9.172616667 | AX16: 103.7305829 | AY16: 23.25507311 | AZ16: 0.702230566 | BA16: 3046.24753 | BB16: 218818.9541 | BC16: 0 | BD16: 0 | BE16: 0 | BF16: 0 | BG16: 0 | BH16: 0 | BI16: 0 | BJ16: 0 | BK16: 0 | BL16: 0 | BM16: 0 | BN16: 0 | BO16: 0 | BP16: 0 | BQ16: 0 | BR16: 222002.0621
B17: Docklands Two Rate 5d | D17: 0.0001 | E17: 0.0001 | F17: 0.0001 | G17: 0.0001 | H17: 0.0001 | I17: 0.0002 | J17: 0 | K17: 0 | L17: 0 | M17: 0 | N17: 0 | O17: 0 | P17: 0 | Q17: 0 | R17: 0 | S17: 0 | T17: 0 | U17: 0 | V17: 0 | W17: 0 | X17: 0 | Z17: 589.25 | AA17: 1596336.182 | AB17: 293414.2963 | AC17: 63032.03079 | AD17: 0 | AE17: 1786134.474 | AF17: 0 | AG17: 0 | AH17: 0 | AI17: 0 | AJ17: 0 | AK17: 0 | AL17: 0 | AM17: 0 | AN17: 0 | AO17: 0 | AP17: 0 | AQ17: 0 | AR17: 0 | AS17: 0 | AT17: 0 | AW17: 0.058925 | AX17: 1.596336182 | AY17: 0.2934142963 | AZ17: 0.06303203079 | BA17: 0 | BB17: 3.572268949 | BC17: 0 | BD17: 0 | BE17: 0 | BF17: 0 | BG17: 0 | BH17: 0 | BI17: 0 | BJ17: 0 | BK17: 0 | BL17: 0 | BM17: 0 | BN17: 0 | BO17: 0 | BP17: 0 | BQ17: 0 | BR17: 5.583976458
B18: Residential Interval | D18: 0.0002 | E18: 0.0001 | F18: 0.0001 | G18: 0.0001 | H18: 8.1796 | I18: 0.194 | J18: 0 | K18: 0 | L18: 0 | M18: 0 | N18: 0 | O18: 0 | P18: 0 | Q18: 0 | R18: 0 | S18: 0 | T18: 0 | U18: 0 | V18: 0 | W18: 0 | X18: 0 | Z18: 108902.6667 | AA18: 228972466.3 | AB18: 43414295.52 | AC18: 1770490.829 | AD18: 61231.3545 | AE18: 287128104.4 | AF18: 0 | AG18: 0 | AH18: 0 | AI18: 0 | AJ18: 0 | AK18: 0 | AL18: 0 | AM18: 0 | AN18: 0 | AO18: 0 | AP18: 0 | AQ18: 0 | AR18: 0 | AS18: 0 | AT18: 0 | AW18: 21.78053333 | AX18: 228.9724663 | AY18: 43.41429552 | AZ18: 1.770490829 | BA18: 5008.479873 | BB18: 557028.5226 | BC18: 0 | BD18: 0 | BE18: 0 | BF18: 0 | BG18: 0 | BH18: 0 | BI18: 0 | BJ18: 0 | BK18: 0 | BL18: 0 | BM18: 0 | BN18: 0 | BO18: 0 | BP18: 0 | BQ18: 0 | BR18: 562332.9403
B19: Residential Two Rate 5d - controlled load | D19: 0 | E19: 0 | F19: 0 | G19: 0 | H19: 0 | I19: 0.194 | J19: 0 | K19: 0 | L19: 0 | M19: 0 | N19: 0 | O19: 0 | P19: 0 | Q19: 0 | R19: 0 | S19: 0 | T19: 0 | U19: 0 | V19: 0 | W19: 0 | X19: 0 | Z19: 43362.91667 | AA19: 0 | AB19: 0 | AC19: 0 | AD19: 0 | AE19: 87770252.78 | AF19: 0 | AG19: 0 | AH19: 0 | AI19: 0 | AJ19: 0 | AK19: 0 | AL19: 0 | AM19: 0 | AN19: 0 | AO19: 0 | AP19: 0 | AQ19: 0 | AR19: 0 | AS19: -1939.2802 | AT19: 0 | AW19: 0 | AX19: 0 | AY19: 0 | AZ19: 0 | BA19: 0 | BB19: 170274.2904 | BC19: 0 | BD19: 0 | BE19: 0 | BF19: 0 | BG19: 0 | BH19: 0 | BI19: 0 | BJ19: 0 | BK19: 0 | BL19: 0 | BM19: 0 | BN19: 0 | BO19: 0 | BP19: 0 | BQ19: 0 | BR19: 170274.2904
B20: Docklands Two Rate 5d - controlled load | D20: 0 | E20: 0 | F20: 0 | G20: 0 | H20: 0 | I20: 0.0002 | J20: 0 | K20: 0 | L20: 0 | M20: 0 | N20: 0 | O20: 0 | P20: 0 | Q20: 0 | R20: 0 | S20: 0 | T20: 0 | U20: 0 | V20: 0 | W20: 0 | X20: 0 | Z20: 70.66666667 | AA20: 0 | AB20: 0 | AC20: 0 | AD20: 0 | AE20: 126903.9561 | AF20: 0 | AG20: 0 | AH20: 0 | AI20: 0 | AJ20: 0 | AK20: 0 | AL20: 0 | AM20: 0 | AN20: 0 | AO20: 0 | AP20: 0 | AQ20: 0 | AR20: 0 | AS20: 0 | AT20: 0 | AW20: 0 | AX20: 0 | AY20: 0 | AZ20: 0 | BA20: 0 | BB20: 0.2538079122 | BC20: 0 | BD20: 0 | BE20: 0 | BF20: 0 | BG20: 0 | BH20: 0 | BI20: 0 | BJ20: 0 | BK20: 0 | BL20: 0 | BM20: 0 | BN20: 0 | BO20: 0 | BP20: 0 | BQ20: 0 | BR20: 0.2538079122
B21: Dedicated circuit | D21: 0 | E21: 0 | F21: 0 | G21: 0 | H21: 0 | I21: 0.0001 | J21: 0 | K21: 0 | L21: 0 | M21: 0 | N21: 0 | O21: 0 | P21: 0 | Q21: 0 | R21: 0 | S21: 0 | T21: 0 | U21: 0 | V21: 0 | W21: 0 | X21: 0 | Z21: 160536.75 | AA21: 0 | AB21: 0 | AC21: 0 | AD21: 0 | AE21: 335946183.7 | AF21: 0 | AG21: 0 | AH21: 0 | AI21: 0 | AJ21: 0 | AK21: 0 | AL21: 0 | AM21: 0 | AN21: 0 | AO21: -86.92 | AP21: 0 | AQ21: 0 | AR21: 0 | AS21: -15989.1452 | AT21: 0 | AW21: 0 | AX21: 0 | AY21: 0 | AZ21: 0 | BA21: 0 | BB21: 335.9461837 | BC21: 0 | BD21: 0 | BE21: 0 | BF21: 0 | BG21: 0 | BH21: 0 | BI21: 0 | BJ21: 0 | BK21: 0 | BL21: 0 | BM21: 0 | BN21: 0 | BO21: 0 | BP21: 0 | BQ21: 0 | BR21: 335.9461837
B22: Hot Water Interval | D22: 0 | E22: 0 | F22: 0 | G22: 0 | H22: 0 | I22: 0.0001 | J22: 0 | K22: 0 | L22: 0 | M22: 0 | N22: 0 | O22: 0 | P22: 0 | Q22: 0 | R22: 0 | S22: 0 | T22: 0 | U22: 0 | V22: 0 | W22: 0 | X22: 0 | Z22: 5563.666667 | AA22: 9.4947368 | AB22: 0 | AC22: 0 | AD22: 0 | AE22: 11051226.15 | AF22: 0 | AG22: 0 | AH22: 0 | AI22: 0 | AJ22: 0 | AK22: 0 | AL22: 0 | AM22: 0 | AN22: 0 | AO22: 0 | AP22: 0 | AQ22: 0 | AR22: 0 | AS22: -111.777 | AT22: 0 | AW22: 0 | AX22: 0 | AY22: 0 | AZ22: 0 | BA22: 0 | BB22: 11.05122615 | BC22: 0 | BD22: 0 | BE22: 0 | BF22: 0 | BG22: 0 | BH22: 0 | BI22: 0 | BJ22: 0 | BK22: 0 | BL22: 0 | BM22: 0 | BN22: 0 | BO22: 0 | BP22: 0 | BQ22: 0 | BR22: 11.05122615
B23: Non-Residential Single Rate | D23: 0.0001 | E23: 0.0002 | F23: 0.0001 | G23: 0.0001 | H23: 0.0001 | I23: 0 | J23: 0 | K23: 0 | L23: 0 | M23: 0 | N23: 0 | O23: 0 | P23: 0 | Q23: 0 | R23: 0 | S23: 0 | T23: 0 | U23: 0 | V23: 0 | W23: 0 | X23: 0 | Z23: 42320.08333 | AA23: 86248274.11 | AB23: 113884103.5 | AC23: 68616229.44 | AD23: 28784854.75 | AE23: 0 | AF23: 0 | AG23: 0 | AH23: 0 | AI23: 0 | AJ23: 0 | AK23: 0 | AL23: 0 | AM23: 0 | AN23: 0 | AO23: 0 | AP23: 0 | AQ23: 0 | AR23: 0 | AS23: 0 | AT23: 0 | AW23: 4.232008333 | AX23: 172.4965482 | AY23: 113.8841035 | AZ23: 68.61622944 | BA23: 28.78485475 | BB23: 0 | BC23: 0 | BD23: 0 | BE23: 0 | BF23: 0 | BG23: 0 | BH23: 0 | BI23: 0 | BJ23: 0 | BK23: 0 | BL23: 0 | BM23: 0 | BN23: 0 | BO23: 0 | BP23: 0 | BQ23: 0 | BR23: 388.0137442
B24: Non-Residential | D24: 70.3912 | E24: 0 | F24: 0 | G24: 0 | H24: 0 | I24: 0 | J24: 0 | K24: 0 | L24: 0 | M24: 0 | N24: 0 | O24: 0 | P24: 0 | Q24: 10.4946 | R24: 0.0001 | S24: 0.0001 | T24: 0 | U24: 10.4946 | V24: 0.0001 | W24: 0.0001 | X24: 0 | Z24: 237.4166667 | AA24: 0 | AB24: 0 | AC24: 0 | AD24: 0 | AE24: 0 | AF24: 0 | AG24: 0 | AH24: 0 | AI24: 0 | AJ24: 0 | AK24: 0 | AL24: 0 | AM24: 4296704.223 | AN24: 1451159.274 | AO24: 4220963.775 | AP24: 0 | AQ24: 4214892.717 | AR24: 1251767.095 | AS24: 3740745.65 | AT24: 0 | AW24: 16712.04407 | AX24: 0 | AY24: 0 | AZ24: 0 | BA24: 0 | BB24: 0 | BC24: 0 | BD24: 0 | BE24: 0 | BF24: 0 | BG24: 0 | BH24: 0 | BI24: 0 | BJ24: 450921.9214 | BK24: 1.451159274 | BL24: 4.220963775 | BM24: 0 | BN24: 442336.1311 | BO24: 1.251767095 | BP24: 3.74074565 | BQ24: 0 | BR24: 909980.7612
B25: Non-Residential Two Rate 5d | D25: 0.0002 | E25: 0.5918 | F25: 0.759 | G25: 0.0001 | H25: 0.0001 | I25: 0.7747 | J25: 0 | K25: 0 | L25: 0 | M25: 0 | N25: 0 | O25: 0 | P25: 0 | Q25: 0 | R25: 0 | S25: 0 | T25: 0 | U25: 0 | V25: 0 | W25: 0 | X25: 0 | Z25: 30886.16667 | AA25: 86939950.3 | AB25: 197987235 | AC25: 203496265.8 | AD25: 119527984.2 | AE25: 523674357.6 | AF25: 0 | AG25: 0 | AH25: 0 | AI25: 0 | AJ25: 0 | AK25: 0 | AL25: 0 | AM25: 0 | AN25: 0 | AO25: 0 | AP25: 0 | AQ25: 0 | AR25: 0 | AS25: 0 | AT25: 0 | AW25: 6.177233333 | AX25: 514510.6259 | AY25: 1502723.114 | AZ25: 203.4962658 | BA25: 119.5279842 | BB25: 4056905.248 | BC25: 0 | BD25: 0 | BE25: 0 | BF25: 0 | BG25: 0 | BH25: 0 | BI25: 0 | BJ25: 0 | BK25: 0 | BL25: 0 | BM25: 0 | BN25: 0 | BO25: 0 | BP25: 0 | BQ25: 0 | BR25: 6074468.189
B26: Non-Residential Interval | D26: 0.0002 | E26: 0.5918 | F26: 0.759 | G26: 0.0001 | H26: 0.0001 | I26: 0.7747 | J26: 0 | K26: 0 | L26: 0 | M26: 0 | N26: 0 | O26: 0 | P26: 0 | Q26: 0 | R26: 0 | S26: 0 | T26: 0 | U26: 0 | V26: 0 | W26: 0 | X26: 0 | Z26: 14568.5 | AA26: 38633648.57 | AB26: 77898526.77 | AC26: 77001036.21 | AD26: 42456188.39 | AE26: 167185799.6 | AF26: 0 | AG26: 0 | AH26: 0 | AI26: 0 | AJ26: 0 | AK26: 0 | AL26: 0 | AM26: 0 | AN26: 0 | AO26: 0 | AP26: 0 | AQ26: 0 | AR26: 0 | AS26: 0 | AT26: 0 | AW26: 2.9137 | AX26: 228633.9322 | AY26: 591249.8182 | AZ26: 77.00103621 | BA26: 42.45618839 | BB26: 1295188.389 | BC26: 0 | BD26: 0 | BE26: 0 | BF26: 0 | BG26: 0 | BH26: 0 | BI26: 0 | BJ26: 0 | BK26: 0 | BL26: 0 | BM26: 0 | BN26: 0 | BO26: 0 | BP26: 0 | BQ26: 0 | BR26: 2115194.511
B27: Non-Residential Two Rate 7d | D27: 0.0001 | E27: 2.8767 | F27: 0.0001 | G27: 0.0001 | H27: 0.0001 | I27: 0.0001 | J27: 0 | K27: 0 | L27: 0 | M27: 0 | N27: 0 | O27: 0 | P27: 0 | Q27: 0 | R27: 0 | S27: 0 | T27: 0 | U27: 0 | V27: 0 | W27: 0 | X27: 0 | Z27: 8415.75 | AA27: 21245022.34 | AB27: 40934013.53 | AC27: 36802208.84 | AD27: 28040517.03 | AE27: 47347310.83 | AF27: 0 | AG27: 0 | AH27: 0 | AI27: 0 | AJ27: 0 | AK27: 0 | AL27: 0 | AM27: 0 | AN27: 0 | AO27: 0 | AP27: 0 | AQ27: 0 | AR27: 0 | AS27: 0 | AT27: 0 | AW27: 0.841575 | AX27: 611155.5577 | AY27: 40.93401353 | AZ27: 36.80220884 | BA27: 28.04051703 | BB27: 47.34731083 | BC27: 0 | BD27: 0 | BE27: 0 | BF27: 0 | BG27: 0 | BH27: 0 | BI27: 0 | BJ27: 0 | BK27: 0 | BL27: 0 | BM27: 0 | BN27: 0 | BO27: 0 | BP27: 0 | BQ27: 0 | BR27: 611309.5233
B28: Public Lighting | D28: 0 | E28: 1.8475 | F28: 0 | G28: 0 | H28: 0 | I28: 0.0001 | J28: 0 | K28: 0 | L28: 0 | M28: 0 | N28: 0 | O28: 0 | P28: 0 | Q28: 0 | R28: 0 | S28: 0 | T28: 0 | U28: 0 | V28: 0 | W28: 0 | X28: 0 | Z28: 6368.833333 | AA28: 26137653.47 | AB28: 0 | AC28: 0 | AD28: 0 | AE28: 64638411.36 | AF28: 0 | AG28: 0 | AH28: 0 | AI28: 0 | AJ28: 0 | AK28: 0 | AL28: 0 | AM28: 0 | AN28: 0 | AO28: 0 | AP28: 0 | AQ28: 0 | AR28: 0 | AS28: 0 | AT28: 0 | AW28: 0 | AX28: 482893.1478 | AY28: 0 | AZ28: 0 | BA28: 0 | BB28: 64.63841136 | BC28: 0 | BD28: 0 | BE28: 0 | BF28: 0 | BG28: 0 | BH28: 0 | BI28: 0 | BJ28: 0 | BK28: 0 | BL28: 0 | BM28: 0 | BN28: 0 | BO28: 0 | BP28: 0 | BQ28: 0 | BR28: 482957.7862
B29: Large Low Voltage Demand | D29: 0 | E29: 0.751 | F29: 0 | G29: 0 | H29: 0 | I29: 2.1073 | J29: 0 | K29: 0 | L29: 0 | M29: 22.773 | N29: 0 | O29: 0 | P29: 0 | Q29: 0 | R29: 0 | S29: 0 | T29: 0 | U29: 0 | V29: 0 | W29: 0 | X29: 0 | Z29: 923.0833333 | AA29: 688852034.8 | AB29: 0 | AC29: 0 | AD29: 0 | AE29: 533707665.6 | AF29: 0 | AG29: 0 | AH29: 0 | AI29: 437248.3932 | AJ29: 0 | AK29: 0 | AL29: 0 | AM29: 0 | AN29: 0 | AO29: 0 | AP29: 0 | AQ29: 0 | AR29: 0 | AS29: 0 | AT29: 0 | AW29: 0 | AX29: 5173278.781 | AY29: 0 | AZ29: 0 | BA29: 0 | BB29: 11246821.64 | BC29: 0 | BD29: 0 | BE29: 0 | BF29: 9957457.658 | BG29: 0 | BH29: 0 | BI29: 0 | BJ29: 0 | BK29: 0 | BL29: 0 | BM29: 0 | BN29: 0 | BO29: 0 | BP29: 0 | BQ29: 0 | BR29: 26377558.08
B30: Large Low Voltage Demand A | D30: 0 | E30: 0.0001 | F30: 0 | G30: 0 | H30: 0 | I30: 0.0001 | J30: 0 | K30: 0 | L30: 0 | M30: 40.6299 | N30: 0 | O30: 0 | P30: 0 | Q30: 0 | R30: 0 | S30: 0 | T30: 0 | U30: 0 | V30: 0 | W30: 0 | X30: 0 | Z30: 0 | AA30: 0 | AB30: 0 | AC30: 0 | AD30: 0 | AE30: 0 | AF30: 0 | AG30: 0 | AH30: 0 | AI30: 0 | AJ30: 0 | AK30: 0 | AL30: 0 | AM30: 0 | AN30: 0 | AO30: 0 | AP30: 0 | AQ30: 0 | AR30: 0 | AS30: 0 | AT30: 0 | AW30: 0 | AX30: 0 | AY30: 0 | AZ30: 0 | BA30: 0 | BB30: 0 | BC30: 0 | BD30: 0 | BE30: 0 | BF30: 0 | BG30: 0 | BH30: 0 | BI30: 0 | BJ30: 0 | BK30: 0 | BL30: 0 | BM30: 0 | BN30: 0 | BO30: 0 | BP30: 0 | BQ30: 0 | BR30: 0
B31: Large Low Voltage Demand C | D31: 0 | E31: 3.5903 | F31: 0 | G31: 0 | H31: 0 | I31: 2.0391 | J31: 0 | K31: 0 | L31: 0 | M31: 59.5402 | N31: 0 | O31: 0 | P31: 0 | Q31: 0 | R31: 0 | S31: 0 | T31: 0 | U31: 0 | V31: 0 | W31: 0 | X31: 0 | Z31: 418.9166667 | AA31: 331857173.8 | AB31: 0 | AC31: 0 | AD31: 0 | AE31: 237365097.5 | AF31: 0 | AG31: 0 | AH31: 0 | AI31: 194418.6802 | AJ31: 0 | AK31: 0 | AL31: 0 | AM31: 0 | AN31: 0 | AO31: 0 | AP31: 0 | AQ31: 0 | AR31: 0 | AS31: 0 | AT31: 0 | AW31: 0 | AX31: 11914668.11 | AY31: 0 | AZ31: 0 | BA31: 0 | BB31: 4840111.703 | BC31: 0 | BD31: 0 | BE31: 0 | BF31: 11575727.1 | BG31: 0 | BH31: 0 | BI31: 0 | BJ31: 0 | BK31: 0 | BL31: 0 | BM31: 0 | BN31: 0 | BO31: 0 | BP31: 0 | BQ31: 0 | BR31: 28330506.92
B32: Large Low Voltage Demand S | D32: 0 | E32: 3.7067 | F32: 0 | G32: 0 | H32: 0 | I32: 0.0001 | J32: 0 | K32: 0 | L32: 0 | M32: 58.2453 | N32: 0 | O32: 0 | P32: 0 | Q32: 0 | R32: 0 | S32: 0 | T32: 0 | U32: 0 | V32: 0 | W32: 0 | X32: 0 | Z32: 43.91666667 | AA32: 14451548.2 | AB32: 0 | AC32: 0 | AD32: 0 | AE32: 10202624.4 | AF32: 0 | AG32: 0 | AH32: 0 | AI32: 10379.99999 | AJ32: 0 | AK32: 0 | AL32: 0 | AM32: 0 | AN32: 0 | AO32: 0 | AP32: 0 | AQ32: 0 | AR32: 0 | AS32: 0 | AT32: 0 | AW32: 0 | AX32: 535675.5371 | AY32: 0 | AZ32: 0 | BA32: 0 | BB32: 10.2026244 | BC32: 0 | BD32: 0 | BE32: 0 | BF32: 604586.2135 | BG32: 0 | BH32: 0 | BI32: 0 | BJ32: 0 | BK32: 0 | BL32: 0 | BM32: 0 | BN32: 0 | BO32: 0 | BP32: 0 | BQ32: 0 | BR32: 1140271.953
B33: Large Low Voltage Demand Docklands | D33: 0 | E33: 2.9403 | F33: 0 | G33: 0 | H33: 0 | I33: 2.0245 | J33: 0 | K33: 0 | L33: 0 | M33: 59.0346 | N33: 0 | O33: 0 | P33: 0 | Q33: 0 | R33: 0 | S33: 0 | T33: 0 | U33: 0 | V33: 0 | W33: 0 | X33: 0 | Z33: 7 | AA33: 2737143.528 | AB33: 0 | AC33: 0 | AD33: 0 | AE33: 2881112.74 | AF33: 0 | AG33: 0 | AH33: 0 | AI33: 1933.855733 | AJ33: 0 | AK33: 0 | AL33: 0 | AM33: 0 | AN33: 0 | AO33: 0 | AP33: 0 | AQ33: 0 | AR33: 0 | AS33: 0 | AT33: 0 | AW33: 0 | AX33: 80480.23114 | AY33: 0 | AZ33: 0 | BA33: 0 | BB33: 58328.12743 | BC33: 0 | BD33: 0 | BE33: 0 | BF33: 114164.3996 | BG33: 0 | BH33: 0 | BI33: 0 | BJ33: 0 | BK33: 0 | BL33: 0 | BM33: 0 | BN33: 0 | BO33: 0 | BP33: 0 | BQ33: 0 | BR33: 252972.7582
B34: Large Low Voltage Demand CXX | D34: 0 | E34: 0.0001 | F34: 0 | G34: 0 | H34: 0 | I34: 0.0001 | J34: 0 | K34: 0 | L34: 0 | M34: 0.0002 | N34: 0 | O34: 0 | P34: 0 | Q34: 0 | R34: 0 | S34: 0 | T34: 0 | U34: 0 | V34: 0 | W34: 0 | X34: 0 | Z34: 1174.75 | AA34: 270719346.2 | AB34: 0 | AC34: 0 | AD34: 0 | AE34: 199159441.8 | AF34: 0 | AG34: 0 | AH34: 0 | AI34: 189906.788 | AJ34: 0 | AK34: 0 | AL34: 0 | AM34: 0 | AN34: 0 | AO34: 0 | AP34: 0 | AQ34: 0 | AR34: 0 | AS34: 0 | AT34: 0 | AW34: 0 | AX34: 270.7193462 | AY34: 0 | AZ34: 0 | BA34: 0 | BB34: 199.1594418 | BC34: 0 | BD34: 0 | BE34: 0 | BF34: 37.98135761 | BG34: 0 | BH34: 0 | BI34: 0 | BJ34: 0 | BK34: 0 | BL34: 0 | BM34: 0 | BN34: 0 | BO34: 0 | BP34: 0 | BQ34: 0 | BR34: 507.8601455
B35: Large Low Voltage Demand EN.R | D35: 0 | E35: 1.1877 | F35: 0 | G35: 0 | H35: 0 | I35: 0.474 | J35: 0 | K35: 0 | L35: 0 | M35: 39.6475 | N35: 0 | O35: 0 | P35: 0 | Q35: 0 | R35: 0 | S35: 0 | T35: 0 | U35: 0 | V35: 0 | W35: 0 | X35: 0 | Z35: 2.583333333 | AA35: 724994.147 | AB35: 0 | AC35: 0 | AD35: 0 | AE35: 218780.9484 | AF35: 0 | AG35: 0 | AH35: 0 | AI35: 737.9196667 | AJ35: 0 | AK35: 0 | AL35: 0 | AM35: 0 | AN35: 0 | AO35: 0 | AP35: 0 | AQ35: 0 | AR35: 0 | AS35: 0 | AT35: 0 | AW35: 0 | AX35: 8610.755484 | AY35: 0 | AZ35: 0 | BA35: 0 | BB35: 1037.021695 | BC35: 0 | BD35: 0 | BE35: 0 | BF35: 29256.66998 | BG35: 0 | BH35: 0 | BI35: 0 | BJ35: 0 | BK35: 0 | BL35: 0 | BM35: 0 | BN35: 0 | BO35: 0 | BP35: 0 | BQ35: 0 | BR35: 38904.44716
B36: Large Low Voltage Demand EN.NR | D36: 0 | E36: 3.7328 | F36: 0 | G36: 0 | H36: 0 | I36: 0.0001 | J36: 0 | K36: 0 | L36: 0 | M36: 59.861 | N36: 0 | O36: 0 | P36: 0 | Q36: 0 | R36: 0 | S36: 0 | T36: 0 | U36: 0 | V36: 0 | W36: 0 | X36: 0 | Z36: 30.33333333 | AA36: 37029252.24 | AB36: 0 | AC36: 0 | AD36: 0 | AE36: 23618575.64 | AF36: 0 | AG36: 0 | AH36: 0 | AI36: 21332.6762 | AJ36: 0 | AK36: 0 | AL36: 0 | AM36: 0 | AN36: 0 | AO36: 0 | AP36: 0 | AQ36: 0 | AR36: 0 | AS36: 0 | AT36: 0 | AW36: 0 | AX36: 1382227.928 | AY36: 0 | AZ36: 0 | BA36: 0 | BB36: 23.61857564 | BC36: 0 | BD36: 0 | BE36: 0 | BF36: 1276995.33 | BG36: 0 | BH36: 0 | BI36: 0 | BJ36: 0 | BK36: 0 | BL36: 0 | BM36: 0 | BN36: 0 | BO36: 0 | BP36: 0 | BQ36: 0 | BR36: 2659246.876
B37: Large Low Voltage Demand EN.R CXX | D37: 0 | E37: 3.724 | F37: 0 | G37: 0 | H37: 0 | I37: 2.5572 | J37: 0 | K37: 0 | L37: 0 | M37: 62.5418 | N37: 0 | O37: 0 | P37: 0 | Q37: 0 | R37: 0 | S37: 0 | T37: 0 | U37: 0 | V37: 0 | W37: 0 | X37: 0 | Z37: 2.666666667 | AA37: 1435038.483 | AB37: 0 | AC37: 0 | AD37: 0 | AE37: 637270.747 | AF37: 0 | AG37: 0 | AH37: 0 | AI37: 805.7496667 | AJ37: 0 | AK37: 0 | AL37: 0 | AM37: 0 | AN37: 0 | AO37: 0 | AP37: 0 | AQ37: 0 | AR37: 0 | AS37: 0 | AT37: 0 | AW37: 0 | AX37: 53440.83309 | AY37: 0 | AZ37: 0 | BA37: 0 | BB37: 16296.28754 | BC37: 0 | BD37: 0 | BE37: 0 | BF37: 50393.0345 | BG37: 0 | BH37: 0 | BI37: 0 | BJ37: 0 | BK37: 0 | BL37: 0 | BM37: 0 | BN37: 0 | BO37: 0 | BP37: 0 | BQ37: 0 | BR37: 120130.1551
B38: Large Low Voltage Demand EN.NRCXX | D38: 0 | E38: 0.0001 | F38: 0 | G38: 0 | H38: 0 | I38: 0.0001 | J38: 0 | K38: 0 | L38: 0 | M38: 0.0002 | N38: 0 | O38: 0 | P38: 0 | Q38: 0 | R38: 0 | S38: 0 | T38: 0 | U38: 0 | V38: 0 | W38: 0 | X38: 0 | Z38: 9.416666667 | AA38: 3130339.955 | AB38: 0 | AC38: 0 | AD38: 0 | AE38: 2020908.89 | AF38: 0 | AG38: 0 | AH38: 0 | AI38: 1983.101511 | AJ38: 0 | AK38: 0 | AL38: 0 | AM38: 0 | AN38: 0 | AO38: 0 | AP38: 0 | AQ38: 0 | AR38: 0 | AS38: 0 | AT38: 0 | AW38: 0 | AX38: 3.130339955 | AY38: 0 | AZ38: 0 | BA38: 0 | BB38: 2.02090889 | BC38: 0 | BD38: 0 | BE38: 0 | BF38: 0.3966203022 | BG38: 0 | BH38: 0 | BI38: 0 | BJ38: 0 | BK38: 0 | BL38: 0 | BM38: 0 | BN38: 0 | BO38: 0 | BP38: 0 | BQ38: 0 | BR38: 5.547869147
B39: High Voltage Demand | D39: 0 | E39: 1.1886 | F39: 0 | G39: 0 | H39: 0 | I39: 0.9343 | J39: 0 | K39: 0 | L39: 0 | M39: 37.4062 | N39: 0 | O39: 0 | P39: 0 | Q39: 0 | R39: 0 | S39: 0 | T39: 0 | U39: 0 | V39: 0 | W39: 0 | X39: 0 | Z39: 126.0833333 | AA39: 561229646.6 | AB39: 0 | AC39: 0 | AD39: 0 | AE39: 503901671.1 | AF39: 0 | AG39: 0 | AH39: 0 | AI39: 283788.0781 | AJ39: 0 | AK39: 0 | AL39: 0 | AM39: 0 | AN39: 0 | AO39: 0 | AP39: 0 | AQ39: 0 | AR39: 0 | AS39: 0 | AT39: 0 | AW39: 0 | AX39: 6670775.579 | AY39: 0 | AZ39: 0 | BA39: 0 | BB39: 4707953.313 | BC39: 0 | BD39: 0 | BE39: 0 | BF39: 10615433.61 | BG39: 0 | BH39: 0 | BI39: 0 | BJ39: 0 | BK39: 0 | BL39: 0 | BM39: 0 | BN39: 0 | BO39: 0 | BP39: 0 | BQ39: 0 | BR39: 21994162.5
B40: High Voltage Demand A | D40: 0 | E40: 2.4405 | F40: 0 | G40: 0 | H40: 0 | I40: 0.8063 | J40: 0 | K40: 0 | L40: 0 | M40: 44.4735 | N40: 0 | O40: 0 | P40: 0 | Q40: 0 | R40: 0 | S40: 0 | T40: 0 | U40: 0 | V40: 0 | W40: 0 | X40: 0 | Z40: 3 | AA40: 5914230.171 | AB40: 0 | AC40: 0 | AD40: 0 | AE40: 6099365.161 | AF40: 0 | AG40: 0 | AH40: 0 | AI40: 3796 | AJ40: 0 | AK40: 0 | AL40: 0 | AM40: 0 | AN40: 0 | AO40: 0 | AP40: 0 | AQ40: 0 | AR40: 0 | AS40: 0 | AT40: 0 | AW40: 0 | AX40: 144336.7873 | AY40: 0 | AZ40: 0 | BA40: 0 | BB40: 49179.1813 | BC40: 0 | BD40: 0 | BE40: 0 | BF40: 168821.406 | BG40: 0 | BH40: 0 | BI40: 0 | BJ40: 0 | BK40: 0 | BL40: 0 | BM40: 0 | BN40: 0 | BO40: 0 | BP40: 0 | BQ40: 0 | BR40: 362337.3746
B41: High Voltage Demand C | D41: 0 | E41: 2.772 | F41: 0 | G41: 0 | H41: 0 | I41: 0.889 | J41: 0 | K41: 0 | L41: 0 | M41: 37.5152 | N41: 0 | O41: 0 | P41: 0 | Q41: 0 | R41: 0 | S41: 0 | T41: 0 | U41: 0 | V41: 0 | W41: 0 | X41: 0 | Z41: 41 | AA41: 233001879.7 | AB41: 0 | AC41: 0 | AD41: 0 | AE41: 205189883.6 | AF41: 0 | AG41: 0 | AH41: 0 | AI41: 112445.2747 | AJ41: 0 | AK41: 0 | AL41: 0 | AM41: 0 | AN41: 0 | AO41: 0 | AP41: 0 | AQ41: 0 | AR41: 0 | AS41: 0 | AT41: 0 | AW41: 0 | AX41: 6458812.106 | AY41: 0 | AZ41: 0 | BA41: 0 | BB41: 1824138.065 | BC41: 0 | BD41: 0 | BE41: 0 | BF41: 4218406.969 | BG41: 0 | BH41: 0 | BI41: 0 | BJ41: 0 | BK41: 0 | BL41: 0 | BM41: 0 | BN41: 0 | BO41: 0 | BP41: 0 | BQ41: 0 | BR41: 12501357.14
B42: High Voltage Demand D1 | D42: 0 | E42: 2.0674 | F42: 0 | G42: 0 | H42: 0 | I42: 0.7018 | J42: 0 | K42: 0 | L42: 0 | M42: 44.56 | N42: 0 | O42: 0 | P42: 0 | Q42: 0 | R42: 0 | S42: 0 | T42: 0 | U42: 0 | V42: 0 | W42: 0 | X42: 0 | Z42: 1 | AA42: 75314343.39 | AB42: 0 | AC42: 0 | AD42: 0 | AE42: 82651793.23 | AF42: 0 | AG42: 0 | AH42: 0 | AI42: 21458.6677 | AJ42: 0 | AK42: 0 | AL42: 0 | AM42: 0 | AN42: 0 | AO42: 0 | AP42: 0 | AQ42: 0 | AR42: 0 | AS42: 0 | AT42: 0 | AW42: 0 | AX42: 1557048.735 | AY42: 0 | AZ42: 0 | BA42: 0 | BB42: 580050.2849 | BC42: 0 | BD42: 0 | BE42: 0 | BF42: 956198.2326 | BG42: 0 | BH42: 0 | BI42: 0 | BJ42: 0 | BK42: 0 | BL42: 0 | BM42: 0 | BN42: 0 | BO42: 0 | BP42: 0 | BQ42: 0 | BR42: 3093297.253
B43: High Voltage Demand D2 | D43: 0 | E43: 1.8755 | F43: 0 | G43: 0 | H43: 0 | I43: 0.2046 | J43: 0 | K43: 0 | L43: 0 | M43: 42.8029 | N43: 0 | O43: 0 | P43: 0 | Q43: 0 | R43: 0 | S43: 0 | T43: 0 | U43: 0 | V43: 0 | W43: 0 | X43: 0 | Z43: 1 | AA43: 41239204.15 | AB43: 0 | AC43: 0 | AD43: 0 | AE43: 44710906.24 | AF43: 0 | AG43: 0 | AH43: 0 | AI43: 12699.46634 | AJ43: 0 | AK43: 0 | AL43: 0 | AM43: 0 | AN43: 0 | AO43: 0 | AP43: 0 | AQ43: 0 | AR43: 0 | AS43: 0 | AT43: 0 | AW43: 0 | AX43: 773441.2738 | AY43: 0 | AZ43: 0 | BA43: 0 | BB43: 91478.51417 | BC43: 0 | BD43: 0 | BE43: 0 | BF43: 543573.9877 | BG43: 0 | BH43: 0 | BI43: 0 | BJ43: 0 | BK43: 0 | BL43: 0 | BM43: 0 | BN43: 0 | BO43: 0 | BP43: 0 | BQ43: 0 | BR43: 1408493.776
B44: High Voltage Demand Docklands | D44: 0 | E44: 2.4847 | F44: 0 | G44: 0 | H44: 0 | I44: 1.0472 | J44: 0 | K44: 0 | L44: 0 | M44: 47.5382 | N44: 0 | O44: 0 | P44: 0 | Q44: 0 | R44: 0 | S44: 0 | T44: 0 | U44: 0 | V44: 0 | W44: 0 | X44: 0 | Z44: 1 | AA44: 1851329.529 | AB44: 0 | AC44: 0 | AD44: 0 | AE44: 791804.467 | AF44: 0 | AG44: 0 | AH44: 0 | AI44: 1000 | AJ44: 0 | AK44: 0 | AL44: 0 | AM44: 0 | AN44: 0 | AO44: 0 | AP44: 0 | AQ44: 0 | AR44: 0 | AS44: 0 | AT44: 0 | AW44: 0 | AX44: 45999.98481 | AY44: 0 | AZ44: 0 | BA44: 0 | BB44: 8291.776378 | BC44: 0 | BD44: 0 | BE44: 0 | BF44: 47538.2 | BG44: 0 | BH44: 0 | BI44: 0 | BJ44: 0 | BK44: 0 | BL44: 0 | BM44: 0 | BN44: 0 | BO44: 0 | BP44: 0 | BQ44: 0 | BR44: 101829.9612
B45: High Voltage Demand D3 | D45: 0 | E45: 1.2241 | F45: 0 | G45: 0 | H45: 0 | I45: 0.7183 | J45: 0 | K45: 0 | L45: 0 | M45: 35.5528 | N45: 0 | O45: 0 | P45: 0 | Q45: 0 | R45: 0 | S45: 0 | T45: 0 | U45: 0 | V45: 0 | W45: 0 | X45: 0 | Z45: 1 | AA45: 10186178.62 | AB45: 0 | AC45: 0 | AD45: 0 | AE45: 16430997.87 | AF45: 0 | AG45: 0 | AH45: 0 | AI45: 11400 | AJ45: 0 | AK45: 0 | AL45: 0 | AM45: 0 | AN45: 0 | AO45: 0 | AP45: 0 | AQ45: 0 | AR45: 0 | AS45: 0 | AT45: 0 | AW45: 0 | AX45: 124689.0124 | AY45: 0 | AZ45: 0 | BA45: 0 | BB45: 118023.8577 | BC45: 0 | BD45: 0 | BE45: 0 | BF45: 405301.92 | BG45: 0 | BH45: 0 | BI45: 0 | BJ45: 0 | BK45: 0 | BL45: 0 | BM45: 0 | BN45: 0 | BO45: 0 | BP45: 0 | BQ45: 0 | BR45: 648014.7901
B46: High Voltage Demand D4 | D46: 0 | E46: 0.0001 | F46: 0 | G46: 0 | H46: 0 | I46: 0.0001 | J46: 0 | K46: 0 | L46: 0 | M46: 0.0001 | N46: 0 | O46: 0 | P46: 0 | Q46: 0 | R46: 0 | S46: 0 | T46: 0 | U46: 0 | V46: 0 | W46: 0 | X46: 0 | Z46: 0 | AA46: 0 | AB46: 0 | AC46: 0 | AD46: 0 | AE46: 0 | AF46: 0 | AG46: 0 | AH46: 0 | AI46: 0 | AJ46: 0 | AK46: 0 | AL46: 0 | AM46: 0 | AN46: 0 | AO46: 0 | AP46: 0 | AQ46: 0 | AR46: 0 | AS46: 0 | AT46: 0 | AW46: 0 | AX46: 0 | AY46: 0 | AZ46: 0 | BA46: 0 | BB46: 0 | BC46: 0 | BD46: 0 | BE46: 0 | BF46: 0 | BG46: 0 | BH46: 0 | BI46: 0 | BJ46: 0 | BK46: 0 | BL46: 0 | BM46: 0 | BN46: 0 | BO46: 0 | BP46: 0 | BQ46: 0 | BR46: 0
B47: Subtransmission Demand A | D47: 0 | E47: 3.4135 | F47: 0 | G47: 0 | H47: 0 | I47: 0.7063 | J47: 0 | K47: 0 | L47: 0 | M47: 11.084 | N47: 0 | O47: 0 | P47: 0 | Q47: 0 | R47: 0 | S47: 0 | T47: 0 | U47: 0 | V47: 0 | W47: 0 | X47: 0 | Z47: 3 | AA47: 72262106.08 | AB47: 0 | AC47: 0 | AD47: 0 | AE47: 48910876.76 | AF47: 0 | AG47: 0 | AH47: 0 | AI47: 51799.83333 | AJ47: 0 | AK47: 0 | AL47: 0 | AM47: 0 | AN47: 0 | AO47: 0 | AP47: 0 | AQ47: 0 | AR47: 0 | AS47: 0 | AT47: 0 | AW47: 0 | AX47: 2466666.991 | AY47: 0 | AZ47: 0 | BA47: 0 | BB47: 345457.5226 | BC47: 0 | BD47: 0 | BE47: 0 | BF47: 574149.3527 | BG47: 0 | BH47: 0 | BI47: 0 | BJ47: 0 | BK47: 0 | BL47: 0 | BM47: 0 | BN47: 0 | BO47: 0 | BP47: 0 | BQ47: 0 | BR47: 3386273.866
B48: Subtransmission Demand G | D48: 0 | E48: 3.3652 | F48: 0 | G48: 0 | H48: 0 | I48: 0.7085 | J48: 0 | K48: 0 | L48: 0 | M48: 13.3411 | N48: 0 | O48: 0 | P48: 0 | Q48: 0 | R48: 0 | S48: 0 | T48: 0 | U48: 0 | V48: 0 | W48: 0 | X48: 0 | Z48: 6.916666667 | AA48: 281208160.3 | AB48: 0 | AC48: 0 | AD48: 0 | AE48: 293307668.2 | AF48: 0 | AG48: 0 | AH48: 0 | AI48: 185571.6754 | AJ48: 0 | AK48: 0 | AL48: 0 | AM48: 0 | AN48: 0 | AO48: 0 | AP48: 0 | AQ48: 0 | AR48: 0 | AS48: 0 | AT48: 0 | AW48: 0 | AX48: 9463217.009 | AY48: 0 | AZ48: 0 | BA48: 0 | BB48: 2078084.829 | BC48: 0 | BD48: 0 | BE48: 0 | BF48: 2475730.279 | BG48: 0 | BH48: 0 | BI48: 0 | BJ48: 0 | BK48: 0 | BL48: 0 | BM48: 0 | BN48: 0 | BO48: 0 | BP48: 0 | BQ48: 0 | BR48: 14017032.12
B49: Subtransmission Demand S | D49: 0 | E49: 3.3419 | F49: 0 | G49: 0 | H49: 0 | I49: 0.7081 | J49: 0 | K49: 0 | L49: 0 | M49: 13.278 | N49: 0 | O49: 0 | P49: 0 | Q49: 0 | R49: 0 | S49: 0 | T49: 0 | U49: 0 | V49: 0 | W49: 0 | X49: 0 | Z49: 2 | AA49: 210354001.8 | AB49: 0 | AC49: 0 | AD49: 0 | AE49: 119220382.1 | AF49: 0 | AG49: 0 | AH49: 0 | AI49: 101974.4913 | AJ49: 0 | AK49: 0 | AL49: 0 | AM49: 0 | AN49: 0 | AO49: 0 | AP49: 0 | AQ49: 0 | AR49: 0 | AS49: 0 | AT49: 0 | AW49: 0 | AX49: 7029820.385 | AY49: 0 | AZ49: 0 | BA49: 0 | BB49: 844199.5259 | BC49: 0 | BD49: 0 | BE49: 0 | BF49: 1354017.296 | BG49: 0 | BH49: 0 | BI49: 0 | BJ49: 0 | BK49: 0 | BL49: 0 | BM49: 0 | BN49: 0 | BO49: 0 | BP49: 0 | BQ49: 0 | BR49: 9228037.207
AW50: 0 | AX50: 0 | AY50: 0 | AZ50: 0 | BA50: 0 | BB50: 0 | BC50: 0 | BD50: 0 | BE50: 0 | BF50: 0 | BG50: 0 | BH50: 0 | BI50: 0 | BJ50: 0 | BK50: 0 | BL50: 0 | BM50: 0 | BN50: 0 | BO50: 0 | BP50: 0 | BQ50: 0 | BR50: 0
AW51: 0 | AX51: 0 | AY51: 0 | AZ51: 0 | BA51: 0 | BB51: 0 | BC51: 0 | BD51: 0 | BE51: 0 | BF51: 0 | BG51: 0 | BH51: 0 | BI51: 0 | BJ51: 0 | BK51: 0 | BL51: 0 | BM51: 0 | BN51: 0 | BO51: 0 | BP51: 0 | BQ51: 0 | BR51: 0
AW52: 0 | AX52: 0 | AY52: 0 | AZ52: 0 | BA52: 0 | BB52: 0 | BC52: 0 | BD52: 0 | BE52: 0 | BF52: 0 | BG52: 0 | BH52: 0 | BI52: 0 | BJ52: 0 | BK52: 0 | BL52: 0 | BM52: 0 | BN52: 0 | BO52: 0 | BP52: 0 | BQ52: 0 | BR52: 0
AW53: 0 | AX53: 0 | AY53: 0 | AZ53: 0 | BA53: 0 | BB53: 0 | BC53: 0 | BD53: 0 | BE53: 0 | BF53: 0 | BG53: 0 | BH53: 0 | BI53: 0 | BJ53: 0 | BK53: 0 | BL53: 0 | BM53: 0 | BN53: 0 | BO53: 0 | BP53: 0 | BQ53: 0 | BR53: 0
AW54: 0 | AX54: 0 | AY54: 0 | AZ54: 0 | BA54: 0 | BB54: 0 | BC54: 0 | BD54: 0 | BE54: 0 | BF54: 0 | BG54: 0 | BH54: 0 | BI54: 0 | BJ54: 0 | BK54: 0 | BL54: 0 | BM54: 0 | BN54: 0 | BO54: 0 | BP54: 0 | BQ54: 0 | BR54: 0
AW55: 0 | AX55: 0 | AY55: 0 | AZ55: 0 | BA55: 0 | BB55: 0 | BC55: 0 | BD55: 0 | BE55: 0 | BF55: 0 | BG55: 0 | BH55: 0 | BI55: 0 | BJ55: 0 | BK55: 0 | BL55: 0 | BM55: 0 | BN55: 0 | BO55: 0 | BP55: 0 | BQ55: 0 | BR55: 0
AW56: 0 | AX56: 0 | AY56: 0 | AZ56: 0 | BA56: 0 | BB56: 0 | BC56: 0 | BD56: 0 | BE56: 0 | BF56: 0 | BG56: 0 | BH56: 0 | BI56: 0 | BJ56: 0 | BK56: 0 | BL56: 0 | BM56: 0 | BN56: 0 | BO56: 0 | BP56: 0 | BQ56: 0 | BR56: 0
AW57: 0 | AX57: 0 | AY57: 0 | AZ57: 0 | BA57: 0 | BB57: 0 | BC57: 0 | BD57: 0 | BE57: 0 | BF57: 0 | BG57: 0 | BH57: 0 | BI57: 0 | BJ57: 0 | BK57: 0 | BL57: 0 | BM57: 0 | BN57: 0 | BO57: 0 | BP57: 0 | BQ57: 0 | BR57: 0
AW58: 0 | AX58: 0 | AY58: 0 | AZ58: 0 | BA58: 0 | BB58: 0 | BC58: 0 | BD58: 0 | BE58: 0 | BF58: 0 | BG58: 0 | BH58: 0 | BI58: 0 | BJ58: 0 | BK58: 0 | BL58: 0 | BM58: 0 | BN58: 0 | BO58: 0 | BP58: 0 | BQ58: 0 | BR58: 0
AW59: 0 | AX59: 0 | AY59: 0 | AZ59: 0 | BA59: 0 | BB59: 0 | BC59: 0 | BD59: 0 | BE59: 0 | BF59: 0 | BG59: 0 | BH59: 0 | BI59: 0 | BJ59: 0 | BK59: 0 | BL59: 0 | BM59: 0 | BN59: 0 | BO59: 0 | BP59: 0 | BQ59: 0 | BR59: 0
AW60: 0 | AX60: 0 | AY60: 0 | AZ60: 0 | BA60: 0 | BB60: 0 | BC60: 0 | BD60: 0 | BE60: 0 | BF60: 0 | BG60: 0 | BH60: 0 | BI60: 0 | BJ60: 0 | BK60: 0 | BL60: 0 | BM60: 0 | BN60: 0 | BO60: 0 | BP60: 0 | BQ60: 0 | BR60: 0
AW61: 0 | AX61: 0 | AY61: 0 | AZ61: 0 | BA61: 0 | BB61: 0 | BC61: 0 | BD61: 0 | BE61: 0 | BF61: 0 | BG61: 0 | BH61: 0 | BI61: 0 | BJ61: 0 | BK61: 0 | BL61: 0 | BM61: 0 | BN61: 0 | BO61: 0 | BP61: 0 | BQ61: 0 | BR61: 0
AW62: 0 | AX62: 0 | AY62: 0 | AZ62: 0 | BA62: 0 | BB62: 0 | BC62: 0 | BD62: 0 | BE62: 0 | BF62: 0 | BG62: 0 | BH62: 0 | BI62: 0 | BJ62: 0 | BK62: 0 | BL62: 0 | BM62: 0 | BN62: 0 | BO62: 0 | BP62: 0 | BQ62: 0 | BR62: 0
AW63: 0 | AX63: 0 | AY63: 0 | AZ63: 0 | BA63: 0 | BB63: 0 | BC63: 0 | BD63: 0 | BE63: 0 | BF63: 0 | BG63: 0 | BH63: 0 | BI63: 0 | BJ63: 0 | BK63: 0 | BL63: 0 | BM63: 0 | BN63: 0 | BO63: 0 | BP63: 0 | BQ63: 0 | BR63: 0
AW64: 0 | AX64: 0 | AY64: 0 | AZ64: 0 | BA64: 0 | BB64: 0 | BC64: 0 | BD64: 0 | BE64: 0 | BF64: 0 | BG64: 0 | BH64: 0 | BI64: 0 | BJ64: 0 | BK64: 0 | BL64: 0 | BM64: 0 | BN64: 0 | BO64: 0 | BP64: 0 | BQ64: 0 | BR64: 0
AW65: 0 | AX65: 0 | AY65: 0 | AZ65: 0 | BA65: 0 | BB65: 0 | BC65: 0 | BD65: 0 | BE65: 0 | BF65: 0 | BG65: 0 | BH65: 0 | BI65: 0 | BJ65: 0 | BK65: 0 | BL65: 0 | BM65: 0 | BN65: 0 | BO65: 0 | BP65: 0 | BQ65: 0 | BR65: 0
AW66: 0 | AX66: 0 | AY66: 0 | AZ66: 0 | BA66: 0 | BB66: 0 | BC66: 0 | BD66: 0 | BE66: 0 | BF66: 0 | BG66: 0 | BH66: 0 | BI66: 0 | BJ66: 0 | BK66: 0 | BL66: 0 | BM66: 0 | BN66: 0 | BO66: 0 | BP66: 0 | BQ66: 0 | BR66: 0
AW67: 0 | AX67: 0 | AY67: 0 | AZ67: 0 | BA67: 0 | BB67: 0 | BC67: 0 | BD67: 0 | BE67: 0 | BF67: 0 | BG67: 0 | BH67: 0 | BI67: 0 | BJ67: 0 | BK67: 0 | BL67: 0 | BM67: 0 | BN67: 0 | BO67: 0 | BP67: 0 | BQ67: 0 | BR67: 0
Z68: =SUM(Z8:Z67) -> 999328.25 | AA68: 4921017104 | AB68: 1130580267 | AC68: 412608877.9 | AD68: 220702843.3 | AE68: 3995905325 | AF68: 0 | AG68: 0 | AH68: 0 | AI68: 1644680.651 | AJ68: 0 | AK68: 0 | AL68: 0 | AM68: =SUM(AM8:AM67) -> 5509930.364 | AN68: 3868143.171 | AO68: 5972738.299 | AP68: 0 | AQ68: 5826944.799 | AR68: 4486050.041 | AS68: 6176795.714 | AT68: 0 | AW68: =SUM(AW8:AW67) -> 57282.15955 | AX68: 107488370.4 | AY68: 2094827.627 | AZ68: 412.6684706 | BA68: 8275.331773 | BB68: 33108390.29 | BC68: 0 | BD68: 0 | BE68: 0 | BF68: 44967790.04 | BG68: 0 | BH68: 0 | BI68: 0 | BJ68: =SUM(BJ8:BJ67) -> 450924.3473 | BK68: 3.868143171 | BL68: 11984.47851 | BM68: 0 | BN68: 442339.3545 | BO68: 4.486050041 | BP68: 16789.07756 | BQ68: 0 | BR68: =SUM(AW68:BQ68) -> 188647394.1
AW70: 0 | AX70: 0 | AY70: 0 | AZ70: 0 | BA70: 0 | BB70: 0 | BC70: 0 | BD70: 0 | BE70: 0 | BF70: 0 | BG70: 0 | BH70: 0 | BI70: 0 | BJ70: 0 | BK70: 0 | BL70: 0 | BM70: 0 | BN70: 0 | BO70: 0 | BP70: 0 | BQ70: 0 | BR70: 0
B72: Definitions
B73: All information must be reported consistent the terms used in the DNSPs pricing proposal

Sheet 27. TUoS cost audit (t-2)
B1: =Cover!E22 -> Powercor Australia Ltd
B2: TUoS cost audit template (t-2)
B3: =Cover!E26 -> 2015
B5: Templates 24 to 29 collect data required for annual pricing proposals. T-2 requires actual information for the reporting year.
B7: TUOS charges (AEMO) | F7: t-2 actual
B8: AEMO (TUOS Usage) | F8: 50974151.04
B9: AEMO (TUOS General and Common Service) | F9: 96134891.43
B10: Grid equalisation | F10: -5703300
E12: Total | F12: =SUM(F8:F11) -> 141405742.5
B14: Transmission connection fees (Ausnet Services) | F14: t-2 actual
B15: Ausnet Connection | F15: 15800757.15
B16: Ausnet Augmentation | F16: 8212622.74
E19: Total | F19: =SUM(F15:F18) -> 24013379.89
B21: Cross boundary network charges (internetwork charges) | F21: t-2 actual
B22: Distribution Business | C22: Amount (payable)/receivable
C23: HV crossings | D23: Sub-transmission crossings | E23: TUoS Adjustment | F23: Total
B24: Jemena | D24: -5730162.91 | F24: =SUM(C24:E24) -> -5730162.91
B25: SAPN | C25: -644305.63 | F25: -644305.63
F26: =SUM(C26:E26) -> 0
F27: =SUM(C27:E27) -> 0
F28: =SUM(C28:E28) -> 0
B29: Total | F29: =SUM(F24:F28) -> -6374468.54
B31: Payments to embedded generators | F31: t-2 actual
B32: Avoided transmission costs
B34: Avoided Transmission cost | F34: 1361869.546
B38: Total | F38: =SUM(F34:F37) -> 1361869.546
B40: Avoided TUoS usage charges
B46: Total | F46: =SUM(F41:F45) -> 0
B47: Total payments to embedded generators | F47: =F46+F38 -> 1361869.546
B49: Where the following definitions apply
B50: HV Crossings | C50: Payments/Receipts for energy transferred utilising the distributor’s HV and LV line assets.
B51: Sub-transmission Crossings | C51: Payments/Receipts for the Sub-transmission assets in shared loops that support each distributor’s Zone Substation capacity to ensure N-1 reliability is maintained.
B52: TuoS Adjustment | C52: Payments/Receipts for the adjustment of TuoS paid by a distributor for energy delivered to another distribution business through a shared loop.

Sheet 28. Actual t-2 Juris Revenue
B1: =Cover!E22 -> Powercor Australia Ltd
B2: Tariff Quantity Data Template (Actual t-2) Jurisdictional Scheme Tariff Revenue
B3: =Cover!E26 -> 2015
B5: Templates 24 to 29 collect data required for annual pricing proposals. T-2 requires actual information for the reporting year.
D6: Jurisdictional Scheme Tariffs (Pt-2) | Z6: Actual Quantities (Qt-2) | AW6: Actual Revenue (P-2)*(Qt-2)
B7: Tariff (t-2) | D7: (t-2)Tar Fixed | E7: (t-2)Tar PkBlk1 | F7: (t-2)Tar PkBlk2 | G7: (t-2)Tar PkBlk3 | H7: (t-2)Tar PkBlk4 | I7: (t-2)Tar OPkBlk1 | J7: (t-2)Tar OPkBlk2 | K7: (t-2)Tar OPkBlk3 | L7: (t-2)Tar OPkBlk4 | M7: (t-2)Tar DemBlk1 | N7: (t-2)Tar DemBlk2 | O7: (t-2)Tar DemBlk3 | P7: (t-2)Tar DemBlk4 | Q7: (t-2)Tar SumBlk1 | R7: (t-2)Tar SumBlk2 | S7: (t-2)Tar SumBlk3 | T7: (t-2)Tar SumBlk4 | U7: (t-2)Tar WtrBlk1 | V7: (t-2)Tar WtrBlk2 | W7: (t-2)Tar WtrBlk3 | X7: (t-2)Tar WtrBlk4 | Z7: ActVol Fixed | AA7: ActVol PkBlk1 | AB7: ActVol PkBlk2 | AC7: ActVol PkBlk3 | AD7: ActVol PkBlk4 | AE7: ActVol OPkBlk1 | AF7: ActVol OPkBlk2 | AG7: ActVol OPkBlk3 | AH7: ActVol OPkBlk4 | AI7: ActVol DemBlk1 | AJ7: ActVol DemBlk2 | AK7: ActVol DemBlk3 | AL7: ActVol DemBlk4 | AM7: (t-2)Tar SumBlk1 | AN7: (t-2)Tar SumBlk2 | AO7: (t-2)Tar SumBlk3 | AP7: (t-2)Tar SumBlk4 | AQ7: (t-2)Tar WtrBlk1 | AR7: (t-2)Tar WtrBlk2 | AS7: (t-2)Tar WtrBlk3 | AT7: (t-2)Tar WtrBlk4 | AW7: ActRev Fixed | AX7: ActRev PkBlk1 | AY7: ActRev PkBlk2 | AZ7: ActRev PkBlk3 | BA7: ActRev PkBlk4 | BB7: ActRev OPkBlk1 | BC7: ActRev OPkBlk2 | BD7: ActRev OPkBlk3 | BE7: ActRev OPkBlk4 | BF7: ActRev DemBlk1 | BG7: ActRev DemBlk2 | BH7: ActRev DemBlk3 | BI7: ActRev DemBlk4 | BJ7: (t-2)Tar SumBlk1 | BK7: (t-2)Tar SumBlk2 | BL7: (t-2)Tar SumBlk3 | BM7: (t-2)Tar SumBlk4 | BN7: (t-2)Tar WtrBlk1 | BO7: (t-2)Tar WtrBlk2 | BP7: (t-2)Tar WtrBlk3 | BQ7: (t-2)Tar WtrBlk4 | BR7: ActRev Total
AW8: =D8*Z8 -> 0 | AX8: =E8/100*AA8 -> 0 | AY8: =F8/100*AB8 -> 0 | AZ8: =G8/100*AC8 -> 0 | BA8: =H8/100*AD8 -> 0 | BB8: =I8/100*AE8 -> 0 | BC8: =J8/100*AF8 -> 0 | BD8: =K8/100*AG8 -> 0 | BE8: =L8/100*AH8 -> 0 | BF8: =M8*AI8 -> 0 | BG8: =N8*AJ8 -> 0 | BH8: =O8*AK8 -> 0 | BI8: =P8*AL8 -> 0 | BJ8: =Q8/100*AM8 -> 0 | BK8: =R8/100*AN8 -> 0 | BL8: =S8/100*AO8 -> 0 | BM8: =T8/100*AP8 -> 0 | BN8: =U8/100*AQ8 -> 0 | BO8: 0 | BP8: 0 | BQ8: 0 | BR8: =SUM(AW8:BQ8) -> 0
B9: Residential Single Rate | D9: 0 | E9: 0.0001 | F9: 0.1359 | G9: 0.0001 | H9: 0.0001 | I9: 0 | J9: 0 | K9: 0 | L9: 0 | M9: 0 | N9: 0 | O9: 0 | P9: 0 | Q9: 0 | R9: 0 | S9: 0 | T9: 0 | U9: 0 | V9: 0 | W9: 0 | X9: 0 | Z9: 504369.9167 | AA9: 1476110594 | AB9: 630771847.7 | AC9: 24097791.57 | AD9: 1794825.524 | AE9: 424.650006 | AF9: 0 | AG9: 0 | AH9: 0 | AI9: 0 | AJ9: 0 | AK9: 0 | AL9: 0 | AM9: 0 | AN9: 0 | AO9: 0 | AP9: 0 | AQ9: 0 | AR9: 0 | AS9: 0 | AT9: 0 | AW9: =D9*Z9 -> 0 | AX9: 1476.110594 | AY9: 857218.941 | AZ9: 24.09779157 | BA9: 1.794825524 | BB9: 0 | BC9: 0 | BD9: 0 | BE9: 0 | BF9: =M9*AI9 -> 0 | BG9: =N9*AJ9 -> 0 | BH9: =O9*AK9 -> 0 | BI9: =P9*AL9 -> 0 | BJ9: 0 | BK9: 0 | BL9: 0 | BM9: 0 | BN9: 0 | BO9: 0 | BP9: 0 | BQ9: 0 | BR9: =SUM(AW9:BQ9) -> 858720.9442
B10: Climate Saver | D10: 0 | E10: 0.0001 | F10: 0.0002 | G10: 0.0001 | H10: 0.0001 | I10: 0.0001 | J10: 0 | K10: 0 | L10: 0 | M10: 0 | N10: 0 | O10: 0 | P10: 0 | Q10: 0 | R10: 0 | S10: 0 | T10: 0 | U10: 0 | V10: 0 | W10: 0 | X10: 0 | Z10: 17209.91667 | AA10: 6135435.703 | AB10: 1674066.618 | AC10: 42279.6989 | AD10: 0 | AE10: 19268326.92 | AF10: 0 | AG10: 0 | AH10: 0 | AI10: 0 | AJ10: 0 | AK10: 0 | AL10: 0 | AM10: 0 | AN10: 0 | AO10: 0 | AP10: 0 | AQ10: 0 | AR10: 0 | AS10: 0 | AT10: 0 | AW10: 0 | AX10: 6.135435703 | AY10: 3.348133235 | AZ10: 0.0422796989 | BA10: 0 | BB10: 19.26832692 | BC10: 0 | BD10: 0 | BE10: 0 | BF10: 0 | BG10: 0 | BH10: 0 | BI10: 0 | BJ10: 0 | BK10: 0 | BL10: 0 | BM10: 0 | BN10: 0 | BO10: 0 | BP10: 0 | BQ10: 0 | BR10: 28.79417555
B11: Climate Saver Interval | D11: 0 | E11: 0.0001 | F11: 0.0002 | G11: 0.0001 | H11: 0.0001 | I11: 0.0001 | J11: 0 | K11: 0 | L11: 0 | M11: 0 | N11: 0 | O11: 0 | P11: 0 | Q11: 0 | R11: 0 | S11: 0 | T11: 0 | U11: 0 | V11: 0 | W11: 0 | X11: 0 | Z11: 4665 | AA11: 1769178.679 | AB11: 467691.2106 | AC11: 17312.92767 | AD11: 0 | AE11: 6161331.394 | AF11: 0 | AG11: 0 | AH11: 0 | AI11: 0 | AJ11: 0 | AK11: 0 | AL11: 0 | AM11: 0 | AN11: 0 | AO11: 0 | AP11: 0 | AQ11: 0 | AR11: 0 | AS11: 0 | AT11: 0 | AW11: 0 | AX11: 1.769178679 | AY11: 0.9353824212 | AZ11: 0.01731292767 | BA11: 0 | BB11: 6.161331394 | BC11: 0 | BD11: 0 | BE11: 0 | BF11: 0 | BG11: 0 | BH11: 0 | BI11: 0 | BJ11: 0 | BK11: 0 | BL11: 0 | BM11: 0 | BN11: 0 | BO11: 0 | BP11: 0 | BQ11: 0 | BR11: 8.883205422
B12: Residential - Flexible Pricing | D12: 0 | E12: 0 | F12: 0 | G12: 0 | H12: 0 | I12: 0 | J12: 0 | K12: 0 | L12: 0 | M12: 0 | N12: 0 | O12: 0 | P12: 0 | Q12: 0.0001 | R12: 0.0001 | S12: 0.0001 | T12: 0 | U12: 0.0001 | V12: 0.0001 | W12: 0.0001 | X12: 0 | Z12: 2598 | AA12: 0 | AB12: 0 | AC12: 0 | AD12: 0 | AE12: 454.6394868 | AF12: 0 | AG12: 0 | AH12: 0 | AI12: 0 | AJ12: 0 | AK12: 0 | AL12: 0 | AM12: 1212624.142 | AN12: 2415738.363 | AO12: 1750987.528 | AP12: 0 | AQ12: 1611357.698 | AR12: 3233079.403 | AS12: 2453279.158 | AT12: 0 | AW12: 0 | AX12: 0 | AY12: 0 | AZ12: 0 | BA12: 0 | BB12: 0 | BC12: 0 | BD12: 0 | BE12: 0 | BF12: 0 | BG12: 0 | BH12: 0 | BI12: 0 | BJ12: 1.212624142 | BK12: 2.415738363 | BL12: 1.750987528 | BM12: 0 | BN12: 1.611357698 | BO12: 3.233079403 | BP12: 2.453279158 | BQ12: 0 | BR12: 12.67706629
B13: Residential Docklands - Flexible Pricing | D13: 0 | E13: 0 | F13: 0 | G13: 0 | H13: 0 | I13: 0 | J13: 0 | K13: 0 | L13: 0 | M13: 0 | N13: 0 | O13: 0 | P13: 0 | Q13: 2.0508 | R13: 0.0001 | S13: 0.6437 | T13: 0 | U13: 2.0508 | V13: 0.0001 | W13: 0.6437 | X13: 0 | Z13: 1 | AA13: 0 | AB13: 0 | AC13: 0 | AD13: 0 | AE13: 0 | AF13: 0 | AG13: 0 | AH13: 0 | AI13: 0 | AJ13: 0 | AK13: 0 | AL13: 0 | AM13: 601.9986548 | AN13: 1245.533087 | AO13: 873.9156604 | AP13: 0 | AQ13: 694.3836112 | AR13: 1203.542763 | AS13: 811.1085516 | AT13: 0 | AW13: 0 | AX13: 0 | AY13: 0 | AZ13: 0 | BA13: 0 | BB13: 0 | BC13: 0 | BD13: 0 | BE13: 0 | BF13: 0 | BG13: 0 | BH13: 0 | BI13: 0 | BJ13: 12.34578841 | BK13: 0.001245533087 | BL13: 5.625395106 | BM13: 0 | BN13: 14.2404191 | BO13: 0.001203542763 | BP13: 5.221105747 | BQ13: 0 | BR13: 37.43515744
B14: Climate Saver - Flexible Pricing | D14: 0 | E14: 0 | F14: 0 | G14: 0 | H14: 0 | I14: 0 | J14: 0 | K14: 0 | L14: 0 | M14: 0 | N14: 0 | O14: 0 | P14: 0 | Q14: 0.0001 | R14: 0 | S14: 0 | T14: 0 | U14: 0.0001 | V14: 0 | W14: 0 | X14: 0 | Z14: 0 | AA14: 0 | AB14: 0 | AC14: 0 | AD14: 0 | AE14: 0 | AF14: 0 | AG14: 0 | AH14: 0 | AI14: 0 | AJ14: 0 | AK14: 0 | AL14: 0 | AM14: 0 | AN14: 0 | AO14: 0 | AP14: 0 | AQ14: 0 | AR14: 0 | AS14: 0 | AT14: 0 | AW14: 0 | AX14: 0 | AY14: 0 | AZ14: 0 | BA14: 0 | BB14: 0 | BC14: 0 | BD14: 0 | BE14: 0 | BF14: 0 | BG14: 0 | BH14: 0 | BI14: 0 | BJ14: 0 | BK14: 0 | BL14: 0 | BM14: 0 | BN14: 0 | BO14: 0 | BP14: 0 | BQ14: 0 | BR14: 0
B15: Docklands single rate | D15: 0 | E15: 0.0001 | F15: 0 | G15: 0 | H15: 0 | I15: 0 | J15: 0 | K15: 0 | L15: 0 | M15: 0 | N15: 0 | O15: 0 | P15: 0 | Q15: 0 | R15: 0 | S15: 0 | T15: 0 | U15: 0 | V15: 0 | W15: 0 | X15: 0 | Z15: 0 | AA15: 0 | AB15: 0 | AC15: 0 | AD15: 0 | AE15: 0 | AF15: 0 | AG15: 0 | AH15: 0 | AI15: 0 | AJ15: 0 | AK15: 0 | AL15: 0 | AM15: 0 | AN15: 0 | AO15: 0 | AP15: 0 | AQ15: 0 | AR15: 0 | AS15: 0 | AT15: 0 | AW15: 0 | AX15: 0 | AY15: 0 | AZ15: 0 | BA15: 0 | BB15: 0 | BC15: 0 | BD15: 0 | BE15: 0 | BF15: 0 | BG15: 0 | BH15: 0 | BI15: 0 | BJ15: 0 | BK15: 0 | BL15: 0 | BM15: 0 | BN15: 0 | BO15: 0 | BP15: 0 | BQ15: 0 | BR15: 0
B16: Residential Two Rate 5d | D16: 0 | E16: 2.6574 | F16: 0.0001 | G16: 0.0001 | H16: 0.0001 | I16: 0.0001 | J16: 0 | K16: 0 | L16: 0 | M16: 0 | N16: 0 | O16: 0 | P16: 0 | Q16: 0 | R16: 0 | S16: 0 | T16: 0 | U16: 0 | V16: 0 | W16: 0 | X16: 0 | Z16: 45863.08333 | AA16: 103730582.9 | AB16: 23255073.11 | AC16: 702230.566 | AD16: 37242.01098 | AE16: 112793275.3 | AF16: 0 | AG16: 0 | AH16: 0 | AI16: 0 | AJ16: 0 | AK16: 0 | AL16: 0 | AM16: 0 | AN16: 0 | AO16: 0 | AP16: 0 | AQ16: 0 | AR16: 0 | AS16: 0 | AT16: 0 | AW16: 0 | AX16: 2756536.511 | AY16: 23.25507311 | AZ16: 0.702230566 | BA16: 0.03724201098 | BB16: 112.7932753 | BC16: 0 | BD16: 0 | BE16: 0 | BF16: 0 | BG16: 0 | BH16: 0 | BI16: 0 | BJ16: 0 | BK16: 0 | BL16: 0 | BM16: 0 | BN16: 0 | BO16: 0 | BP16: 0 | BQ16: 0 | BR16: 2756673.298
B17: Docklands Two Rate 5d | D17: 0 | E17: 0.0001 | F17: 0.0001 | G17: 0.0001 | H17: 8.8473 | I17: 0.0001 | J17: 0 | K17: 0 | L17: 0 | M17: 0 | N17: 0 | O17: 0 | P17: 0 | Q17: 0 | R17: 0 | S17: 0 | T17: 0 | U17: 0 | V17: 0 | W17: 0 | X17: 0 | Z17: 589.25 | AA17: 1596336.182 | AB17: 293414.2963 | AC17: 63032.03079 | AD17: 0 | AE17: 1786134.474 | AF17: 0 | AG17: 0 | AH17: 0 | AI17: 0 | AJ17: 0 | AK17: 0 | AL17: 0 | AM17: 0 | AN17: 0 | AO17: 0 | AP17: 0 | AQ17: 0 | AR17: 0 | AS17: 0 | AT17: 0 | AW17: 0 | AX17: 1.596336182 | AY17: 0.2934142963 | AZ17: 0.06303203079 | BA17: 0 | BB17: 1.786134474 | BC17: 0 | BD17: 0 | BE17: 0 | BF17: 0 | BG17: 0 | BH17: 0 | BI17: 0 | BJ17: 0 | BK17: 0 | BL17: 0 | BM17: 0 | BN17: 0 | BO17: 0 | BP17: 0 | BQ17: 0 | BR17: 3.738916983
B18: Residential Interval | D18: 0 | E18: 2.6574 | F18: 0.0001 | G18: 0.0001 | H18: 0.0001 | I18: 0.0001 | J18: 0 | K18: 0 | L18: 0 | M18: 0 | N18: 0 | O18: 0 | P18: 0 | Q18: 0 | R18: 0 | S18: 0 | T18: 0 | U18: 0 | V18: 0 | W18: 0 | X18: 0 | Z18: 108902.6667 | AA18: 228972466.3 | AB18: 43414295.52 | AC18: 1770490.829 | AD18: 61231.3545 | AE18: 287128104.4 | AF18: 0 | AG18: 0 | AH18: 0 | AI18: 0 | AJ18: 0 | AK18: 0 | AL18: 0 | AM18: 0 | AN18: 0 | AO18: 0 | AP18: 0 | AQ18: 0 | AR18: 0 | AS18: 0 | AT18: 0 | AW18: 0 | AX18: 6084714.319 | AY18: 43.41429552 | AZ18: 1.770490829 | BA18: 0.0612313545 | BB18: 287.1281044 | BC18: 0 | BD18: 0 | BE18: 0 | BF18: 0 | BG18: 0 | BH18: 0 | BI18: 0 | BJ18: 0 | BK18: 0 | BL18: 0 | BM18: 0 | BN18: 0 | BO18: 0 | BP18: 0 | BQ18: 0 | BR18: 6085046.693
B19: Residential Two Rate 5d - controlled load | D19: 0 | E19: 0 | F19: 0 | G19: 0 | H19: 0 | I19: 0.0001 | J19: 0 | K19: 0 | L19: 0 | M19: 0 | N19: 0 | O19: 0 | P19: 0 | Q19: 0 | R19: 0 | S19: 0 | T19: 0 | U19: 0 | V19: 0 | W19: 0 | X19: 0 | Z19: 43362.91667 | AA19: 0 | AB19: 0 | AC19: 0 | AD19: 0 | AE19: 87770252.78 | AF19: 0 | AG19: 0 | AH19: 0 | AI19: 0 | AJ19: 0 | AK19: 0 | AL19: 0 | AM19: 0 | AN19: 0 | AO19: 0 | AP19: 0 | AQ19: 0 | AR19: 0 | AS19: -1939.2802 | AT19: 0 | AW19: 0 | AX19: 0 | AY19: 0 | AZ19: 0 | BA19: 0 | BB19: 87.77025278 | BC19: 0 | BD19: 0 | BE19: 0 | BF19: 0 | BG19: 0 | BH19: 0 | BI19: 0 | BJ19: 0 | BK19: 0 | BL19: 0 | BM19: 0 | BN19: 0 | BO19: 0 | BP19: 0 | BQ19: 0 | BR19: 87.77025278
B20: Docklands Two Rate 5d - controlled load | D20: 0 | E20: 0 | F20: 0 | G20: 0 | H20: 0 | I20: 0.0001 | J20: 0 | K20: 0 | L20: 0 | M20: 0 | N20: 0 | O20: 0 | P20: 0 | Q20: 0 | R20: 0 | S20: 0 | T20: 0 | U20: 0 | V20: 0 | W20: 0 | X20: 0 | Z20: 70.66666667 | AA20: 0 | AB20: 0 | AC20: 0 | AD20: 0 | AE20: 126903.9561 | AF20: 0 | AG20: 0 | AH20: 0 | AI20: 0 | AJ20: 0 | AK20: 0 | AL20: 0 | AM20: 0 | AN20: 0 | AO20: 0 | AP20: 0 | AQ20: 0 | AR20: 0 | AS20: 0 | AT20: 0 | AW20: 0 | AX20: 0 | AY20: 0 | AZ20: 0 | BA20: 0 | BB20: 0.1269039561 | BC20: 0 | BD20: 0 | BE20: 0 | BF20: 0 | BG20: 0 | BH20: 0 | BI20: 0 | BJ20: 0 | BK20: 0 | BL20: 0 | BM20: 0 | BN20: 0 | BO20: 0 | BP20: 0 | BQ20: 0 | BR20: 0.1269039561
B21: Dedicated circuit | D21: 0 | E21: 0 | F21: 0 | G21: 0 | H21: 0 | I21: 2.8723 | J21: 0 | K21: 0 | L21: 0 | M21: 0 | N21: 0 | O21: 0 | P21: 0 | Q21: 0 | R21: 0 | S21: 0 | T21: 0 | U21: 0 | V21: 0 | W21: 0 | X21: 0 | Z21: 160536.75 | AA21: 0 | AB21: 0 | AC21: 0 | AD21: 0 | AE21: 335946183.7 | AF21: 0 | AG21: 0 | AH21: 0 | AI21: 0 | AJ21: 0 | AK21: 0 | AL21: 0 | AM21: 0 | AN21: 0 | AO21: -86.92 | AP21: 0 | AQ21: 0 | AR21: 0 | AS21: -15989.1452 | AT21: 0 | AW21: 0 | AX21: 0 | AY21: 0 | AZ21: 0 | BA21: 0 | BB21: 9649382.235 | BC21: 0 | BD21: 0 | BE21: 0 | BF21: 0 | BG21: 0 | BH21: 0 | BI21: 0 | BJ21: 0 | BK21: 0 | BL21: 0 | BM21: 0 | BN21: 0 | BO21: 0 | BP21: 0 | BQ21: 0 | BR21: 9649382.235
B22: Hot Water Interval | D22: 0 | E22: 0 | F22: 0 | G22: 0 | H22: 0 | I22: 2.8723 | J22: 0 | K22: 0 | L22: 0 | M22: 0 | N22: 0 | O22: 0 | P22: 0 | Q22: 0 | R22: 0 | S22: 0 | T22: 0 | U22: 0 | V22: 0 | W22: 0 | X22: 0 | Z22: 5563.666667 | AA22: 9.4947368 | AB22: 0 | AC22: 0 | AD22: 0 | AE22: 11051226.15 | AF22: 0 | AG22: 0 | AH22: 0 | AI22: 0 | AJ22: 0 | AK22: 0 | AL22: 0 | AM22: 0 | AN22: 0 | AO22: 0 | AP22: 0 | AQ22: 0 | AR22: 0 | AS22: -111.777 | AT22: 0 | AW22: 0 | AX22: 0 | AY22: 0 | AZ22: 0 | BA22: 0 | BB22: 317424.3688 | BC22: 0 | BD22: 0 | BE22: 0 | BF22: 0 | BG22: 0 | BH22: 0 | BI22: 0 | BJ22: 0 | BK22: 0 | BL22: 0 | BM22: 0 | BN22: 0 | BO22: 0 | BP22: 0 | BQ22: 0 | BR22: 317424.3688
B23: Non-Residential Single Rate | D23: 0 | E23: 0.0001 | F23: 0.0001 | G23: 0.0001 | H23: 0.0001 | I23: 0 | J23: 0 | K23: 0 | L23: 0 | M23: 0 | N23: 0 | O23: 0 | P23: 0 | Q23: 0 | R23: 0 | S23: 0 | T23: 0 | U23: 0 | V23: 0 | W23: 0 | X23: 0 | Z23: 42320.08333 | AA23: 86248274.11 | AB23: 113884103.5 | AC23: 68616229.44 | AD23: 28784854.75 | AE23: 0 | AF23: 0 | AG23: 0 | AH23: 0 | AI23: 0 | AJ23: 0 | AK23: 0 | AL23: 0 | AM23: 0 | AN23: 0 | AO23: 0 | AP23: 0 | AQ23: 0 | AR23: 0 | AS23: 0 | AT23: 0 | AW23: 0 | AX23: 86.24827411 | AY23: 113.8841035 | AZ23: 68.61622944 | BA23: 28.78485475 | BB23: 0 | BC23: 0 | BD23: 0 | BE23: 0 | BF23: 0 | BG23: 0 | BH23: 0 | BI23: 0 | BJ23: 0 | BK23: 0 | BL23: 0 | BM23: 0 | BN23: 0 | BO23: 0 | BP23: 0 | BQ23: 0 | BR23: 297.5334618
B24: Non-Residential | D24: 0 | E24: 0 | F24: 0 | G24: 0 | H24: 0 | I24: 0 | J24: 0 | K24: 0 | L24: 0 | M24: 0 | N24: 0 | O24: 0 | P24: 0 | Q24: 0.0001 | R24: 1.9446 | S24: 2.2737 | T24: 0 | U24: 0.0001 | V24: 1.9446 | W24: 2.2737 | X24: 0 | Z24: 237.4166667 | AA24: 0 | AB24: 0 | AC24: 0 | AD24: 0 | AE24: 0 | AF24: 0 | AG24: 0 | AH24: 0 | AI24: 0 | AJ24: 0 | AK24: 0 | AL24: 0 | AM24: 4296704.223 | AN24: 1451159.274 | AO24: 4220963.775 | AP24: 0 | AQ24: 4214892.717 | AR24: 1251767.095 | AS24: 3740745.65 | AT24: 0 | AW24: 0 | AX24: 0 | AY24: 0 | AZ24: 0 | BA24: 0 | BB24: 0 | BC24: 0 | BD24: 0 | BE24: 0 | BF24: 0 | BG24: 0 | BH24: 0 | BI24: 0 | BJ24: 4.296704223 | BK24: 28219.24325 | BL24: 95972.05336 | BM24: 0 | BN24: =U24/100*AQ24 -> 4.214892717 | BO24: 24341.86292 | BP24: 85053.33384 | BQ24: 0 | BR24: 233595.005
B25: Non-Residential Two Rate 5d | D25: 0 | E25: 0.0001 | F25: 0.0001 | G25: 0.0001 | H25: 0.0001 | I25: 0.0001 | J25: 0 | K25: 0 | L25: 0 | M25: 0 | N25: 0 | O25: 0 | P25: 0 | Q25: 0 | R25: 0 | S25: 0 | T25: 0 | U25: 0 | V25: 0 | W25: 0 | X25: 0 | Z25: 30886.16667 | AA25: 86939950.3 | AB25: 197987235 | AC25: 203496265.8 | AD25: 119527984.2 | AE25: 523674357.6 | AF25: 0 | AG25: 0 | AH25: 0 | AI25: 0 | AJ25: 0 | AK25: 0 | AL25: 0 | AM25: 0 | AN25: 0 | AO25: 0 | AP25: 0 | AQ25: 0 | AR25: 0 | AS25: 0 | AT25: 0 | AW25: 0 | AX25: 86.9399503 | AY25: 197.987235 | AZ25: 203.4962658 | BA25: 119.5279842 | BB25: 523.6743576 | BC25: 0 | BD25: 0 | BE25: 0 | BF25: 0 | BG25: 0 | BH25: 0 | BI25: 0 | BJ25: 0 | BK25: 0 | BL25: 0 | BM25: 0 | BN25: 0 | BO25: 0 | BP25: 0 | BQ25: 0 | BR25: 1131.625793
B26: Non-Residential Interval | D26: 0 | E26: 0.0001 | F26: 0.0001 | G26: 0.0001 | H26: 0.0001 | I26: 0.0001 | J26: 0 | K26: 0 | L26: 0 | M26: 0 | N26: 0 | O26: 0 | P26: 0 | Q26: 0 | R26: 0 | S26: 0 | T26: 0 | U26: 0 | V26: 0 | W26: 0 | X26: 0 | Z26: 14568.5 | AA26: 38633648.57 | AB26: 77898526.77 | AC26: 77001036.21 | AD26: 42456188.39 | AE26: 167185799.6 | AF26: 0 | AG26: 0 | AH26: 0 | AI26: 0 | AJ26: 0 | AK26: 0 | AL26: 0 | AM26: 0 | AN26: 0 | AO26: 0 | AP26: 0 | AQ26: 0 | AR26: 0 | AS26: 0 | AT26: 0 | AW26: 0 | AX26: 38.63364857 | AY26: 77.89852677 | AZ26: 77.00103621 | BA26: 42.45618839 | BB26: 167.1857996 | BC26: 0 | BD26: 0 | BE26: 0 | BF26: 0 | BG26: 0 | BH26: 0 | BI26: 0 | BJ26: 0 | BK26: 0 | BL26: 0 | BM26: 0 | BN26: 0 | BO26: 0 | BP26: 0 | BQ26: 0 | BR26: 403.1751995
B27: Non-Residential Two Rate 7d | D27: 0 | E27: 0.0001 | F27: 2.4688 | G27: 0.0001 | H27: 0.0001 | I27: 2.3121 | J27: 0 | K27: 0 | L27: 0 | M27: 0 | N27: 0 | O27: 0 | P27: 0 | Q27: 0 | R27: 0 | S27: 0 | T27: 0 | U27: 0 | V27: 0 | W27: 0 | X27: 0 | Z27: 8415.75 | AA27: 21245022.34 | AB27: 40934013.53 | AC27: 36802208.84 | AD27: 28040517.03 | AE27: 47347310.83 | AF27: 0 | AG27: 0 | AH27: 0 | AI27: 0 | AJ27: 0 | AK27: 0 | AL27: 0 | AM27: 0 | AN27: 0 | AO27: 0 | AP27: 0 | AQ27: 0 | AR27: 0 | AS27: 0 | AT27: 0 | AW27: 0 | AX27: 21.24502234 | AY27: 1010578.926 | AZ27: 36.80220884 | BA27: 28.04051703 | BB27: 1094717.174 | BC27: 0 | BD27: 0 | BE27: 0 | BF27: 0 | BG27: 0 | BH27: 0 | BI27: 0 | BJ27: 0 | BK27: 0 | BL27: 0 | BM27: 0 | BN27: 0 | BO27: 0 | BP27: 0 | BQ27: 0 | BR27: 2105382.188
B28: Public Lighting | D28: 0 | E28: 0.0001 | F28: 0 | G28: 0 | H28: 0 | I28: 3.1537 | J28: 0 | K28: 0 | L28: 0 | M28: 0 | N28: 0 | O28: 0 | P28: 0 | Q28: 0 | R28: 0 | S28: 0 | T28: 0 | U28: 0 | V28: 0 | W28: 0 | X28: 0 | Z28: 6368.833333 | AA28: 26137653.47 | AB28: 0 | AC28: 0 | AD28: 0 | AE28: 64638411.36 | AF28: 0 | AG28: 0 | AH28: 0 | AI28: 0 | AJ28: 0 | AK28: 0 | AL28: 0 | AM28: 0 | AN28: 0 | AO28: 0 | AP28: 0 | AQ28: 0 | AR28: 0 | AS28: 0 | AT28: 0 | AW28: 0 | AX28: 26.13765347 | AY28: 0 | AZ28: 0 | BA28: 0 | BB28: 2038501.579 | BC28: 0 | BD28: 0 | BE28: 0 | BF28: 0 | BG28: 0 | BH28: 0 | BI28: 0 | BJ28: 0 | BK28: 0 | BL28: 0 | BM28: 0 | BN28: 0 | BO28: 0 | BP28: 0 | BQ28: 0 | BR28: 2038527.717
B29: Large Low Voltage Demand | D29: 0 | E29: 2.8267 | F29: 0 | G29: 0 | H29: 0 | I29: 0.0001 | J29: 0 | K29: 0 | L29: 0 | M29: 0 | N29: 0 | O29: 0 | P29: 0 | Q29: 0 | R29: 0 | S29: 0 | T29: 0 | U29: 0 | V29: 0 | W29: 0 | X29: 0 | Z29: 923.0833333 | AA29: 688852034.8 | AB29: 0 | AC29: 0 | AD29: 0 | AE29: 533707665.6 | AF29: 0 | AG29: 0 | AH29: 0 | AI29: 437248.3932 | AJ29: 0 | AK29: 0 | AL29: 0 | AM29: 0 | AN29: 0 | AO29: 0 | AP29: 0 | AQ29: 0 | AR29: 0 | AS29: 0 | AT29: 0 | AW29: 0 | AX29: 19471780.47 | AY29: 0 | AZ29: 0 | BA29: 0 | BB29: 533.7076656 | BC29: 0 | BD29: 0 | BE29: 0 | BF29: 0 | BG29: 0 | BH29: 0 | BI29: 0 | BJ29: 0 | BK29: 0 | BL29: 0 | BM29: 0 | BN29: 0 | BO29: 0 | BP29: 0 | BQ29: 0 | BR29: 19472314.17
B30: Large Low Voltage Demand A | D30: 0 | E30: 0.0001 | F30: 0 | G30: 0 | H30: 0 | I30: 0.0001 | J30: 0 | K30: 0 | L30: 0 | M30: 0 | N30: 0 | O30: 0 | P30: 0 | Q30: 0 | R30: 0 | S30: 0 | T30: 0 | U30: 0 | V30: 0 | W30: 0 | X30: 0 | Z30: 0 | AA30: 0 | AB30: 0 | AC30: 0 | AD30: 0 | AE30: 0 | AF30: 0 | AG30: 0 | AH30: 0 | AI30: 0 | AJ30: 0 | AK30: 0 | AL30: 0 | AM30: 0 | AN30: 0 | AO30: 0 | AP30: 0 | AQ30: 0 | AR30: 0 | AS30: 0 | AT30: 0 | AW30: 0 | AX30: 0 | AY30: 0 | AZ30: 0 | BA30: 0 | BB30: 0 | BC30: 0 | BD30: 0 | BE30: 0 | BF30: 0 | BG30: 0 | BH30: 0 | BI30: 0 | BJ30: 0 | BK30: 0 | BL30: 0 | BM30: 0 | BN30: 0 | BO30: 0 | BP30: 0 | BQ30: 0 | BR30: 0
B31: Large Low Voltage Demand C | D31: 0 | E31: 0.0001 | F31: 0 | G31: 0 | H31: 0 | I31: 0.0001 | J31: 0 | K31: 0 | L31: 0 | M31: 0 | N31: 0 | O31: 0 | P31: 0 | Q31: 0 | R31: 0 | S31: 0 | T31: 0 | U31: 0 | V31: 0 | W31: 0 | X31: 0 | Z31: 418.9166667 | AA31: 331857173.8 | AB31: 0 | AC31: 0 | AD31: 0 | AE31: 237365097.5 | AF31: 0 | AG31: 0 | AH31: 0 | AI31: 194418.6802 | AJ31: 0 | AK31: 0 | AL31: 0 | AM31: 0 | AN31: 0 | AO31: 0 | AP31: 0 | AQ31: 0 | AR31: 0 | AS31: 0 | AT31: 0 | AW31: 0 | AX31: 331.8571738 | AY31: 0 | AZ31: 0 | BA31: 0 | BB31: 237.3650975 | BC31: 0 | BD31: 0 | BE31: 0 | BF31: 0 | BG31: 0 | BH31: 0 | BI31: 0 | BJ31: 0 | BK31: 0 | BL31: 0 | BM31: 0 | BN31: 0 | BO31: 0 | BP31: 0 | BQ31: 0 | BR31: 569.2222713
B32: Large Low Voltage Demand S | D32: 0 | E32: 0.0001 | F32: 0 | G32: 0 | H32: 0 | I32: 2.2016 | J32: 0 | K32: 0 | L32: 0 | M32: 0 | N32: 0 | O32: 0 | P32: 0 | Q32: 0 | R32: 0 | S32: 0 | T32: 0 | U32: 0 | V32: 0 | W32: 0 | X32: 0 | Z32: 43.91666667 | AA32: 14451548.2 | AB32: 0 | AC32: 0 | AD32: 0 | AE32: 10202624.4 | AF32: 0 | AG32: 0 | AH32: 0 | AI32: 10379.99999 | AJ32: 0 | AK32: 0 | AL32: 0 | AM32: 0 | AN32: 0 | AO32: 0 | AP32: 0 | AQ32: 0 | AR32: 0 | AS32: 0 | AT32: 0 | AW32: 0 | AX32: 14.4515482 | AY32: 0 | AZ32: 0 | BA32: 0 | BB32: 224620.9789 | BC32: 0 | BD32: 0 | BE32: 0 | BF32: 0 | BG32: 0 | BH32: 0 | BI32: 0 | BJ32: 0 | BK32: 0 | BL32: 0 | BM32: 0 | BN32: 0 | BO32: 0 | BP32: 0 | BQ32: 0 | BR32: 224635.4304
B33: Large Low Voltage Demand Docklands | D33: 0 | E33: 0.0001 | F33: 0 | G33: 0 | H33: 0 | I33: 0.0001 | J33: 0 | K33: 0 | L33: 0 | M33: 0 | N33: 0 | O33: 0 | P33: 0 | Q33: 0 | R33: 0 | S33: 0 | T33: 0 | U33: 0 | V33: 0 | W33: 0 | X33: 0 | Z33: 7 | AA33: 2737143.528 | AB33: 0 | AC33: 0 | AD33: 0 | AE33: 2881112.74 | AF33: 0 | AG33: 0 | AH33: 0 | AI33: 1933.855733 | AJ33: 0 | AK33: 0 | AL33: 0 | AM33: 0 | AN33: 0 | AO33: 0 | AP33: 0 | AQ33: 0 | AR33: 0 | AS33: 0 | AT33: 0 | AW33: 0 | AX33: 2.737143528 | AY33: 0 | AZ33: 0 | BA33: 0 | BB33: 2.88111274 | BC33: 0 | BD33: 0 | BE33: 0 | BF33: 0 | BG33: 0 | BH33: 0 | BI33: 0 | BJ33: 0 | BK33: 0 | BL33: 0 | BM33: 0 | BN33: 0 | BO33: 0 | BP33: 0 | BQ33: 0 | BR33: 5.618256268
B34: Large Low Voltage Demand CXX | D34: 0 | E34: 3.8395 | F34: 0 | G34: 0 | H34: 0 | I34: 0.0001 | J34: 0 | K34: 0 | L34: 0 | M34: 0 | N34: 0 | O34: 0 | P34: 0 | Q34: 0 | R34: 0 | S34: 0 | T34: 0 | U34: 0 | V34: 0 | W34: 0 | X34: 0 | Z34: 1174.75 | AA34: 270719346.2 | AB34: 0 | AC34: 0 | AD34: 0 | AE34: 199159441.8 | AF34: 0 | AG34: 0 | AH34: 0 | AI34: 189906.788 | AJ34: 0 | AK34: 0 | AL34: 0 | AM34: 0 | AN34: 0 | AO34: 0 | AP34: 0 | AQ34: 0 | AR34: 0 | AS34: 0 | AT34: 0 | AW34: 0 | AX34: 10394269.3 | AY34: 0 | AZ34: 0 | BA34: 0 | BB34: 199.1594418 | BC34: 0 | BD34: 0 | BE34: 0 | BF34: 0 | BG34: 0 | BH34: 0 | BI34: 0 | BJ34: 0 | BK34: 0 | BL34: 0 | BM34: 0 | BN34: 0 | BO34: 0 | BP34: 0 | BQ34: 0 | BR34: 10394468.46
B35: Large Low Voltage Demand EN.R | D35: 0 | E35: 0.4537 | F35: 0 | G35: 0 | H35: 0 | I35: 0.4537 | J35: 0 | K35: 0 | L35: 0 | M35: 0 | N35: 0 | O35: 0 | P35: 0 | Q35: 0 | R35: 0 | S35: 0 | T35: 0 | U35: 0 | V35: 0 | W35: 0 | X35: 0 | Z35: 2.583333333 | AA35: 724994.147 | AB35: 0 | AC35: 0 | AD35: 0 | AE35: 218780.9484 | AF35: 0 | AG35: 0 | AH35: 0 | AI35: 737.9196667 | AJ35: 0 | AK35: 0 | AL35: 0 | AM35: 0 | AN35: 0 | AO35: 0 | AP35: 0 | AQ35: 0 | AR35: 0 | AS35: 0 | AT35: 0 | AW35: 0 | AX35: 3289.298445 | AY35: 0 | AZ35: 0 | BA35: 0 | BB35: 992.6091629 | BC35: 0 | BD35: 0 | BE35: 0 | BF35: 0 | BG35: 0 | BH35: 0 | BI35: 0 | BJ35: 0 | BK35: 0 | BL35: 0 | BM35: 0 | BN35: 0 | BO35: 0 | BP35: 0 | BQ35: 0 | BR35: 4281.907608
B36: Large Low Voltage Demand EN.NR | D36: 0 | E36: 0.0001 | F36: 0 | G36: 0 | H36: 0 | I36: 0.0002 | J36: 0 | K36: 0 | L36: 0 | M36: 0 | N36: 0 | O36: 0 | P36: 0 | Q36: 0 | R36: 0 | S36: 0 | T36: 0 | U36: 0 | V36: 0 | W36: 0 | X36: 0 | Z36: 30.33333333 | AA36: 37029252.24 | AB36: 0 | AC36: 0 | AD36: 0 | AE36: 23618575.64 | AF36: 0 | AG36: 0 | AH36: 0 | AI36: 21332.6762 | AJ36: 0 | AK36: 0 | AL36: 0 | AM36: 0 | AN36: 0 | AO36: 0 | AP36: 0 | AQ36: 0 | AR36: 0 | AS36: 0 | AT36: 0 | AW36: 0 | AX36: 37.02925224 | AY36: 0 | AZ36: 0 | BA36: 0 | BB36: 47.23715129 | BC36: 0 | BD36: 0 | BE36: 0 | BF36: 0 | BG36: 0 | BH36: 0 | BI36: 0 | BJ36: 0 | BK36: 0 | BL36: 0 | BM36: 0 | BN36: 0 | BO36: 0 | BP36: 0 | BQ36: 0 | BR36: 84.26640353
B37: Large Low Voltage Demand EN.R CXX | D37: 0 | E37: 0.0001 | F37: 0 | G37: 0 | H37: 0 | I37: 0.0001 | J37: 0 | K37: 0 | L37: 0 | M37: 0 | N37: 0 | O37: 0 | P37: 0 | Q37: 0 | R37: 0 | S37: 0 | T37: 0 | U37: 0 | V37: 0 | W37: 0 | X37: 0 | Z37: 2.666666667 | AA37: 1435038.483 | AB37: 0 | AC37: 0 | AD37: 0 | AE37: 637270.747 | AF37: 0 | AG37: 0 | AH37: 0 | AI37: 805.7496667 | AJ37: 0 | AK37: 0 | AL37: 0 | AM37: 0 | AN37: 0 | AO37: 0 | AP37: 0 | AQ37: 0 | AR37: 0 | AS37: 0 | AT37: 0 | AW37: 0 | AX37: 1.435038483 | AY37: 0 | AZ37: 0 | BA37: 0 | BB37: 0.637270747 | BC37: 0 | BD37: 0 | BE37: 0 | BF37: 0 | BG37: 0 | BH37: 0 | BI37: 0 | BJ37: 0 | BK37: 0 | BL37: 0 | BM37: 0 | BN37: 0 | BO37: 0 | BP37: 0 | BQ37: 0 | BR37: 2.07230923
B38: Large Low Voltage Demand EN.NRCXX | D38: 0 | E38: 0.0001 | F38: 0 | G38: 0 | H38: 0 | I38: 0.0001 | J38: 0 | K38: 0 | L38: 0 | M38: 0 | N38: 0 | O38: 0 | P38: 0 | Q38: 0 | R38: 0 | S38: 0 | T38: 0 | U38: 0 | V38: 0 | W38: 0 | X38: 0 | Z38: 9.416666667 | AA38: 3130339.955 | AB38: 0 | AC38: 0 | AD38: 0 | AE38: 2020908.89 | AF38: 0 | AG38: 0 | AH38: 0 | AI38: 1983.101511 | AJ38: 0 | AK38: 0 | AL38: 0 | AM38: 0 | AN38: 0 | AO38: 0 | AP38: 0 | AQ38: 0 | AR38: 0 | AS38: 0 | AT38: 0 | AW38: 0 | AX38: 3.130339955 | AY38: 0 | AZ38: 0 | BA38: 0 | BB38: 2.02090889 | BC38: 0 | BD38: 0 | BE38: 0 | BF38: 0 | BG38: 0 | BH38: 0 | BI38: 0 | BJ38: 0 | BK38: 0 | BL38: 0 | BM38: 0 | BN38: 0 | BO38: 0 | BP38: 0 | BQ38: 0 | BR38: 5.151248845
B39: High Voltage Demand | D39: 0 | E39: 0 | F39: 0 | G39: 0 | H39: 0 | I39: 0 | J39: 0 | K39: 0 | L39: 0 | M39: 0 | N39: 0 | O39: 0 | P39: 0 | Q39: 0 | R39: 0 | S39: 0 | T39: 0 | U39: 0 | V39: 0 | W39: 0 | X39: 0 | Z39: 126.0833333 | AA39: 561229646.6 | AB39: 0 | AC39: 0 | AD39: 0 | AE39: 503901671.1 | AF39: 0 | AG39: 0 | AH39: 0 | AI39: 283788.0781 | AJ39: 0 | AK39: 0 | AL39: 0 | AM39: 0 | AN39: 0 | AO39: 0 | AP39: 0 | AQ39: 0 | AR39: 0 | AS39: 0 | AT39: 0 | AW39: 0 | AX39: 0 | AY39: 0 | AZ39: 0 | BA39: 0 | BB39: 0 | BC39: 0 | BD39: 0 | BE39: 0 | BF39: 0 | BG39: 0 | BH39: 0 | BI39: 0 | BJ39: 0 | BK39: 0 | BL39: 0 | BM39: 0 | BN39: 0 | BO39: 0 | BP39: 0 | BQ39: 0 | BR39: 0
B40: High Voltage Demand A | D40: 0 | E40: 0 | F40: 0 | G40: 0 | H40: 0 | I40: 0 | J40: 0 | K40: 0 | L40: 0 | M40: 0 | N40: 0 | O40: 0 | P40: 0 | Q40: 0 | R40: 0 | S40: 0 | T40: 0 | U40: 0 | V40: 0 | W40: 0 | X40: 0 | Z40: 3 | AA40: 5914230.171 | AB40: 0 | AC40: 0 | AD40: 0 | AE40: 6099365.161 | AF40: 0 | AG40: 0 | AH40: 0 | AI40: 3796 | AJ40: 0 | AK40: 0 | AL40: 0 | AM40: 0 | AN40: 0 | AO40: 0 | AP40: 0 | AQ40: 0 | AR40: 0 | AS40: 0 | AT40: 0 | AW40: 0 | AX40: =E40/100*AA40 -> 0 | AY40: =F40/100*AB40 -> 0 | AZ40: =G40/100*AC40 -> 0 | BA40: =H40/100*AD40 -> 0 | BB40: =I40/100*AE40 -> 0 | BC40: =J40/100*AF40 -> 0 | BD40: =K40/100*AG40 -> 0 | BE40: =L40/100*AH40 -> 0 | BF40: 0 | BG40: 0 | BH40: 0 | BI40: 0 | BJ40: =Q40/100*AM40 -> 0 | BK40: =R40/100*AN40 -> 0 | BL40: =S40/100*AO40 -> 0 | BM40: =T40/100*AP40 -> 0 | BN40: =U40/100*AQ40 -> 0 | BO40: 0 | BP40: 0 | BQ40: 0 | BR40: 0
B41: High Voltage Demand C | D41: 0 | E41: 0 | F41: 0 | G41: 0 | H41: 0 | I41: 0 | J41: 0 | K41: 0 | L41: 0 | M41: 0 | N41: 0 | O41: 0 | P41: 0 | Q41: 0 | R41: 0 | S41: 0 | T41: 0 | U41: 0 | V41: 0 | W41: 0 | X41: 0 | Z41: 41 | AA41: 233001879.7 | AB41: 0 | AC41: 0 | AD41: 0 | AE41: 205189883.6 | AF41: 0 | AG41: 0 | AH41: 0 | AI41: 112445.2747 | AJ41: 0 | AK41: 0 | AL41: 0 | AM41: 0 | AN41: 0 | AO41: 0 | AP41: 0 | AQ41: 0 | AR41: 0 | AS41: 0 | AT41: 0 | AW41: 0 | AX41: 0 | AY41: 0 | AZ41: 0 | BA41: 0 | BB41: 0 | BC41: 0 | BD41: 0 | BE41: 0 | BF41: 0 | BG41: =N41*AJ41 -> 0 | BH41: =O41*AK41 -> 0 | BI41: =P41*AL41 -> 0 | BJ41: 0 | BK41: 0 | BL41: 0 | BM41: 0 | BN41: 0 | BO41: 0 | BP41: 0 | BQ41: 0 | BR41: 0
B42: High Voltage Demand D1 | D42: 0 | E42: 0 | F42: 0 | G42: 0 | H42: 0 | I42: 0 | J42: 0 | K42: 0 | L42: 0 | M42: 0 | N42: 0 | O42: 0 | P42: 0 | Q42: 0 | R42: 0 | S42: 0 | T42: 0 | U42: 0 | V42: 0 | W42: 0 | X42: 0 | Z42: 1 | AA42: 75314343.39 | AB42: 0 | AC42: 0 | AD42: 0 | AE42: 82651793.23 | AF42: 0 | AG42: 0 | AH42: 0 | AI42: 21458.6677 | AJ42: 0 | AK42: 0 | AL42: 0 | AM42: 0 | AN42: 0 | AO42: 0 | AP42: 0 | AQ42: 0 | AR42: 0 | AS42: 0 | AT42: 0 | AW42: 0 | AX42: 0 | AY42: 0 | AZ42: 0 | BA42: 0 | BB42: 0 | BC42: 0 | BD42: 0 | BE42: 0 | BF42: 0 | BG42: 0 | BH42: 0 | BI42: 0 | BJ42: 0 | BK42: 0 | BL42: 0 | BM42: 0 | BN42: 0 | BO42: 0 | BP42: 0 | BQ42: 0 | BR42: 0
B43: High Voltage Demand D2 | D43: 0 | E43: 0 | F43: 0 | G43: 0 | H43: 0 | I43: 0 | J43: 0 | K43: 0 | L43: 0 | M43: 0 | N43: 0 | O43: 0 | P43: 0 | Q43: 0 | R43: 0 | S43: 0 | T43: 0 | U43: 0 | V43: 0 | W43: 0 | X43: 0 | Z43: 1 | AA43: 41239204.15 | AB43: 0 | AC43: 0 | AD43: 0 | AE43: 44710906.24 | AF43: 0 | AG43: 0 | AH43: 0 | AI43: 12699.46634 | AJ43: 0 | AK43: 0 | AL43: 0 | AM43: 0 | AN43: 0 | AO43: 0 | AP43: 0 | AQ43: 0 | AR43: 0 | AS43: 0 | AT43: 0 | AW43: 0 | AX43: 0 | AY43: 0 | AZ43: 0 | BA43: 0 | BB43: 0 | BC43: 0 | BD43: 0 | BE43: 0 | BF43: 0 | BG43: 0 | BH43: 0 | BI43: 0 | BJ43: 0 | BK43: 0 | BL43: 0 | BM43: 0 | BN43: 0 | BO43: 0 | BP43: 0 | BQ43: 0 | BR43: 0
B44: High Voltage Demand Docklands | D44: 0 | E44: 0 | F44: 0 | G44: 0 | H44: 0 | I44: 0 | J44: 0 | K44: 0 | L44: 0 | M44: 0 | N44: 0 | O44: 0 | P44: 0 | Q44: 0 | R44: 0 | S44: 0 | T44: 0 | U44: 0 | V44: 0 | W44: 0 | X44: 0 | Z44: 1 | AA44: 1851329.529 | AB44: 0 | AC44: 0 | AD44: 0 | AE44: 791804.467 | AF44: 0 | AG44: 0 | AH44: 0 | AI44: 1000 | AJ44: 0 | AK44: 0 | AL44: 0 | AM44: 0 | AN44: 0 | AO44: 0 | AP44: 0 | AQ44: 0 | AR44: 0 | AS44: 0 | AT44: 0 | AW44: 0 | AX44: 0 | AY44: 0 | AZ44: 0 | BA44: 0 | BB44: 0 | BC44: 0 | BD44: 0 | BE44: 0 | BF44: 0 | BG44: 0 | BH44: 0 | BI44: 0 | BJ44: 0 | BK44: 0 | BL44: 0 | BM44: 0 | BN44: 0 | BO44: 0 | BP44: 0 | BQ44: 0 | BR44: 0
B45: High Voltage Demand D3 | D45: 0 | E45: 0 | F45: 0 | G45: 0 | H45: 0 | I45: 0 | J45: 0 | K45: 0 | L45: 0 | M45: 0 | N45: 0 | O45: 0 | P45: 0 | Q45: 0 | R45: 0 | S45: 0 | T45: 0 | U45: 0 | V45: 0 | W45: 0 | X45: 0 | Z45: 1 | AA45: 10186178.62 | AB45: 0 | AC45: 0 | AD45: 0 | AE45: 16430997.87 | AF45: 0 | AG45: 0 | AH45: 0 | AI45: 11400 | AJ45: 0 | AK45: 0 | AL45: 0 | AM45: 0 | AN45: 0 | AO45: 0 | AP45: 0 | AQ45: 0 | AR45: 0 | AS45: 0 | AT45: 0 | AW45: 0 | AX45: 0 | AY45: 0 | AZ45: 0 | BA45: 0 | BB45: 0 | BC45: 0 | BD45: 0 | BE45: 0 | BF45: 0 | BG45: 0 | BH45: 0 | BI45: 0 | BJ45: 0 | BK45: 0 | BL45: 0 | BM45: 0 | BN45: 0 | BO45: 0 | BP45: 0 | BQ45: 0 | BR45: 0
B46: High Voltage Demand D4 | D46: 0 | E46: 0 | F46: 0 | G46: 0 | H46: 0 | I46: 0 | J46: 0 | K46: 0 | L46: 0 | M46: 0 | N46: 0 | O46: 0 | P46: 0 | Q46: 0 | R46: 0 | S46: 0 | T46: 0 | U46: 0 | V46: 0 | W46: 0 | X46: 0 | Z46: 0 | AA46: 0 | AB46: 0 | AC46: 0 | AD46: 0 | AE46: 0 | AF46: 0 | AG46: 0 | AH46: 0 | AI46: 0 | AJ46: 0 | AK46: 0 | AL46: 0 | AM46: 0 | AN46: 0 | AO46: 0 | AP46: 0 | AQ46: 0 | AR46: 0 | AS46: 0 | AT46: 0 | AW46: 0 | AX46: 0 | AY46: 0 | AZ46: 0 | BA46: 0 | BB46: 0 | BC46: 0 | BD46: 0 | BE46: 0 | BF46: 0 | BG46: 0 | BH46: 0 | BI46: 0 | BJ46: 0 | BK46: 0 | BL46: 0 | BM46: 0 | BN46: 0 | BO46: 0 | BP46: 0 | BQ46: 0 | BR46: 0
B47: Subtransmission Demand A | D47: 0 | E47: 0 | F47: 0 | G47: 0 | H47: 0 | I47: 0 | J47: 0 | K47: 0 | L47: 0 | M47: 0 | N47: 0 | O47: 0 | P47: 0 | Q47: 0 | R47: 0 | S47: 0 | T47: 0 | U47: 0 | V47: 0 | W47: 0 | X47: 0 | Z47: 3 | AA47: 72262106.08 | AB47: 0 | AC47: 0 | AD47: 0 | AE47: 48910876.76 | AF47: 0 | AG47: 0 | AH47: 0 | AI47: 51799.83333 | AJ47: 0 | AK47: 0 | AL47: 0 | AM47: 0 | AN47: 0 | AO47: 0 | AP47: 0 | AQ47: 0 | AR47: 0 | AS47: 0 | AT47: 0 | AW47: 0 | AX47: 0 | AY47: 0 | AZ47: 0 | BA47: 0 | BB47: 0 | BC47: 0 | BD47: 0 | BE47: 0 | BF47: 0 | BG47: 0 | BH47: 0 | BI47: 0 | BJ47: 0 | BK47: 0 | BL47: 0 | BM47: 0 | BN47: 0 | BO47: 0 | BP47: 0 | BQ47: 0 | BR47: 0
B48: Subtransmission Demand G | D48: 0 | E48: 0 | F48: 0 | G48: 0 | H48: 0 | I48: 0 | J48: 0 | K48: 0 | L48: 0 | M48: 0 | N48: 0 | O48: 0 | P48: 0 | Q48: 0 | R48: 0 | S48: 0 | T48: 0 | U48: 0 | V48: 0 | W48: 0 | X48: 0 | Z48: 6.916666667 | AA48: 281208160.3 | AB48: 0 | AC48: 0 | AD48: 0 | AE48: 293307668.2 | AF48: 0 | AG48: 0 | AH48: 0 | AI48: 185571.6754 | AJ48: 0 | AK48: 0 | AL48: 0 | AM48: 0 | AN48: 0 | AO48: 0 | AP48: 0 | AQ48: 0 | AR48: 0 | AS48: 0 | AT48: 0 | AW48: 0 | AX48: 0 | AY48: 0 | AZ48: 0 | BA48: 0 | BB48: 0 | BC48: 0 | BD48: 0 | BE48: 0 | BF48: 0 | BG48: 0 | BH48: 0 | BI48: 0 | BJ48: 0 | BK48: 0 | BL48: 0 | BM48: 0 | BN48: 0 | BO48: 0 | BP48: 0 | BQ48: 0 | BR48: 0
B49: Subtransmission Demand S | D49: 0 | E49: 0 | F49: 0 | G49: 0 | H49: 0 | I49: 0 | J49: 0 | K49: 0 | L49: 0 | M49: 0 | N49: 0 | O49: 0 | P49: 0 | Q49: 0 | R49: 0 | S49: 0 | T49: 0 | U49: 0 | V49: 0 | W49: 0 | X49: 0 | Z49: 2 | AA49: 210354001.8 | AB49: 0 | AC49: 0 | AD49: 0 | AE49: 119220382.1 | AF49: 0 | AG49: 0 | AH49: 0 | AI49: 101974.4913 | AJ49: 0 | AK49: 0 | AL49: 0 | AM49: 0 | AN49: 0 | AO49: 0 | AP49: 0 | AQ49: 0 | AR49: 0 | AS49: 0 | AT49: 0 | AW49: 0 | AX49: 0 | AY49: 0 | AZ49: 0 | BA49: 0 | BB49: 0 | BC49: 0 | BD49: 0 | BE49: 0 | BF49: 0 | BG49: 0 | BH49: 0 | BI49: 0 | BJ49: 0 | BK49: 0 | BL49: 0 | BM49: 0 | BN49: 0 | BO49: 0 | BP49: 0 | BQ49: 0 | BR49: 0
AW50: 0 | AX50: 0 | AY50: 0 | AZ50: 0 | BA50: 0 | BB50: 0 | BC50: 0 | BD50: 0 | BE50: 0 | BF50: 0 | BG50: 0 | BH50: 0 | BI50: 0 | BJ50: 0 | BK50: 0 | BL50: 0 | BM50: 0 | BN50: 0 | BO50: 0 | BP50: 0 | BQ50: 0 | BR50: 0
AW51: 0 | AX51: 0 | AY51: 0 | AZ51: 0 | BA51: 0 | BB51: 0 | BC51: 0 | BD51: 0 | BE51: 0 | BF51: 0 | BG51: 0 | BH51: 0 | BI51: 0 | BJ51: 0 | BK51: 0 | BL51: 0 | BM51: 0 | BN51: 0 | BO51: 0 | BP51: 0 | BQ51: 0 | BR51: 0
AW52: 0 | AX52: 0 | AY52: 0 | AZ52: 0 | BA52: 0 | BB52: 0 | BC52: 0 | BD52: 0 | BE52: 0 | BF52: 0 | BG52: 0 | BH52: 0 | BI52: 0 | BJ52: 0 | BK52: 0 | BL52: 0 | BM52: 0 | BN52: 0 | BO52: 0 | BP52: 0 | BQ52: 0 | BR52: 0
AW53: 0 | AX53: 0 | AY53: 0 | AZ53: 0 | BA53: 0 | BB53: 0 | BC53: 0 | BD53: 0 | BE53: 0 | BF53: 0 | BG53: 0 | BH53: 0 | BI53: 0 | BJ53: 0 | BK53: 0 | BL53: 0 | BM53: 0 | BN53: 0 | BO53: 0 | BP53: 0 | BQ53: 0 | BR53: 0
AW54: 0 | AX54: 0 | AY54: 0 | AZ54: 0 | BA54: 0 | BB54: 0 | BC54: 0 | BD54: 0 | BE54: 0 | BF54: 0 | BG54: 0 | BH54: 0 | BI54: 0 | BJ54: 0 | BK54: 0 | BL54: 0 | BM54: 0 | BN54: 0 | BO54: 0 | BP54: 0 | BQ54: 0 | BR54: 0
AW55: 0 | AX55: 0 | AY55: 0 | AZ55: 0 | BA55: 0 | BB55: 0 | BC55: 0 | BD55: 0 | BE55: 0 | BF55: 0 | BG55: 0 | BH55: 0 | BI55: 0 | BJ55: 0 | BK55: 0 | BL55: 0 | BM55: 0 | BN55: 0 | BO55: 0 | BP55: 0 | BQ55: 0 | BR55: 0
AW56: 0 | AX56: 0 | AY56: 0 | AZ56: 0 | BA56: 0 | BB56: 0 | BC56: 0 | BD56: 0 | BE56: 0 | BF56: 0 | BG56: 0 | BH56: 0 | BI56: 0 | BJ56: 0 | BK56: 0 | BL56: 0 | BM56: 0 | BN56: =U56/100*AQ56 -> 0 | BO56: 0 | BP56: 0 | BQ56: 0 | BR56: 0
AW57: 0 | AX57: 0 | AY57: 0 | AZ57: 0 | BA57: 0 | BB57: 0 | BC57: 0 | BD57: 0 | BE57: 0 | BF57: 0 | BG57: 0 | BH57: 0 | BI57: 0 | BJ57: 0 | BK57: 0 | BL57: 0 | BM57: 0 | BN57: 0 | BO57: 0 | BP57: 0 | BQ57: 0 | BR57: 0
AW58: 0 | AX58: 0 | AY58: 0 | AZ58: 0 | BA58: 0 | BB58: 0 | BC58: 0 | BD58: 0 | BE58: 0 | BF58: 0 | BG58: 0 | BH58: 0 | BI58: 0 | BJ58: 0 | BK58: 0 | BL58: 0 | BM58: 0 | BN58: 0 | BO58: 0 | BP58: 0 | BQ58: 0 | BR58: 0
AW59: 0 | AX59: 0 | AY59: 0 | AZ59: 0 | BA59: 0 | BB59: 0 | BC59: 0 | BD59: 0 | BE59: 0 | BF59: 0 | BG59: 0 | BH59: 0 | BI59: 0 | BJ59: 0 | BK59: 0 | BL59: 0 | BM59: 0 | BN59: 0 | BO59: 0 | BP59: 0 | BQ59: 0 | BR59: 0
AW60: 0 | AX60: 0 | AY60: 0 | AZ60: 0 | BA60: 0 | BB60: 0 | BC60: 0 | BD60: 0 | BE60: 0 | BF60: 0 | BG60: 0 | BH60: 0 | BI60: 0 | BJ60: 0 | BK60: 0 | BL60: 0 | BM60: 0 | BN60: 0 | BO60: 0 | BP60: 0 | BQ60: 0 | BR60: 0
AW61: 0 | AX61: 0 | AY61: 0 | AZ61: 0 | BA61: 0 | BB61: 0 | BC61: 0 | BD61: 0 | BE61: 0 | BF61: 0 | BG61: 0 | BH61: 0 | BI61: 0 | BJ61: 0 | BK61: 0 | BL61: 0 | BM61: 0 | BN61: 0 | BO61: 0 | BP61: 0 | BQ61: 0 | BR61: 0
AW62: 0 | AX62: 0 | AY62: 0 | AZ62: 0 | BA62: 0 | BB62: 0 | BC62: 0 | BD62: 0 | BE62: 0 | BF62: 0 | BG62: 0 | BH62: 0 | BI62: 0 | BJ62: 0 | BK62: 0 | BL62: 0 | BM62: 0 | BN62: 0 | BO62: 0 | BP62: 0 | BQ62: 0 | BR62: 0
AW63: 0 | AX63: 0 | AY63: 0 | AZ63: 0 | BA63: 0 | BB63: 0 | BC63: 0 | BD63: 0 | BE63: 0 | BF63: 0 | BG63: 0 | BH63: 0 | BI63: 0 | BJ63: 0 | BK63: 0 | BL63: 0 | BM63: 0 | BN63: 0 | BO63: 0 | BP63: 0 | BQ63: 0 | BR63: 0
AW64: 0 | AX64: 0 | AY64: 0 | AZ64: 0 | BA64: 0 | BB64: 0 | BC64: 0 | BD64: 0 | BE64: 0 | BF64: 0 | BG64: 0 | BH64: 0 | BI64: 0 | BJ64: 0 | BK64: 0 | BL64: 0 | BM64: 0 | BN64: 0 | BO64: 0 | BP64: 0 | BQ64: 0 | BR64: 0
AW65: 0 | AX65: 0 | AY65: 0 | AZ65: 0 | BA65: 0 | BB65: 0 | BC65: 0 | BD65: 0 | BE65: 0 | BF65: 0 | BG65: 0 | BH65: 0 | BI65: 0 | BJ65: 0 | BK65: 0 | BL65: 0 | BM65: 0 | BN65: 0 | BO65: 0 | BP65: 0 | BQ65: 0 | BR65: 0
AW66: 0 | AX66: 0 | AY66: 0 | AZ66: 0 | BA66: 0 | BB66: 0 | BC66: 0 | BD66: 0 | BE66: 0 | BF66: 0 | BG66: 0 | BH66: 0 | BI66: 0 | BJ66: 0 | BK66: 0 | BL66: 0 | BM66: 0 | BN66: 0 | BO66: 0 | BP66: 0 | BQ66: 0 | BR66: 0
AW67: 0 | AX67: 0 | AY67: 0 | AZ67: 0 | BA67: 0 | BB67: 0 | BC67: 0 | BD67: 0 | BE67: 0 | BF67: 0 | BG67: 0 | BH67: 0 | BI67: 0 | BJ67: 0 | BK67: 0 | BL67: 0 | BM67: 0 | BN67: 0 | BO67: 0 | BP67: 0 | BQ67: 0 | BR67: 0
Z68: =SUM(Z8:Z67) -> 999328.25 | AA68: 4921017104 | AB68: 1130580267 | AC68: 412608877.9 | AD68: 220702843.3 | AE68: 3995905325 | AF68: 0 | AG68: 0 | AH68: 0 | AI68: 1644680.651 | AJ68: 0 | AK68: 0 | AL68: 0 | AM68: =SUM(AM8:AM67) -> 5509930.364 | AN68: 3868143.171 | AO68: 5972738.299 | AP68: 0 | AQ68: 5826944.799 | AR68: 4486050.041 | AS68: 6176795.714 | AT68: 0 | AW68: =SUM(AW8:AW67) -> 0 | AX68: 38712725.35 | AY68: 1868258.883 | AZ68: 412.6088779 | BA68: 220.7028433 | BB68: 13327867.85 | BC68: 0 | BD68: 0 | BE68: 0 | BF68: 0 | BG68: 0 | BH68: 0 | BI68: 0 | BJ68: =SUM(BJ8:BJ67) -> 17.85511678 | BK68: 28221.66023 | BL68: 95979.42974 | BM68: 0 | BN68: 20.06666951 | BO68: 24345.0972 | BP68: 85061.00822 | BQ68: 0 | BR68: =SUM(AW68:BQ68) -> 54143130.51
AW70: 0 | AX70: 0 | AY70: 0 | AZ70: 0 | BA70: 0 | BB70: 0 | BC70: 0 | BD70: 0 | BE70: 0 | BF70: 0 | BG70: 0 | BH70: 0 | BI70: 0 | BJ70: 0 | BK70: 0 | BL70: 0 | BM70: 0 | BN70: 0 | BO70: 0 | BP70: 0 | BQ70: 0 | BR70: 0
B73: Definitions
B74: All information must be reported consistent the terms used in the DNSPs pricing proposal

Sheet 29. Juris cost audit template
B1: =Cover!E22 -> Powercor Australia Ltd
B2: Jurisdictional amount cost audit template
B3: =Cover!E26 -> 2015
B5: Templates 24 to 29 collect data required for annual pricing proposals. T-2 requires actual information for the reporting year.
B7: Jurisdictional scheme amounts | F7: t-2 actual
B8: PFIT | F8: 26911155.61
B9: TFIT | F9: 12663398.12
B10: <DNSP to insert for future schemes>
E11: Total | F11: =SUM(F8:F10) -> 39574553.73
B13: Where the following definitions apply
B14: PFIT | C14: Premium feed-in tariff payments
B15: TFIT | C15: Transitional feed-in tariff payments

Sheet Income Work Paper
B4: Powercor
B5: Income Statement Workpaper
D9: Directly Attributed ($'000 nominal) | L9: Allocated ($'000 nominal) | T9: Numeric QTY of each allocator (%) | AB9: Description of Allocation Basis | AC9: Reason for choosing this basis
B10: INCOME WORKPAPER | C10: Powercor | D10: SCS | E10: AMI | F10: PL (EF) | G10: PL (NE) | H10: ACS (F) | I10: ACS (Q) | J10: Neg'd | K10: Un'reg | L10: SCS | M10: AMI | N10: PL (EF) | O10: PL (NE) | P10: ACS (F) | Q10: ACS (Q) | R10: Neg'd | S10: Un'reg | T10: SCS | U10: AMI | V10: PL (EF) | W10: PL (NE) | X10: ACS (F) | Y10: ACS (Q) | Z10: Neg'd | AA10: Un'reg | AD10: check
B12: Distribution Revenue | C12: -769806.0336 | D12: -657063.7622 | E12: -84383.79094 | F12: -3503.161197 | G12: -4613.804833 | H12: -14527.68382 | I12: -5022.40282 | J12: -681.86606 | K12: -9.5617 | AD12: =C12-SUM(D12:S12) -> -1.655786764e-05
B13: TUOS revenue | C13: 0 | AD13: 0
B14: Cross boundary revenue | C14: 0 | AD14: 0
B15: Jurisdictional Scheme Amounts | C15: 0 | AD15: 0
B16: Profit from sale of Fixed Assets | C16: 541.27917 | D16: 541.27917 | E16: 0 | H16: 0 | AD16: 1.023181539e-12
B17: Customer Contributions | C17: 0 | AD17: 0
B18: Interest income | C18: -332.02117 | L18: -295.5627047 | M18: -34.40988493 | N18: -0.8289135401 | O18: -1.219666863 | T18: =L18/SUM($L18:$S18) -> 0.8901923473 | U18: =M18/SUM($L18:$S18) -> 0.1036376232 | V18: =N18/SUM($L18:$S18) -> 0.002496568337 | W18: 0.003673461132 | X18: 0 | Y18: 0 | Z18: 0 | AA18: 0 | AB18: Allocation based on RAB balances calculated using the methodology and assumptions consistent with the published AER roll forward model | AC18: Most appropriate allocator | AD18: -7.275957614e-12
B19: Revenue from use of RAB assets for non-SCS purposes | C19: 0 | AD19: 0
B20: Other Revenue | C20: 1281.48798 | D20: -2672.31451 | E20: 6290.34791 | F20: 771.01724 | G20: 0 | H20: 0 | I20: 0 | J20: 0 | K20: -3107.56266 | AD20: -2.41016096e-11
B22: Total Revenue | C22: =SUM(C12:C20) -> -768315.2877 | D22: -659194.7976 | E22: -78093.44303 | F22: -2732.143957 | G22: -4613.804833 | H22: -14527.68382 | I22: -5022.40282 | J22: -681.86606 | K22: -3117.12436 | L22: -295.5627047 | M22: -34.40988493 | N22: -0.8289135401 | O22: -1.219666863 | P22: 0 | Q22: 0 | R22: 0 | S22: 0 | AD22: =SUM(AD12:AD20) -> -1.655789799e-05
B24: TUOS costs | C24: 0 | AD24: =C24-SUM(D24:S24) -> 0
B25: Cross boundary costs | C25: 0 | AD25: 0
B26: Jurisdictional Scheme Amounts | C26: 0
B27: Maintenance | C27: 137388.6281 | D27: 124659.6693 | E27: 2168.60745 | F27: 2092.009379 | G27: 3078.191383 | H27: 3772.640265 | I27: 1617.510326 | J27: 0 | K27: 0 | AD27: =C27-SUM(D27:S27) -> 0
B28: Operating Expenses (Billing & Revenue Collection - Allocated) | C28: 5711.056176 | L28: 5147.569514 | M28: 254.2181977 | N28: 26.15955537 | O28: 38.49127959 | P28: 159.1722264 | Q28: 85.44540224 | R28: 0 | T28: 0.9013340713 | U28: 0.04451334217 | V28: 0.004580510953 | W28: 0.006739783046 | X28: 0.02787089139 | Y28: 0.01496140112 | Z28: 0 | AA28: 0 | AB28: Allocation based on Expenditure Split | AC28: Reflective of the costs incurred in providing different categories of distribution services | AD28: 0
B29: Operating Expenses (Advertising/Marketing - Allocated) | C29: 13.97146816 | L29: 12.59296028 | M29: 0.621916743 | N29: 0.06399646296 | O29: 0.09416466427 | P29: 0.3893972717 | Q29: 0.2090327394 | R29: 0 | T29: 0.9013340713 | U29: 0.04451334217 | V29: 0.004580510953 | W29: 0.006739783046 | X29: 0.02787089139 | Y29: 0.01496140112 | Z29: 0 | AA29: 0 | AB29: Allocation based on Expenditure Split | AC29: Reflective of the costs incurred in providing different categories of distribution services | AD29: 0
B30: Operating Expenses (Customer Service - Allocated) | C30: 8741.140665 | L30: 7878.687903 | M30: 389.0973854 | N30: 40.03889056 | O30: 58.91339166 | P30: 243.6233821 | Q30: 130.7797117 | R30: 0 | T30: 0.9013340713 | U30: 0.04451334217 | V30: 0.004580510953 | W30: 0.006739783046 | X30: 0.02787089139 | Y30: 0.01496140112 | Z30: 0 | AA30: 0 | AB30: Allocation based on Expenditure Split | AC30: Reflective of the costs incurred in providing different categories of distribution services | AD30: 0
B31: Operating Expenses (Debt Raising Costs - Allocated) | C31: 155.21315 | L31: 138.1695583 | M31: 16.08592196 | N31: 0.3875002357 | O31: 0.5701694737 | P31: 0 | Q31: 0 | R31: 0 | S31: 0 | T31: =L31/SUM($L31:$S31) -> 0.8901923473 | U31: =M31/SUM($L31:$S31) -> 0.1036376232 | V31: =N31/SUM($L31:$S31) -> 0.002496568337 | W31: 0.003673461132 | X31: 0 | Y31: 0 | Z31: 0 | AA31: 0 | AB31: Allocation based on RAB balances calculated using the methodology and assumptions consistent with the published AER roll forward model | AC31: Reflective of the costs incurred in providing different categories of distribution services | AD31: 0
B32: Operating Expenses (Directly Attributable) | C32: 78787.74775 | D32: 53376.9934 | E32: 11217.275 | F32: 0 | G32: 0 | H32: 8961.130875 | I32: 5232.34849 | J32: 0 | K32: 0 | AD32: -1.302732562e-05
B33: Depreciation | C33: 199721.6027 | D33: 154554.449 | E33: 44048.5932 | F33: 452.6011894 | G33: 665.9592903 | H33: 0 | I33: 0 | J33: 0 | K33: 0 | AD33: 0
B34: Finance Charges | C34: 157.7464 | D34: 0 | E34: 0 | F34: 0 | G34: 0 | H34: 0 | I34: 0 | J34: 0 | K34: 0 | L34: 140.4187984 | M34: 16.34778211 | N34: 0.39380829 | O34: 0.5794511712 | P34: 0 | Q34: 0 | R34: 0 | S34: 0 | T34: =L34/SUM($L34:$S34) -> 0.8901923473 | U34: 0.1036376232 | V34: 0.002496568337 | W34: 0.003673461132 | X34: 0 | Y34: 0 | Z34: 0 | AA34: 0 | AB34: Allocation based on RAB balances calculated using the methodology and assumptions consistent with the published AER roll forward model | AC34: Most appropriate allocator | AD34: 0.00656
B35: Loss from sale of Fixed Assets | C35: 0 | AD35: 0
B36: Impairment Losses (Nature) | C36: 0 | AD36: 0
B37: Costs from use of RAB assets for non-SCS purposes | C37: 0
B38: Other | C38: 0 | AD38: 0
B40: Profit before Tax (PBT) | C40: =SUM(C22:C38) -> -337638.1813 | D40: -326603.6859 | E40: -20658.96739 | F40: -187.5333885 | G40: -869.6541591 | H40: -1793.912678 | I40: 1827.455996 | J40: -681.86606 | K40: -3117.12436 | L40: 13021.87603 | M40: 641.9613189 | N40: 66.21483737 | O40: 97.42878969 | P40: 403.1850057 | Q40: 216.4341467 | R40: 0 | S40: 0 | AD40: =C40-SUM(D40:S40) -> 0.006530414801
B42: Income Tax Expense / (Benefit) | C42: 99073.30684 | L42: 92014.43614 | M42: 5873.598112 | N42: 35.59855108 | O42: 226.5943996 | P42: 408.0817782 | Q42: -599.7395036 | R42: 200.0802312 | S42: 914.6590501 | T42: =L42/SUM($L42:$S42) -> 0.9287510157 | U42: 0.05928537348 | V42: 0.0003593152538 | W42: 0.00228713871 | X42: 0.004118988084 | Y42: -0.006053492219 | Z42: 0.002019517 | AA42: 0.009232143971 | AB42: Allocated based on Proportion of Profit/Loss in each segment | AC42: Most appropriate allocator | AD42: =C42-SUM(D42:S42) -> -0.001916222245
B44: Profit after Tax | C44: =SUM(C40:C42) -> -238564.8744 | D44: -326603.6859 | E44: -20658.96739 | F44: -187.5333885 | G44: -869.6541591 | H44: -1793.912678 | I44: 1827.455996 | J44: -681.86606 | K44: -3117.12436 | L44: 105036.3122 | M44: 6515.559431 | N44: 101.8133885 | O44: 324.0231893 | P44: 811.2667839 | Q44: -383.305357 | R44: 200.0802312 | S44: 914.6590501 | AD44: =C44-SUM(D44:S44) -> 0.004614192527

Sheet Services Fee Work Paper
A2: Services Fee Allocations Workpaper
B4: Powercor
B5: Services Fee Allocations Workpaper
F9: 'Numeric QTY of each allocator (%) | O9: ($'000 nominal) | X9: Basis of allocation
B10: Services Fee | C10: Statutory $000's | D10: Amount Capitalised | E10: Powercor $000 | F10: SCS | G10: AMI | H10: PL (EF) | I10: PL (NE) | J10: ACS (F) | K10: ACS (Q) | L10: Neg'd | M10: Un'reg | N10: Total % | O10: SCS | P10: AMI | Q10: PL (EF) | R10: PL (NE) | S10: ACS (F) | T10: ACS (Q) | U10: Neg'd | V10: Un'reg | W10: Total $
B12: Maintenance | C12: 14530.17313 | E12: 14530.17313 | O12: 13386.82017 | P12: 268.4126296 | Q12: 97.84680378 | R12: 143.9721979 | S12: 439.8000167 | T12: 193.3213151 | U12: 0 | V12: 0 | W12: =SUM(O12:V12) -> 14530.17313 | X12: Directly attributable | Y12: =W12-E12 -> 0
B13: Network operating costs | C13: 424.8906964 | E13: 424.8906964 | O13: 0 | P13: 424.8906964 | Q13: 0 | R13: 0 | S13: 0 | T13: 0 | U13: 0 | V13: 0 | W13: =SUM(O13:V13) -> 424.8906964 | X13: Directly attributable | Y13: =W13-E13 -> 0
B14: Meter data services | C14: 0 | E14: 0 | O14: 0 | P14: 0 | Q14: 0 | R14: 0 | S14: 0 | T14: 0 | U14: 0 | V14: 0 | W14: 0 | X14: Directly attributable to AMI | Y14: 0
B15: Billing and revenue collection - CIS | C15: 686.4084745 | E15: 686.4084745 | O15: 686.4084745 | P15: 0 | Q15: 0 | R15: 0 | S15: 0 | T15: 0 | U15: 0 | V15: 0 | W15: 686.4084745 | X15: Directly attributable to SCS | Y15: 0
B16: Billing and revenue collection | C16: 5711.056176 | E16: 5711.056176 | F16: 0.9013340713 | G16: 0.04451334217 | H16: 0.004580510953 | I16: 0.006739783046 | J16: 0.02787089139 | K16: 0.01496140112 | L16: 0 | M16: 0 | N16: 1 | O16: 5147.569514 | P16: 254.2181977 | Q16: 26.15955537 | R16: 38.49127959 | S16: 159.1722264 | T16: 85.44540224 | U16: 0 | V16: 0 | W16: 5711.056176 | X16: Allocation based on expenditure split | Y16: 0
B17: Advertising & Marketing | C17: 13.97146816 | E17: 13.97146816 | F17: 0.9013340713 | G17: 0.04451334217 | H17: 0.004580510953 | I17: 0.006739783046 | J17: 0.02787089139 | K17: 0.01496140112 | L17: 0 | M17: 0 | N17: 1 | O17: 12.59296028 | P17: 0.621916743 | Q17: 0.06399646296 | R17: 0.09416466427 | S17: 0.3893972717 | T17: 0.2090327394 | U17: 0 | V17: 0 | W17: 13.97146816 | X17: Allocation based on expenditure split | Y17: 0
B18: Customer Service | C18: 8741.140665 | E18: 8741.140665 | F18: 0.9013340713 | G18: 0.04451334217 | H18: 0.004580510953 | I18: 0.006739783046 | J18: 0.02787089139 | K18: 0.01496140112 | L18: 0 | M18: 0 | N18: 1 | O18: 7878.687903 | P18: 389.0973854 | Q18: 40.03889056 | R18: 58.91339166 | S18: 243.6233821 | T18: 130.7797117 | U18: 0 | V18: 0 | W18: 8741.140665 | X18: Allocation based on expenditure split | Y18: 0
B19: Regulatory | C19: 4658.07336 | D19: 4658.07336 | E19: 0 | O19: 0 | P19: 0 | Q19: 0 | R19: 0 | S19: 0 | T19: 0 | U19: 0 | V19: 0 | W19: 0 | X19: Directly attributable | Y19: 0
B20: Other | C20: 38474.63354 | D20: 28996.40534 | E20: 9478.228203 | O20: 8237.980331 | S20: 1240.247872 | W20: 9478.228203 | X20: Directly attributable | Y20: 0
Y21: 0
B22: TOTAL | C22: =SUM(C12:C21) -> 73240.34751 | D22: =SUM(D12:D21) -> 33654.4787 | E22: =SUM(E12:E21) -> 39585.86882 | O22: =SUM(O12:O21) -> 35350.05935 | P22: 1337.240826 | Q22: 164.1092462 | R22: 241.4710338 | S22: 2083.232895 | T22: 409.7554617 | U22: 0 | V22: 0 | W22: 39585.86882 | Y22: 0
Y23: 0

Sheet Income Adjustments
C2: POWERCOR - Statutory to Regulatory Reconciliation
C5: Description | D5: Audited Statutory Accounts | E5: Adjustments | F5: Distribution business | H5: Nature | I5: Basis
C7: Distribution Revenue | D7: 769806.0336 | E7: 0 | F7: 769806.0336
C8: TUOS revenue | D8: 182260.5379 | E8: -182260.5379 | F8: 0 | H8: Pass-through transmission revenues | I8: Revenues not earned by the distribution business and only passed through from retailers to the transmission businesses. | J8: =E8 -> -182260.5379
C9: Cross boundary revenue | D9: 6386.8562 | E9: -6386.8562 | F9: 0 | H9: Pass-through transmission revenues | I9: As above | J9: -6386.8562
C10: Jurisdictional Scheme Amounts | D10: 54143.13052 | E10: -54143.13052 | F10: 0 | H10: Pass-through transmission revenues | I10: As above | J10: -54143.13052
C11: Profit from sale of Fixed Assets | D11: -541.27917 | E11: 0 | F11: -541.27917
C12: Customer Contributions | D12: 88518.28753 | E12: -88518.28753 | F12: 0 | H12: Transfer Customer Contribution Revenue to Fixed assets | I12: Customer contributions are netted off against capex for regulatory purposes to ensure that the there is no further recovery of this portion of capex through the RAB. This is consistent with RAB Roll forward methodology | J12: -88518.28753
C13: Interest income | D13: 105577.8258 | E13: -105245.8046 | F13: 332.02117 | H13: Interest Revenue not relating to the Distribution Business | I13: Inter company interest - Notional interest calculated on inter-company loans which is non-cash. Revenue is not reflective of costs incurred. | J13: -105245.8046
C14: Revenue from use of RAB assets for non-SCS purposes | D14: 0 | E14: 0 | F14: 0
C15: Other Revenue | D15: 270554.5748 | E15: -271836.0628 | F15: -1281.48798 | H15: Other Revenue | I15: Other Revenue | J15: =SUM(J16:J21) -> -271836.0628
H16: Resources Contract Revenue | I16: Under the respective resources agreements, we provide staff to other entities. In turn, these entities pay us for wages and salaries (including bonuses, allowances, leave payments, fringe benefits, fringe benefit tax, payroll tax, superannuation payments and work cover payments); operating expenses that are incidental to the provision of the services (including phone calls and stationery); and motor vehicle expenses relating to provision of the services. The pricing of services under the resources services agreement is at cost. There are no margins, management fees, incentive payments or overhead costs associated with the resources agreement. | J16: -255219.6632
H17: Cost Sharing Agreement | I17: Under the cost sharing agreement, an annual payment is made between us and CitiPower. This payment is based on the pooling of defined overhead costs, and the reallocation of those costs to each distributor based on a defined formula. The difference between the reallocation amount and the actual cost incurred by each distributor is the amount that is paid by one distributor to the other. There are no margins, management fees, incentive payments or overhead costs associated with the cost sharing agreement. | J17: -7629.57067
H18: Activity Allocations treated as Revenue in Statutory Reporting. | I18: Net time confirmations and operating expenditure charged between internal related parties. Reflects work performed by / peformed on behalf of the distribution business. | J18: -560.93694
H19: Customer Contributions earned for WDV of public lighting assets | I19: Customer contributions for these public lighting assets are netted off against capex for regulatory purposes to ensure that the there is no further recovery of this portion of capex through the public lighting RAB. This is consistent with RAB Roll forward methodology. | J19: -757.90808
H20: Recoverable STPIS Penalties | I20: Every year the business receives a reward or penalty in its regulated distribution charges relating to the service target performance incentive scheme (STPIS). The business has chosen to try and recover STPIS penalties from identifiable parties who have caused a STPIS penalty event. In terms of the profit and loss statement, recoverable STPIS penalties are recognised as revenue and a provision for doubtful debts is raised. When STPIS penalties charged to a party are recovered the doubtful debt provision is reduced, and when the STPIS penalties are not recovered they are written off as a bad debt. In terms of RIN reporting to the Australian Energy Regulator, recovered and unrecovered STPIS penalties should be adjusted out of the Statutory Accounts and excluded from the Distribution Business for the following reasons: • The recovery of STPIS penalties is not a regulated activity, therefore it should not be reported as part of the Distribution Business. • The regulated distribution charges are set to recover a certain allowed amount of annual revenue, taking into account the STPIS reward/penalty. There is an annual true up process between reported revenue and revenue allowance to ensure that only the revenue allowance is recovered. If recovered STPIS penalties were included in regulated revenue, then the recovery of STPIS penalties from parties would not offset the penalty that the business incurs via lower distribution charges. • The operating cost allowance of the business, which is a component of the revenue allowance, is based on actual reported operating costs. Bad debt associated with unrecovered STPIS penalties does not relate to a regulated activity and should therefore not be recovered as part of the regulated revenue allowance. | J20: -4536.05
H21: Other revenue relating to non-distribution services | I21: Revenues earned from non distrubition services or assets | J21: -3131.93392
C22: Total revenue | D22: =SUM(D7:D15) -> 1476705.967 | E22: =SUM(E7:E15) -> -708390.6796 | F22: =SUM(F7:F15) -> 768315.2877
C23: TUOS costs | D23: 182260.5379 | E23: -182260.5379 | F23: 0 | H23: Pass-through transmission charges | I23: Costs not incurred by the distribution business and only passed through from transmission businesses to retailers. | J23: =E23 -> -182260.5379
C24: Cross boundary costs | D24: 6386.8562 | E24: -6386.8562 | F24: 0 | H24: Pass-through transmission charges | I24: As above | J24: -6386.8562
C25: Jurisdictional Scheme Amounts | D25: 54143.13052 | E25: -54143.13052 | F25: 0 | H25: Pass-through transmission charges | I25: As above | J25: -54143.13052
C26: Maintenance | D26: 137388.6281 | E26: 0 | F26: 137388.6281
C27: Operating Expenses | D27: 352036.9888 | E27: -258627.8596 | F27: 93409.12921
C28: Network Operating Costs | D28: 31663.69586 | E28: -8550.93577 | F28: 23112.76009 | H28: Network Operating Costs | I28: Network Operating Costs | J28: =SUM(J29:J32) -> -8550.93577
H29: Non-network operating costs transfer to Other Standard Control Services | I29: This is not an adjustment between the statutory and regulatory accounts expenditure. It is merely a product of the reporting templates with an offsetting entry in Other - Standard Control Services . | J29: -360.42816
H30: Cost Sharing Agreement | I30: Under the cost sharing agreement, an annual payment is made between us and CitiPower. This payment is based on the pooling of defined overhead costs, and the reallocation of those costs to each distributor based on a defined formula. The difference between the reallocation amount and the actual cost incurred by each distributor is the amount that is paid by one distributor to the other. There are no margins, management fees, incentive payments or overhead costs associated with the cost sharing agreement. | J30: -7629.57067
H31: Activity Allocations treated as Revenue in Statutory Reporting. | I31: Net time confirmations and operating expenditure charged between internal related parties. Reflects work performed by / peformed on behalf of the distribution business. | J31: -560.93694
H32: Other items relating to non-distribution services | I32: Net expenditures relating to a a related party for non distribution services. | J32: 0
C33: Billing & Revenue Collection | D33: 10763.06828 | E33: -3481.319 | F33: 7281.749279 | H33: Doubtful Debts - STPIS Penalties Charged | I33: Every year the business receives a reward or penalty in its regulated distribution charges relating to the service target performance incentive scheme (STPIS). The business has chosen to try and recover STPIS penalties from identifiable parties who have caused a STPIS penalty event. In terms of the profit and loss statement, recoverable STPIS penalties are recognised as revenue and a provision for doubtful debts is raised. When STPIS penalties charged to a party are recovered the doubtful debt provision is reduced, and when the STPIS penalties are not recovered they are written off as a bad debt. In terms of RIN reporting to the Australian Energy Regulator, recovered and unrecovered STPIS penalties should be adjusted out of the Statutory Accounts and excluded from the Distribution Business for the following reasons: • The recovery of STPIS penalties is not a regulated activity, therefore it should not be reported as part of the Distribution Business. • The regulated distribution charges are set to recover a certain allowed amount of annual revenue, taking into account the STPIS reward/penalty. There is an annual true up process between reported revenue and revenue allowance to ensure that only the revenue allowance is recovered. If recovered STPIS penalties were included in regulated revenue, then the recovery of STPIS penalties from parties would not offset the penalty that the business incurs via lower distribution charges. • The operating cost allowance of the business, which is a component of the revenue allowance, is based on actual reported operating costs. Bad debt associated with unrecovered STPIS penalties does not relate to a regulated activity and should therefore not be recovered as part of the regulated revenue allowance. | J33: =E33 -> -3481.319
C34: Advertising/Marketing | D34: 12.59296028 | E34: 0 | F34: 12.59296028
C35: Customer Service | D35: 7878.687903 | E35: 0 | F35: 7878.687903
C36: Regulatory | D36: 0 | E36: 0 | F36: 0
C37: Regulatory Reset | D37: -0.01909 | E37: 1449.357384 | F37: 1449.338294 | H37: Price Reset Costs | I37: Price Reset costs incorrectly allocated to a related party. | J37: =E37 -> 1449.357384
C38: IT | D38: 0 | E38: 0 | F38: 0
C39: Licence fee | D39: 85.205 | E39: 0 | F39: 85.205
C40: GSL payments | D40: 2308.715 | E40: 0 | F40: 2308.715
C41: Non-network alternatives costs | D41: 0 | E41: 0 | F41: 0
C42: Debt raising costs | D42: 0 | E42: 138.1695583 | F42: =E42 -> 138.1695583 | H42: Transfer of Debt Raising costs treated as Finance Charges in Statutory Accounts -Allocated to SCS | I42: Debt rasing costs relating to short term loans. | J42: =E42 -> 138.1695583
C44: Other - Standard Control Services | D44: 278588.369 | E44: -254301.5738 | F44: 24286.79526 | H44: Other - Standard Control Services | I44: Other - Standard Control Services | J44: =SUM(J45:J48) -> -254301.5738
H45: Resources Contract Cost | I45: Under the respective resources agreements, we provide staff to other entities. In turn, these entities pay us for wages and salaries (including bonuses, allowances, leave payments, fringe benefits, fringe benefit tax, payroll tax, superannuation payments and work cover payments); operating expenses that are incidental to the provision of the services (including phone calls and stationary); and motor vehicle expenses relating to provision of the services. The pricing of services under the resources services agreement is at cost. There are no margins, management fees, incentive payments or overhead costs associated with the resources agreement. | J45: -255219.6632
H46: Non-network operating costs transfer to Other Standard Control Services | I46: This is not an adjustment between the statutory and regulatory accounts expenditure. It is merely a product of the reporting templates with an offsetting entry in Network Operating expenditure. | J46: 360.42816
H47: Capital to Operating adjustment in relation to ACS activities | I47: Certain assets are treated as capex for statutory purposes though not for regulatory purposes. i.e. ACS Capex where revenues are recovered directly from the customer. | J47: 818.72134
H48: Other items relating to non-distribution services | I48: Net expenditures relating to a a related party for non distribution services. | J48: -261.06009
C50: AMI | D50: 11861.2125 | E50: 16.08592196 | F50: 11877.29842 | H50: Transfer of Debt Raising costs treated as Finance Charges in Statutory Accounts - Allocated to AMI | I50: Debt rasing costs relating to short term loans. | J50: =E50 -> 16.08592196
C51: Public Lighting | D51: 163.7612783 | E51: 0.9576697094 | F51: 164.718948 | H51: Transfer of Debt Raising costs treated as Finance Charges in Statutory Accounts - Allocated to ACS | I51: Debt rasing costs relating to short term loans. | J51: 0.9576697094
C52: Alternative control -other | D52: 8711.700062 | E52: 6101.398455 | F52: 14813.09852 | H52: Capital to Operating adjustment in relation to ACS activities | I52: Certain assets are treated as capex for statutory purposes though not for regulatory purposes. i.e. ACS Capex where revenues are recovered directly from the customer. | J52: 6101.398455
C53: Negotiated services | D53: 0 | E53: 0 | F53: 0
C54: Unregulated services
C55: Depreciation | D55: 214910.4834 | E55: -15188.88074 | F55: 199721.6027 | H55: The adjustment between statutory and regulatory disclosures relates to the differing methodologies on which depreciation is calculated. | I55: The Depreciation balance has been calculated using the methodology and assumptions consistent with the published AER roll forward model. - For regulatory purposes the asset base is revalued for inflation. - Certain assets are treated as capex for statutory purposes though not for regulatory purposes. i.e. ACS Capex where revenues are recovered directly from the customer. | J55: =E55 -> -15188.88074
C56: Finance Charges | D56: 21809.12355 | E56: -21651.37715 | F56: 157.7464 | H56: Finance Charges | I56: Finance Charges | J56: =SUM(J57:J58) -> -21651.37715
H57: Interest expense not relating to the Distribution Business. | I57: Inter company interest. Inter company interest calculated on inter company loans which is non-cash. Revenue is not reflective of costs incurred. | J57: -21513.20759
H58: Transfer of Debt Raising costs treated as Finance Charges in Statutory Accounts | I58: Debt rasing costs relating to short term loans. | J58: =-J42 -> -138.1695583
C59: Loss from sale of Fixed Assets | D59: 0 | E59: 0 | F59: 0
C60: Impairment Losses (Nature) | D60: 0 | E60: 0 | F60: 0
C61: Costs from use of RAB assets for non-SCS purposes | D61: 0 | E61: 0 | F61: 0
C62: Other | D62: 0 | E62: 0 | F62: 0
C63: Profit before Tax (PBT) | D63: =D22-SUM(D23:D27,D55:D62) -> 507770.2188 | E63: =E22-SUM(E23:E27,E55:E62) -> -170132.0375 | F63: =F22-SUM(F23:F27,F55:F62) -> 337638.1813
C64: Income Tax Expenses /(Benefit) | D64: 148995.2188 | E64: -49921.91194 | F64: 99073.30684 | H64: Re-apportionment of income tax expense | I64: Income tax expense as reported in the Statutory Accounts has been apportioned based on the ratio of profit before tax disclosed per regulatory segment in the Income Statement. | J64: =E64 -> -49921.91194
C65: Profit after tax | D65: =D63-D64 -> 358775 | E65: -120210.1256 | F65: 238564.8744
D66: 0 | E66: 0 | F66: 0
J67: =-SUM(J23:J25,J28,J42,J44,J50:J52,J55:J56,J64,J37,J33) -> 588180.554
J68: =-SUM(J8:J10,J12:J13,J15) -> 708390.6796
J69: =J67-J68 -> -120210.1256
J70: =J69-E65 -> -1.455191523e-10

Sheet Amendments
B2: Amendments - RIN rationalisation
B4: Information no longer required from Annual Reporting RIN | D4: Reasoning
B5: (workbook/worksheet/table/row-column-cell)
B6: Financial information templates
B7: 1b. Provisions | C7: Entire worksheet | D7: Information in Benchmarking RIN T3.3
B8: 2. Demand and Revenue | C8: T1/T2 Standard control services revenue, yr t,t-1 | D8: Information in Benchmarking RIN Worksheet 2
C9: T5/T6 Public lighting revenue, yr t,t-1 | D9: Information in Benchmarking RIN Worksheet 2
B10: 4a. Capex overheads | C10: Entire worksheets | D10: Information in Category analysis RIN Worksheets 2.10
B11: 4b. Capex O’head margins
B12: 7a. Maintenance O’head | C12: Entire worksheets | D12: Information in Category analysis RIN Worksheets 2.10
B13: 7b. Main O’head margins
B14: 9a. Operating O’head | C14: Entire worksheets | D14: Information in Category analysis RIN Worksheets 2.10
B15: 9b. Opex O’head margins
B16: 10. Overheads allocation | C16: Entire worksheet | D16: Information in Category analysis RIN Worksheet 2.10
B17: 11. Total Overheads | C17: Entire worksheet | D17: Information in Category analysis RIN Worksheet 2.10
B18: 12. Cost categories | C18: Entire worksheet | D18: Information in Category analysis RIN Worksheet 2.12
